Workbook

Sheet Readme
A6: This file contains macros which need to be enabled. For some PC setups this file needs to be saved locally to ensure functionality.
A8: TOPIC: | B8: Our Healthy Future
A9: SUBJECT: | B9: Our Healthy Future Indicators (interim release)
A10: SOURCE: | B10: Annual District Deaths Extract, conceptions data and Mid-year population estimates (Office for National Statistics)
B11: Welsh Index of Multiple Deprivation 2008 and Welsh Health Survey (Welsh Government)
B12: Patient Episode Database Wales (NHS Wales Informatics Service)
B13: National Community Child Health Database (NCCHD) (NHS Wales Informatics Service)
A14: GEOGRAPHY: | B14: Wales; local authorities; health boards
A15: PERIOD: | B15: See individual indicators
A16: DEMOGRAPHY: | B16: Males; females; persons
A17: STATISTICS: | B17: Refer to the technical guide for statistics used and caveats associated with each indicator available at:
B18: http://www.wales.nhs.uk/sitesplus/922/page/65976
A19: INDICATORS: | B19: Inequality Gap in Healthy Life Expectancy (SII in years)
B20: Inequality Gap in Life Expectancy (SII in years)
B21: Free from a common mental disorder (%)
B22: Currently smoking (%)
B23: Average days 30 minutes of moderate/vigorous physical activity
B24: Five fruit/veg the previous day (%)
B25: Obese/overweight (%)
B26: Alcohol-specific admission rates
B27: Conception rates <18s
B28: Hip fracture admission rates 65+
B29: Childhood vaccinations uptake (%)
A31: NOTES: | B31: The rates contained in the interactive data file are based on ONS population estimates which were released prior to the 2011 Census update. This is an interim release and the data will be revised as part of the next update due in summer.
B32: This version is designed for Excel 2007 and later versions and macros need to be enabled for the data file to work correctly. Also, for some PC setups and security settings the file needs to be downloaded and saved on the PC to work correctly. For older versions there is also a 2003 version available (see weblink above)

Sheet QC (hidden)
A1: OAT Quality Control
A3: Audit trail
A5: Date | B5: Name | C5: Items QA'd | E5: Time taken | F5: Additional notes / changes made
A6: 2012-10-04 | B6: Dee Hickey | C6: see end of sheet | E6: 2 days | F6: inserted readme sheet
A7: 2012-10-05 | B7: Dee Hickey | C7: plus 'copy tables&charts', 'interactive guide' and 'table guide' tabs & formatting
A8: 2012-10-10 | B8: Dee Hickey | C8: spot checked length of error bars
C9: README sheet and VB script needs to be QC'd
A10: 2012-10-11 | B10: Jo Arthur | C10: VB code check
A11: 2012-10-11 | B11: Beth Patterson | C11: checked ReadMe sheet | F11: Took out 2005-2009 period note as the indicators have various periods ranginf from 2005 up to FY 2011/12; put sources in full; subject changed to 'Public Health Shared Indicators'
A12: 2012-11-21 | B12: Dee Hickey | C12: Checked all data (in both overview table& in interactive table) against the orginal version that I QC'd (version 0g) | F12: no changes made
A13: 2012-11-27 | B13: Jo Arthur | C13: VB code 2nd check
A14: Key to symbols (pick from drop-down list in 'Pass/fail' column) | E14: Refer to 'Guidelines to Presenting data' when
E15: QAing tables, charts and maps (section nos. in brackets):
A16: not applicable | B16: Not applicable | E16: =HYPERLINK("\\epobclstr.nhswales.wales.nhs\Observatory\Health Intelligence\Method\Presenting data\20090202_GuidelinesForPresentingData_HCGD_v2a.doc", "Charts (3); tables (4); maps (5); implementation guide (6)") -> Charts (3); tables (4); maps (5); implementation guide (6)
A17: pass | B17: Passed
A18: ? | B18: Further clarification needed - insert note to explain why | E18: Guide to formatting Readme sheet / headers & footers:
A19: fail | B19: Failed - enter note to explain why and flag with author(s) | E19: =HYPERLINK("\\epobclstr.nhswales.wales.nhs\Observatory\Health Intelligence\Method\Quality Assurance\20100408_ReadmeFormatting_HC_v0a.ppt", "Readme") -> Readme
A20: corrected | B20: QA point which has been actioned | E20: =HYPERLINK("\\epobclstr\Observatory\Health Intelligence\Method\Quality Assurance\20100331_HeaderFooter_HC_v0a.ppt", "Header and footers") -> Header and footers
A23: QA template
A25: Overall product | C25: Pass / fail etc | E25: Notes
A27: Content | B27: Does the analysis answer the question being asked? | C27: pass
B28: Are there any information governance concerns, e.g. small numbers / sensitive personal information? | C28: pass
B29: References included as appropriate | C29: pass
A31: Excel methods | B31: Data are linked using cell references, rather than copied-and-pasted, enabling automation and making QA easier | C31: pass
B32: It is clear where all the data have come from, e.g. by including links to other workbooks or web pages | C32: pass | E32: All data checked against orginal data in 'data' folder
B33: Raw data remains unchanged in a separate sheet, making QA easier and enabling future updating of the analysis | C33: not applicable
A35: Formatting | B35: Do the readme and outputs print correctly, i.e. within distinct sheets? | C35: not applicable
B36: =HYPERLINK("\\epobclstr\Observatory\Health Intelligence\Method\Quality Assurance\20100331_HeaderFooter_HC_v0a.ppt", "Header and footers") -> Header and footers | C36: not applicable
B37: Referencing - check Public Health Wales guidance | C37: not applicable
A39: Readme sheet | C39: Pass / fail etc | E39: Notes
A41: Content | B41: All sections completed | C41: ?
B42: Notes and caveats are sufficiently detailed | C42: ?
B43: Source is clear and mentions numerator and denominator | C43: not applicable
B44: ICD / OPCS codes included as appropriate | C44: not applicable
A46: Formatting | B46: =HYPERLINK("\\epobclstr.nhswales.wales.nhs\Observatory\Health Intelligence\Method\Quality Assurance\20100408_ReadmeFormatting_HC_v0a.ppt", "Readme formatting guide") -> Readme formatting guide | C46: not applicable
A47: Analysis 1 | C47: Pass / fail etc | E47: Notes
A49: Raw data | B49: Numerator
B50: Extracted from correct SQL table / spreadsheet / website | C50: not applicable
B51: Extract is for correct age/sex, time period and area | C51: not applicable
B52: Correct ICD/OPCS codes used in query to extract data | C52: not applicable
B53: Data have been copied into spreadsheet correctly | C53: not applicable
B55: Denominator
B56: Extracted from correct SQL table / spreadsheet / website | C56: not applicable
B57: Matches numerator in age/sex, time period and area | C57: not applicable
B58: Population data are unrounded for rate calculation | C58: not applicable
B59: Data have been copied into spreadsheet correctly | C59: not applicable
A62: Analytical method | B62: Appropriate use of crude or age-standardised rates | C62: not applicable
B63: Correct decision to include or omit confidence intervals | C63: not applicable
B64: Correct method used for deriving 95% C.I. | C64: not applicable
B65: Are 95% C.I.s referenced correctly? Check + / - error bars | C65: not applicable
B66: Correct method used for testing statistical significance | C66: not applicable
B67: Comparator (eg Wales average) provided as appropriate | C67: not applicable
B68: Correct weightings used for direct standardisation | C68: not applicable
B69: Spot check formulae for accuracy and consistency | C69: not applicable
B70: Spot check cells referencing data from other sheets | C70: not applicable
A73: Results | B73: Do the figures look OK? | C73: not applicable
B74: Comparable to previous findings? | C74: not applicable
B75: Comparable to Healthshow / e-pedw? | C75: not applicable
A78: Formatting | B78: Tables - section 4 of 'Guidelines to Presenting Data' | C78: pass | E78: All font in verdana (font size all between 9-10)
B79: Charts - section 3 of 'Guidelines to Presenting Data' | C79: pass | E79: All font in verdana (font size all between 9-10)
B80: Maps - section 5 of 'Guidelines to Presenting Data' | C80: not applicable
A82: QC Checks completed | B82: Interactive (check against controls and orginal data) | C82: Overview tables (EASR figures) | D82: Overview tables (stat signif and colour coding)
B83: Free from a mental health disorder | C83: Free from a mental health disorder | D83: Free from a mental health disorder
B84: Hip Fractures | C84: Hip Fractures | D84: Hip Fractures
B85: SII in years | C85: SII in years | D85: N/A
B86: Childhood vaccinations | C86: Childhood vaccinations | D86: Childhood vaccinations
B87: Smoking | C87: Smoking | D87: Smoking
B88: F&V consumption | C88: F&V consumption | D88: F&V consumption
B89: Obesity | C89: Obesity | D89: Obesity
B90: Physical Activity | C90: Physical Activity | D90: Physical Activity
B91: Teenage Conceptions | C91: Teenage Conceptions | D91: Teenage Conceptions
B92: Alcohol admissions | C92: Alcohol admissions | D92: Alcohol admissions

Sheet Overview table
AD2: M | AF2: F | AH2: M | AJ2: F | AL2: P | AN2: P | AP2: P | AR2: P | AT2: P | AV2: P | AX2: P | AZ2: M | BB2: F | BD2: F | BF2: P | BH2: M | BJ2: F | BL2: P
AD4: HLE | AE4: HLE | AF4: HLE | AG4: HLE | AH4: LE | AI4: LE | AJ4: LE | AK4: LE | AL4: MENT | AM4: MENT | AN4: EMP | AO4: EMP | AP4: SMO | AQ4: SMO | AR4: ACT | AS4: ACT | AT4: FRU | AU4: FRU | AV4: OBE | AW4: OBE | AX4: ALC | AY4: ALC | AZ4: ALC | BA4: ALC | BB4: ALC | BC4: ALC | BD4: CONCEP | BE4: CONCEP | BF4: HIP | BG4: HIP | BH4: HIP | BI4: HIP | BJ4: HIP | BK4: HIP | BL4: VACC | BM4: VACC
AD6: LCL | AE6: UCL | AF6: LCL | AG6: UCL | AH6: LCL | AI6: UCL | AJ6: LCL | AK6: UCL | AL6: LCL | AM6: UCL | AN6: LCL | AO6: UCL | AP6: LCL | AQ6: UCL | AR6: LCL | AS6: UCL | AT6: LCL | AU6: UCL | AV6: LCL | AW6: UCL | AX6: LCL | AY6: UCL | AZ6: LCL | BA6: UCL | BB6: LCL | BC6: UCL | BD6: LCL | BE6: UCL | BF6: LCL | BG6: UCL | BH6: LCL | BI6: UCL | BJ6: LCL | BK6: UCL | BL6: LCL | BM6: UCL
B7: Isle of Anglesey | F7: =VLOOKUP(($B7&"_"&AF$44&"_"&AF$43&"_"&AF$45&"_"&$AC7),'All Data'!$A$2:$L$1048576,8,FALSE) -> 6.819951 | G7: =VLOOKUP(($B7&"_"&AG$44&"_"&AG$43&"_"&AG$45&"_"&$AC7),'All Data'!$A$2:$L$1048576,8,FALSE) -> 4.557956 | I7: =VLOOKUP(($B7&"_"&AH$44&"_"&AH$43&"_"&AH$45&"_"&$AC7),'All Data'!$A$2:$L$1048576,8,FALSE) -> 77.08163 | J7: =VLOOKUP(($B7&"_"&AJ$44&"_"&AJ$43&"_"&AJ$45&"_"&$AC7),'All Data'!$A$2:$L$1048576,8,FALSE) -> 23.88784622 | K7: =VLOOKUP(($B7&"_"&AL$44&"_"&AL$43&"_"&AL$45&"_"&$AC7),'All Data'!$A$2:$L$1048576,8,FALSE) -> 2.510035629 | L7: =VLOOKUP(($B7&"_"&AM$44&"_"&AM$43&"_"&AM$45&"_"&$AC7),'All Data'!$A$2:$L$1048576,8,FALSE) -> 37.70456294 | M7: =VLOOKUP(($B7&"_"&AN$44&"_"&AN$43&"_"&AN$45&"_"&$AC7),'All Data'!$A$2:$L$1048576,8,FALSE) -> 54.16554792 | O7: =VLOOKUP(($B7&"_"&AO$44&"_"&AO$43&"_"&AO$45&"_"&$AC7),'All Data'!$A$2:$L$1048576,8,FALSE) -> 404.13982 | P7: =VLOOKUP(($B7&"_"&AP$44&"_"&AP$43&"_"&AP$45&"_"&$AC7),'All Data'!$A$2:$L$1048576,8,FALSE) -> 580.31138 | Q7: =VLOOKUP(($B7&"_"&AQ$44&"_"&AQ$43&"_"&AQ$45&"_"&$AC7),'All Data'!$A$2:$L$1048576,8,FALSE) -> 232.21964 | S7: =VLOOKUP(($B7&"_"&AR$44&"_"&AR$43&"_"&AR$45&"_"&$AC7),'All Data'!$A$2:$L$1048576,8,FALSE) -> 34.00809717 | U7: =VLOOKUP(($B7&"_"&AS$44&"_"&AS$43&"_"&AS$45&"_"&$AC7),'All Data'!$A$2:$L$1048576,8,FALSE) -> 789.9266 | V7: =VLOOKUP(($B7&"_"&AT$44&"_"&AT$43&"_"&AT$45&"_"&$AC7),'All Data'!$A$2:$L$1048576,8,FALSE) -> 559.9781 | W7: =VLOOKUP(($B7&"_"&AU$44&"_"&AU$43&"_"&AU$45&"_"&$AC7),'All Data'!$A$2:$L$1048576,8,FALSE) -> 904.5568 | Y7: =VLOOKUP(($B7&"_"&AV$44&"_"&AV$43&"_"&AV$45&"_"&$AC7),'All Data'!$A$2:$L$1048576,8,FALSE) -> 82.22222222 | AC7: LA | AD7: ='Overview (controls)'!C7 -> 0 | AE7: ='Overview (controls)'!D7 -> 0 | AF7: ='Overview (controls)'!E7 -> 0 | AG7: ='Overview (controls)'!F7 -> 0 | AH7: ='Overview (controls)'!G7 -> -0.0855653 | AI7: ='Overview (controls)'!H7 -> 13.72547 | AJ7: ='Overview (controls)'!I7 -> 1.758882 | AK7: ='Overview (controls)'!J7 -> 7.35703 | AL7: ='Overview (controls)'!K7 -> 74.25951 | AM7: ='Overview (controls)'!L7 -> 79.90374 | AN7: ='Overview (controls)'!M7 ->  | AO7: ='Overview (controls)'!N7 ->  | AP7: ='Overview (controls)'!O7 -> 21.01552 | AQ7: ='Overview (controls)'!P7 -> 26.76017 | AR7: ='Overview (controls)'!Q7 -> 2.378917 | AS7: ='Overview (controls)'!R7 -> 2.641154 | AT7: ='Overview (controls)'!S7 -> 34.49156 | AU7: ='Overview (controls)'!T7 -> 40.91757 | AV7: ='Overview (controls)'!U7 -> 51.0283 | AW7: ='Overview (controls)'!V7 -> 57.30279 | AX7: ='Overview (controls)'!W7 -> 355.90109 | AY7: ='Overview (controls)'!X7 -> 456.84265 | AZ7: ='Overview (controls)'!Y7 -> 498.51384 | BA7: ='Overview (controls)'!Z7 -> 671.2865 | BB7: ='Overview (controls)'!AA7 -> 182.43273 | BC7: ='Overview (controls)'!AB7 -> 290.67598 | BD7: ='Overview (controls)'!AC7 -> 24.51012146 | BE7: ='Overview (controls)'!AD7 -> 45.96923077 | BF7: ='Overview (controls)'!AE7 -> 663.76607 | BG7: ='Overview (controls)'!AF7 -> 932.65923 | BH7: ='Overview (controls)'!AG7 -> 398.3619 | BI7: ='Overview (controls)'!AH7 -> 764.63933 | BJ7: ='Overview (controls)'!AI7 -> 732.39572 | BK7: ='Overview (controls)'!AJ7 -> 1103.61754 | BL7: ='Overview (controls)'!AK7 -> 79.35389605 | BM7: ='Overview (controls)'!AL7 -> 84.76854478
B8: Gwynedd | F8: =VLOOKUP(($B8&"_"&AF$44&"_"&AF$43&"_"&AF$45&"_"&$AC8),'All Data'!$A$2:$L$1048576,8,FALSE) -> 3.425133 | G8: =VLOOKUP(($B8&"_"&AG$44&"_"&AG$43&"_"&AG$45&"_"&$AC8),'All Data'!$A$2:$L$1048576,8,FALSE) -> 2.428353 | I8: =VLOOKUP(($B8&"_"&AH$44&"_"&AH$43&"_"&AH$45&"_"&$AC8),'All Data'!$A$2:$L$1048576,8,FALSE) -> 77.9782 | J8: =VLOOKUP(($B8&"_"&AJ$44&"_"&AJ$43&"_"&AJ$45&"_"&$AC8),'All Data'!$A$2:$L$1048576,8,FALSE) -> 24.11628833 | K8: =VLOOKUP(($B8&"_"&AL$44&"_"&AL$43&"_"&AL$45&"_"&$AC8),'All Data'!$A$2:$L$1048576,8,FALSE) -> 2.500658184 | L8: =VLOOKUP(($B8&"_"&AM$44&"_"&AM$43&"_"&AM$45&"_"&$AC8),'All Data'!$A$2:$L$1048576,8,FALSE) -> 40.71057686 | M8: =VLOOKUP(($B8&"_"&AN$44&"_"&AN$43&"_"&AN$45&"_"&$AC8),'All Data'!$A$2:$L$1048576,8,FALSE) -> 56.10125122 | O8: =VLOOKUP(($B8&"_"&AO$44&"_"&AO$43&"_"&AO$45&"_"&$AC8),'All Data'!$A$2:$L$1048576,8,FALSE) -> 365.87834 | P8: =VLOOKUP(($B8&"_"&AP$44&"_"&AP$43&"_"&AP$45&"_"&$AC8),'All Data'!$A$2:$L$1048576,8,FALSE) -> 484.22366 | Q8: =VLOOKUP(($B8&"_"&AQ$44&"_"&AQ$43&"_"&AQ$45&"_"&$AC8),'All Data'!$A$2:$L$1048576,8,FALSE) -> 249.91433 | S8: =VLOOKUP(($B8&"_"&AR$44&"_"&AR$43&"_"&AR$45&"_"&$AC8),'All Data'!$A$2:$L$1048576,8,FALSE) -> 33.71298405 | U8: =VLOOKUP(($B8&"_"&AS$44&"_"&AS$43&"_"&AS$45&"_"&$AC8),'All Data'!$A$2:$L$1048576,8,FALSE) -> 798.9048 | V8: =VLOOKUP(($B8&"_"&AT$44&"_"&AT$43&"_"&AT$45&"_"&$AC8),'All Data'!$A$2:$L$1048576,8,FALSE) -> 508.2864 | W8: =VLOOKUP(($B8&"_"&AU$44&"_"&AU$43&"_"&AU$45&"_"&$AC8),'All Data'!$A$2:$L$1048576,8,FALSE) -> 1002.0168 | Y8: =VLOOKUP(($B8&"_"&AV$44&"_"&AV$43&"_"&AV$45&"_"&$AC8),'All Data'!$A$2:$L$1048576,8,FALSE) -> 85.06493506 | AC8: LA | AD8: ='Overview (controls)'!C8 -> 0 | AE8: ='Overview (controls)'!D8 -> 0 | AF8: ='Overview (controls)'!E8 -> 0 | AG8: ='Overview (controls)'!F8 -> 0 | AH8: ='Overview (controls)'!G8 -> 0.1803145 | AI8: ='Overview (controls)'!H8 -> 6.669952 | AJ8: ='Overview (controls)'!I8 -> -3.208855 | AK8: ='Overview (controls)'!J8 -> 8.06556 | AL8: ='Overview (controls)'!K8 -> 75.21441 | AM8: ='Overview (controls)'!L8 -> 80.74199 | AN8: ='Overview (controls)'!M8 ->  | AO8: ='Overview (controls)'!N8 ->  | AP8: ='Overview (controls)'!O8 -> 21.19072 | AQ8: ='Overview (controls)'!P8 -> 27.04186 | AR8: ='Overview (controls)'!Q8 -> 2.36457 | AS8: ='Overview (controls)'!R8 -> 2.636746 | AT8: ='Overview (controls)'!S8 -> 37.3797 | AU8: ='Overview (controls)'!T8 -> 44.04145 | AV8: ='Overview (controls)'!U8 -> 52.86305 | AW8: ='Overview (controls)'!V8 -> 59.33945 | AX8: ='Overview (controls)'!W8 -> 330.94651 | AY8: ='Overview (controls)'!X8 -> 403.39877 | AZ8: ='Overview (controls)'!Y8 -> 427.42395 | BA8: ='Overview (controls)'!Z8 -> 546.27973 | BB8: ='Overview (controls)'!AA8 -> 210.11351 | BC8: ='Overview (controls)'!AB8 -> 294.86779 | BD8: ='Overview (controls)'!AC8 -> 26.47198178 | BE8: ='Overview (controls)'!AD8 -> 42.32346241 | BF8: ='Overview (controls)'!AE8 -> 696.38687 | BG8: ='Overview (controls)'!AF8 -> 911.86861 | BH8: ='Overview (controls)'!AG8 -> 383.79665 | BI8: ='Overview (controls)'!AH8 -> 659.95825 | BJ8: ='Overview (controls)'!AI8 -> 850.11875 | BK8: ='Overview (controls)'!AJ8 -> 1171.85617 | BL8: ='Overview (controls)'!AK8 -> 82.9656945 | BM8: ='Overview (controls)'!AL8 -> 86.9461777
B9: Conwy | F9: =VLOOKUP(($B9&"_"&AF$44&"_"&AF$43&"_"&AF$45&"_"&$AC9),'All Data'!$A$2:$L$1048576,8,FALSE) -> 8.063146 | G9: =VLOOKUP(($B9&"_"&AG$44&"_"&AG$43&"_"&AG$45&"_"&$AC9),'All Data'!$A$2:$L$1048576,8,FALSE) -> 6.78518 | I9: =VLOOKUP(($B9&"_"&AH$44&"_"&AH$43&"_"&AH$45&"_"&$AC9),'All Data'!$A$2:$L$1048576,8,FALSE) -> 79.96597 | J9: =VLOOKUP(($B9&"_"&AJ$44&"_"&AJ$43&"_"&AJ$45&"_"&$AC9),'All Data'!$A$2:$L$1048576,8,FALSE) -> 22.14657577 | K9: =VLOOKUP(($B9&"_"&AL$44&"_"&AL$43&"_"&AL$45&"_"&$AC9),'All Data'!$A$2:$L$1048576,8,FALSE) -> 2.562600124 | L9: =VLOOKUP(($B9&"_"&AM$44&"_"&AM$43&"_"&AM$45&"_"&$AC9),'All Data'!$A$2:$L$1048576,8,FALSE) -> 34.63608422 | M9: =VLOOKUP(($B9&"_"&AN$44&"_"&AN$43&"_"&AN$45&"_"&$AC9),'All Data'!$A$2:$L$1048576,8,FALSE) -> 51.13377587 | O9: =VLOOKUP(($B9&"_"&AO$44&"_"&AO$43&"_"&AO$45&"_"&$AC9),'All Data'!$A$2:$L$1048576,8,FALSE) -> 411.61942 | P9: =VLOOKUP(($B9&"_"&AP$44&"_"&AP$43&"_"&AP$45&"_"&$AC9),'All Data'!$A$2:$L$1048576,8,FALSE) -> 527.79268 | Q9: =VLOOKUP(($B9&"_"&AQ$44&"_"&AQ$43&"_"&AQ$45&"_"&$AC9),'All Data'!$A$2:$L$1048576,8,FALSE) -> 301.37362 | S9: =VLOOKUP(($B9&"_"&AR$44&"_"&AR$43&"_"&AR$45&"_"&$AC9),'All Data'!$A$2:$L$1048576,8,FALSE) -> 38.65461847 | U9: =VLOOKUP(($B9&"_"&AS$44&"_"&AS$43&"_"&AS$45&"_"&$AC9),'All Data'!$A$2:$L$1048576,8,FALSE) -> 715.7406 | V9: =VLOOKUP(($B9&"_"&AT$44&"_"&AT$43&"_"&AT$45&"_"&$AC9),'All Data'!$A$2:$L$1048576,8,FALSE) -> 504.6443 | W9: =VLOOKUP(($B9&"_"&AU$44&"_"&AU$43&"_"&AU$45&"_"&$AC9),'All Data'!$A$2:$L$1048576,8,FALSE) -> 860.2365 | Y9: =VLOOKUP(($B9&"_"&AV$44&"_"&AV$43&"_"&AV$45&"_"&$AC9),'All Data'!$A$2:$L$1048576,8,FALSE) -> 81.22743682 | AC9: LA | AD9: ='Overview (controls)'!C9 -> 0 | AE9: ='Overview (controls)'!D9 -> 0 | AF9: ='Overview (controls)'!E9 -> 0 | AG9: ='Overview (controls)'!F9 -> 0 | AH9: ='Overview (controls)'!G9 -> 5.792895 | AI9: ='Overview (controls)'!H9 -> 10.3334 | AJ9: ='Overview (controls)'!I9 -> 4.13759 | AK9: ='Overview (controls)'!J9 -> 9.43277 | AL9: ='Overview (controls)'!K9 -> 77.47878 | AM9: ='Overview (controls)'!L9 -> 82.45317 | AN9: ='Overview (controls)'!M9 ->  | AO9: ='Overview (controls)'!N9 ->  | AP9: ='Overview (controls)'!O9 -> 19.44904 | AQ9: ='Overview (controls)'!P9 -> 24.84411 | AR9: ='Overview (controls)'!Q9 -> 2.43085 | AS9: ='Overview (controls)'!R9 -> 2.69435 | AT9: ='Overview (controls)'!S9 -> 31.54584 | AU9: ='Overview (controls)'!T9 -> 37.72633 | AV9: ='Overview (controls)'!U9 -> 48.06402 | AW9: ='Overview (controls)'!V9 -> 54.20354 | AX9: ='Overview (controls)'!W9 -> 372.39396 | AY9: ='Overview (controls)'!X9 -> 453.66752 | AZ9: ='Overview (controls)'!Y9 -> 465.96588 | BA9: ='Overview (controls)'!Z9 -> 595.21693 | BB9: ='Overview (controls)'!AA9 -> 253.77181 | BC9: ='Overview (controls)'!AB9 -> 354.86909 | BD9: ='Overview (controls)'!AC9 -> 30.50552209 | BE9: ='Overview (controls)'!AD9 -> 48.31174699 | BF9: ='Overview (controls)'!AE9 -> 627.92705 | BG9: ='Overview (controls)'!AF9 -> 811.96809 | BH9: ='Overview (controls)'!AG9 -> 392.51496 | BI9: ='Overview (controls)'!AH9 -> 638.29253 | BJ9: ='Overview (controls)'!AI9 -> 733.54247 | BK9: ='Overview (controls)'!AJ9 -> 1001.30242 | BL9: ='Overview (controls)'!AK9 -> 78.82166231 | BM9: ='Overview (controls)'!AL9 -> 83.41741923
B10: Denbighshire | F10: =VLOOKUP(($B10&"_"&AF$44&"_"&AF$43&"_"&AF$45&"_"&$AC10),'All Data'!$A$2:$L$1048576,8,FALSE) -> 7.645921 | G10: =VLOOKUP(($B10&"_"&AG$44&"_"&AG$43&"_"&AG$45&"_"&$AC10),'All Data'!$A$2:$L$1048576,8,FALSE) -> 3.736851 | I10: =VLOOKUP(($B10&"_"&AH$44&"_"&AH$43&"_"&AH$45&"_"&$AC10),'All Data'!$A$2:$L$1048576,8,FALSE) -> 77.01356 | J10: =VLOOKUP(($B10&"_"&AJ$44&"_"&AJ$43&"_"&AJ$45&"_"&$AC10),'All Data'!$A$2:$L$1048576,8,FALSE) -> 23.04792013 | K10: =VLOOKUP(($B10&"_"&AL$44&"_"&AL$43&"_"&AL$45&"_"&$AC10),'All Data'!$A$2:$L$1048576,8,FALSE) -> 2.508173773 | L10: =VLOOKUP(($B10&"_"&AM$44&"_"&AM$43&"_"&AM$45&"_"&$AC10),'All Data'!$A$2:$L$1048576,8,FALSE) -> 36.06737057 | M10: =VLOOKUP(($B10&"_"&AN$44&"_"&AN$43&"_"&AN$45&"_"&$AC10),'All Data'!$A$2:$L$1048576,8,FALSE) -> 54.44551639 | O10: =VLOOKUP(($B10&"_"&AO$44&"_"&AO$43&"_"&AO$45&"_"&$AC10),'All Data'!$A$2:$L$1048576,8,FALSE) -> 366.91975 | P10: =VLOOKUP(($B10&"_"&AP$44&"_"&AP$43&"_"&AP$45&"_"&$AC10),'All Data'!$A$2:$L$1048576,8,FALSE) -> 443.86834 | Q10: =VLOOKUP(($B10&"_"&AQ$44&"_"&AQ$43&"_"&AQ$45&"_"&$AC10),'All Data'!$A$2:$L$1048576,8,FALSE) -> 294.00943 | S10: =VLOOKUP(($B10&"_"&AR$44&"_"&AR$43&"_"&AR$45&"_"&$AC10),'All Data'!$A$2:$L$1048576,8,FALSE) -> 35.21878335 | U10: =VLOOKUP(($B10&"_"&AS$44&"_"&AS$43&"_"&AS$45&"_"&$AC10),'All Data'!$A$2:$L$1048576,8,FALSE) -> 454.8743 | V10: =VLOOKUP(($B10&"_"&AT$44&"_"&AT$43&"_"&AT$45&"_"&$AC10),'All Data'!$A$2:$L$1048576,8,FALSE) -> 264.4979 | W10: =VLOOKUP(($B10&"_"&AU$44&"_"&AU$43&"_"&AU$45&"_"&$AC10),'All Data'!$A$2:$L$1048576,8,FALSE) -> 586.8178 | Y10: =VLOOKUP(($B10&"_"&AV$44&"_"&AV$43&"_"&AV$45&"_"&$AC10),'All Data'!$A$2:$L$1048576,8,FALSE) -> 82.3246878 | AC10: LA | AD10: ='Overview (controls)'!C10 -> 0 | AE10: ='Overview (controls)'!D10 -> 0 | AF10: ='Overview (controls)'!E10 -> 0 | AG10: ='Overview (controls)'!F10 -> 0 | AH10: ='Overview (controls)'!G10 -> -3.09605 | AI10: ='Overview (controls)'!H10 -> 18.38789 | AJ10: ='Overview (controls)'!I10 -> -2.959519 | AK10: ='Overview (controls)'!J10 -> 10.43322 | AL10: ='Overview (controls)'!K10 -> 74.47421 | AM10: ='Overview (controls)'!L10 -> 79.5529 | AN10: ='Overview (controls)'!M10 ->  | AO10: ='Overview (controls)'!N10 ->  | AP10: ='Overview (controls)'!O10 -> 20.35108 | AQ10: ='Overview (controls)'!P10 -> 25.74476 | AR10: ='Overview (controls)'!Q10 -> 2.379158 | AS10: ='Overview (controls)'!R10 -> 2.63719 | AT10: ='Overview (controls)'!S10 -> 33.01999 | AU10: ='Overview (controls)'!T10 -> 39.11475 | AV10: ='Overview (controls)'!U10 -> 51.3506 | AW10: ='Overview (controls)'!V10 -> 57.54043 | AX10: ='Overview (controls)'!W10 -> 328.41045 | AY10: ='Overview (controls)'!X10 -> 408.56401 | AZ10: ='Overview (controls)'!Y10 -> 384.24913 | BA10: ='Overview (controls)'!Z10 -> 509.87144 | BB10: ='Overview (controls)'!AA10 -> 245.96544 | BC10: ='Overview (controls)'!AB10 -> 348.3412 | BD10: ='Overview (controls)'!AC10 -> 27.2379936 | BE10: ='Overview (controls)'!AD10 -> 44.80683031 | BF10: ='Overview (controls)'!AE10 -> 378.21558 | BG10: ='Overview (controls)'!AF10 -> 541.99529 | BH10: ='Overview (controls)'!AG10 -> 175.15889 | BI10: ='Overview (controls)'!AH10 -> 383.02936 | BJ10: ='Overview (controls)'!AI10 -> 471.04228 | BK10: ='Overview (controls)'!AJ10 -> 720.49933 | BL10: ='Overview (controls)'!AK10 -> 79.88976703 | BM10: ='Overview (controls)'!AL10 -> 84.5219103
B11: Flintshire | F11: =VLOOKUP(($B11&"_"&AF$44&"_"&AF$43&"_"&AF$45&"_"&$AC11),'All Data'!$A$2:$L$1048576,8,FALSE) -> 7.459997 | G11: =VLOOKUP(($B11&"_"&AG$44&"_"&AG$43&"_"&AG$45&"_"&$AC11),'All Data'!$A$2:$L$1048576,8,FALSE) -> 6.81 | I11: =VLOOKUP(($B11&"_"&AH$44&"_"&AH$43&"_"&AH$45&"_"&$AC11),'All Data'!$A$2:$L$1048576,8,FALSE) -> 79.39346 | J11: =VLOOKUP(($B11&"_"&AJ$44&"_"&AJ$43&"_"&AJ$45&"_"&$AC11),'All Data'!$A$2:$L$1048576,8,FALSE) -> 21.48060871 | K11: =VLOOKUP(($B11&"_"&AL$44&"_"&AL$43&"_"&AL$45&"_"&$AC11),'All Data'!$A$2:$L$1048576,8,FALSE) -> 2.469643227 | L11: =VLOOKUP(($B11&"_"&AM$44&"_"&AM$43&"_"&AM$45&"_"&$AC11),'All Data'!$A$2:$L$1048576,8,FALSE) -> 35.648718 | M11: =VLOOKUP(($B11&"_"&AN$44&"_"&AN$43&"_"&AN$45&"_"&$AC11),'All Data'!$A$2:$L$1048576,8,FALSE) -> 56.24383162 | O11: =VLOOKUP(($B11&"_"&AO$44&"_"&AO$43&"_"&AO$45&"_"&$AC11),'All Data'!$A$2:$L$1048576,8,FALSE) -> 322.61638 | P11: =VLOOKUP(($B11&"_"&AP$44&"_"&AP$43&"_"&AP$45&"_"&$AC11),'All Data'!$A$2:$L$1048576,8,FALSE) -> 383.02124 | Q11: =VLOOKUP(($B11&"_"&AQ$44&"_"&AQ$43&"_"&AQ$45&"_"&$AC11),'All Data'!$A$2:$L$1048576,8,FALSE) -> 265.37838 | S11: =VLOOKUP(($B11&"_"&AR$44&"_"&AR$43&"_"&AR$45&"_"&$AC11),'All Data'!$A$2:$L$1048576,8,FALSE) -> 37.7562028 | U11: =VLOOKUP(($B11&"_"&AS$44&"_"&AS$43&"_"&AS$45&"_"&$AC11),'All Data'!$A$2:$L$1048576,8,FALSE) -> 734.0874 | V11: =VLOOKUP(($B11&"_"&AT$44&"_"&AT$43&"_"&AT$45&"_"&$AC11),'All Data'!$A$2:$L$1048576,8,FALSE) -> 472.8097 | W11: =VLOOKUP(($B11&"_"&AU$44&"_"&AU$43&"_"&AU$45&"_"&$AC11),'All Data'!$A$2:$L$1048576,8,FALSE) -> 927.4983 | Y11: =VLOOKUP(($B11&"_"&AV$44&"_"&AV$43&"_"&AV$45&"_"&$AC11),'All Data'!$A$2:$L$1048576,8,FALSE) -> 83.06585501 | AC11: LA | AD11: ='Overview (controls)'!C11 -> 0 | AE11: ='Overview (controls)'!D11 -> 0 | AF11: ='Overview (controls)'!E11 -> 0 | AG11: ='Overview (controls)'!F11 -> 0 | AH11: ='Overview (controls)'!G11 -> 1.470987 | AI11: ='Overview (controls)'!H11 -> 13.44901 | AJ11: ='Overview (controls)'!I11 -> 4.129709 | AK11: ='Overview (controls)'!J11 -> 9.49029 | AL11: ='Overview (controls)'!K11 -> 77.05417 | AM11: ='Overview (controls)'!L11 -> 81.73275 | AN11: ='Overview (controls)'!M11 ->  | AO11: ='Overview (controls)'!N11 ->  | AP11: ='Overview (controls)'!O11 -> 18.91082 | AQ11: ='Overview (controls)'!P11 -> 24.0504 | AR11: ='Overview (controls)'!Q11 -> 2.348149 | AS11: ='Overview (controls)'!R11 -> 2.591137 | AT11: ='Overview (controls)'!S11 -> 32.51419 | AU11: ='Overview (controls)'!T11 -> 38.78325 | AV11: ='Overview (controls)'!U11 -> 53.39932 | AW11: ='Overview (controls)'!V11 -> 59.08834 | AX11: ='Overview (controls)'!W11 -> 294.10234 | AY11: ='Overview (controls)'!X11 -> 353.09653 | AZ11: ='Overview (controls)'!Y11 -> 339.83903 | BA11: ='Overview (controls)'!Z11 -> 430.08524 | BB11: ='Overview (controls)'!AA11 -> 228.68026 | BC11: ='Overview (controls)'!AB11 -> 306.17178 | BD11: ='Overview (controls)'!AC11 -> 30.87967512 | BE11: ='Overview (controls)'!AD11 -> 45.71730855 | BF11: ='Overview (controls)'!AE11 -> 640.13422 | BG11: ='Overview (controls)'!AF11 -> 837.76834 | BH11: ='Overview (controls)'!AG11 -> 359.11914 | BI11: ='Overview (controls)'!AH11 -> 610.85365 | BJ11: ='Overview (controls)'!AI11 -> 787.12115 | BK11: ='Overview (controls)'!AJ11 -> 1084.92247 | BL11: ='Overview (controls)'!AK11 -> 81.266821 | BM11: ='Overview (controls)'!AL11 -> 84.72459426
B12: Wrexham | F12: =VLOOKUP(($B12&"_"&AF$44&"_"&AF$43&"_"&AF$45&"_"&$AC12),'All Data'!$A$2:$L$1048576,8,FALSE) -> 9.177017 | G12: =VLOOKUP(($B12&"_"&AG$44&"_"&AG$43&"_"&AG$45&"_"&$AC12),'All Data'!$A$2:$L$1048576,8,FALSE) -> 8.156551 | I12: =VLOOKUP(($B12&"_"&AH$44&"_"&AH$43&"_"&AH$45&"_"&$AC12),'All Data'!$A$2:$L$1048576,8,FALSE) -> 74.8884 | J12: =VLOOKUP(($B12&"_"&AJ$44&"_"&AJ$43&"_"&AJ$45&"_"&$AC12),'All Data'!$A$2:$L$1048576,8,FALSE) -> 26.15997465 | K12: =VLOOKUP(($B12&"_"&AL$44&"_"&AL$43&"_"&AL$45&"_"&$AC12),'All Data'!$A$2:$L$1048576,8,FALSE) -> 2.3664299 | L12: =VLOOKUP(($B12&"_"&AM$44&"_"&AM$43&"_"&AM$45&"_"&$AC12),'All Data'!$A$2:$L$1048576,8,FALSE) -> 31.74443765 | M12: =VLOOKUP(($B12&"_"&AN$44&"_"&AN$43&"_"&AN$45&"_"&$AC12),'All Data'!$A$2:$L$1048576,8,FALSE) -> 54.34955282 | O12: =VLOOKUP(($B12&"_"&AO$44&"_"&AO$43&"_"&AO$45&"_"&$AC12),'All Data'!$A$2:$L$1048576,8,FALSE) -> 383.82038 | P12: =VLOOKUP(($B12&"_"&AP$44&"_"&AP$43&"_"&AP$45&"_"&$AC12),'All Data'!$A$2:$L$1048576,8,FALSE) -> 473.49266 | Q12: =VLOOKUP(($B12&"_"&AQ$44&"_"&AQ$43&"_"&AQ$45&"_"&$AC12),'All Data'!$A$2:$L$1048576,8,FALSE) -> 296.58775 | S12: =VLOOKUP(($B12&"_"&AR$44&"_"&AR$43&"_"&AR$45&"_"&$AC12),'All Data'!$A$2:$L$1048576,8,FALSE) -> 42.76457883 | U12: =VLOOKUP(($B12&"_"&AS$44&"_"&AS$43&"_"&AS$45&"_"&$AC12),'All Data'!$A$2:$L$1048576,8,FALSE) -> 485.5458 | V12: =VLOOKUP(($B12&"_"&AT$44&"_"&AT$43&"_"&AT$45&"_"&$AC12),'All Data'!$A$2:$L$1048576,8,FALSE) -> 331.5795 | W12: =VLOOKUP(($B12&"_"&AU$44&"_"&AU$43&"_"&AU$45&"_"&$AC12),'All Data'!$A$2:$L$1048576,8,FALSE) -> 586.6544 | Y12: =VLOOKUP(($B12&"_"&AV$44&"_"&AV$43&"_"&AV$45&"_"&$AC12),'All Data'!$A$2:$L$1048576,8,FALSE) -> 84.76658477 | AC12: LA | AD12: ='Overview (controls)'!C12 -> 0 | AE12: ='Overview (controls)'!D12 -> 0 | AF12: ='Overview (controls)'!E12 -> 0 | AG12: ='Overview (controls)'!F12 -> 0 | AH12: ='Overview (controls)'!G12 -> 5.541477 | AI12: ='Overview (controls)'!H12 -> 12.81256 | AJ12: ='Overview (controls)'!I12 -> 0.9766005 | AK12: ='Overview (controls)'!J12 -> 15.3365 | AL12: ='Overview (controls)'!K12 -> 72.27932 | AM12: ='Overview (controls)'!L12 -> 77.49748 | AN12: ='Overview (controls)'!M12 ->  | AO12: ='Overview (controls)'!N12 ->  | AP12: ='Overview (controls)'!O12 -> 23.2677 | AQ12: ='Overview (controls)'!P12 -> 29.05224 | AR12: ='Overview (controls)'!Q12 -> 2.238246 | AS12: ='Overview (controls)'!R12 -> 2.494614 | AT12: ='Overview (controls)'!S12 -> 28.83209 | AU12: ='Overview (controls)'!T12 -> 34.65678 | AV12: ='Overview (controls)'!U12 -> 51.40377 | AW12: ='Overview (controls)'!V12 -> 57.29533 | AX12: ='Overview (controls)'!W12 -> 351.2045 | AY12: ='Overview (controls)'!X12 -> 418.61322 | AZ12: ='Overview (controls)'!Y12 -> 422.72623 | BA12: ='Overview (controls)'!Z12 -> 528.61239 | BB12: ='Overview (controls)'!AA12 -> 256.36304 | BC12: ='Overview (controls)'!AB12 -> 341.25378 | BD12: ='Overview (controls)'!AC12 -> 34.75680346 | BE12: ='Overview (controls)'!AD12 -> 52.06436285 | BF12: ='Overview (controls)'!AE12 -> 406.99666 | BG12: ='Overview (controls)'!AF12 -> 574.48985 | BH12: ='Overview (controls)'!AG12 -> 231.16973 | BI12: ='Overview (controls)'!AH12 -> 460.38342 | BJ12: ='Overview (controls)'!AI12 -> 473.70766 | BK12: ='Overview (controls)'!AJ12 -> 717.06965 | BL12: ='Overview (controls)'!AK12 -> 82.93929454 | BM12: ='Overview (controls)'!AL12 -> 86.43018348
B13: Powys | F13: =VLOOKUP(($B13&"_"&AF$44&"_"&AF$43&"_"&AF$45&"_"&$AC13),'All Data'!$A$2:$L$1048576,8,FALSE) -> 5.472466 | G13: =VLOOKUP(($B13&"_"&AG$44&"_"&AG$43&"_"&AG$45&"_"&$AC13),'All Data'!$A$2:$L$1048576,8,FALSE) -> 4.908738 | I13: =VLOOKUP(($B13&"_"&AH$44&"_"&AH$43&"_"&AH$45&"_"&$AC13),'All Data'!$A$2:$L$1048576,8,FALSE) -> 79.8221 | J13: =VLOOKUP(($B13&"_"&AJ$44&"_"&AJ$43&"_"&AJ$45&"_"&$AC13),'All Data'!$A$2:$L$1048576,8,FALSE) -> 22.75230141 | K13: =VLOOKUP(($B13&"_"&AL$44&"_"&AL$43&"_"&AL$45&"_"&$AC13),'All Data'!$A$2:$L$1048576,8,FALSE) -> 2.75890181 | L13: =VLOOKUP(($B13&"_"&AM$44&"_"&AM$43&"_"&AM$45&"_"&$AC13),'All Data'!$A$2:$L$1048576,8,FALSE) -> 37.06977514 | M13: =VLOOKUP(($B13&"_"&AN$44&"_"&AN$43&"_"&AN$45&"_"&$AC13),'All Data'!$A$2:$L$1048576,8,FALSE) -> 55.97311822 | O13: =VLOOKUP(($B13&"_"&AO$44&"_"&AO$43&"_"&AO$45&"_"&$AC13),'All Data'!$A$2:$L$1048576,8,FALSE) -> 219.90388 | P13: =VLOOKUP(($B13&"_"&AP$44&"_"&AP$43&"_"&AP$45&"_"&$AC13),'All Data'!$A$2:$L$1048576,8,FALSE) -> 305.18295 | Q13: =VLOOKUP(($B13&"_"&AQ$44&"_"&AQ$43&"_"&AQ$45&"_"&$AC13),'All Data'!$A$2:$L$1048576,8,FALSE) -> 133.88287 | S13: =VLOOKUP(($B13&"_"&AR$44&"_"&AR$43&"_"&AR$45&"_"&$AC13),'All Data'!$A$2:$L$1048576,8,FALSE) -> 23.72617658 | U13: =VLOOKUP(($B13&"_"&AS$44&"_"&AS$43&"_"&AS$45&"_"&$AC13),'All Data'!$A$2:$L$1048576,8,FALSE) -> 614.6055 | V13: =VLOOKUP(($B13&"_"&AT$44&"_"&AT$43&"_"&AT$45&"_"&$AC13),'All Data'!$A$2:$L$1048576,8,FALSE) -> 362.3168 | W13: =VLOOKUP(($B13&"_"&AU$44&"_"&AU$43&"_"&AU$45&"_"&$AC13),'All Data'!$A$2:$L$1048576,8,FALSE) -> 800.0765 | Y13: =VLOOKUP(($B13&"_"&AV$44&"_"&AV$43&"_"&AV$45&"_"&$AC13),'All Data'!$A$2:$L$1048576,8,FALSE) -> 81.41176471 | AC13: LA | AD13: ='Overview (controls)'!C13 -> 0 | AE13: ='Overview (controls)'!D13 -> 0 | AF13: ='Overview (controls)'!E13 -> 0 | AG13: ='Overview (controls)'!F13 -> 0 | AH13: ='Overview (controls)'!G13 -> -0.4952769 | AI13: ='Overview (controls)'!H13 -> 11.44021 | AJ13: ='Overview (controls)'!I13 -> -4.037244 | AK13: ='Overview (controls)'!J13 -> 13.85472 | AL13: ='Overview (controls)'!K13 -> 77.07039 | AM13: ='Overview (controls)'!L13 -> 82.57381 | AN13: ='Overview (controls)'!M13 ->  | AO13: ='Overview (controls)'!N13 ->  | AP13: ='Overview (controls)'!O13 -> 19.8109 | AQ13: ='Overview (controls)'!P13 -> 25.6937 | AR13: ='Overview (controls)'!Q13 -> 2.625976 | AS13: ='Overview (controls)'!R13 -> 2.891827 | AT13: ='Overview (controls)'!S13 -> 33.77557 | AU13: ='Overview (controls)'!T13 -> 40.36398 | AV13: ='Overview (controls)'!U13 -> 52.76245 | AW13: ='Overview (controls)'!V13 -> 59.18378 | AX13: ='Overview (controls)'!W13 -> 193.4983 | AY13: ='Overview (controls)'!X13 -> 248.70436 | AZ13: ='Overview (controls)'!Y13 -> 261.83452 | BA13: ='Overview (controls)'!Z13 -> 353.29258 | BB13: ='Overview (controls)'!AA13 -> 105.40588 | BC13: ='Overview (controls)'!AB13 -> 167.22681 | BD13: ='Overview (controls)'!AC13 -> 18.14858032 | BE13: ='Overview (controls)'!AD13 -> 30.47724621 | BF13: ='Overview (controls)'!AE13 -> 536.83634 | BG13: ='Overview (controls)'!AF13 -> 700.17668 | BH13: ='Overview (controls)'!AG13 -> 274.07488 | BI13: ='Overview (controls)'!AH13 -> 469.64096 | BJ13: ='Overview (controls)'!AI13 -> 681.24069 | BK13: ='Overview (controls)'!AJ13 -> 932.70222 | BL13: ='Overview (controls)'!AK13 -> 79.18320406 | BM13: ='Overview (controls)'!AL13 -> 83.45160544
B14: Ceredigion | F14: =VLOOKUP(($B14&"_"&AF$44&"_"&AF$43&"_"&AF$45&"_"&$AC14),'All Data'!$A$2:$L$1048576,8,FALSE) -> 7.668265 | G14: =VLOOKUP(($B14&"_"&AG$44&"_"&AG$43&"_"&AG$45&"_"&$AC14),'All Data'!$A$2:$L$1048576,8,FALSE) -> 1.222576 | I14: =VLOOKUP(($B14&"_"&AH$44&"_"&AH$43&"_"&AH$45&"_"&$AC14),'All Data'!$A$2:$L$1048576,8,FALSE) -> 80.60584 | J14: =VLOOKUP(($B14&"_"&AJ$44&"_"&AJ$43&"_"&AJ$45&"_"&$AC14),'All Data'!$A$2:$L$1048576,8,FALSE) -> 22.88357071 | K14: =VLOOKUP(($B14&"_"&AL$44&"_"&AL$43&"_"&AL$45&"_"&$AC14),'All Data'!$A$2:$L$1048576,8,FALSE) -> 2.67450586 | L14: =VLOOKUP(($B14&"_"&AM$44&"_"&AM$43&"_"&AM$45&"_"&$AC14),'All Data'!$A$2:$L$1048576,8,FALSE) -> 41.06395656 | M14: =VLOOKUP(($B14&"_"&AN$44&"_"&AN$43&"_"&AN$45&"_"&$AC14),'All Data'!$A$2:$L$1048576,8,FALSE) -> 53.46411593 | O14: =VLOOKUP(($B14&"_"&AO$44&"_"&AO$43&"_"&AO$45&"_"&$AC14),'All Data'!$A$2:$L$1048576,8,FALSE) -> 188.65411 | P14: =VLOOKUP(($B14&"_"&AP$44&"_"&AP$43&"_"&AP$45&"_"&$AC14),'All Data'!$A$2:$L$1048576,8,FALSE) -> 264.98254 | Q14: =VLOOKUP(($B14&"_"&AQ$44&"_"&AQ$43&"_"&AQ$45&"_"&$AC14),'All Data'!$A$2:$L$1048576,8,FALSE) -> 117.33358 | S14: =VLOOKUP(($B14&"_"&AR$44&"_"&AR$43&"_"&AR$45&"_"&$AC14),'All Data'!$A$2:$L$1048576,8,FALSE) -> 22.72727273 | U14: =VLOOKUP(($B14&"_"&AS$44&"_"&AS$43&"_"&AS$45&"_"&$AC14),'All Data'!$A$2:$L$1048576,8,FALSE) -> 499.6449 | V14: =VLOOKUP(($B14&"_"&AT$44&"_"&AT$43&"_"&AT$45&"_"&$AC14),'All Data'!$A$2:$L$1048576,8,FALSE) -> 347.4401 | W14: =VLOOKUP(($B14&"_"&AU$44&"_"&AU$43&"_"&AU$45&"_"&$AC14),'All Data'!$A$2:$L$1048576,8,FALSE) -> 635.1989 | Y14: =VLOOKUP(($B14&"_"&AV$44&"_"&AV$43&"_"&AV$45&"_"&$AC14),'All Data'!$A$2:$L$1048576,8,FALSE) -> 83.7962963 | AC14: LA | AD14: ='Overview (controls)'!C14 -> 0 | AE14: ='Overview (controls)'!D14 -> 0 | AF14: ='Overview (controls)'!E14 -> 0 | AG14: ='Overview (controls)'!F14 -> 0 | AH14: ='Overview (controls)'!G14 -> 2.851477 | AI14: ='Overview (controls)'!H14 -> 12.48505 | AJ14: ='Overview (controls)'!I14 -> -1.092424 | AK14: ='Overview (controls)'!J14 -> 3.537577 | AL14: ='Overview (controls)'!K14 -> 78.0696 | AM14: ='Overview (controls)'!L14 -> 83.14208 | AN14: ='Overview (controls)'!M14 ->  | AO14: ='Overview (controls)'!N14 ->  | AP14: ='Overview (controls)'!O14 -> 19.99239 | AQ14: ='Overview (controls)'!P14 -> 25.77476 | AR14: ='Overview (controls)'!Q14 -> 2.543165 | AS14: ='Overview (controls)'!R14 -> 2.805847 | AT14: ='Overview (controls)'!S14 -> 37.88317 | AU14: ='Overview (controls)'!T14 -> 44.24475 | AV14: ='Overview (controls)'!U14 -> 50.31176 | AW14: ='Overview (controls)'!V14 -> 56.61647 | AX14: ='Overview (controls)'!W14 -> 156.51339 | AY14: ='Overview (controls)'!X14 -> 225.04823 | AZ14: ='Overview (controls)'!Y14 -> 210.13823 | BA14: ='Overview (controls)'!Z14 -> 328.82234 | BB14: ='Overview (controls)'!AA14 -> 83.47194 | BC14: ='Overview (controls)'!AB14 -> 159.42985 | BD14: ='Overview (controls)'!AC14 -> 15.22100313 | BE14: ='Overview (controls)'!AD14 -> 32.64028213 | BF14: ='Overview (controls)'!AE14 -> 407.9042 | BG14: ='Overview (controls)'!AF14 -> 605.29593 | BH14: ='Overview (controls)'!AG14 -> 236.31157 | BI14: ='Overview (controls)'!AH14 -> 492.1863 | BJ14: ='Overview (controls)'!AI14 -> 493.95633 | BK14: ='Overview (controls)'!AJ14 -> 802.20324 | BL14: ='Overview (controls)'!AK14 -> 80.76130063 | BM14: ='Overview (controls)'!AL14 -> 86.43293797
B15: Pembrokeshire | F15: =VLOOKUP(($B15&"_"&AF$44&"_"&AF$43&"_"&AF$45&"_"&$AC15),'All Data'!$A$2:$L$1048576,8,FALSE) -> 5.947643 | G15: =VLOOKUP(($B15&"_"&AG$44&"_"&AG$43&"_"&AG$45&"_"&$AC15),'All Data'!$A$2:$L$1048576,8,FALSE) -> 4.176632 | I15: =VLOOKUP(($B15&"_"&AH$44&"_"&AH$43&"_"&AH$45&"_"&$AC15),'All Data'!$A$2:$L$1048576,8,FALSE) -> 78.56701 | J15: =VLOOKUP(($B15&"_"&AJ$44&"_"&AJ$43&"_"&AJ$45&"_"&$AC15),'All Data'!$A$2:$L$1048576,8,FALSE) -> 22.82598757 | K15: =VLOOKUP(($B15&"_"&AL$44&"_"&AL$43&"_"&AL$45&"_"&$AC15),'All Data'!$A$2:$L$1048576,8,FALSE) -> 2.612246653 | L15: =VLOOKUP(($B15&"_"&AM$44&"_"&AM$43&"_"&AM$45&"_"&$AC15),'All Data'!$A$2:$L$1048576,8,FALSE) -> 38.26485286 | M15: =VLOOKUP(($B15&"_"&AN$44&"_"&AN$43&"_"&AN$45&"_"&$AC15),'All Data'!$A$2:$L$1048576,8,FALSE) -> 59.22066744 | O15: =VLOOKUP(($B15&"_"&AO$44&"_"&AO$43&"_"&AO$45&"_"&$AC15),'All Data'!$A$2:$L$1048576,8,FALSE) -> 294.91548 | P15: =VLOOKUP(($B15&"_"&AP$44&"_"&AP$43&"_"&AP$45&"_"&$AC15),'All Data'!$A$2:$L$1048576,8,FALSE) -> 387.92563 | Q15: =VLOOKUP(($B15&"_"&AQ$44&"_"&AQ$43&"_"&AQ$45&"_"&$AC15),'All Data'!$A$2:$L$1048576,8,FALSE) -> 208.28975 | S15: =VLOOKUP(($B15&"_"&AR$44&"_"&AR$43&"_"&AR$45&"_"&$AC15),'All Data'!$A$2:$L$1048576,8,FALSE) -> 29.71137521 | U15: =VLOOKUP(($B15&"_"&AS$44&"_"&AS$43&"_"&AS$45&"_"&$AC15),'All Data'!$A$2:$L$1048576,8,FALSE) -> 620.1077 | V15: =VLOOKUP(($B15&"_"&AT$44&"_"&AT$43&"_"&AT$45&"_"&$AC15),'All Data'!$A$2:$L$1048576,8,FALSE) -> 416.7818 | W15: =VLOOKUP(($B15&"_"&AU$44&"_"&AU$43&"_"&AU$45&"_"&$AC15),'All Data'!$A$2:$L$1048576,8,FALSE) -> 773.855 | Y15: =VLOOKUP(($B15&"_"&AV$44&"_"&AV$43&"_"&AV$45&"_"&$AC15),'All Data'!$A$2:$L$1048576,8,FALSE) -> 75.3414264 | AC15: LA | AD15: ='Overview (controls)'!C15 -> 0 | AE15: ='Overview (controls)'!D15 -> 0 | AF15: ='Overview (controls)'!E15 -> 0 | AG15: ='Overview (controls)'!F15 -> 0 | AH15: ='Overview (controls)'!G15 -> -2.478867 | AI15: ='Overview (controls)'!H15 -> 14.37415 | AJ15: ='Overview (controls)'!I15 -> 2.1196 | AK15: ='Overview (controls)'!J15 -> 6.233664 | AL15: ='Overview (controls)'!K15 -> 76.06291 | AM15: ='Overview (controls)'!L15 -> 81.0711 | AN15: ='Overview (controls)'!M15 ->  | AO15: ='Overview (controls)'!N15 ->  | AP15: ='Overview (controls)'!O15 -> 19.97523 | AQ15: ='Overview (controls)'!P15 -> 25.67674 | AR15: ='Overview (controls)'!Q15 -> 2.470079 | AS15: ='Overview (controls)'!R15 -> 2.754415 | AT15: ='Overview (controls)'!S15 -> 35.05041 | AU15: ='Overview (controls)'!T15 -> 41.4793 | AV15: ='Overview (controls)'!U15 -> 56.10068 | AW15: ='Overview (controls)'!V15 -> 62.34066 | AX15: ='Overview (controls)'!W15 -> 263.51382 | AY15: ='Overview (controls)'!X15 -> 328.88472 | AZ15: ='Overview (controls)'!Y15 -> 337.44841 | BA15: ='Overview (controls)'!Z15 -> 443.54614 | BB15: ='Overview (controls)'!AA15 -> 171.09991 | BC15: ='Overview (controls)'!AB15 -> 250.83873 | BD15: ='Overview (controls)'!AC15 -> 23.16129032 | BE15: ='Overview (controls)'!AD15 -> 37.53862479 | BF15: ='Overview (controls)'!AE15 -> 535.00612 | BG15: ='Overview (controls)'!AF15 -> 714.65544 | BH15: ='Overview (controls)'!AG15 -> 309.82317 | BI15: ='Overview (controls)'!AH15 -> 548.31986 | BJ15: ='Overview (controls)'!AI15 -> 647.54444 | BK15: ='Overview (controls)'!AJ15 -> 916.63633 | BL15: ='Overview (controls)'!AK15 -> 72.94297954 | BM15: ='Overview (controls)'!AL15 -> 77.59257631
B16: Carmarthenshire | F16: =VLOOKUP(($B16&"_"&AF$44&"_"&AF$43&"_"&AF$45&"_"&$AC16),'All Data'!$A$2:$L$1048576,8,FALSE) -> 5.752812 | G16: =VLOOKUP(($B16&"_"&AG$44&"_"&AG$43&"_"&AG$45&"_"&$AC16),'All Data'!$A$2:$L$1048576,8,FALSE) -> 2.938962 | I16: =VLOOKUP(($B16&"_"&AH$44&"_"&AH$43&"_"&AH$45&"_"&$AC16),'All Data'!$A$2:$L$1048576,8,FALSE) -> 71.81716 | J16: =VLOOKUP(($B16&"_"&AJ$44&"_"&AJ$43&"_"&AJ$45&"_"&$AC16),'All Data'!$A$2:$L$1048576,8,FALSE) -> 22.80545121 | K16: =VLOOKUP(($B16&"_"&AL$44&"_"&AL$43&"_"&AL$45&"_"&$AC16),'All Data'!$A$2:$L$1048576,8,FALSE) -> 2.3607693 | L16: =VLOOKUP(($B16&"_"&AM$44&"_"&AM$43&"_"&AM$45&"_"&$AC16),'All Data'!$A$2:$L$1048576,8,FALSE) -> 40.02751449 | M16: =VLOOKUP(($B16&"_"&AN$44&"_"&AN$43&"_"&AN$45&"_"&$AC16),'All Data'!$A$2:$L$1048576,8,FALSE) -> 59.44825409 | O16: =VLOOKUP(($B16&"_"&AO$44&"_"&AO$43&"_"&AO$45&"_"&$AC16),'All Data'!$A$2:$L$1048576,8,FALSE) -> 286.39106 | P16: =VLOOKUP(($B16&"_"&AP$44&"_"&AP$43&"_"&AP$45&"_"&$AC16),'All Data'!$A$2:$L$1048576,8,FALSE) -> 349.31298 | Q16: =VLOOKUP(($B16&"_"&AQ$44&"_"&AQ$43&"_"&AQ$45&"_"&$AC16),'All Data'!$A$2:$L$1048576,8,FALSE) -> 228.65536 | S16: =VLOOKUP(($B16&"_"&AR$44&"_"&AR$43&"_"&AR$45&"_"&$AC16),'All Data'!$A$2:$L$1048576,8,FALSE) -> 32.51551877 | U16: =VLOOKUP(($B16&"_"&AS$44&"_"&AS$43&"_"&AS$45&"_"&$AC16),'All Data'!$A$2:$L$1048576,8,FALSE) -> 654.5554 | V16: =VLOOKUP(($B16&"_"&AT$44&"_"&AT$43&"_"&AT$45&"_"&$AC16),'All Data'!$A$2:$L$1048576,8,FALSE) -> 513.2535 | W16: =VLOOKUP(($B16&"_"&AU$44&"_"&AU$43&"_"&AU$45&"_"&$AC16),'All Data'!$A$2:$L$1048576,8,FALSE) -> 760.1754 | Y16: =VLOOKUP(($B16&"_"&AV$44&"_"&AV$43&"_"&AV$45&"_"&$AC16),'All Data'!$A$2:$L$1048576,8,FALSE) -> 78.62444334 | AC16: LA | AD16: ='Overview (controls)'!C16 -> 0 | AE16: ='Overview (controls)'!D16 -> 0 | AF16: ='Overview (controls)'!E16 -> 0 | AG16: ='Overview (controls)'!F16 -> 0 | AH16: ='Overview (controls)'!G16 -> -0.4762985 | AI16: ='Overview (controls)'!H16 -> 11.98192 | AJ16: ='Overview (controls)'!I16 -> 0.2615415 | AK16: ='Overview (controls)'!J16 -> 5.616383 | AL16: ='Overview (controls)'!K16 -> 69.18685 | AM16: ='Overview (controls)'!L16 -> 74.44747 | AN16: ='Overview (controls)'!M16 ->  | AO16: ='Overview (controls)'!N16 ->  | AP16: ='Overview (controls)'!O16 -> 20.14069 | AQ16: ='Overview (controls)'!P16 -> 25.47021 | AR16: ='Overview (controls)'!Q16 -> 2.237327 | AS16: ='Overview (controls)'!R16 -> 2.484211 | AT16: ='Overview (controls)'!S16 -> 37.09234 | AU16: ='Overview (controls)'!T16 -> 42.96269 | AV16: ='Overview (controls)'!U16 -> 56.72397 | AW16: ='Overview (controls)'!V16 -> 62.17254 | AX16: ='Overview (controls)'!W16 -> 261.40353 | AY16: ='Overview (controls)'!X16 -> 313.06138 | AZ16: ='Overview (controls)'!Y16 -> 309.93296 | BA16: ='Overview (controls)'!Z16 -> 392.17806 | BB16: ='Overview (controls)'!AA16 -> 197.84765 | BC16: ='Overview (controls)'!AB16 -> 262.77838 | BD16: ='Overview (controls)'!AC16 -> 26.72295199 | BE16: ='Overview (controls)'!AD16 -> 39.19901902 | BF16: ='Overview (controls)'!AE16 -> 582.83338 | BG16: ='Overview (controls)'!AF16 -> 732.46767 | BH16: ='Overview (controls)'!AG16 -> 414.46634 | BI16: ='Overview (controls)'!AH16 -> 628.24359 | BJ16: ='Overview (controls)'!AI16 -> 657.87057 | BK16: ='Overview (controls)'!AJ16 -> 873.12228 | BL16: ='Overview (controls)'!AK16 -> 76.78365337 | BM16: ='Overview (controls)'!AL16 -> 80.35661874
B17: Swansea | F17: =VLOOKUP(($B17&"_"&AF$44&"_"&AF$43&"_"&AF$45&"_"&$AC17),'All Data'!$A$2:$L$1048576,8,FALSE) -> 12.17048 | G17: =VLOOKUP(($B17&"_"&AG$44&"_"&AG$43&"_"&AG$45&"_"&$AC17),'All Data'!$A$2:$L$1048576,8,FALSE) -> 7.37828 | I17: =VLOOKUP(($B17&"_"&AH$44&"_"&AH$43&"_"&AH$45&"_"&$AC17),'All Data'!$A$2:$L$1048576,8,FALSE) -> 74.87772 | J17: =VLOOKUP(($B17&"_"&AJ$44&"_"&AJ$43&"_"&AJ$45&"_"&$AC17),'All Data'!$A$2:$L$1048576,8,FALSE) -> 21.96234941 | K17: =VLOOKUP(($B17&"_"&AL$44&"_"&AL$43&"_"&AL$45&"_"&$AC17),'All Data'!$A$2:$L$1048576,8,FALSE) -> 2.325240513 | L17: =VLOOKUP(($B17&"_"&AM$44&"_"&AM$43&"_"&AM$45&"_"&$AC17),'All Data'!$A$2:$L$1048576,8,FALSE) -> 37.96895373 | M17: =VLOOKUP(($B17&"_"&AN$44&"_"&AN$43&"_"&AN$45&"_"&$AC17),'All Data'!$A$2:$L$1048576,8,FALSE) -> 56.61253659 | O17: =VLOOKUP(($B17&"_"&AO$44&"_"&AO$43&"_"&AO$45&"_"&$AC17),'All Data'!$A$2:$L$1048576,8,FALSE) -> 313.64186 | P17: =VLOOKUP(($B17&"_"&AP$44&"_"&AP$43&"_"&AP$45&"_"&$AC17),'All Data'!$A$2:$L$1048576,8,FALSE) -> 441.11108 | Q17: =VLOOKUP(($B17&"_"&AQ$44&"_"&AQ$43&"_"&AQ$45&"_"&$AC17),'All Data'!$A$2:$L$1048576,8,FALSE) -> 192.4656 | S17: =VLOOKUP(($B17&"_"&AR$44&"_"&AR$43&"_"&AR$45&"_"&$AC17),'All Data'!$A$2:$L$1048576,8,FALSE) -> 39.76196916 | U17: =VLOOKUP(($B17&"_"&AS$44&"_"&AS$43&"_"&AS$45&"_"&$AC17),'All Data'!$A$2:$L$1048576,8,FALSE) -> 544.4982 | V17: =VLOOKUP(($B17&"_"&AT$44&"_"&AT$43&"_"&AT$45&"_"&$AC17),'All Data'!$A$2:$L$1048576,8,FALSE) -> 388.8761 | W17: =VLOOKUP(($B17&"_"&AU$44&"_"&AU$43&"_"&AU$45&"_"&$AC17),'All Data'!$A$2:$L$1048576,8,FALSE) -> 636.6777 | Y17: =VLOOKUP(($B17&"_"&AV$44&"_"&AV$43&"_"&AV$45&"_"&$AC17),'All Data'!$A$2:$L$1048576,8,FALSE) -> 80.08115087 | AC17: LA | AD17: ='Overview (controls)'!C17 -> 0 | AE17: ='Overview (controls)'!D17 -> 0 | AF17: ='Overview (controls)'!E17 -> 0 | AG17: ='Overview (controls)'!F17 -> 0 | AH17: ='Overview (controls)'!G17 -> 9.207539 | AI17: ='Overview (controls)'!H17 -> 15.13342 | AJ17: ='Overview (controls)'!I17 -> 5.344578 | AK17: ='Overview (controls)'!J17 -> 9.411983 | AL17: ='Overview (controls)'!K17 -> 72.635 | AM17: ='Overview (controls)'!L17 -> 77.12044 | AN17: ='Overview (controls)'!M17 ->  | AO17: ='Overview (controls)'!N17 ->  | AP17: ='Overview (controls)'!O17 -> 19.71498 | AQ17: ='Overview (controls)'!P17 -> 24.20972 | AR17: ='Overview (controls)'!Q17 -> 2.220012 | AS17: ='Overview (controls)'!R17 -> 2.430469 | AT17: ='Overview (controls)'!S17 -> 35.33545 | AU17: ='Overview (controls)'!T17 -> 40.60246 | AV17: ='Overview (controls)'!U17 -> 54.00964 | AW17: ='Overview (controls)'!V17 -> 59.21543 | AX17: ='Overview (controls)'!W17 -> 290.89451 | AY17: ='Overview (controls)'!X17 -> 337.6665 | AZ17: ='Overview (controls)'!Y17 -> 402.99573 | BA17: ='Overview (controls)'!Z17 -> 481.80888 | BB17: ='Overview (controls)'!AA17 -> 167.50419 | BC17: ='Overview (controls)'!AB17 -> 220.02967 | BD17: ='Overview (controls)'!AC17 -> 33.59390395 | BE17: ='Overview (controls)'!AD17 -> 46.74190671 | BF17: ='Overview (controls)'!AE17 -> 481.60448 | BG17: ='Overview (controls)'!AF17 -> 613.0657 | BH17: ='Overview (controls)'!AG17 -> 306.02076 | BI17: ='Overview (controls)'!AH17 -> 486.84374 | BJ17: ='Overview (controls)'!AI17 -> 549.90408 | BK17: ='Overview (controls)'!AJ17 -> 732.67443 | BL17: ='Overview (controls)'!AK17 -> 78.53559756 | BM17: ='Overview (controls)'!AL17 -> 81.54157232
B18: Neath Port Talbot | F18: =VLOOKUP(($B18&"_"&AF$44&"_"&AF$43&"_"&AF$45&"_"&$AC18),'All Data'!$A$2:$L$1048576,8,FALSE) -> 10.41585 | G18: =VLOOKUP(($B18&"_"&AG$44&"_"&AG$43&"_"&AG$45&"_"&$AC18),'All Data'!$A$2:$L$1048576,8,FALSE) -> 6.735007 | I18: =VLOOKUP(($B18&"_"&AH$44&"_"&AH$43&"_"&AH$45&"_"&$AC18),'All Data'!$A$2:$L$1048576,8,FALSE) -> 70.7864 | J18: =VLOOKUP(($B18&"_"&AJ$44&"_"&AJ$43&"_"&AJ$45&"_"&$AC18),'All Data'!$A$2:$L$1048576,8,FALSE) -> 25.941955 | K18: =VLOOKUP(($B18&"_"&AL$44&"_"&AL$43&"_"&AL$45&"_"&$AC18),'All Data'!$A$2:$L$1048576,8,FALSE) -> 2.130423847 | L18: =VLOOKUP(($B18&"_"&AM$44&"_"&AM$43&"_"&AM$45&"_"&$AC18),'All Data'!$A$2:$L$1048576,8,FALSE) -> 32.60135041 | M18: =VLOOKUP(($B18&"_"&AN$44&"_"&AN$43&"_"&AN$45&"_"&$AC18),'All Data'!$A$2:$L$1048576,8,FALSE) -> 60.63146316 | O18: =VLOOKUP(($B18&"_"&AO$44&"_"&AO$43&"_"&AO$45&"_"&$AC18),'All Data'!$A$2:$L$1048576,8,FALSE) -> 351.38678 | P18: =VLOOKUP(($B18&"_"&AP$44&"_"&AP$43&"_"&AP$45&"_"&$AC18),'All Data'!$A$2:$L$1048576,8,FALSE) -> 472.6683 | Q18: =VLOOKUP(($B18&"_"&AQ$44&"_"&AQ$43&"_"&AQ$45&"_"&$AC18),'All Data'!$A$2:$L$1048576,8,FALSE) -> 236.4328 | S18: =VLOOKUP(($B18&"_"&AR$44&"_"&AR$43&"_"&AR$45&"_"&$AC18),'All Data'!$A$2:$L$1048576,8,FALSE) -> 35.97413096 | U18: =VLOOKUP(($B18&"_"&AS$44&"_"&AS$43&"_"&AS$45&"_"&$AC18),'All Data'!$A$2:$L$1048576,8,FALSE) -> 706.659 | V18: =VLOOKUP(($B18&"_"&AT$44&"_"&AT$43&"_"&AT$45&"_"&$AC18),'All Data'!$A$2:$L$1048576,8,FALSE) -> 439.0127 | W18: =VLOOKUP(($B18&"_"&AU$44&"_"&AU$43&"_"&AU$45&"_"&$AC18),'All Data'!$A$2:$L$1048576,8,FALSE) -> 891.9125 | Y18: =VLOOKUP(($B18&"_"&AV$44&"_"&AV$43&"_"&AV$45&"_"&$AC18),'All Data'!$A$2:$L$1048576,8,FALSE) -> 81.5055159 | AC18: LA | AD18: ='Overview (controls)'!C18 -> 0 | AE18: ='Overview (controls)'!D18 -> 0 | AF18: ='Overview (controls)'!E18 -> 0 | AG18: ='Overview (controls)'!F18 -> 0 | AH18: ='Overview (controls)'!G18 -> 7.977166 | AI18: ='Overview (controls)'!H18 -> 12.85454 | AJ18: ='Overview (controls)'!I18 -> 4.055021 | AK18: ='Overview (controls)'!J18 -> 9.414994 | AL18: ='Overview (controls)'!K18 -> 68.17946 | AM18: ='Overview (controls)'!L18 -> 73.39335 | AN18: ='Overview (controls)'!M18 ->  | AO18: ='Overview (controls)'!N18 ->  | AP18: ='Overview (controls)'!O18 -> 23.16904 | AQ18: ='Overview (controls)'!P18 -> 28.71487 | AR18: ='Overview (controls)'!Q18 -> 2.010393 | AS18: ='Overview (controls)'!R18 -> 2.250455 | AT18: ='Overview (controls)'!S18 -> 29.81743 | AU18: ='Overview (controls)'!T18 -> 35.38528 | AV18: ='Overview (controls)'!U18 -> 57.81003 | AW18: ='Overview (controls)'!V18 -> 63.4529 | AX18: ='Overview (controls)'!W18 -> 320.5254 | AY18: ='Overview (controls)'!X18 -> 384.36285 | AZ18: ='Overview (controls)'!Y18 -> 422.14395 | BA18: ='Overview (controls)'!Z18 -> 527.47718 | BB18: ='Overview (controls)'!AA18 -> 201.07561 | BC18: ='Overview (controls)'!AB18 -> 276.08368 | BD18: ='Overview (controls)'!AC18 -> 28.89005659 | BE18: ='Overview (controls)'!AD18 -> 44.26919968 | BF18: ='Overview (controls)'!AE18 -> 614.9091 | BG18: ='Overview (controls)'!AF18 -> 807.82141 | BH18: ='Overview (controls)'!AG18 -> 329.62389 | BI18: ='Overview (controls)'!AH18 -> 572.76555 | BJ18: ='Overview (controls)'!AI18 -> 754.70075 | BK18: ='Overview (controls)'!AJ18 -> 1045.37976 | BL18: ='Overview (controls)'!AK18 -> 79.48948167 | BM18: ='Overview (controls)'!AL18 -> 83.36485887
B19: Bridgend | F19: =VLOOKUP(($B19&"_"&AF$44&"_"&AF$43&"_"&AF$45&"_"&$AC19),'All Data'!$A$2:$L$1048576,8,FALSE) -> 7.844999 | G19: =VLOOKUP(($B19&"_"&AG$44&"_"&AG$43&"_"&AG$45&"_"&$AC19),'All Data'!$A$2:$L$1048576,8,FALSE) -> 8.019889 | I19: =VLOOKUP(($B19&"_"&AH$44&"_"&AH$43&"_"&AH$45&"_"&$AC19),'All Data'!$A$2:$L$1048576,8,FALSE) -> 73.92363 | J19: =VLOOKUP(($B19&"_"&AJ$44&"_"&AJ$43&"_"&AJ$45&"_"&$AC19),'All Data'!$A$2:$L$1048576,8,FALSE) -> 21.73387818 | K19: =VLOOKUP(($B19&"_"&AL$44&"_"&AL$43&"_"&AL$45&"_"&$AC19),'All Data'!$A$2:$L$1048576,8,FALSE) -> 2.309741144 | L19: =VLOOKUP(($B19&"_"&AM$44&"_"&AM$43&"_"&AM$45&"_"&$AC19),'All Data'!$A$2:$L$1048576,8,FALSE) -> 30.77937949 | M19: =VLOOKUP(($B19&"_"&AN$44&"_"&AN$43&"_"&AN$45&"_"&$AC19),'All Data'!$A$2:$L$1048576,8,FALSE) -> 59.96311775 | O19: =VLOOKUP(($B19&"_"&AO$44&"_"&AO$43&"_"&AO$45&"_"&$AC19),'All Data'!$A$2:$L$1048576,8,FALSE) -> 303.09645 | P19: =VLOOKUP(($B19&"_"&AP$44&"_"&AP$43&"_"&AP$45&"_"&$AC19),'All Data'!$A$2:$L$1048576,8,FALSE) -> 425.28358 | Q19: =VLOOKUP(($B19&"_"&AQ$44&"_"&AQ$43&"_"&AQ$45&"_"&$AC19),'All Data'!$A$2:$L$1048576,8,FALSE) -> 185.72235 | S19: =VLOOKUP(($B19&"_"&AR$44&"_"&AR$43&"_"&AR$45&"_"&$AC19),'All Data'!$A$2:$L$1048576,8,FALSE) -> 42.45481295 | U19: =VLOOKUP(($B19&"_"&AS$44&"_"&AS$43&"_"&AS$45&"_"&$AC19),'All Data'!$A$2:$L$1048576,8,FALSE) -> 466.7971 | V19: =VLOOKUP(($B19&"_"&AT$44&"_"&AT$43&"_"&AT$45&"_"&$AC19),'All Data'!$A$2:$L$1048576,8,FALSE) -> 292.6126 | W19: =VLOOKUP(($B19&"_"&AU$44&"_"&AU$43&"_"&AU$45&"_"&$AC19),'All Data'!$A$2:$L$1048576,8,FALSE) -> 581.4212 | Y19: =VLOOKUP(($B19&"_"&AV$44&"_"&AV$43&"_"&AV$45&"_"&$AC19),'All Data'!$A$2:$L$1048576,8,FALSE) -> 80.94932649 | AC19: LA | AD19: ='Overview (controls)'!C19 -> 0 | AE19: ='Overview (controls)'!D19 -> 0 | AF19: ='Overview (controls)'!E19 -> 0 | AG19: ='Overview (controls)'!F19 -> 0 | AH19: ='Overview (controls)'!G19 -> 4.054721 | AI19: ='Overview (controls)'!H19 -> 11.63528 | AJ19: ='Overview (controls)'!I19 -> 5.105119 | AK19: ='Overview (controls)'!J19 -> 10.93466 | AL19: ='Overview (controls)'!K19 -> 71.24562 | AM19: ='Overview (controls)'!L19 -> 76.60163 | AN19: ='Overview (controls)'!M19 ->  | AO19: ='Overview (controls)'!N19 ->  | AP19: ='Overview (controls)'!O19 -> 19.09801 | AQ19: ='Overview (controls)'!P19 -> 24.36975 | AR19: ='Overview (controls)'!Q19 -> 2.180026 | AS19: ='Overview (controls)'!R19 -> 2.439456 | AT19: ='Overview (controls)'!S19 -> 27.92086 | AU19: ='Overview (controls)'!T19 -> 33.6379 | AV19: ='Overview (controls)'!U19 -> 57.01521 | AW19: ='Overview (controls)'!V19 -> 62.91102 | AX19: ='Overview (controls)'!W19 -> 274.17686 | AY19: ='Overview (controls)'!X19 -> 334.18281 | AZ19: ='Overview (controls)'!Y19 -> 377.18805 | BA19: ='Overview (controls)'!Z19 -> 477.73341 | BB19: ='Overview (controls)'!AA19 -> 154.05044 | BC19: ='Overview (controls)'!AB19 -> 221.84201 | BD19: ='Overview (controls)'!AC19 -> 34.57866489 | BE19: ='Overview (controls)'!AD19 -> 51.59959213 | BF19: ='Overview (controls)'!AE19 -> 392.59124 | BG19: ='Overview (controls)'!AF19 -> 550.75044 | BH19: ='Overview (controls)'!AG19 -> 201.86581 | BI19: ='Overview (controls)'!AH19 -> 409.87305 | BJ19: ='Overview (controls)'!AI19 -> 473.9328 | BK19: ='Overview (controls)'!AJ19 -> 705.2077 | BL19: ='Overview (controls)'!AK19 -> 78.92478963 | BM19: ='Overview (controls)'!AL19 -> 82.82171111
B20: The Vale of Glamorgan | F20: =VLOOKUP(($B20&"_"&AF$44&"_"&AF$43&"_"&AF$45&"_"&$AC20),'All Data'!$A$2:$L$1048576,8,FALSE) -> 7.512679 | G20: =VLOOKUP(($B20&"_"&AG$44&"_"&AG$43&"_"&AG$45&"_"&$AC20),'All Data'!$A$2:$L$1048576,8,FALSE) -> 7.443755 | I20: =VLOOKUP(($B20&"_"&AH$44&"_"&AH$43&"_"&AH$45&"_"&$AC20),'All Data'!$A$2:$L$1048576,8,FALSE) -> 76.7125 | J20: =VLOOKUP(($B20&"_"&AJ$44&"_"&AJ$43&"_"&AJ$45&"_"&$AC20),'All Data'!$A$2:$L$1048576,8,FALSE) -> 21.05535114 | K20: =VLOOKUP(($B20&"_"&AL$44&"_"&AL$43&"_"&AL$45&"_"&$AC20),'All Data'!$A$2:$L$1048576,8,FALSE) -> 2.428486698 | L20: =VLOOKUP(($B20&"_"&AM$44&"_"&AM$43&"_"&AM$45&"_"&$AC20),'All Data'!$A$2:$L$1048576,8,FALSE) -> 33.64156274 | M20: =VLOOKUP(($B20&"_"&AN$44&"_"&AN$43&"_"&AN$45&"_"&$AC20),'All Data'!$A$2:$L$1048576,8,FALSE) -> 54.65845813 | O20: =VLOOKUP(($B20&"_"&AO$44&"_"&AO$43&"_"&AO$45&"_"&$AC20),'All Data'!$A$2:$L$1048576,8,FALSE) -> 335.96445 | P20: =VLOOKUP(($B20&"_"&AP$44&"_"&AP$43&"_"&AP$45&"_"&$AC20),'All Data'!$A$2:$L$1048576,8,FALSE) -> 434.76342 | Q20: =VLOOKUP(($B20&"_"&AQ$44&"_"&AQ$43&"_"&AQ$45&"_"&$AC20),'All Data'!$A$2:$L$1048576,8,FALSE) -> 246.23601 | S20: =VLOOKUP(($B20&"_"&AR$44&"_"&AR$43&"_"&AR$45&"_"&$AC20),'All Data'!$A$2:$L$1048576,8,FALSE) -> 31.90630048 | U20: =VLOOKUP(($B20&"_"&AS$44&"_"&AS$43&"_"&AS$45&"_"&$AC20),'All Data'!$A$2:$L$1048576,8,FALSE) -> 513.3561 | V20: =VLOOKUP(($B20&"_"&AT$44&"_"&AT$43&"_"&AT$45&"_"&$AC20),'All Data'!$A$2:$L$1048576,8,FALSE) -> 307.3699 | W20: =VLOOKUP(($B20&"_"&AU$44&"_"&AU$43&"_"&AU$45&"_"&$AC20),'All Data'!$A$2:$L$1048576,8,FALSE) -> 670.5827 | Y20: =VLOOKUP(($B20&"_"&AV$44&"_"&AV$43&"_"&AV$45&"_"&$AC20),'All Data'!$A$2:$L$1048576,8,FALSE) -> 81.37384412 | AC20: LA | AD20: ='Overview (controls)'!C20 -> 0 | AE20: ='Overview (controls)'!D20 -> 0 | AF20: ='Overview (controls)'!E20 -> 0 | AG20: ='Overview (controls)'!F20 -> 0 | AH20: ='Overview (controls)'!G20 -> 3.138139 | AI20: ='Overview (controls)'!H20 -> 11.88722 | AJ20: ='Overview (controls)'!I20 -> 6.737668 | AK20: ='Overview (controls)'!J20 -> 8.149842 | AL20: ='Overview (controls)'!K20 -> 74.04566 | AM20: ='Overview (controls)'!L20 -> 79.37935 | AN20: ='Overview (controls)'!M20 ->  | AO20: ='Overview (controls)'!N20 ->  | AP20: ='Overview (controls)'!O20 -> 18.21093 | AQ20: ='Overview (controls)'!P20 -> 23.89978 | AR20: ='Overview (controls)'!Q20 -> 2.298525 | AS20: ='Overview (controls)'!R20 -> 2.558449 | AT20: ='Overview (controls)'!S20 -> 30.62097 | AU20: ='Overview (controls)'!T20 -> 36.66215 | AV20: ='Overview (controls)'!U20 -> 51.47766 | AW20: ='Overview (controls)'!V20 -> 57.83926 | AX20: ='Overview (controls)'!W20 -> 304.10404 | AY20: ='Overview (controls)'!X20 -> 370.19158 | AZ20: ='Overview (controls)'!Y20 -> 383.36163 | BA20: ='Overview (controls)'!Z20 -> 491.02281 | BB20: ='Overview (controls)'!AA20 -> 208.17414 | BC20: ='Overview (controls)'!AB20 -> 289.07359 | BD20: ='Overview (controls)'!AC20 -> 25.26050081 | BE20: ='Overview (controls)'!AD20 -> 39.76494346 | BF20: ='Overview (controls)'!AE20 -> 430.81007 | BG20: ='Overview (controls)'!AF20 -> 606.70538 | BH20: ='Overview (controls)'!AG20 -> 213.44672 | BI20: ='Overview (controls)'!AH20 -> 428.28356 | BJ20: ='Overview (controls)'!AI20 -> 544.29618 | BK20: ='Overview (controls)'!AJ20 -> 816.01761 | BL20: ='Overview (controls)'!AK20 -> 79.33422403 | BM20: ='Overview (controls)'!AL20 -> 83.25465217
B21: Cardiff | F21: =VLOOKUP(($B21&"_"&AF$44&"_"&AF$43&"_"&AF$45&"_"&$AC21),'All Data'!$A$2:$L$1048576,8,FALSE) -> 12.84547 | G21: =VLOOKUP(($B21&"_"&AG$44&"_"&AG$43&"_"&AG$45&"_"&$AC21),'All Data'!$A$2:$L$1048576,8,FALSE) -> 9.964594 | I21: =VLOOKUP(($B21&"_"&AH$44&"_"&AH$43&"_"&AH$45&"_"&$AC21),'All Data'!$A$2:$L$1048576,8,FALSE) -> 73.7171 | J21: =VLOOKUP(($B21&"_"&AJ$44&"_"&AJ$43&"_"&AJ$45&"_"&$AC21),'All Data'!$A$2:$L$1048576,8,FALSE) -> 22.9332638 | K21: =VLOOKUP(($B21&"_"&AL$44&"_"&AL$43&"_"&AL$45&"_"&$AC21),'All Data'!$A$2:$L$1048576,8,FALSE) -> 2.168316789 | L21: =VLOOKUP(($B21&"_"&AM$44&"_"&AM$43&"_"&AM$45&"_"&$AC21),'All Data'!$A$2:$L$1048576,8,FALSE) -> 37.67631757 | M21: =VLOOKUP(($B21&"_"&AN$44&"_"&AN$43&"_"&AN$45&"_"&$AC21),'All Data'!$A$2:$L$1048576,8,FALSE) -> 54.55503481 | O21: =VLOOKUP(($B21&"_"&AO$44&"_"&AO$43&"_"&AO$45&"_"&$AC21),'All Data'!$A$2:$L$1048576,8,FALSE) -> 315.28216 | P21: =VLOOKUP(($B21&"_"&AP$44&"_"&AP$43&"_"&AP$45&"_"&$AC21),'All Data'!$A$2:$L$1048576,8,FALSE) -> 415.88915 | Q21: =VLOOKUP(($B21&"_"&AQ$44&"_"&AQ$43&"_"&AQ$45&"_"&$AC21),'All Data'!$A$2:$L$1048576,8,FALSE) -> 219.7034 | S21: =VLOOKUP(($B21&"_"&AR$44&"_"&AR$43&"_"&AR$45&"_"&$AC21),'All Data'!$A$2:$L$1048576,8,FALSE) -> 47.10920771 | U21: =VLOOKUP(($B21&"_"&AS$44&"_"&AS$43&"_"&AS$45&"_"&$AC21),'All Data'!$A$2:$L$1048576,8,FALSE) -> 514.3472 | V21: =VLOOKUP(($B21&"_"&AT$44&"_"&AT$43&"_"&AT$45&"_"&$AC21),'All Data'!$A$2:$L$1048576,8,FALSE) -> 384.0695 | W21: =VLOOKUP(($B21&"_"&AU$44&"_"&AU$43&"_"&AU$45&"_"&$AC21),'All Data'!$A$2:$L$1048576,8,FALSE) -> 597.6088 | Y21: =VLOOKUP(($B21&"_"&AV$44&"_"&AV$43&"_"&AV$45&"_"&$AC21),'All Data'!$A$2:$L$1048576,8,FALSE) -> 76.8761302 | AC21: LA | AD21: ='Overview (controls)'!C21 -> 0 | AE21: ='Overview (controls)'!D21 -> 0 | AF21: ='Overview (controls)'!E21 -> 0 | AG21: ='Overview (controls)'!F21 -> 0 | AH21: ='Overview (controls)'!G21 -> 10.99283 | AI21: ='Overview (controls)'!H21 -> 14.69811 | AJ21: ='Overview (controls)'!I21 -> 8.246158 | AK21: ='Overview (controls)'!J21 -> 11.68303 | AL21: ='Overview (controls)'!K21 -> 71.658 | AM21: ='Overview (controls)'!L21 -> 75.7762 | AN21: ='Overview (controls)'!M21 ->  | AO21: ='Overview (controls)'!N21 ->  | AP21: ='Overview (controls)'!O21 -> 20.93923 | AQ21: ='Overview (controls)'!P21 -> 24.9273 | AR21: ='Overview (controls)'!Q21 -> 2.074692 | AS21: ='Overview (controls)'!R21 -> 2.261941 | AT21: ='Overview (controls)'!S21 -> 35.37107 | AU21: ='Overview (controls)'!T21 -> 39.98157 | AV21: ='Overview (controls)'!U21 -> 52.20618 | AW21: ='Overview (controls)'!V21 -> 56.90389 | AX21: ='Overview (controls)'!W21 -> 296.02696 | AY21: ='Overview (controls)'!X21 -> 335.43924 | AZ21: ='Overview (controls)'!Y21 -> 384.34135 | BA21: ='Overview (controls)'!Z21 -> 449.30076 | BB21: ='Overview (controls)'!AA21 -> 197.50946 | BC21: ='Overview (controls)'!AB21 -> 243.65133 | BD21: ='Overview (controls)'!AC21 -> 41.59781753 | BE21: ='Overview (controls)'!AD21 -> 53.15254967 | BF21: ='Overview (controls)'!AE21 -> 454.97892 | BG21: ='Overview (controls)'!AF21 -> 578.96947 | BH21: ='Overview (controls)'!AG21 -> 305.64252 | BI21: ='Overview (controls)'!AH21 -> 475.98303 | BJ21: ='Overview (controls)'!AI21 -> 514.13673 | BK21: ='Overview (controls)'!AJ21 -> 689.90997 | BL21: ='Overview (controls)'!AK21 -> 75.61069521 | BM21: ='Overview (controls)'!AL21 -> 78.09492967
B22: Rhondda Cynon Taf | F22: =VLOOKUP(($B22&"_"&AF$44&"_"&AF$43&"_"&AF$45&"_"&$AC22),'All Data'!$A$2:$L$1048576,8,FALSE) -> 7.925094 | G22: =VLOOKUP(($B22&"_"&AG$44&"_"&AG$43&"_"&AG$45&"_"&$AC22),'All Data'!$A$2:$L$1048576,8,FALSE) -> 5.394637 | I22: =VLOOKUP(($B22&"_"&AH$44&"_"&AH$43&"_"&AH$45&"_"&$AC22),'All Data'!$A$2:$L$1048576,8,FALSE) -> 70.81547 | J22: =VLOOKUP(($B22&"_"&AJ$44&"_"&AJ$43&"_"&AJ$45&"_"&$AC22),'All Data'!$A$2:$L$1048576,8,FALSE) -> 26.83427862 | K22: =VLOOKUP(($B22&"_"&AL$44&"_"&AL$43&"_"&AL$45&"_"&$AC22),'All Data'!$A$2:$L$1048576,8,FALSE) -> 2.194981999 | L22: =VLOOKUP(($B22&"_"&AM$44&"_"&AM$43&"_"&AM$45&"_"&$AC22),'All Data'!$A$2:$L$1048576,8,FALSE) -> 29.88819382 | M22: =VLOOKUP(($B22&"_"&AN$44&"_"&AN$43&"_"&AN$45&"_"&$AC22),'All Data'!$A$2:$L$1048576,8,FALSE) -> 61.55174186 | O22: =VLOOKUP(($B22&"_"&AO$44&"_"&AO$43&"_"&AO$45&"_"&$AC22),'All Data'!$A$2:$L$1048576,8,FALSE) -> 349.89885 | P22: =VLOOKUP(($B22&"_"&AP$44&"_"&AP$43&"_"&AP$45&"_"&$AC22),'All Data'!$A$2:$L$1048576,8,FALSE) -> 467.06887 | Q22: =VLOOKUP(($B22&"_"&AQ$44&"_"&AQ$43&"_"&AQ$45&"_"&$AC22),'All Data'!$A$2:$L$1048576,8,FALSE) -> 238.47687 | S22: =VLOOKUP(($B22&"_"&AR$44&"_"&AR$43&"_"&AR$45&"_"&$AC22),'All Data'!$A$2:$L$1048576,8,FALSE) -> 48.25174825 | U22: =VLOOKUP(($B22&"_"&AS$44&"_"&AS$43&"_"&AS$45&"_"&$AC22),'All Data'!$A$2:$L$1048576,8,FALSE) -> 725.4575 | V22: =VLOOKUP(($B22&"_"&AT$44&"_"&AT$43&"_"&AT$45&"_"&$AC22),'All Data'!$A$2:$L$1048576,8,FALSE) -> 465.1341 | W22: =VLOOKUP(($B22&"_"&AU$44&"_"&AU$43&"_"&AU$45&"_"&$AC22),'All Data'!$A$2:$L$1048576,8,FALSE) -> 873.3643 | Y22: =VLOOKUP(($B22&"_"&AV$44&"_"&AV$43&"_"&AV$45&"_"&$AC22),'All Data'!$A$2:$L$1048576,8,FALSE) -> 82.60869565 | AC22: LA | AD22: ='Overview (controls)'!C22 -> 0 | AE22: ='Overview (controls)'!D22 -> 0 | AF22: ='Overview (controls)'!E22 -> 0 | AG22: ='Overview (controls)'!F22 -> 0 | AH22: ='Overview (controls)'!G22 -> 5.245098 | AI22: ='Overview (controls)'!H22 -> 10.60509 | AJ22: ='Overview (controls)'!I22 -> 3.569759 | AK22: ='Overview (controls)'!J22 -> 7.219515 | AL22: ='Overview (controls)'!K22 -> 68.31724 | AM22: ='Overview (controls)'!L22 -> 73.3137 | AN22: ='Overview (controls)'!M22 ->  | AO22: ='Overview (controls)'!N22 ->  | AP22: ='Overview (controls)'!O22 -> 24.32486 | AQ22: ='Overview (controls)'!P22 -> 29.3437 | AR22: ='Overview (controls)'!Q22 -> 2.080847 | AS22: ='Overview (controls)'!R22 -> 2.309117 | AT22: ='Overview (controls)'!S22 -> 27.25534 | AU22: ='Overview (controls)'!T22 -> 32.52105 | AV22: ='Overview (controls)'!U22 -> 59.05662 | AW22: ='Overview (controls)'!V22 -> 64.04686 | AX22: ='Overview (controls)'!W22 -> 326.13753 | AY22: ='Overview (controls)'!X22 -> 374.91578 | AZ22: ='Overview (controls)'!Y22 -> 428.20329 | BA22: ='Overview (controls)'!Z22 -> 508.48373 | BB22: ='Overview (controls)'!AA22 -> 211.05869 | BC22: ='Overview (controls)'!AB22 -> 268.42295 | BD22: ='Overview (controls)'!AC22 -> 41.90231017 | BE22: ='Overview (controls)'!AD22 -> 55.29788392 | BF22: ='Overview (controls)'!AE22 -> 651.61521 | BG22: ='Overview (controls)'!AF22 -> 805.18415 | BH22: ='Overview (controls)'!AG22 -> 372.04255 | BI22: ='Overview (controls)'!AH22 -> 574.23396 | BJ22: ='Overview (controls)'!AI22 -> 769.36742 | BK22: ='Overview (controls)'!AJ22 -> 986.89661 | BL22: ='Overview (controls)'!AK22 -> 81.14322017 | BM22: ='Overview (controls)'!AL22 -> 83.98276157
B23: Merthyr Tydfil | F23: =VLOOKUP(($B23&"_"&AF$44&"_"&AF$43&"_"&AF$45&"_"&$AC23),'All Data'!$A$2:$L$1048576,8,FALSE) -> 9.374533 | G23: =VLOOKUP(($B23&"_"&AG$44&"_"&AG$43&"_"&AG$45&"_"&$AC23),'All Data'!$A$2:$L$1048576,8,FALSE) -> 7.773865 | I23: =VLOOKUP(($B23&"_"&AH$44&"_"&AH$43&"_"&AH$45&"_"&$AC23),'All Data'!$A$2:$L$1048576,8,FALSE) -> 66.57457 | J23: =VLOOKUP(($B23&"_"&AJ$44&"_"&AJ$43&"_"&AJ$45&"_"&$AC23),'All Data'!$A$2:$L$1048576,8,FALSE) -> 26.26629677 | K23: =VLOOKUP(($B23&"_"&AL$44&"_"&AL$43&"_"&AL$45&"_"&$AC23),'All Data'!$A$2:$L$1048576,8,FALSE) -> 2.17607635 | L23: =VLOOKUP(($B23&"_"&AM$44&"_"&AM$43&"_"&AM$45&"_"&$AC23),'All Data'!$A$2:$L$1048576,8,FALSE) -> 32.52667924 | M23: =VLOOKUP(($B23&"_"&AN$44&"_"&AN$43&"_"&AN$45&"_"&$AC23),'All Data'!$A$2:$L$1048576,8,FALSE) -> 63.35326872 | O23: =VLOOKUP(($B23&"_"&AO$44&"_"&AO$43&"_"&AO$45&"_"&$AC23),'All Data'!$A$2:$L$1048576,8,FALSE) -> 362.0336 | P23: =VLOOKUP(($B23&"_"&AP$44&"_"&AP$43&"_"&AP$45&"_"&$AC23),'All Data'!$A$2:$L$1048576,8,FALSE) -> 525.2417 | Q23: =VLOOKUP(($B23&"_"&AQ$44&"_"&AQ$43&"_"&AQ$45&"_"&$AC23),'All Data'!$A$2:$L$1048576,8,FALSE) -> 207.54177 | S23: =VLOOKUP(($B23&"_"&AR$44&"_"&AR$43&"_"&AR$45&"_"&$AC23),'All Data'!$A$2:$L$1048576,8,FALSE) -> 44.54545455 | U23: =VLOOKUP(($B23&"_"&AS$44&"_"&AS$43&"_"&AS$45&"_"&$AC23),'All Data'!$A$2:$L$1048576,8,FALSE) -> 649.6421 | V23: =VLOOKUP(($B23&"_"&AT$44&"_"&AT$43&"_"&AT$45&"_"&$AC23),'All Data'!$A$2:$L$1048576,8,FALSE) -> 424.3783 | W23: =VLOOKUP(($B23&"_"&AU$44&"_"&AU$43&"_"&AU$45&"_"&$AC23),'All Data'!$A$2:$L$1048576,8,FALSE) -> 809.7211 | Y23: =VLOOKUP(($B23&"_"&AV$44&"_"&AV$43&"_"&AV$45&"_"&$AC23),'All Data'!$A$2:$L$1048576,8,FALSE) -> 85.09406657 | AC23: LA | AD23: ='Overview (controls)'!C23 -> 0 | AE23: ='Overview (controls)'!D23 -> 0 | AF23: ='Overview (controls)'!E23 -> 0 | AG23: ='Overview (controls)'!F23 -> 0 | AH23: ='Overview (controls)'!G23 -> 5.005026 | AI23: ='Overview (controls)'!H23 -> 13.74404 | AJ23: ='Overview (controls)'!I23 -> 4.382852 | AK23: ='Overview (controls)'!J23 -> 11.16488 | AL23: ='Overview (controls)'!K23 -> 63.69667 | AM23: ='Overview (controls)'!L23 -> 69.45248 | AN23: ='Overview (controls)'!M23 ->  | AO23: ='Overview (controls)'!N23 ->  | AP23: ='Overview (controls)'!O23 -> 23.3406 | AQ23: ='Overview (controls)'!P23 -> 29.19199 | AR23: ='Overview (controls)'!Q23 -> 2.040601 | AS23: ='Overview (controls)'!R23 -> 2.311552 | AT23: ='Overview (controls)'!S23 -> 29.56718 | AU23: ='Overview (controls)'!T23 -> 35.48618 | AV23: ='Overview (controls)'!U23 -> 60.37034 | AW23: ='Overview (controls)'!V23 -> 66.3362 | AX23: ='Overview (controls)'!W23 -> 313.01637 | AY23: ='Overview (controls)'!X23 -> 416.46296 | AZ23: ='Overview (controls)'!Y23 -> 442.0115 | BA23: ='Overview (controls)'!Z23 -> 619.44531 | BB23: ='Overview (controls)'!AA23 -> 156.22108 | BC23: ='Overview (controls)'!AB23 -> 270.06823 | BD23: ='Overview (controls)'!AC23 -> 32.95454545 | BE23: ='Overview (controls)'!AD23 -> 58.89181818 | BF23: ='Overview (controls)'!AE23 -> 512.9762 | BG23: ='Overview (controls)'!AF23 -> 811.06411 | BH23: ='Overview (controls)'!AG23 -> 252.85289 | BI23: ='Overview (controls)'!AH23 -> 666.32568 | BJ23: ='Overview (controls)'!AI23 -> 610.3038 | BK23: ='Overview (controls)'!AJ23 -> 1051.07318 | BL23: ='Overview (controls)'!AK23 -> 82.24479318 | BM23: ='Overview (controls)'!AL23 -> 87.55528787
B24: Caerphilly | F24: =VLOOKUP(($B24&"_"&AF$44&"_"&AF$43&"_"&AF$45&"_"&$AC24),'All Data'!$A$2:$L$1048576,8,FALSE) -> 8.493556 | G24: =VLOOKUP(($B24&"_"&AG$44&"_"&AG$43&"_"&AG$45&"_"&$AC24),'All Data'!$A$2:$L$1048576,8,FALSE) -> 7.829425 | I24: =VLOOKUP(($B24&"_"&AH$44&"_"&AH$43&"_"&AH$45&"_"&$AC24),'All Data'!$A$2:$L$1048576,8,FALSE) -> 68.71913 | J24: =VLOOKUP(($B24&"_"&AJ$44&"_"&AJ$43&"_"&AJ$45&"_"&$AC24),'All Data'!$A$2:$L$1048576,8,FALSE) -> 23.84013734 | K24: =VLOOKUP(($B24&"_"&AL$44&"_"&AL$43&"_"&AL$45&"_"&$AC24),'All Data'!$A$2:$L$1048576,8,FALSE) -> 2.198622158 | L24: =VLOOKUP(($B24&"_"&AM$44&"_"&AM$43&"_"&AM$45&"_"&$AC24),'All Data'!$A$2:$L$1048576,8,FALSE) -> 29.68948801 | M24: =VLOOKUP(($B24&"_"&AN$44&"_"&AN$43&"_"&AN$45&"_"&$AC24),'All Data'!$A$2:$L$1048576,8,FALSE) -> 60.17264983 | O24: =VLOOKUP(($B24&"_"&AO$44&"_"&AO$43&"_"&AO$45&"_"&$AC24),'All Data'!$A$2:$L$1048576,8,FALSE) -> 324.3914 | P24: =VLOOKUP(($B24&"_"&AP$44&"_"&AP$43&"_"&AP$45&"_"&$AC24),'All Data'!$A$2:$L$1048576,8,FALSE) -> 439.60833 | Q24: =VLOOKUP(($B24&"_"&AQ$44&"_"&AQ$43&"_"&AQ$45&"_"&$AC24),'All Data'!$A$2:$L$1048576,8,FALSE) -> 214.43716 | S24: =VLOOKUP(($B24&"_"&AR$44&"_"&AR$43&"_"&AR$45&"_"&$AC24),'All Data'!$A$2:$L$1048576,8,FALSE) -> 38.78281623 | U24: =VLOOKUP(($B24&"_"&AS$44&"_"&AS$43&"_"&AS$45&"_"&$AC24),'All Data'!$A$2:$L$1048576,8,FALSE) -> 764.44 | V24: =VLOOKUP(($B24&"_"&AT$44&"_"&AT$43&"_"&AT$45&"_"&$AC24),'All Data'!$A$2:$L$1048576,8,FALSE) -> 447.2017 | W24: =VLOOKUP(($B24&"_"&AU$44&"_"&AU$43&"_"&AU$45&"_"&$AC24),'All Data'!$A$2:$L$1048576,8,FALSE) -> 953.9926 | Y24: =VLOOKUP(($B24&"_"&AV$44&"_"&AV$43&"_"&AV$45&"_"&$AC24),'All Data'!$A$2:$L$1048576,8,FALSE) -> 81.80487805 | AC24: LA | AD24: ='Overview (controls)'!C24 -> 0 | AE24: ='Overview (controls)'!D24 -> 0 | AF24: ='Overview (controls)'!E24 -> 0 | AG24: ='Overview (controls)'!F24 -> 0 | AH24: ='Overview (controls)'!G24 -> 5.976455 | AI24: ='Overview (controls)'!H24 -> 11.01066 | AJ24: ='Overview (controls)'!I24 -> 5.821472 | AK24: ='Overview (controls)'!J24 -> 9.837379 | AL24: ='Overview (controls)'!K24 -> 65.99661 | AM24: ='Overview (controls)'!L24 -> 71.44165 | AN24: ='Overview (controls)'!M24 ->  | AO24: ='Overview (controls)'!N24 ->  | AP24: ='Overview (controls)'!O24 -> 21.26661 | AQ24: ='Overview (controls)'!P24 -> 26.41367 | AR24: ='Overview (controls)'!Q24 -> 2.075346 | AS24: ='Overview (controls)'!R24 -> 2.321898 | AT24: ='Overview (controls)'!S24 -> 26.96314 | AU24: ='Overview (controls)'!T24 -> 32.41584 | AV24: ='Overview (controls)'!U24 -> 57.25634 | AW24: ='Overview (controls)'!V24 -> 63.08896 | AX24: ='Overview (controls)'!W24 -> 297.78613 | AY24: ='Overview (controls)'!X24 -> 352.71105 | AZ24: ='Overview (controls)'!Y24 -> 395.65878 | BA24: ='Overview (controls)'!Z24 -> 487.06014 | BB24: ='Overview (controls)'!AA24 -> 184.45939 | BC24: ='Overview (controls)'!AB24 -> 247.83458 | BD24: ='Overview (controls)'!AC24 -> 32.40243487 | BE24: ='Overview (controls)'!AD24 -> 46.06015076 | BF24: ='Overview (controls)'!AE24 -> 674.36541 | BG24: ='Overview (controls)'!AF24 -> 863.04348 | BH24: ='Overview (controls)'!AG24 -> 340.39313 | BI24: ='Overview (controls)'!AH24 -> 576.67728 | BJ24: ='Overview (controls)'!AI24 -> 824.34854 | BK24: ='Overview (controls)'!AJ24 -> 1097.65846 | BL24: ='Overview (controls)'!AK24 -> 80.07577682 | BM24: ='Overview (controls)'!AL24 -> 83.41500066
B25: Blaenau Gwent | F25: =VLOOKUP(($B25&"_"&AF$44&"_"&AF$43&"_"&AF$45&"_"&$AC25),'All Data'!$A$2:$L$1048576,8,FALSE) -> 2.646846 | G25: =VLOOKUP(($B25&"_"&AG$44&"_"&AG$43&"_"&AG$45&"_"&$AC25),'All Data'!$A$2:$L$1048576,8,FALSE) -> 1.938557 | I25: =VLOOKUP(($B25&"_"&AH$44&"_"&AH$43&"_"&AH$45&"_"&$AC25),'All Data'!$A$2:$L$1048576,8,FALSE) -> 65.14995 | J25: =VLOOKUP(($B25&"_"&AJ$44&"_"&AJ$43&"_"&AJ$45&"_"&$AC25),'All Data'!$A$2:$L$1048576,8,FALSE) -> 27.65388296 | K25: =VLOOKUP(($B25&"_"&AL$44&"_"&AL$43&"_"&AL$45&"_"&$AC25),'All Data'!$A$2:$L$1048576,8,FALSE) -> 2.199265771 | L25: =VLOOKUP(($B25&"_"&AM$44&"_"&AM$43&"_"&AM$45&"_"&$AC25),'All Data'!$A$2:$L$1048576,8,FALSE) -> 28.39492316 | M25: =VLOOKUP(($B25&"_"&AN$44&"_"&AN$43&"_"&AN$45&"_"&$AC25),'All Data'!$A$2:$L$1048576,8,FALSE) -> 60.88274137 | O25: =VLOOKUP(($B25&"_"&AO$44&"_"&AO$43&"_"&AO$45&"_"&$AC25),'All Data'!$A$2:$L$1048576,8,FALSE) -> 417.47223 | P25: =VLOOKUP(($B25&"_"&AP$44&"_"&AP$43&"_"&AP$45&"_"&$AC25),'All Data'!$A$2:$L$1048576,8,FALSE) -> 584.49524 | Q25: =VLOOKUP(($B25&"_"&AQ$44&"_"&AQ$43&"_"&AQ$45&"_"&$AC25),'All Data'!$A$2:$L$1048576,8,FALSE) -> 260.08473 | S25: =VLOOKUP(($B25&"_"&AR$44&"_"&AR$43&"_"&AR$45&"_"&$AC25),'All Data'!$A$2:$L$1048576,8,FALSE) -> 37.52605976 | U25: =VLOOKUP(($B25&"_"&AS$44&"_"&AS$43&"_"&AS$45&"_"&$AC25),'All Data'!$A$2:$L$1048576,8,FALSE) -> 942.5172 | V25: =VLOOKUP(($B25&"_"&AT$44&"_"&AT$43&"_"&AT$45&"_"&$AC25),'All Data'!$A$2:$L$1048576,8,FALSE) -> 616.6577 | W25: =VLOOKUP(($B25&"_"&AU$44&"_"&AU$43&"_"&AU$45&"_"&$AC25),'All Data'!$A$2:$L$1048576,8,FALSE) -> 1136.6879 | Y25: =VLOOKUP(($B25&"_"&AV$44&"_"&AV$43&"_"&AV$45&"_"&$AC25),'All Data'!$A$2:$L$1048576,8,FALSE) -> 83.94736842 | AC25: LA | AD25: ='Overview (controls)'!C25 -> 0 | AE25: ='Overview (controls)'!D25 -> 0 | AF25: ='Overview (controls)'!E25 -> 0 | AG25: ='Overview (controls)'!F25 -> 0 | AH25: ='Overview (controls)'!G25 -> -3.113655 | AI25: ='Overview (controls)'!H25 -> 8.407347 | AJ25: ='Overview (controls)'!I25 -> -1.882884 | AK25: ='Overview (controls)'!J25 -> 5.759999 | AL25: ='Overview (controls)'!K25 -> 62.10064 | AM25: ='Overview (controls)'!L25 -> 68.19925 | AN25: ='Overview (controls)'!M25 ->  | AO25: ='Overview (controls)'!N25 ->  | AP25: ='Overview (controls)'!O25 -> 24.71242 | AQ25: ='Overview (controls)'!P25 -> 30.59535 | AR25: ='Overview (controls)'!Q25 -> 2.069997 | AS25: ='Overview (controls)'!R25 -> 2.328535 | AT25: ='Overview (controls)'!S25 -> 25.49272 | AU25: ='Overview (controls)'!T25 -> 31.29712 | AV25: ='Overview (controls)'!U25 -> 57.88522 | AW25: ='Overview (controls)'!V25 -> 63.88026 | AX25: ='Overview (controls)'!W25 -> 369.63903 | AY25: ='Overview (controls)'!X25 -> 469.67525 | AZ25: ='Overview (controls)'!Y25 -> 503.92584 | BA25: ='Overview (controls)'!Z25 -> 674.0557 | BB25: ='Overview (controls)'!AA25 -> 208.58721 | BC25: ='Overview (controls)'!AB25 -> 320.27783 | BD25: ='Overview (controls)'!AC25 -> 28.19041001 | BE25: ='Overview (controls)'!AD25 -> 48.96316887 | BF25: ='Overview (controls)'!AE25 -> 796.27994 | BG25: ='Overview (controls)'!AF25 -> 1107.4206 | BH25: ='Overview (controls)'!AG25 -> 430.42426 | BI25: ='Overview (controls)'!AH25 -> 855.55473 | BJ25: ='Overview (controls)'!AI25 -> 930.71866 | BK25: ='Overview (controls)'!AJ25 -> 1373.0137 | BL25: ='Overview (controls)'!AK25 -> 81.16770282 | BM25: ='Overview (controls)'!AL25 -> 86.38557
B26: Torfaen | F26: =VLOOKUP(($B26&"_"&AF$44&"_"&AF$43&"_"&AF$45&"_"&$AC26),'All Data'!$A$2:$L$1048576,8,FALSE) -> 7.305144 | G26: =VLOOKUP(($B26&"_"&AG$44&"_"&AG$43&"_"&AG$45&"_"&$AC26),'All Data'!$A$2:$L$1048576,8,FALSE) -> 6.051895 | I26: =VLOOKUP(($B26&"_"&AH$44&"_"&AH$43&"_"&AH$45&"_"&$AC26),'All Data'!$A$2:$L$1048576,8,FALSE) -> 70.76042 | J26: =VLOOKUP(($B26&"_"&AJ$44&"_"&AJ$43&"_"&AJ$45&"_"&$AC26),'All Data'!$A$2:$L$1048576,8,FALSE) -> 25.55324457 | K26: =VLOOKUP(($B26&"_"&AL$44&"_"&AL$43&"_"&AL$45&"_"&$AC26),'All Data'!$A$2:$L$1048576,8,FALSE) -> 2.247839706 | L26: =VLOOKUP(($B26&"_"&AM$44&"_"&AM$43&"_"&AM$45&"_"&$AC26),'All Data'!$A$2:$L$1048576,8,FALSE) -> 29.5582747 | M26: =VLOOKUP(($B26&"_"&AN$44&"_"&AN$43&"_"&AN$45&"_"&$AC26),'All Data'!$A$2:$L$1048576,8,FALSE) -> 62.58753628 | O26: =VLOOKUP(($B26&"_"&AO$44&"_"&AO$43&"_"&AO$45&"_"&$AC26),'All Data'!$A$2:$L$1048576,8,FALSE) -> 408.11057 | P26: =VLOOKUP(($B26&"_"&AP$44&"_"&AP$43&"_"&AP$45&"_"&$AC26),'All Data'!$A$2:$L$1048576,8,FALSE) -> 508.22281 | Q26: =VLOOKUP(($B26&"_"&AQ$44&"_"&AQ$43&"_"&AQ$45&"_"&$AC26),'All Data'!$A$2:$L$1048576,8,FALSE) -> 314.15405 | S26: =VLOOKUP(($B26&"_"&AR$44&"_"&AR$43&"_"&AR$45&"_"&$AC26),'All Data'!$A$2:$L$1048576,8,FALSE) -> 38.10049696 | U26: =VLOOKUP(($B26&"_"&AS$44&"_"&AS$43&"_"&AS$45&"_"&$AC26),'All Data'!$A$2:$L$1048576,8,FALSE) -> 694.4589 | V26: =VLOOKUP(($B26&"_"&AT$44&"_"&AT$43&"_"&AT$45&"_"&$AC26),'All Data'!$A$2:$L$1048576,8,FALSE) -> 469.0739 | W26: =VLOOKUP(($B26&"_"&AU$44&"_"&AU$43&"_"&AU$45&"_"&$AC26),'All Data'!$A$2:$L$1048576,8,FALSE) -> 823.5219 | Y26: =VLOOKUP(($B26&"_"&AV$44&"_"&AV$43&"_"&AV$45&"_"&$AC26),'All Data'!$A$2:$L$1048576,8,FALSE) -> 82.92682927 | AC26: LA | AD26: ='Overview (controls)'!C26 -> 0 | AE26: ='Overview (controls)'!D26 -> 0 | AF26: ='Overview (controls)'!E26 -> 0 | AG26: ='Overview (controls)'!F26 -> 0 | AH26: ='Overview (controls)'!G26 -> 4.673392 | AI26: ='Overview (controls)'!H26 -> 9.936896 | AJ26: ='Overview (controls)'!I26 -> 2.995135 | AK26: ='Overview (controls)'!J26 -> 9.108655 | AL26: ='Overview (controls)'!K26 -> 67.92607 | AM26: ='Overview (controls)'!L26 -> 73.59476 | AN26: ='Overview (controls)'!M26 ->  | AO26: ='Overview (controls)'!N26 ->  | AP26: ='Overview (controls)'!O26 -> 22.64048 | AQ26: ='Overview (controls)'!P26 -> 28.46601 | AR26: ='Overview (controls)'!Q26 -> 2.115748 | AS26: ='Overview (controls)'!R26 -> 2.379931 | AT26: ='Overview (controls)'!S26 -> 26.6384 | AU26: ='Overview (controls)'!T26 -> 32.47815 | AV26: ='Overview (controls)'!U26 -> 59.67367 | AW26: ='Overview (controls)'!V26 -> 65.50141 | AX26: ='Overview (controls)'!W26 -> 367.01082 | AY26: ='Overview (controls)'!X26 -> 452.48548 | AZ26: ='Overview (controls)'!Y26 -> 443.72446 | BA26: ='Overview (controls)'!Z26 -> 579.30796 | BB26: ='Overview (controls)'!AA26 -> 263.68432 | BC26: ='Overview (controls)'!AB26 -> 371.35329 | BD26: ='Overview (controls)'!AC26 -> 29.64439536 | BE26: ='Overview (controls)'!AD26 -> 48.21866372 | BF26: ='Overview (controls)'!AE26 -> 587.55558 | BG26: ='Overview (controls)'!AF26 -> 814.73058 | BH26: ='Overview (controls)'!AG26 -> 332.75513 | BI26: ='Overview (controls)'!AH26 -> 641.69996 | BJ26: ='Overview (controls)'!AI26 -> 676.31076 | BK26: ='Overview (controls)'!AJ26 -> 992.2325 | BL26: ='Overview (controls)'!AK26 -> 80.55073412 | BM26: ='Overview (controls)'!AL26 -> 85.06645631
B27: Monmouthshire | F27: =VLOOKUP(($B27&"_"&AF$44&"_"&AF$43&"_"&AF$45&"_"&$AC27),'All Data'!$A$2:$L$1048576,8,FALSE) -> 5.889338 | G27: =VLOOKUP(($B27&"_"&AG$44&"_"&AG$43&"_"&AG$45&"_"&$AC27),'All Data'!$A$2:$L$1048576,8,FALSE) -> 4.113062 | I27: =VLOOKUP(($B27&"_"&AH$44&"_"&AH$43&"_"&AH$45&"_"&$AC27),'All Data'!$A$2:$L$1048576,8,FALSE) -> 80.48987 | J27: =VLOOKUP(($B27&"_"&AJ$44&"_"&AJ$43&"_"&AJ$45&"_"&$AC27),'All Data'!$A$2:$L$1048576,8,FALSE) -> 18.62343322 | K27: =VLOOKUP(($B27&"_"&AL$44&"_"&AL$43&"_"&AL$45&"_"&$AC27),'All Data'!$A$2:$L$1048576,8,FALSE) -> 2.682019778 | L27: =VLOOKUP(($B27&"_"&AM$44&"_"&AM$43&"_"&AM$45&"_"&$AC27),'All Data'!$A$2:$L$1048576,8,FALSE) -> 37.63117223 | M27: =VLOOKUP(($B27&"_"&AN$44&"_"&AN$43&"_"&AN$45&"_"&$AC27),'All Data'!$A$2:$L$1048576,8,FALSE) -> 53.68413401 | O27: =VLOOKUP(($B27&"_"&AO$44&"_"&AO$43&"_"&AO$45&"_"&$AC27),'All Data'!$A$2:$L$1048576,8,FALSE) -> 268.96198 | P27: =VLOOKUP(($B27&"_"&AP$44&"_"&AP$43&"_"&AP$45&"_"&$AC27),'All Data'!$A$2:$L$1048576,8,FALSE) -> 345.68789 | Q27: =VLOOKUP(($B27&"_"&AQ$44&"_"&AQ$43&"_"&AQ$45&"_"&$AC27),'All Data'!$A$2:$L$1048576,8,FALSE) -> 197.98847 | S27: =VLOOKUP(($B27&"_"&AR$44&"_"&AR$43&"_"&AR$45&"_"&$AC27),'All Data'!$A$2:$L$1048576,8,FALSE) -> 22.45929253 | U27: =VLOOKUP(($B27&"_"&AS$44&"_"&AS$43&"_"&AS$45&"_"&$AC27),'All Data'!$A$2:$L$1048576,8,FALSE) -> 803.9337 | V27: =VLOOKUP(($B27&"_"&AT$44&"_"&AT$43&"_"&AT$45&"_"&$AC27),'All Data'!$A$2:$L$1048576,8,FALSE) -> 532.4775 | W27: =VLOOKUP(($B27&"_"&AU$44&"_"&AU$43&"_"&AU$45&"_"&$AC27),'All Data'!$A$2:$L$1048576,8,FALSE) -> 972.4072 | Y27: =VLOOKUP(($B27&"_"&AV$44&"_"&AV$43&"_"&AV$45&"_"&$AC27),'All Data'!$A$2:$L$1048576,8,FALSE) -> 83.1797235 | AC27: LA | AD27: ='Overview (controls)'!C27 -> 0 | AE27: ='Overview (controls)'!D27 -> 0 | AF27: ='Overview (controls)'!E27 -> 0 | AG27: ='Overview (controls)'!F27 -> 0 | AH27: ='Overview (controls)'!G27 -> 4.402877 | AI27: ='Overview (controls)'!H27 -> 7.375799 | AJ27: ='Overview (controls)'!I27 -> 0.0502363 | AK27: ='Overview (controls)'!J27 -> 8.175888 | AL27: ='Overview (controls)'!K27 -> 77.9836 | AM27: ='Overview (controls)'!L27 -> 82.99614 | AN27: ='Overview (controls)'!M27 ->  | AO27: ='Overview (controls)'!N27 ->  | AP27: ='Overview (controls)'!O27 -> 15.89932 | AQ27: ='Overview (controls)'!P27 -> 21.34755 | AR27: ='Overview (controls)'!Q27 -> 2.549871 | AS27: ='Overview (controls)'!R27 -> 2.814168 | AT27: ='Overview (controls)'!S27 -> 34.47568 | AU27: ='Overview (controls)'!T27 -> 40.78666 | AV27: ='Overview (controls)'!U27 -> 50.57932 | AW27: ='Overview (controls)'!V27 -> 56.78894 | AX27: ='Overview (controls)'!W27 -> 234.27701 | AY27: ='Overview (controls)'!X27 -> 307.08187 | AZ27: ='Overview (controls)'!Y27 -> 291.63343 | BA27: ='Overview (controls)'!Z27 -> 406.41302 | BB27: ='Overview (controls)'!AA27 -> 154.98956 | BC27: ='Overview (controls)'!AB27 -> 248.57151 | BD27: ='Overview (controls)'!AC27 -> 16.04548007 | BE27: ='Overview (controls)'!AD27 -> 30.58338012 | BF27: ='Overview (controls)'!AE27 -> 692.56087 | BG27: ='Overview (controls)'!AF27 -> 927.73506 | BH27: ='Overview (controls)'!AG27 -> 394.61508 | BI27: ='Overview (controls)'!AH27 -> 702.36666 | BJ27: ='Overview (controls)'!AI27 -> 812.49189 | BK27: ='Overview (controls)'!AJ27 -> 1153.25151 | BL27: ='Overview (controls)'!AK27 -> 80.54630379 | BM27: ='Overview (controls)'!AL27 -> 85.52074325
B28: Newport | F28: =VLOOKUP(($B28&"_"&AF$44&"_"&AF$43&"_"&AF$45&"_"&$AC28),'All Data'!$A$2:$L$1048576,8,FALSE) -> 11.03028 | G28: =VLOOKUP(($B28&"_"&AG$44&"_"&AG$43&"_"&AG$45&"_"&$AC28),'All Data'!$A$2:$L$1048576,8,FALSE) -> 6.261327 | I28: =VLOOKUP(($B28&"_"&AH$44&"_"&AH$43&"_"&AH$45&"_"&$AC28),'All Data'!$A$2:$L$1048576,8,FALSE) -> 72.09847 | J28: =VLOOKUP(($B28&"_"&AJ$44&"_"&AJ$43&"_"&AJ$45&"_"&$AC28),'All Data'!$A$2:$L$1048576,8,FALSE) -> 24.71021244 | K28: =VLOOKUP(($B28&"_"&AL$44&"_"&AL$43&"_"&AL$45&"_"&$AC28),'All Data'!$A$2:$L$1048576,8,FALSE) -> 2.243658238 | L28: =VLOOKUP(($B28&"_"&AM$44&"_"&AM$43&"_"&AM$45&"_"&$AC28),'All Data'!$A$2:$L$1048576,8,FALSE) -> 33.53068865 | M28: =VLOOKUP(($B28&"_"&AN$44&"_"&AN$43&"_"&AN$45&"_"&$AC28),'All Data'!$A$2:$L$1048576,8,FALSE) -> 57.92159816 | O28: =VLOOKUP(($B28&"_"&AO$44&"_"&AO$43&"_"&AO$45&"_"&$AC28),'All Data'!$A$2:$L$1048576,8,FALSE) -> 425.95152 | P28: =VLOOKUP(($B28&"_"&AP$44&"_"&AP$43&"_"&AP$45&"_"&$AC28),'All Data'!$A$2:$L$1048576,8,FALSE) -> 554.8376 | Q28: =VLOOKUP(($B28&"_"&AQ$44&"_"&AQ$43&"_"&AQ$45&"_"&$AC28),'All Data'!$A$2:$L$1048576,8,FALSE) -> 303.87292 | S28: =VLOOKUP(($B28&"_"&AR$44&"_"&AR$43&"_"&AR$45&"_"&$AC28),'All Data'!$A$2:$L$1048576,8,FALSE) -> 42.28855721 | U28: =VLOOKUP(($B28&"_"&AS$44&"_"&AS$43&"_"&AS$45&"_"&$AC28),'All Data'!$A$2:$L$1048576,8,FALSE) -> 632.7548 | V28: =VLOOKUP(($B28&"_"&AT$44&"_"&AT$43&"_"&AT$45&"_"&$AC28),'All Data'!$A$2:$L$1048576,8,FALSE) -> 474.6066 | W28: =VLOOKUP(($B28&"_"&AU$44&"_"&AU$43&"_"&AU$45&"_"&$AC28),'All Data'!$A$2:$L$1048576,8,FALSE) -> 747.6489 | Y28: =VLOOKUP(($B28&"_"&AV$44&"_"&AV$43&"_"&AV$45&"_"&$AC28),'All Data'!$A$2:$L$1048576,8,FALSE) -> 76.53543307 | AC28: LA | AD28: ='Overview (controls)'!C28 -> 0 | AE28: ='Overview (controls)'!D28 -> 0 | AF28: ='Overview (controls)'!E28 -> 0 | AG28: ='Overview (controls)'!F28 -> 0 | AH28: ='Overview (controls)'!G28 -> 9.4929 | AI28: ='Overview (controls)'!H28 -> 12.56765 | AJ28: ='Overview (controls)'!I28 -> -0.1301842 | AK28: ='Overview (controls)'!J28 -> 12.65284 | AL28: ='Overview (controls)'!K28 -> 69.49874 | AM28: ='Overview (controls)'!L28 -> 74.69821 | AN28: ='Overview (controls)'!M28 ->  | AO28: ='Overview (controls)'!N28 ->  | AP28: ='Overview (controls)'!O28 -> 21.83703 | AQ28: ='Overview (controls)'!P28 -> 27.5834 | AR28: ='Overview (controls)'!Q28 -> 2.123467 | AS28: ='Overview (controls)'!R28 -> 2.36385 | AT28: ='Overview (controls)'!S28 -> 30.61519 | AU28: ='Overview (controls)'!T28 -> 36.44619 | AV28: ='Overview (controls)'!U28 -> 54.967 | AW28: ='Overview (controls)'!V28 -> 60.87619 | AX28: ='Overview (controls)'!W28 -> 392.11441 | AY28: ='Overview (controls)'!X28 -> 461.89838 | AZ28: ='Overview (controls)'!Y28 -> 499.96275 | BA28: ='Overview (controls)'!Z28 -> 614.04325 | BB28: ='Overview (controls)'!AA28 -> 264.36345 | BC28: ='Overview (controls)'!AB28 -> 347.55135 | BD28: ='Overview (controls)'!AC28 -> 35.03174281 | BE28: ='Overview (controls)'!AD28 -> 50.61518275 | BF28: ='Overview (controls)'!AE28 -> 546.67103 | BG28: ='Overview (controls)'!AF28 -> 728.2447 | BH28: ='Overview (controls)'!AG28 -> 356.98422 | BI28: ='Overview (controls)'!AH28 -> 618.16554 | BJ28: ='Overview (controls)'!AI28 -> 626.53037 | BK28: ='Overview (controls)'!AJ28 -> 884.44755 | BL28: ='Overview (controls)'!AK28 -> 74.58016358 | BM28: ='Overview (controls)'!AL28 -> 78.38389587
B30: Betsi Cadwaladr UHB | F30: =VLOOKUP(($B30&"_"&AF$44&"_"&AF$43&"_"&AF$45&"_"&$AC30),'All Data'!$A$2:$L$1048576,8,FALSE) -> 7.188198 | G30: =VLOOKUP(($B30&"_"&AG$44&"_"&AG$43&"_"&AG$45&"_"&$AC30),'All Data'!$A$2:$L$1048576,8,FALSE) -> 5.533474 | I30: =VLOOKUP(($B30&"_"&AH$44&"_"&AH$43&"_"&AH$45&"_"&$AC30),'All Data'!$A$2:$L$1048576,8,FALSE) -> 77.77776 | J30: =VLOOKUP(($B30&"_"&AJ$44&"_"&AJ$43&"_"&AJ$45&"_"&$AC30),'All Data'!$A$2:$L$1048576,8,FALSE) -> 23.37625687 | K30: =VLOOKUP(($B30&"_"&AL$44&"_"&AL$43&"_"&AL$45&"_"&$AC30),'All Data'!$A$2:$L$1048576,8,FALSE) -> 2.480558715 | L30: =VLOOKUP(($B30&"_"&AM$44&"_"&AM$43&"_"&AM$45&"_"&$AC30),'All Data'!$A$2:$L$1048576,8,FALSE) -> 35.93531195 | M30: =VLOOKUP(($B30&"_"&AN$44&"_"&AN$43&"_"&AN$45&"_"&$AC30),'All Data'!$A$2:$L$1048576,8,FALSE) -> 54.51760546 | O30: =VLOOKUP(($B30&"_"&AO$44&"_"&AO$43&"_"&AO$45&"_"&$AC30),'All Data'!$A$2:$L$1048576,8,FALSE) -> 369.93354 | P30: =VLOOKUP(($B30&"_"&AP$44&"_"&AP$43&"_"&AP$45&"_"&$AC30),'All Data'!$A$2:$L$1048576,8,FALSE) -> 468.26287 | Q30: =VLOOKUP(($B30&"_"&AQ$44&"_"&AQ$43&"_"&AQ$45&"_"&$AC30),'All Data'!$A$2:$L$1048576,8,FALSE) -> 274.71101 | S30: =VLOOKUP(($B30&"_"&AR$44&"_"&AR$43&"_"&AR$45&"_"&$AC30),'All Data'!$A$2:$L$1048576,8,FALSE) -> 37.36281472 | U30: =VLOOKUP(($B30&"_"&AS$44&"_"&AS$43&"_"&AS$45&"_"&$AC30),'All Data'!$A$2:$L$1048576,8,FALSE) -> 661.8261 | V30: =VLOOKUP(($B30&"_"&AT$44&"_"&AT$43&"_"&AT$45&"_"&$AC30),'All Data'!$A$2:$L$1048576,8,FALSE) -> 441.0366 | W30: =VLOOKUP(($B30&"_"&AU$44&"_"&AU$43&"_"&AU$45&"_"&$AC30),'All Data'!$A$2:$L$1048576,8,FALSE) -> 812.8909 | Y30: =VLOOKUP(($B30&"_"&AV$44&"_"&AV$43&"_"&AV$45&"_"&$AC30),'All Data'!$A$2:$L$1048576,8,FALSE) -> 83.30035615 | AC30: HB | AD30: ='Overview (controls)'!C29 -> 0 | AE30: ='Overview (controls)'!D29 -> 0 | AF30: ='Overview (controls)'!E29 -> 0 | AG30: ='Overview (controls)'!F29 -> 0 | AH30: ='Overview (controls)'!G29 -> 2.866424 | AI30: ='Overview (controls)'!H29 -> 11.50997 | AJ30: ='Overview (controls)'!I29 -> 2.015318 | AK30: ='Overview (controls)'!J29 -> 9.051629 | AL30: ='Overview (controls)'!K29 -> 76.70863 | AM30: ='Overview (controls)'!L29 -> 78.84689 | AN30: ='Overview (controls)'!M29 ->  | AO30: ='Overview (controls)'!N29 ->  | AP30: ='Overview (controls)'!O29 -> 22.21743 | AQ30: ='Overview (controls)'!P29 -> 24.53508 | AR30: ='Overview (controls)'!Q29 -> 2.426735 | AS30: ='Overview (controls)'!R29 -> 2.534382 | AT30: ='Overview (controls)'!S29 -> 34.63662 | AU30: ='Overview (controls)'!T29 -> 37.234 | AV30: ='Overview (controls)'!U29 -> 53.25758 | AW30: ='Overview (controls)'!V29 -> 55.77763 | AX30: ='Overview (controls)'!W29 -> 355.25817 | AY30: ='Overview (controls)'!X29 -> 385.04556 | AZ30: ='Overview (controls)'!Y29 -> 445.01457 | BA30: ='Overview (controls)'!Z29 -> 492.38619 | BB30: ='Overview (controls)'!AA29 -> 256.86076 | BC30: ='Overview (controls)'!AB29 -> 293.44396 | BD30: ='Overview (controls)'!AC29 -> 34.03697771 | BE30: ='Overview (controls)'!AD29 -> 40.92802551 | BF30: ='Overview (controls)'!AE29 -> 622.87671 | BG30: ='Overview (controls)'!AF29 -> 702.51561 | BH30: ='Overview (controls)'!AG29 -> 391.41392 | BI30: ='Overview (controls)'!AH29 -> 495.1599 | BJ30: ='Overview (controls)'!AI29 -> 755.8251 | BK30: ='Overview (controls)'!AJ29 -> 872.92105 | BL30: ='Overview (controls)'!AK29 -> 82.44393825 | BM30: ='Overview (controls)'!AL29 -> 84.12304187
B31: Powys THB | F31: =VLOOKUP(($B31&"_"&AF$44&"_"&AF$43&"_"&AF$45&"_"&$AC31),'All Data'!$A$2:$L$1048576,8,FALSE) -> 5.472466 | G31: =VLOOKUP(($B31&"_"&AG$44&"_"&AG$43&"_"&AG$45&"_"&$AC31),'All Data'!$A$2:$L$1048576,8,FALSE) -> 4.908738 | I31: =VLOOKUP(($B31&"_"&AH$44&"_"&AH$43&"_"&AH$45&"_"&$AC31),'All Data'!$A$2:$L$1048576,8,FALSE) -> 79.8221 | J31: =VLOOKUP(($B31&"_"&AJ$44&"_"&AJ$43&"_"&AJ$45&"_"&$AC31),'All Data'!$A$2:$L$1048576,8,FALSE) -> 22.75230141 | K31: =VLOOKUP(($B31&"_"&AL$44&"_"&AL$43&"_"&AL$45&"_"&$AC31),'All Data'!$A$2:$L$1048576,8,FALSE) -> 2.75890181 | L31: =VLOOKUP(($B31&"_"&AM$44&"_"&AM$43&"_"&AM$45&"_"&$AC31),'All Data'!$A$2:$L$1048576,8,FALSE) -> 37.06977514 | M31: =VLOOKUP(($B31&"_"&AN$44&"_"&AN$43&"_"&AN$45&"_"&$AC31),'All Data'!$A$2:$L$1048576,8,FALSE) -> 55.97311822 | O31: =VLOOKUP(($B31&"_"&AO$44&"_"&AO$43&"_"&AO$45&"_"&$AC31),'All Data'!$A$2:$L$1048576,8,FALSE) -> 219.90388 | P31: =VLOOKUP(($B31&"_"&AP$44&"_"&AP$43&"_"&AP$45&"_"&$AC31),'All Data'!$A$2:$L$1048576,8,FALSE) -> 305.18295 | Q31: =VLOOKUP(($B31&"_"&AQ$44&"_"&AQ$43&"_"&AQ$45&"_"&$AC31),'All Data'!$A$2:$L$1048576,8,FALSE) -> 133.88287 | S31: =VLOOKUP(($B31&"_"&AR$44&"_"&AR$43&"_"&AR$45&"_"&$AC31),'All Data'!$A$2:$L$1048576,8,FALSE) -> 23.72617658 | U31: =VLOOKUP(($B31&"_"&AS$44&"_"&AS$43&"_"&AS$45&"_"&$AC31),'All Data'!$A$2:$L$1048576,8,FALSE) -> 614.6055 | V31: =VLOOKUP(($B31&"_"&AT$44&"_"&AT$43&"_"&AT$45&"_"&$AC31),'All Data'!$A$2:$L$1048576,8,FALSE) -> 362.3168 | W31: =VLOOKUP(($B31&"_"&AU$44&"_"&AU$43&"_"&AU$45&"_"&$AC31),'All Data'!$A$2:$L$1048576,8,FALSE) -> 800.0765 | Y31: =VLOOKUP(($B31&"_"&AV$44&"_"&AV$43&"_"&AV$45&"_"&$AC31),'All Data'!$A$2:$L$1048576,8,FALSE) -> 81.41176471 | AC31: HB | AD31: ='Overview (controls)'!C30 -> 0 | AE31: ='Overview (controls)'!D30 -> 0 | AF31: ='Overview (controls)'!E30 -> 0 | AG31: ='Overview (controls)'!F30 -> 0 | AH31: ='Overview (controls)'!G30 -> -0.4952769 | AI31: ='Overview (controls)'!H30 -> 11.44021 | AJ31: ='Overview (controls)'!I30 -> -4.037244 | AK31: ='Overview (controls)'!J30 -> 13.85472 | AL31: ='Overview (controls)'!K30 -> 77.07039 | AM31: ='Overview (controls)'!L30 -> 82.57381 | AN31: ='Overview (controls)'!M30 ->  | AO31: ='Overview (controls)'!N30 ->  | AP31: ='Overview (controls)'!O30 -> 19.8109 | AQ31: ='Overview (controls)'!P30 -> 25.6937 | AR31: ='Overview (controls)'!Q30 -> 2.625976 | AS31: ='Overview (controls)'!R30 -> 2.891827 | AT31: ='Overview (controls)'!S30 -> 33.77557 | AU31: ='Overview (controls)'!T30 -> 40.36398 | AV31: ='Overview (controls)'!U30 -> 52.76245 | AW31: ='Overview (controls)'!V30 -> 59.18378 | AX31: ='Overview (controls)'!W30 -> 193.4983 | AY31: ='Overview (controls)'!X30 -> 248.70436 | AZ31: ='Overview (controls)'!Y30 -> 261.83452 | BA31: ='Overview (controls)'!Z30 -> 353.29258 | BB31: ='Overview (controls)'!AA30 -> 105.40588 | BC31: ='Overview (controls)'!AB30 -> 167.22681 | BD31: ='Overview (controls)'!AC30 -> 18.14858032 | BE31: ='Overview (controls)'!AD30 -> 30.47724621 | BF31: ='Overview (controls)'!AE30 -> 536.83634 | BG31: ='Overview (controls)'!AF30 -> 700.17668 | BH31: ='Overview (controls)'!AG30 -> 274.07488 | BI31: ='Overview (controls)'!AH30 -> 469.64096 | BJ31: ='Overview (controls)'!AI30 -> 681.24069 | BK31: ='Overview (controls)'!AJ30 -> 932.70222 | BL31: ='Overview (controls)'!AK30 -> 79.18320406 | BM31: ='Overview (controls)'!AL30 -> 83.45160544
B32: Hywel Dda HB | F32: =VLOOKUP(($B32&"_"&AF$44&"_"&AF$43&"_"&AF$45&"_"&$AC32),'All Data'!$A$2:$L$1048576,8,FALSE) -> 6.83758 | G32: =VLOOKUP(($B32&"_"&AG$44&"_"&AG$43&"_"&AG$45&"_"&$AC32),'All Data'!$A$2:$L$1048576,8,FALSE) -> 4.052982 | I32: =VLOOKUP(($B32&"_"&AH$44&"_"&AH$43&"_"&AH$45&"_"&$AC32),'All Data'!$A$2:$L$1048576,8,FALSE) -> 75.75143 | J32: =VLOOKUP(($B32&"_"&AJ$44&"_"&AJ$43&"_"&AJ$45&"_"&$AC32),'All Data'!$A$2:$L$1048576,8,FALSE) -> 22.92499811 | K32: =VLOOKUP(($B32&"_"&AL$44&"_"&AL$43&"_"&AL$45&"_"&$AC32),'All Data'!$A$2:$L$1048576,8,FALSE) -> 2.499336806 | L32: =VLOOKUP(($B32&"_"&AM$44&"_"&AM$43&"_"&AM$45&"_"&$AC32),'All Data'!$A$2:$L$1048576,8,FALSE) -> 39.71726118 | M32: =VLOOKUP(($B32&"_"&AN$44&"_"&AN$43&"_"&AN$45&"_"&$AC32),'All Data'!$A$2:$L$1048576,8,FALSE) -> 58.02408628 | O32: =VLOOKUP(($B32&"_"&AO$44&"_"&AO$43&"_"&AO$45&"_"&$AC32),'All Data'!$A$2:$L$1048576,8,FALSE) -> 268.32795 | P32: =VLOOKUP(($B32&"_"&AP$44&"_"&AP$43&"_"&AP$45&"_"&$AC32),'All Data'!$A$2:$L$1048576,8,FALSE) -> 342.72285 | Q32: =VLOOKUP(($B32&"_"&AQ$44&"_"&AQ$43&"_"&AQ$45&"_"&$AC32),'All Data'!$A$2:$L$1048576,8,FALSE) -> 199.49186 | S32: =VLOOKUP(($B32&"_"&AR$44&"_"&AR$43&"_"&AR$45&"_"&$AC32),'All Data'!$A$2:$L$1048576,8,FALSE) -> 29.79330007 | U32: =VLOOKUP(($B32&"_"&AS$44&"_"&AS$43&"_"&AS$45&"_"&$AC32),'All Data'!$A$2:$L$1048576,8,FALSE) -> 610.816 | V32: =VLOOKUP(($B32&"_"&AT$44&"_"&AT$43&"_"&AT$45&"_"&$AC32),'All Data'!$A$2:$L$1048576,8,FALSE) -> 446.4083 | W32: =VLOOKUP(($B32&"_"&AU$44&"_"&AU$43&"_"&AU$45&"_"&$AC32),'All Data'!$A$2:$L$1048576,8,FALSE) -> 737.5053 | Y32: =VLOOKUP(($B32&"_"&AV$44&"_"&AV$43&"_"&AV$45&"_"&$AC32),'All Data'!$A$2:$L$1048576,8,FALSE) -> 78.37973414 | AC32: HB | AD32: ='Overview (controls)'!C31 -> 0 | AE32: ='Overview (controls)'!D31 -> 0 | AF32: ='Overview (controls)'!E31 -> 0 | AG32: ='Overview (controls)'!F31 -> 0 | AH32: ='Overview (controls)'!G31 -> 2.233189 | AI32: ='Overview (controls)'!H31 -> 11.44197 | AJ32: ='Overview (controls)'!I31 -> 1.274608 | AK32: ='Overview (controls)'!J31 -> 6.831356 | AL32: ='Overview (controls)'!K31 -> 74.18767 | AM32: ='Overview (controls)'!L31 -> 77.31519 | AN32: ='Overview (controls)'!M31 ->  | AO32: ='Overview (controls)'!N31 ->  | AP32: ='Overview (controls)'!O31 -> 21.25824 | AQ32: ='Overview (controls)'!P31 -> 24.59175 | AR32: ='Overview (controls)'!Q31 -> 2.421321 | AS32: ='Overview (controls)'!R31 -> 2.577352 | AT32: ='Overview (controls)'!S31 -> 37.88745 | AU32: ='Overview (controls)'!T31 -> 41.54707 | AV32: ='Overview (controls)'!U31 -> 56.28181 | AW32: ='Overview (controls)'!V31 -> 59.76636 | AX32: ='Overview (controls)'!W31 -> 251.38106 | AY32: ='Overview (controls)'!X31 -> 286.08052 | AZ32: ='Overview (controls)'!Y31 -> 315.42233 | BA32: ='Overview (controls)'!Z31 -> 371.67508 | BB32: ='Overview (controls)'!AA31 -> 179.12868 | BC32: ='Overview (controls)'!AB31 -> 221.46434 | BD32: ='Overview (controls)'!AC31 -> 25.89094921 | BE32: ='Overview (controls)'!AD31 -> 34.12166763 | BF32: ='Overview (controls)'!AE31 -> 562.75545 | BG32: ='Overview (controls)'!AF31 -> 661.79617 | BH32: ='Overview (controls)'!AG31 -> 382.89184 | BI32: ='Overview (controls)'!AH31 -> 517.36028 | BJ32: ='Overview (controls)'!AI31 -> 666.9738 | BK32: ='Overview (controls)'!AJ31 -> 813.13553 | BL32: ='Overview (controls)'!AK31 -> 77.07493143 | BM32: ='Overview (controls)'!AL31 -> 79.62989995
B33: ABM UHB | F33: =VLOOKUP(($B33&"_"&AF$44&"_"&AF$43&"_"&AF$45&"_"&$AC33),'All Data'!$A$2:$L$1048576,8,FALSE) -> 10.37601 | G33: =VLOOKUP(($B33&"_"&AG$44&"_"&AG$43&"_"&AG$45&"_"&$AC33),'All Data'!$A$2:$L$1048576,8,FALSE) -> 7.326598 | I33: =VLOOKUP(($B33&"_"&AH$44&"_"&AH$43&"_"&AH$45&"_"&$AC33),'All Data'!$A$2:$L$1048576,8,FALSE) -> 73.59216 | J33: =VLOOKUP(($B33&"_"&AJ$44&"_"&AJ$43&"_"&AJ$45&"_"&$AC33),'All Data'!$A$2:$L$1048576,8,FALSE) -> 22.92200379 | K33: =VLOOKUP(($B33&"_"&AL$44&"_"&AL$43&"_"&AL$45&"_"&$AC33),'All Data'!$A$2:$L$1048576,8,FALSE) -> 2.265711852 | L33: =VLOOKUP(($B33&"_"&AM$44&"_"&AM$43&"_"&AM$45&"_"&$AC33),'All Data'!$A$2:$L$1048576,8,FALSE) -> 34.57719736 | M33: =VLOOKUP(($B33&"_"&AN$44&"_"&AN$43&"_"&AN$45&"_"&$AC33),'All Data'!$A$2:$L$1048576,8,FALSE) -> 58.45314498 | O33: =VLOOKUP(($B33&"_"&AO$44&"_"&AO$43&"_"&AO$45&"_"&$AC33),'All Data'!$A$2:$L$1048576,8,FALSE) -> 319.44372 | P33: =VLOOKUP(($B33&"_"&AP$44&"_"&AP$43&"_"&AP$45&"_"&$AC33),'All Data'!$A$2:$L$1048576,8,FALSE) -> 442.38315 | Q33: =VLOOKUP(($B33&"_"&AQ$44&"_"&AQ$43&"_"&AQ$45&"_"&$AC33),'All Data'!$A$2:$L$1048576,8,FALSE) -> 202.04006 | S33: =VLOOKUP(($B33&"_"&AR$44&"_"&AR$43&"_"&AR$45&"_"&$AC33),'All Data'!$A$2:$L$1048576,8,FALSE) -> 39.41520468 | U33: =VLOOKUP(($B33&"_"&AS$44&"_"&AS$43&"_"&AS$45&"_"&$AC33),'All Data'!$A$2:$L$1048576,8,FALSE) -> 568.6552 | V33: =VLOOKUP(($B33&"_"&AT$44&"_"&AT$43&"_"&AT$45&"_"&$AC33),'All Data'!$A$2:$L$1048576,8,FALSE) -> 373.0617 | W33: =VLOOKUP(($B33&"_"&AU$44&"_"&AU$43&"_"&AU$45&"_"&$AC33),'All Data'!$A$2:$L$1048576,8,FALSE) -> 694.264 | Y33: =VLOOKUP(($B33&"_"&AV$44&"_"&AV$43&"_"&AV$45&"_"&$AC33),'All Data'!$A$2:$L$1048576,8,FALSE) -> 80.69179143 | AC33: HB | AD33: ='Overview (controls)'!C32 -> 0 | AE33: ='Overview (controls)'!D32 -> 0 | AF33: ='Overview (controls)'!E32 -> 0 | AG33: ='Overview (controls)'!F32 -> 0 | AH33: ='Overview (controls)'!G32 -> 8.93405 | AI33: ='Overview (controls)'!H32 -> 11.81796 | AJ33: ='Overview (controls)'!I32 -> 5.711448 | AK33: ='Overview (controls)'!J32 -> 8.941747 | AL33: ='Overview (controls)'!K32 -> 72.1541 | AM33: ='Overview (controls)'!L32 -> 75.03022 | AN33: ='Overview (controls)'!M32 ->  | AO33: ='Overview (controls)'!N32 ->  | AP33: ='Overview (controls)'!O32 -> 21.46192 | AQ33: ='Overview (controls)'!P32 -> 24.38209 | AR33: ='Overview (controls)'!Q32 -> 2.197669 | AS33: ='Overview (controls)'!R32 -> 2.333755 | AT33: ='Overview (controls)'!S32 -> 32.95783 | AU33: ='Overview (controls)'!T32 -> 36.19656 | AV33: ='Overview (controls)'!U32 -> 56.8207 | AW33: ='Overview (controls)'!V32 -> 60.08559 | AX33: ='Overview (controls)'!W32 -> 303.93767 | AY33: ='Overview (controls)'!X32 -> 335.52395 | AZ33: ='Overview (controls)'!Y32 -> 416.61968 | BA33: ='Overview (controls)'!Z32 -> 469.30334 | BB33: ='Overview (controls)'!AA32 -> 184.64719 | BC33: ='Overview (controls)'!AB32 -> 220.60075 | BD33: ='Overview (controls)'!AC32 -> 35.31924946 | BE33: ='Overview (controls)'!AD32 -> 43.85901305 | BF33: ='Overview (controls)'!AE32 -> 524.96155 | BG33: ='Overview (controls)'!AF32 -> 614.92029 | BH33: ='Overview (controls)'!AG32 -> 318.0436 | BI33: ='Overview (controls)'!AH32 -> 434.76105 | BJ33: ='Overview (controls)'!AI32 -> 631.25886 | BK33: ='Overview (controls)'!AJ32 -> 761.57303 | BL33: ='Overview (controls)'!AK32 -> 79.6567637 | BM33: ='Overview (controls)'!AL32 -> 81.68626583
B34: Cardiff & Vale UHB | F34: =VLOOKUP(($B34&"_"&AF$44&"_"&AF$43&"_"&AF$45&"_"&$AC34),'All Data'!$A$2:$L$1048576,8,FALSE) -> 11.81398 | G34: =VLOOKUP(($B34&"_"&AG$44&"_"&AG$43&"_"&AG$45&"_"&$AC34),'All Data'!$A$2:$L$1048576,8,FALSE) -> 9.930901 | I34: =VLOOKUP(($B34&"_"&AH$44&"_"&AH$43&"_"&AH$45&"_"&$AC34),'All Data'!$A$2:$L$1048576,8,FALSE) -> 74.61896 | J34: =VLOOKUP(($B34&"_"&AJ$44&"_"&AJ$43&"_"&AJ$45&"_"&$AC34),'All Data'!$A$2:$L$1048576,8,FALSE) -> 22.33364394 | K34: =VLOOKUP(($B34&"_"&AL$44&"_"&AL$43&"_"&AL$45&"_"&$AC34),'All Data'!$A$2:$L$1048576,8,FALSE) -> 2.246127494 | L34: =VLOOKUP(($B34&"_"&AM$44&"_"&AM$43&"_"&AM$45&"_"&$AC34),'All Data'!$A$2:$L$1048576,8,FALSE) -> 36.589271 | M34: =VLOOKUP(($B34&"_"&AN$44&"_"&AN$43&"_"&AN$45&"_"&$AC34),'All Data'!$A$2:$L$1048576,8,FALSE) -> 54.45490521 | O34: =VLOOKUP(($B34&"_"&AO$44&"_"&AO$43&"_"&AO$45&"_"&$AC34),'All Data'!$A$2:$L$1048576,8,FALSE) -> 314.9033 | P34: =VLOOKUP(($B34&"_"&AP$44&"_"&AP$43&"_"&AP$45&"_"&$AC34),'All Data'!$A$2:$L$1048576,8,FALSE) -> 413.87923 | Q34: =VLOOKUP(($B34&"_"&AQ$44&"_"&AQ$43&"_"&AQ$45&"_"&$AC34),'All Data'!$A$2:$L$1048576,8,FALSE) -> 221.98399 | S34: =VLOOKUP(($B34&"_"&AR$44&"_"&AR$43&"_"&AR$45&"_"&$AC34),'All Data'!$A$2:$L$1048576,8,FALSE) -> 42.45049505 | U34: =VLOOKUP(($B34&"_"&AS$44&"_"&AS$43&"_"&AS$45&"_"&$AC34),'All Data'!$A$2:$L$1048576,8,FALSE) -> 512.5379 | V34: =VLOOKUP(($B34&"_"&AT$44&"_"&AT$43&"_"&AT$45&"_"&$AC34),'All Data'!$A$2:$L$1048576,8,FALSE) -> 356.9964 | W34: =VLOOKUP(($B34&"_"&AU$44&"_"&AU$43&"_"&AU$45&"_"&$AC34),'All Data'!$A$2:$L$1048576,8,FALSE) -> 620.5089 | Y34: =VLOOKUP(($B34&"_"&AV$44&"_"&AV$43&"_"&AV$45&"_"&$AC34),'All Data'!$A$2:$L$1048576,8,FALSE) -> 78.02290333 | AC34: HB | AD34: ='Overview (controls)'!C33 -> 0 | AE34: ='Overview (controls)'!D33 -> 0 | AF34: ='Overview (controls)'!E33 -> 0 | AG34: ='Overview (controls)'!F33 -> 0 | AH34: ='Overview (controls)'!G33 -> 8.532632 | AI34: ='Overview (controls)'!H33 -> 15.09532 | AJ34: ='Overview (controls)'!I33 -> 8.014632 | AK34: ='Overview (controls)'!J33 -> 11.84717 | AL34: ='Overview (controls)'!K33 -> 72.96963 | AM34: ='Overview (controls)'!L33 -> 76.26829 | AN34: ='Overview (controls)'!M33 ->  | AO34: ='Overview (controls)'!N33 ->  | AP34: ='Overview (controls)'!O33 -> 20.70471 | AQ34: ='Overview (controls)'!P33 -> 23.96257 | AR34: ='Overview (controls)'!Q33 -> 2.170051 | AS34: ='Overview (controls)'!R33 -> 2.322204 | AT34: ='Overview (controls)'!S33 -> 34.73414 | AU34: ='Overview (controls)'!T33 -> 38.44441 | AV34: ='Overview (controls)'!U33 -> 52.54546 | AW34: ='Overview (controls)'!V33 -> 56.36435 | AX34: ='Overview (controls)'!W33 -> 298.76713 | AY34: ='Overview (controls)'!X33 -> 331.67358 | AZ34: ='Overview (controls)'!Y33 -> 387.45397 | BA34: ='Overview (controls)'!Z33 -> 441.6148 | BB34: ='Overview (controls)'!AA33 -> 203.21733 | BC34: ='Overview (controls)'!AB33 -> 241.98869 | BD34: ='Overview (controls)'!AC33 -> 38.07681832 | BE34: ='Overview (controls)'!AD33 -> 47.19220105 | BF34: ='Overview (controls)'!AE33 -> 464.1002 | BG34: ='Overview (controls)'!AF33 -> 564.47315 | BH34: ='Overview (controls)'!AG33 -> 295.39591 | BI34: ='Overview (controls)'!AH33 -> 427.43476 | BJ34: ='Overview (controls)'!AI33 -> 550.15212 | BK34: ='Overview (controls)'!AJ33 -> 696.86043 | BL34: ='Overview (controls)'!AK33 -> 76.95171851 | BM34: ='Overview (controls)'!AL33 -> 79.05785266
B35: Cwm Taf HB | F35: =VLOOKUP(($B35&"_"&AF$44&"_"&AF$43&"_"&AF$45&"_"&$AC35),'All Data'!$A$2:$L$1048576,8,FALSE) -> 8.02292 | G35: =VLOOKUP(($B35&"_"&AG$44&"_"&AG$43&"_"&AG$45&"_"&$AC35),'All Data'!$A$2:$L$1048576,8,FALSE) -> 6.047882 | I35: =VLOOKUP(($B35&"_"&AH$44&"_"&AH$43&"_"&AH$45&"_"&$AC35),'All Data'!$A$2:$L$1048576,8,FALSE) -> 70.01024 | J35: =VLOOKUP(($B35&"_"&AJ$44&"_"&AJ$43&"_"&AJ$45&"_"&$AC35),'All Data'!$A$2:$L$1048576,8,FALSE) -> 26.73071202 | K35: =VLOOKUP(($B35&"_"&AL$44&"_"&AL$43&"_"&AL$45&"_"&$AC35),'All Data'!$A$2:$L$1048576,8,FALSE) -> 2.190597323 | L35: =VLOOKUP(($B35&"_"&AM$44&"_"&AM$43&"_"&AM$45&"_"&$AC35),'All Data'!$A$2:$L$1048576,8,FALSE) -> 30.39435489 | M35: =VLOOKUP(($B35&"_"&AN$44&"_"&AN$43&"_"&AN$45&"_"&$AC35),'All Data'!$A$2:$L$1048576,8,FALSE) -> 61.89574028 | O35: =VLOOKUP(($B35&"_"&AO$44&"_"&AO$43&"_"&AO$45&"_"&$AC35),'All Data'!$A$2:$L$1048576,8,FALSE) -> 352.19723 | P35: =VLOOKUP(($B35&"_"&AP$44&"_"&AP$43&"_"&AP$45&"_"&$AC35),'All Data'!$A$2:$L$1048576,8,FALSE) -> 478.18163 | Q35: =VLOOKUP(($B35&"_"&AQ$44&"_"&AQ$43&"_"&AQ$45&"_"&$AC35),'All Data'!$A$2:$L$1048576,8,FALSE) -> 232.26341 | S35: =VLOOKUP(($B35&"_"&AR$44&"_"&AR$43&"_"&AR$45&"_"&$AC35),'All Data'!$A$2:$L$1048576,8,FALSE) -> 47.49536178 | U35: =VLOOKUP(($B35&"_"&AS$44&"_"&AS$43&"_"&AS$45&"_"&$AC35),'All Data'!$A$2:$L$1048576,8,FALSE) -> 710.3333 | V35: =VLOOKUP(($B35&"_"&AT$44&"_"&AT$43&"_"&AT$45&"_"&$AC35),'All Data'!$A$2:$L$1048576,8,FALSE) -> 454.1593 | W35: =VLOOKUP(($B35&"_"&AU$44&"_"&AU$43&"_"&AU$45&"_"&$AC35),'All Data'!$A$2:$L$1048576,8,FALSE) -> 861.3811 | Y35: =VLOOKUP(($B35&"_"&AV$44&"_"&AV$43&"_"&AV$45&"_"&$AC35),'All Data'!$A$2:$L$1048576,8,FALSE) -> 83.10968495 | AC35: HB | AD35: ='Overview (controls)'!C34 -> 0 | AE35: ='Overview (controls)'!D34 -> 0 | AF35: ='Overview (controls)'!E34 -> 0 | AG35: ='Overview (controls)'!F34 -> 0 | AH35: ='Overview (controls)'!G34 -> 6.926785 | AI35: ='Overview (controls)'!H34 -> 9.119055 | AJ35: ='Overview (controls)'!I34 -> 4.339259 | AK35: ='Overview (controls)'!J34 -> 7.756504 | AL35: ='Overview (controls)'!K34 -> 67.91071 | AM35: ='Overview (controls)'!L34 -> 72.10977 | AN35: ='Overview (controls)'!M34 ->  | AO35: ='Overview (controls)'!N34 ->  | AP35: ='Overview (controls)'!O34 -> 24.62538 | AQ35: ='Overview (controls)'!P34 -> 28.83604 | AR35: ='Overview (controls)'!Q34 -> 2.094635 | AS35: ='Overview (controls)'!R34 -> 2.28656 | AT35: ='Overview (controls)'!S34 -> 28.19109 | AU35: ='Overview (controls)'!T34 -> 32.59762 | AV35: ='Overview (controls)'!U34 -> 59.79606 | AW35: ='Overview (controls)'!V34 -> 63.99542 | AX35: ='Overview (controls)'!W34 -> 330.71086 | AY35: ='Overview (controls)'!X34 -> 374.69896 | AZ35: ='Overview (controls)'!Y34 -> 442.7231 | BA35: ='Overview (controls)'!Z34 -> 515.7002 | BB35: ='Overview (controls)'!AA34 -> 207.83734 | BC35: ='Overview (controls)'!AB34 -> 258.73524 | BD35: ='Overview (controls)'!AC34 -> 41.85536178 | BE35: ='Overview (controls)'!AD34 -> 53.68860674 | BF35: ='Overview (controls)'!AE34 -> 644.7374 | BG35: ='Overview (controls)'!AF34 -> 780.65484 | BH35: ='Overview (controls)'!AG34 -> 371.32716 | BI35: ='Overview (controls)'!AH34 -> 549.80239 | BJ35: ='Overview (controls)'!AI34 -> 768.18421 | BK35: ='Overview (controls)'!AJ34 -> 962.30083 | BL35: ='Overview (controls)'!AK34 -> 81.81853723 | BM35: ='Overview (controls)'!AL34 -> 84.32670677
B36: Aneurin Bevan HB | F36: =VLOOKUP(($B36&"_"&AF$44&"_"&AF$43&"_"&AF$45&"_"&$AC36),'All Data'!$A$2:$L$1048576,8,FALSE) -> 8.834711 | G36: =VLOOKUP(($B36&"_"&AG$44&"_"&AG$43&"_"&AG$45&"_"&$AC36),'All Data'!$A$2:$L$1048576,8,FALSE) -> 7.460665 | I36: =VLOOKUP(($B36&"_"&AH$44&"_"&AH$43&"_"&AH$45&"_"&$AC36),'All Data'!$A$2:$L$1048576,8,FALSE) -> 71.45166 | J36: =VLOOKUP(($B36&"_"&AJ$44&"_"&AJ$43&"_"&AJ$45&"_"&$AC36),'All Data'!$A$2:$L$1048576,8,FALSE) -> 23.94722978 | K36: =VLOOKUP(($B36&"_"&AL$44&"_"&AL$43&"_"&AL$45&"_"&$AC36),'All Data'!$A$2:$L$1048576,8,FALSE) -> 2.29565278 | L36: =VLOOKUP(($B36&"_"&AM$44&"_"&AM$43&"_"&AM$45&"_"&$AC36),'All Data'!$A$2:$L$1048576,8,FALSE) -> 31.69205763 | M36: =VLOOKUP(($B36&"_"&AN$44&"_"&AN$43&"_"&AN$45&"_"&$AC36),'All Data'!$A$2:$L$1048576,8,FALSE) -> 59.10547608 | O36: =VLOOKUP(($B36&"_"&AO$44&"_"&AO$43&"_"&AO$45&"_"&$AC36),'All Data'!$A$2:$L$1048576,8,FALSE) -> 365.49355 | P36: =VLOOKUP(($B36&"_"&AP$44&"_"&AP$43&"_"&AP$45&"_"&$AC36),'All Data'!$A$2:$L$1048576,8,FALSE) -> 482.23716 | Q36: =VLOOKUP(($B36&"_"&AQ$44&"_"&AQ$43&"_"&AQ$45&"_"&$AC36),'All Data'!$A$2:$L$1048576,8,FALSE) -> 254.49462 | S36: =VLOOKUP(($B36&"_"&AR$44&"_"&AR$43&"_"&AR$45&"_"&$AC36),'All Data'!$A$2:$L$1048576,8,FALSE) -> 36.79557024 | U36: =VLOOKUP(($B36&"_"&AS$44&"_"&AS$43&"_"&AS$45&"_"&$AC36),'All Data'!$A$2:$L$1048576,8,FALSE) -> 750.506 | V36: =VLOOKUP(($B36&"_"&AT$44&"_"&AT$43&"_"&AT$45&"_"&$AC36),'All Data'!$A$2:$L$1048576,8,FALSE) -> 496.6088 | W36: =VLOOKUP(($B36&"_"&AU$44&"_"&AU$43&"_"&AU$45&"_"&$AC36),'All Data'!$A$2:$L$1048576,8,FALSE) -> 906.6499 | Y36: =VLOOKUP(($B36&"_"&AV$44&"_"&AV$43&"_"&AV$45&"_"&$AC36),'All Data'!$A$2:$L$1048576,8,FALSE) -> 80.89938337 | AC36: HB | AD36: ='Overview (controls)'!C35 -> 0 | AE36: ='Overview (controls)'!D35 -> 0 | AF36: ='Overview (controls)'!E35 -> 0 | AG36: ='Overview (controls)'!F35 -> 0 | AH36: ='Overview (controls)'!G35 -> 7.233314 | AI36: ='Overview (controls)'!H35 -> 10.43611 | AJ36: ='Overview (controls)'!I35 -> 5.062984 | AK36: ='Overview (controls)'!J35 -> 9.858346 | AL36: ='Overview (controls)'!K35 -> 70.18711 | AM36: ='Overview (controls)'!L35 -> 72.71622 | AN36: ='Overview (controls)'!M35 ->  | AO36: ='Overview (controls)'!N35 ->  | AP36: ='Overview (controls)'!O35 -> 22.65411 | AQ36: ='Overview (controls)'!P35 -> 25.24035 | AR36: ='Overview (controls)'!Q35 -> 2.236991 | AS36: ='Overview (controls)'!R35 -> 2.354314 | AT36: ='Overview (controls)'!S35 -> 30.34227 | AU36: ='Overview (controls)'!T35 -> 33.04184 | AV36: ='Overview (controls)'!U35 -> 57.71393 | AW36: ='Overview (controls)'!V35 -> 60.49702 | AX36: ='Overview (controls)'!W35 -> 349.62098 | AY36: ='Overview (controls)'!X35 -> 381.89045 | AZ36: ='Overview (controls)'!Y35 -> 456.38062 | BA36: ='Overview (controls)'!Z35 -> 509.15725 | BB36: ='Overview (controls)'!AA35 -> 235.94047 | BC36: ='Overview (controls)'!AB35 -> 274.09873 | BD36: ='Overview (controls)'!AC35 -> 33.32827946 | BE36: ='Overview (controls)'!AD35 -> 40.52802597 | BF36: ='Overview (controls)'!AE35 -> 703.21074 | BG36: ='Overview (controls)'!AF35 -> 800.08818 | BH36: ='Overview (controls)'!AG35 -> 435.4772 | BI36: ='Overview (controls)'!AH35 -> 563.84666 | BJ36: ='Overview (controls)'!AI35 -> 839.4914 | BK36: ='Overview (controls)'!AJ35 -> 977.56627 | BL36: ='Overview (controls)'!AK35 -> 79.93677058 | BM36: ='Overview (controls)'!AL35 -> 81.82631122
B38: Wales | C38: =VLOOKUP(($B38&"_"&AD$44&"_"&AD$43&"_"&AD$45&"_"&$AC38),'All Data'!$A$2:$L$1048576,8,FALSE) -> 18.93738 | D38: =VLOOKUP(($B38&"_"&AE$44&"_"&AE$43&"_"&AE$45&"_"&$AC38),'All Data'!$A$2:$L$1048576,8,FALSE) -> 17.79286 | F38: =VLOOKUP(($B38&"_"&AF$44&"_"&AF$43&"_"&AF$45&"_"&$AC38),'All Data'!$A$2:$L$1048576,8,FALSE) -> 9.242999 | G38: =VLOOKUP(($B38&"_"&AG$44&"_"&AG$43&"_"&AG$45&"_"&$AC38),'All Data'!$A$2:$L$1048576,8,FALSE) -> 7.055719 | I38: =VLOOKUP(($B38&"_"&AH$44&"_"&AH$43&"_"&AH$45&"_"&$AC38),'All Data'!$A$2:$L$1048576,8,FALSE) -> 74.51558 | J38: =VLOOKUP(($B38&"_"&AJ$44&"_"&AJ$43&"_"&AJ$45&"_"&$AC38),'All Data'!$A$2:$L$1048576,8,FALSE) -> 23.51488686 | K38: =VLOOKUP(($B38&"_"&AL$44&"_"&AL$43&"_"&AL$45&"_"&$AC38),'All Data'!$A$2:$L$1048576,8,FALSE) -> 2.361671368 | L38: =VLOOKUP(($B38&"_"&AM$44&"_"&AM$43&"_"&AM$45&"_"&$AC38),'All Data'!$A$2:$L$1048576,8,FALSE) -> 35.01629255 | M38: =VLOOKUP(($B38&"_"&AN$44&"_"&AN$43&"_"&AN$45&"_"&$AC38),'All Data'!$A$2:$L$1048576,8,FALSE) -> 57.28059663 | O38: =VLOOKUP(($B38&"_"&AO$44&"_"&AO$43&"_"&AO$45&"_"&$AC38),'All Data'!$A$2:$L$1048576,8,FALSE) -> 328.43512 | P38: =VLOOKUP(($B38&"_"&AP$44&"_"&AP$43&"_"&AP$45&"_"&$AC38),'All Data'!$A$2:$L$1048576,8,FALSE) -> 431.66547 | Q38: =VLOOKUP(($B38&"_"&AQ$44&"_"&AQ$43&"_"&AQ$45&"_"&$AC38),'All Data'!$A$2:$L$1048576,8,FALSE) -> 230.16815 | S38: =VLOOKUP(($B38&"_"&AR$44&"_"&AR$43&"_"&AR$45&"_"&$AC38),'All Data'!$A$2:$L$1048576,8,FALSE) -> 37.70269046 | U38: =VLOOKUP(($B38&"_"&AS$44&"_"&AS$43&"_"&AS$45&"_"&$AC38),'All Data'!$A$2:$L$1048576,8,FALSE) -> 636.4034 | V38: =VLOOKUP(($B38&"_"&AT$44&"_"&AT$43&"_"&AT$45&"_"&$AC38),'All Data'!$A$2:$L$1048576,8,FALSE) -> 424.9007 | W38: =VLOOKUP(($B38&"_"&AU$44&"_"&AU$43&"_"&AU$45&"_"&$AC38),'All Data'!$A$2:$L$1048576,8,FALSE) -> 777.3478 | Y38: =VLOOKUP(($B38&"_"&AV$44&"_"&AV$43&"_"&AV$45&"_"&$AC38),'All Data'!$A$2:$L$1048576,8,FALSE) -> 80.8423952 | AC38: Wales | AD38: ='Overview (controls)'!C36 -> 18.93738 | AE38: ='Overview (controls)'!D36 -> 18.93738 | AF38: ='Overview (controls)'!E36 -> 17.79286 | AG38: ='Overview (controls)'!F36 -> 17.79286 | AH38: ='Overview (controls)'!G36 -> 9.242999 | AI38: ='Overview (controls)'!H36 -> 9.242999 | AJ38: ='Overview (controls)'!I36 -> 7.055719 | AK38: ='Overview (controls)'!J36 -> 7.055719 | AL38: ='Overview (controls)'!K36 -> 74.51558 | AM38: ='Overview (controls)'!L36 -> 74.51558 | AN38: ='Overview (controls)'!M36 ->  | AO38: ='Overview (controls)'!N36 ->  | AP38: ='Overview (controls)'!O36 -> 23.51488686 | AQ38: ='Overview (controls)'!P36 -> 23.51488686 | AR38: ='Overview (controls)'!Q36 -> 2.361671368 | AS38: ='Overview (controls)'!R36 -> 2.361671368 | AT38: ='Overview (controls)'!S36 -> 35.01629255 | AU38: ='Overview (controls)'!T36 -> 35.01629255 | AV38: ='Overview (controls)'!U36 -> 57.28059663 | AW38: ='Overview (controls)'!V36 -> 57.28059663 | AX38: ='Overview (controls)'!W36 -> 328.43512 | AY38: ='Overview (controls)'!X36 -> 328.43512 | AZ38: ='Overview (controls)'!Y36 -> 431.66547 | BA38: ='Overview (controls)'!Z36 -> 431.66547 | BB38: ='Overview (controls)'!AA36 -> 230.16815 | BC38: ='Overview (controls)'!AB36 -> 230.16815 | BD38: ='Overview (controls)'!AC36 -> 37.70269046 | BE38: ='Overview (controls)'!AD36 -> 37.70269046 | BF38: ='Overview (controls)'!AE36 -> 636.4034 | BG38: ='Overview (controls)'!AF36 -> 636.4034 | BH38: ='Overview (controls)'!AG36 -> 424.9007 | BI38: ='Overview (controls)'!AH36 -> 424.9007 | BJ38: ='Overview (controls)'!AI36 -> 777.3478 | BK38: ='Overview (controls)'!AJ36 -> 777.3478 | BL38: ='Overview (controls)'!AK36 -> 80.8423952 | BM38: ='Overview (controls)'!AL36 -> 80.8423952
F41: Statistically significantly worse than Wales | M41: Statistical significance is determined using the confidence intervals (CIs) of the local value. If the national average falls outside the local CI, the difference is deemed to be statistically significant.
F42: Not statistically significantly different
B43: 1 = Age standardised | F43: Statistically significantly better than Wales | AD43: MALES | AE43: FEMALES | AF43: MALES | AG43: FEMALES | AH43: PERSONS | AI43: PERSONS | AJ43: PERSONS | AK43: PERSONS | AL43: PERSONS | AM43: PERSONS | AN43: PERSONS | AO43: PERSONS | AP43: MALES | AQ43: FEMALES | AR43: FEMALES | AS43: PERSONS | AT43: MALES | AU43: FEMALES | AV43: Children at age 4
AD44: HLE | AE44: HLE | AF44: LE | AG44: LE | AH44: MENT | AI44: EMP | AJ44: SMO | AK44: FRU | AL44: ACT | AM44: FRU | AN44: OBE | AO44: ALC | AP44: ALC | AQ44: ALC | AR44: CONCEP | AS44: HIP | AT44: HIP | AU44: HIP | AV44: VACC
AD45: 2005-2009 | AE45: 2005-2009 | AF45: 2005-2009 | AG45: 2005-2009 | AH45: 2009-2010 | AI45: 2009-2010 | AJ45: 2009-2010 | AK45: 2009-2010 | AL45: 2009-2010 | AM45: 2009-2010 | AN45: 2009-2010 | AO45: 2010 | AP45: 2010 | AQ45: 2010 | AR45: 2010 | AS45: 2010 | AT45: 2010 | AU45: 2010 | AV45: 2011-2012 (FY)

Sheet Interactive
N6: ='Interactive controls'!K48 -> Inequality gap in life expectancy (SII in years), males, all ages, Wales health boards and local authorities, 2005-2009
O8: ='Interactive controls'!K47 ->  | P8: ='Interactive controls'!A18 -> SII in LE (95% CI) | R8: ='Interactive controls'!K49 -> Compared to Wales*
N9: Isle of Anglesey | O9: =IFERROR('Interactive controls'!P10," ") ->  | P9: =IFERROR(FIXED(IFERROR('Interactive controls'!Q10," "),'Interactive controls'!$A$21)," ") -> 6.8 | Q9: =IFERROR("(" & FIXED(('Interactive controls'!S10),'Interactive controls'!$A$21) & " to " & FIXED(('Interactive controls'!T10),'Interactive controls'!$A$21) & ")"," ") -> (-0.1 to 13.7) | R9: =IFERROR('Interactive controls'!W10," ") -> No sig. difference
N10: Gwynedd | O10: =IFERROR('Interactive controls'!P11," ") ->  | P10: =IFERROR(FIXED(IFERROR('Interactive controls'!Q11," "),'Interactive controls'!$A$21)," ") -> 3.4 | Q10: =IFERROR("(" & FIXED(('Interactive controls'!S11),'Interactive controls'!$A$21) & " to " & FIXED(('Interactive controls'!T11),'Interactive controls'!$A$21) & ")"," ") -> (0.2 to 6.7) | R10: =IFERROR('Interactive controls'!W11," ") -> Sig. low
N11: Conwy | O11: =IFERROR('Interactive controls'!P12," ") ->  | P11: =IFERROR(FIXED(IFERROR('Interactive controls'!Q12," "),'Interactive controls'!$A$21)," ") -> 8.1 | Q11: =IFERROR("(" & FIXED(('Interactive controls'!S12),'Interactive controls'!$A$21) & " to " & FIXED(('Interactive controls'!T12),'Interactive controls'!$A$21) & ")"," ") -> (5.8 to 10.3) | R11: =IFERROR('Interactive controls'!W12," ") -> No sig. difference
N12: Denbighshire | O12: =IFERROR('Interactive controls'!P13," ") ->  | P12: =IFERROR(FIXED(IFERROR('Interactive controls'!Q13," "),'Interactive controls'!$A$21)," ") -> 7.6 | Q12: =IFERROR("(" & FIXED(('Interactive controls'!S13),'Interactive controls'!$A$21) & " to " & FIXED(('Interactive controls'!T13),'Interactive controls'!$A$21) & ")"," ") -> (-3.1 to 18.4) | R12: =IFERROR('Interactive controls'!W13," ") -> No sig. difference
N13: Flintshire | O13: =IFERROR('Interactive controls'!P14," ") ->  | P13: =IFERROR(FIXED(IFERROR('Interactive controls'!Q14," "),'Interactive controls'!$A$21)," ") -> 7.5 | Q13: =IFERROR("(" & FIXED(('Interactive controls'!S14),'Interactive controls'!$A$21) & " to " & FIXED(('Interactive controls'!T14),'Interactive controls'!$A$21) & ")"," ") -> (1.5 to 13.4) | R13: =IFERROR('Interactive controls'!W14," ") -> No sig. difference
N14: Wrexham | O14: =IFERROR('Interactive controls'!P15," ") ->  | P14: =IFERROR(FIXED(IFERROR('Interactive controls'!Q15," "),'Interactive controls'!$A$21)," ") -> 9.2 | Q14: =IFERROR("(" & FIXED(('Interactive controls'!S15),'Interactive controls'!$A$21) & " to " & FIXED(('Interactive controls'!T15),'Interactive controls'!$A$21) & ")"," ") -> (5.5 to 12.8) | R14: =IFERROR('Interactive controls'!W15," ") -> No sig. difference
N15: Powys | O15: =IFERROR('Interactive controls'!P16," ") ->  | P15: =IFERROR(FIXED(IFERROR('Interactive controls'!Q16," "),'Interactive controls'!$A$21)," ") -> 5.5 | Q15: =IFERROR("(" & FIXED(('Interactive controls'!S16),'Interactive controls'!$A$21) & " to " & FIXED(('Interactive controls'!T16),'Interactive controls'!$A$21) & ")"," ") -> (-0.5 to 11.4) | R15: =IFERROR('Interactive controls'!W16," ") -> No sig. difference
N16: Ceredigion | O16: =IFERROR('Interactive controls'!P17," ") ->  | P16: =IFERROR(FIXED(IFERROR('Interactive controls'!Q17," "),'Interactive controls'!$A$21)," ") -> 7.7 | Q16: =IFERROR("(" & FIXED(('Interactive controls'!S17),'Interactive controls'!$A$21) & " to " & FIXED(('Interactive controls'!T17),'Interactive controls'!$A$21) & ")"," ") -> (2.9 to 12.5) | R16: =IFERROR('Interactive controls'!W17," ") -> No sig. difference
N17: Pembrokeshire | O17: =IFERROR('Interactive controls'!P18," ") ->  | P17: =IFERROR(FIXED(IFERROR('Interactive controls'!Q18," "),'Interactive controls'!$A$21)," ") -> 5.9 | Q17: =IFERROR("(" & FIXED(('Interactive controls'!S18),'Interactive controls'!$A$21) & " to " & FIXED(('Interactive controls'!T18),'Interactive controls'!$A$21) & ")"," ") -> (-2.5 to 14.4) | R17: =IFERROR('Interactive controls'!W18," ") -> No sig. difference
N18: Carmarthenshire | O18: =IFERROR('Interactive controls'!P19," ") ->  | P18: =IFERROR(FIXED(IFERROR('Interactive controls'!Q19," "),'Interactive controls'!$A$21)," ") -> 5.8 | Q18: =IFERROR("(" & FIXED(('Interactive controls'!S19),'Interactive controls'!$A$21) & " to " & FIXED(('Interactive controls'!T19),'Interactive controls'!$A$21) & ")"," ") -> (-0.5 to 12.0) | R18: =IFERROR('Interactive controls'!W19," ") -> No sig. difference
N19: Swansea | O19: =IFERROR('Interactive controls'!P20," ") ->  | P19: =IFERROR(FIXED(IFERROR('Interactive controls'!Q20," "),'Interactive controls'!$A$21)," ") -> 12.2 | Q19: =IFERROR("(" & FIXED(('Interactive controls'!S20),'Interactive controls'!$A$21) & " to " & FIXED(('Interactive controls'!T20),'Interactive controls'!$A$21) & ")"," ") -> (9.2 to 15.1) | R19: =IFERROR('Interactive controls'!W20," ") -> No sig. difference
N20: Neath Port Talbot | O20: =IFERROR('Interactive controls'!P21," ") ->  | P20: =IFERROR(FIXED(IFERROR('Interactive controls'!Q21," "),'Interactive controls'!$A$21)," ") -> 10.4 | Q20: =IFERROR("(" & FIXED(('Interactive controls'!S21),'Interactive controls'!$A$21) & " to " & FIXED(('Interactive controls'!T21),'Interactive controls'!$A$21) & ")"," ") -> (8.0 to 12.9) | R20: =IFERROR('Interactive controls'!W21," ") -> No sig. difference
N21: Bridgend | O21: =IFERROR('Interactive controls'!P22," ") ->  | P21: =IFERROR(FIXED(IFERROR('Interactive controls'!Q22," "),'Interactive controls'!$A$21)," ") -> 7.8 | Q21: =IFERROR("(" & FIXED(('Interactive controls'!S22),'Interactive controls'!$A$21) & " to " & FIXED(('Interactive controls'!T22),'Interactive controls'!$A$21) & ")"," ") -> (4.1 to 11.6) | R21: =IFERROR('Interactive controls'!W22," ") -> No sig. difference
N22: The Vale of Glamorgan | O22: =IFERROR('Interactive controls'!P23," ") ->  | P22: =IFERROR(FIXED(IFERROR('Interactive controls'!Q23," "),'Interactive controls'!$A$21)," ") -> 7.5 | Q22: =IFERROR("(" & FIXED(('Interactive controls'!S23),'Interactive controls'!$A$21) & " to " & FIXED(('Interactive controls'!T23),'Interactive controls'!$A$21) & ")"," ") -> (3.1 to 11.9) | R22: =IFERROR('Interactive controls'!W23," ") -> No sig. difference
N23: Cardiff | O23: =IFERROR('Interactive controls'!P24," ") ->  | P23: =IFERROR(FIXED(IFERROR('Interactive controls'!Q24," "),'Interactive controls'!$A$21)," ") -> 12.8 | Q23: =IFERROR("(" & FIXED(('Interactive controls'!S24),'Interactive controls'!$A$21) & " to " & FIXED(('Interactive controls'!T24),'Interactive controls'!$A$21) & ")"," ") -> (11.0 to 14.7) | R23: =IFERROR('Interactive controls'!W24," ") -> Sig. high
N24: Rhondda Cynon Taf | O24: =IFERROR('Interactive controls'!P25," ") ->  | P24: =IFERROR(FIXED(IFERROR('Interactive controls'!Q25," "),'Interactive controls'!$A$21)," ") -> 7.9 | Q24: =IFERROR("(" & FIXED(('Interactive controls'!S25),'Interactive controls'!$A$21) & " to " & FIXED(('Interactive controls'!T25),'Interactive controls'!$A$21) & ")"," ") -> (5.2 to 10.6) | R24: =IFERROR('Interactive controls'!W25," ") -> No sig. difference
N25: Merthyr Tydfil | O25: =IFERROR('Interactive controls'!P26," ") ->  | P25: =IFERROR(FIXED(IFERROR('Interactive controls'!Q26," "),'Interactive controls'!$A$21)," ") -> 9.4 | Q25: =IFERROR("(" & FIXED(('Interactive controls'!S26),'Interactive controls'!$A$21) & " to " & FIXED(('Interactive controls'!T26),'Interactive controls'!$A$21) & ")"," ") -> (5.0 to 13.7) | R25: =IFERROR('Interactive controls'!W26," ") -> No sig. difference
N26: Caerphilly | O26: =IFERROR('Interactive controls'!P27," ") ->  | P26: =IFERROR(FIXED(IFERROR('Interactive controls'!Q27," "),'Interactive controls'!$A$21)," ") -> 8.5 | Q26: =IFERROR("(" & FIXED(('Interactive controls'!S27),'Interactive controls'!$A$21) & " to " & FIXED(('Interactive controls'!T27),'Interactive controls'!$A$21) & ")"," ") -> (6.0 to 11.0) | R26: =IFERROR('Interactive controls'!W27," ") -> No sig. difference
N27: Blaenau Gwent | O27: =IFERROR('Interactive controls'!P28," ") ->  | P27: =IFERROR(FIXED(IFERROR('Interactive controls'!Q28," "),'Interactive controls'!$A$21)," ") -> 2.6 | Q27: =IFERROR("(" & FIXED(('Interactive controls'!S28),'Interactive controls'!$A$21) & " to " & FIXED(('Interactive controls'!T28),'Interactive controls'!$A$21) & ")"," ") -> (-3.1 to 8.4) | R27: =IFERROR('Interactive controls'!W28," ") -> Sig. low
N28: Torfaen | O28: =IFERROR('Interactive controls'!P29," ") ->  | P28: =IFERROR(FIXED(IFERROR('Interactive controls'!Q29," "),'Interactive controls'!$A$21)," ") -> 7.3 | Q28: =IFERROR("(" & FIXED(('Interactive controls'!S29),'Interactive controls'!$A$21) & " to " & FIXED(('Interactive controls'!T29),'Interactive controls'!$A$21) & ")"," ") -> (4.7 to 9.9) | R28: =IFERROR('Interactive controls'!W29," ") -> No sig. difference
N29: Monmouthshire | O29: =IFERROR('Interactive controls'!P30," ") ->  | P29: =IFERROR(FIXED(IFERROR('Interactive controls'!Q30," "),'Interactive controls'!$A$21)," ") -> 5.9 | Q29: =IFERROR("(" & FIXED(('Interactive controls'!S30),'Interactive controls'!$A$21) & " to " & FIXED(('Interactive controls'!T30),'Interactive controls'!$A$21) & ")"," ") -> (4.4 to 7.4) | R29: =IFERROR('Interactive controls'!W30," ") -> Sig. low
N30: Newport | O30: =IFERROR('Interactive controls'!P31," ") ->  | P30: =IFERROR(FIXED(IFERROR('Interactive controls'!Q31," "),'Interactive controls'!$A$21)," ") -> 11.0 | Q30: =IFERROR("(" & FIXED(('Interactive controls'!S31),'Interactive controls'!$A$21) & " to " & FIXED(('Interactive controls'!T31),'Interactive controls'!$A$21) & ")"," ") -> (9.5 to 12.6) | R30: =IFERROR('Interactive controls'!W31," ") -> Sig. high
N33: Betsi Cadwaladr UHB | O33: =IFERROR('Interactive controls'!P34," ") ->  | P33: =IFERROR(FIXED(IFERROR('Interactive controls'!Q34," "),'Interactive controls'!$A$21)," ") -> 7.2 | Q33: =IFERROR("(" & FIXED(('Interactive controls'!S34),'Interactive controls'!$A$21) & " to " & FIXED(('Interactive controls'!T34),'Interactive controls'!$A$21) & ")"," ") -> (2.9 to 11.5) | R33: =IFERROR('Interactive controls'!W34, " ") -> No sig. difference
N34: Powys THB | O34: =IFERROR('Interactive controls'!P35," ") ->  | P34: =IFERROR(FIXED(IFERROR('Interactive controls'!Q35," "),'Interactive controls'!$A$21)," ") -> 5.5 | Q34: =IFERROR("(" & FIXED(('Interactive controls'!S35),'Interactive controls'!$A$21) & " to " & FIXED(('Interactive controls'!T35),'Interactive controls'!$A$21) & ")"," ") -> (-0.5 to 11.4) | R34: =IFERROR('Interactive controls'!W35, " ") -> No sig. difference
N35: Hywel Dda HB | O35: =IFERROR('Interactive controls'!P36," ") ->  | P35: =IFERROR(FIXED(IFERROR('Interactive controls'!Q36," "),'Interactive controls'!$A$21)," ") -> 6.8 | Q35: =IFERROR("(" & FIXED(('Interactive controls'!S36),'Interactive controls'!$A$21) & " to " & FIXED(('Interactive controls'!T36),'Interactive controls'!$A$21) & ")"," ") -> (2.2 to 11.4) | R35: =IFERROR('Interactive controls'!W36, " ") -> No sig. difference
N36: ABM UHB | O36: =IFERROR('Interactive controls'!P37," ") ->  | P36: =IFERROR(FIXED(IFERROR('Interactive controls'!Q37," "),'Interactive controls'!$A$21)," ") -> 10.4 | Q36: =IFERROR("(" & FIXED(('Interactive controls'!S37),'Interactive controls'!$A$21) & " to " & FIXED(('Interactive controls'!T37),'Interactive controls'!$A$21) & ")"," ") -> (8.9 to 11.8) | R36: =IFERROR('Interactive controls'!W37, " ") -> No sig. difference
N37: Cardiff & Vale UHB | O37: =IFERROR('Interactive controls'!P38," ") ->  | P37: =IFERROR(FIXED(IFERROR('Interactive controls'!Q38," "),'Interactive controls'!$A$21)," ") -> 11.8 | Q37: =IFERROR("(" & FIXED(('Interactive controls'!S38),'Interactive controls'!$A$21) & " to " & FIXED(('Interactive controls'!T38),'Interactive controls'!$A$21) & ")"," ") -> (8.5 to 15.1) | R37: =IFERROR('Interactive controls'!W38, " ") -> No sig. difference
N38: Cwm Taf HB | O38: =IFERROR('Interactive controls'!P39," ") ->  | P38: =IFERROR(FIXED(IFERROR('Interactive controls'!Q39," "),'Interactive controls'!$A$21)," ") -> 8.0 | Q38: =IFERROR("(" & FIXED(('Interactive controls'!S39),'Interactive controls'!$A$21) & " to " & FIXED(('Interactive controls'!T39),'Interactive controls'!$A$21) & ")"," ") -> (6.9 to 9.1) | R38: =IFERROR('Interactive controls'!W39, " ") -> Sig. low
N39: Aneurin Bevan HB | O39: =IFERROR('Interactive controls'!P40," ") ->  | P39: =IFERROR(FIXED(IFERROR('Interactive controls'!Q40," "),'Interactive controls'!$A$21)," ") -> 8.8 | Q39: =IFERROR("(" & FIXED(('Interactive controls'!S40),'Interactive controls'!$A$21) & " to " & FIXED(('Interactive controls'!T40),'Interactive controls'!$A$21) & ")"," ") -> (7.2 to 10.4) | R39: =IFERROR('Interactive controls'!W40, " ") -> No sig. difference
N40: Wales | O40: =IFERROR('Interactive controls'!P41," ") ->  | P40: =IFERROR(FIXED(IFERROR('Interactive controls'!Q41," "),'Interactive controls'!$A$21)," ") -> 9.2 | Q40: =IFERROR("(" & FIXED(('Interactive controls'!S41),'Interactive controls'!$A$21) & " to " & FIXED(('Interactive controls'!T41),'Interactive controls'!$A$21) & ")"," ") -> (6.8 to 11.6) | R40: =IF(P40=" "," ","-") -> -
N42: ='Interactive controls'!K46 -> Produced by Public Health Wales Observatory, using ADDE & MYE (ONS), WIMD 2008 (WG)
N43: * Statistical significance is determined using the confidence intervals (CIs) of the local value. If the national average falls outside the local CI, the difference is deemed to be statistically significant.

Sheet Interactive controls (hidden)
F1: LA/HB selection
F2: 1 | G2: Wales health boards
A3: Current selection (list number) | B3: 4 | C3: 1 | F3: =INDEX(G2:G3,F2) -> Wales health boards | G3: Wales local authorities
A4: Current selection
F5: For year selection | X5: X,Y values for chart
F6: =HLOOKUP(A15,$J$56:$V$72,14,FALSE) -> 0 | G6: 1 | J6: Data for tables
F7: =HLOOKUP(A15,$J$56:$V$72,15,FALSE) -> 1 | X7: Wales line
F8: =HLOOKUP(A15,$J$56:$V$72,16,FALSE) -> 5 | O8: 2 | P8: 7 | Q8: 8 | R8: For decimal places on chart | S8: 9 | T8: 10 | U8: 11 | V8: 12 | W8: 13 | X8: Wales line | Y8: Wales line 1dp | Z8: XY | AA8: Significance
F9: =HLOOKUP(A15,$J$56:$V$72,17,FALSE) -> 1 | K9: ShortAreaName | L9: Sex | M9: Year | N9: lookup | O9: FullAreaName | P9: annual average | Q9: =A18 -> SII in LE (95% CI) | S9: LCL | T9: UCL | U9: error + | V9: error - | W9: Significance | X9: =$Q$41 -> 9.242999 | Y9: =X9 -> 9.242999 | Z9: 0
K10: Isle of Anglesey | L10: =$A$19 -> Males | M10: =$A$13 -> 2005-2009 | N10: =K10 & "_" & $A$14 &"_"&$A$19&"_"&$A$13&"_"&"LA" -> Isle of Anglesey_LE_Males_2005-2009_LA | O10: Isle of Anglesey | P10: =VLOOKUP($N10,'All Data'!$A:$L,P$8,FALSE) ->  | Q10: =R10 -> 6.819951 | R10: =VLOOKUP($N10,'All Data'!$A:$L,Q$8,FALSE) -> 6.819951 | S10: =VLOOKUP($N10,'All Data'!$A:$L,S$8,FALSE) -> -0.0855653 | T10: =VLOOKUP($N10,'All Data'!$A:$L,T$8,FALSE) -> 13.72547 | U10: =VLOOKUP($N10,'All Data'!$A:$L,U$8,FALSE) -> 6.905519 | V10: =VLOOKUP($N10,'All Data'!$A:$L,V$8,FALSE) -> 6.9055163 | W10: =AA10 -> No sig. difference | X10: 9.242999 | Y10: =X10 -> 9.242999 | Z10: 0.5 | AA10: =IF($T$41=0,"-",IF($Q$41<S10,"Sig. high",IF($Q$41>T10,"Sig. low","No sig. difference"))) -> No sig. difference
A11: Current selection variables | B11: Type | F11: For HB/LA selection | I11: Wales line | K11: Gwynedd | L11: =$A$19 -> Males | M11: =$A$13 -> 2005-2009 | N11: =K11 & "_" & $A$14 &"_"&$A$19&"_"&$A$13&"_"&"LA" -> Gwynedd_LE_Males_2005-2009_LA | O11: Gwynedd | P11: =VLOOKUP($N11,'All Data'!$A:$L,P$8,FALSE) ->  | Q11: =R11 -> 3.425133 | R11: =VLOOKUP($N11,'All Data'!$A:$L,Q$8,FALSE) -> 3.425133 | S11: =VLOOKUP($N11,'All Data'!$A:$L,S$8,FALSE) -> 0.1803145 | T11: =VLOOKUP($N11,'All Data'!$A:$L,T$8,FALSE) -> 6.669952 | U11: =VLOOKUP($N11,'All Data'!$A:$L,U$8,FALSE) -> 3.244819 | V11: =VLOOKUP($N11,'All Data'!$A:$L,V$8,FALSE) -> 3.2448185 | W11: =AA11 -> Sig. low | X11: 9.242999 | Y11: 9.242999 | Z11: 1.5 | AA11: =IF($T$41=0,"-",IF($Q$41<S11,"Sig. high",IF($Q$41>T11,"Sig. low","No sig. difference"))) -> Sig. low
F12: Current selection | G12: No of rows | H12: Start at row | I12: No of rows | J12: start at row | K12: Conwy | L12: Males | M12: 2005-2009 | N12: Conwy_LE_Males_2005-2009_LA | O12: Conwy | P12: =VLOOKUP($N12,'All Data'!$A:$L,P$8,FALSE) ->  | Q12: 8.063146 | R12: =VLOOKUP($N12,'All Data'!$A:$L,Q$8,FALSE) -> 8.063146 | S12: =VLOOKUP($N12,'All Data'!$A:$L,S$8,FALSE) -> 5.792895 | T12: =VLOOKUP($N12,'All Data'!$A:$L,T$8,FALSE) -> 10.3334 | U12: =VLOOKUP($N12,'All Data'!$A:$L,U$8,FALSE) -> 2.270254 | V12: =VLOOKUP($N12,'All Data'!$A:$L,V$8,FALSE) -> 2.270251 | W12: No sig. difference | X12: 9.242999 | Y12: 9.242999 | Z12: 2.5 | AA12: No sig. difference
A13: =OFFSET(J64,G6-1,F7,1,1) -> 2005-2009 | B13: Year | F13: =F3 -> Wales health boards | G13: =VLOOKUP(F13,F16:H17,2,FALSE) -> 7 | H13: =VLOOKUP(F13,F16:H17,3,FALSE) -> 24 | I13: 33 | J13: =H13+1 -> 25 | K13: Denbighshire | L13: Males | M13: 2005-2009 | N13: Denbighshire_LE_Males_2005-2009_LA | O13: Denbighshire | P13: =VLOOKUP($N13,'All Data'!$A:$L,P$8,FALSE) ->  | Q13: 7.645921 | R13: =VLOOKUP($N13,'All Data'!$A:$L,Q$8,FALSE) -> 7.645921 | S13: =VLOOKUP($N13,'All Data'!$A:$L,S$8,FALSE) -> -3.09605 | T13: =VLOOKUP($N13,'All Data'!$A:$L,T$8,FALSE) -> 18.38789 | U13: =VLOOKUP($N13,'All Data'!$A:$L,U$8,FALSE) -> 10.741969 | V13: =VLOOKUP($N13,'All Data'!$A:$L,V$8,FALSE) -> 10.741971 | W13: No sig. difference | X13: 9.242999 | Y13: 9.242999 | Z13: 3.5 | AA13: No sig. difference
A14: =INDEX(A28:B37,C3,2) -> LE | B14: Short name | K14: Flintshire | L14: Males | M14: 2005-2009 | N14: Flintshire_LE_Males_2005-2009_LA | O14: Flintshire | P14: =VLOOKUP($N14,'All Data'!$A:$L,P$8,FALSE) ->  | Q14: 7.459997 | R14: =VLOOKUP($N14,'All Data'!$A:$L,Q$8,FALSE) -> 7.459997 | S14: =VLOOKUP($N14,'All Data'!$A:$L,S$8,FALSE) -> 1.470987 | T14: =VLOOKUP($N14,'All Data'!$A:$L,T$8,FALSE) -> 13.44901 | U14: =VLOOKUP($N14,'All Data'!$A:$L,U$8,FALSE) -> 5.989013 | V14: =VLOOKUP($N14,'All Data'!$A:$L,V$8,FALSE) -> 5.98901 | W14: No sig. difference | X14: 9.242999 | Y14: 9.242999 | Z14: 4.5 | AA14: No sig. difference
A15: =INDEX(A28:B37,C3,1) -> Inequality gap in life expectancy (SII in years) | B15: Full name | G15: No of rows | H15: start at row | K15: Wrexham | L15: Males | M15: 2005-2009 | N15: =K15 & "_" & $A$14 &"_"&$A$19&"_"&$A$13&"_"&"LA" -> Wrexham_LE_Males_2005-2009_LA | O15: Wrexham | P15: =VLOOKUP($N15,'All Data'!$A:$L,P$8,FALSE) ->  | Q15: 9.177017 | R15: =VLOOKUP($N15,'All Data'!$A:$L,Q$8,FALSE) -> 9.177017 | S15: =VLOOKUP($N15,'All Data'!$A:$L,S$8,FALSE) -> 5.541477 | T15: =VLOOKUP($N15,'All Data'!$A:$L,T$8,FALSE) -> 12.81256 | U15: =VLOOKUP($N15,'All Data'!$A:$L,U$8,FALSE) -> 3.635543 | V15: =VLOOKUP($N15,'All Data'!$A:$L,V$8,FALSE) -> 3.63554 | W15: No sig. difference | X15: 9.242999 | Y15: 9.242999 | Z15: 5.5 | AA15: No sig. difference
A16: =INDEX(A28:F37,C3,6) -> all ages | B16: Age range | F16: Wales health boards | G16: 7 | H16: 24 | K16: Powys | L16: Males | M16: 2005-2009 | N16: Powys_LE_Males_2005-2009_LA | O16: Powys | P16: =VLOOKUP($N16,'All Data'!$A:$L,P$8,FALSE) ->  | Q16: 5.472466 | R16: =VLOOKUP($N16,'All Data'!$A:$L,Q$8,FALSE) -> 5.472466 | S16: =VLOOKUP($N16,'All Data'!$A:$L,S$8,FALSE) -> -0.4952769 | T16: =VLOOKUP($N16,'All Data'!$A:$L,T$8,FALSE) -> 11.44021 | U16: =VLOOKUP($N16,'All Data'!$A:$L,U$8,FALSE) -> 5.967744 | V16: =VLOOKUP($N16,'All Data'!$A:$L,V$8,FALSE) -> 5.9677429 | W16: No sig. difference | X16: 9.242999 | Y16: 9.242999 | Z16: 6.5 | AA16: No sig. difference
A17: =INDEX(A28:H37,C3,7) -> 0 | B17: Stat | F17: Wales local authorities | G17: 22 | H17: 0 | K17: Ceredigion | L17: Males | M17: 2005-2009 | N17: Ceredigion_LE_Males_2005-2009_LA | O17: Ceredigion | P17: =VLOOKUP($N17,'All Data'!$A:$L,P$8,FALSE) ->  | Q17: 7.668265 | R17: =VLOOKUP($N17,'All Data'!$A:$L,Q$8,FALSE) -> 7.668265 | S17: =VLOOKUP($N17,'All Data'!$A:$L,S$8,FALSE) -> 2.851477 | T17: =VLOOKUP($N17,'All Data'!$A:$L,T$8,FALSE) -> 12.48505 | U17: =VLOOKUP($N17,'All Data'!$A:$L,U$8,FALSE) -> 4.816785 | V17: =VLOOKUP($N17,'All Data'!$A:$L,V$8,FALSE) -> 4.816788 | W17: No sig. difference | X17: 9.242999 | Y17: 9.242999 | Z17: 7.5 | AA17: No sig. difference
A18: =IF(K54="TRUE"," ",INDEX(A28:H37,C3,8)) -> SII in LE (95% CI) | B18: Stat | I18: For decimal (chart ref to column Q or R) | K18: Pembrokeshire | L18: Males | M18: 2005-2009 | N18: Pembrokeshire_LE_Males_2005-2009_LA | O18: Pembrokeshire | P18: =VLOOKUP($N18,'All Data'!$A:$L,P$8,FALSE) ->  | Q18: 5.947643 | R18: =VLOOKUP($N18,'All Data'!$A:$L,Q$8,FALSE) -> 5.947643 | S18: =VLOOKUP($N18,'All Data'!$A:$L,S$8,FALSE) -> -2.478867 | T18: =VLOOKUP($N18,'All Data'!$A:$L,T$8,FALSE) -> 14.37415 | U18: =VLOOKUP($N18,'All Data'!$A:$L,U$8,FALSE) -> 8.426507 | V18: =VLOOKUP($N18,'All Data'!$A:$L,V$8,FALSE) -> 8.42651 | W18: No sig. difference | X18: 9.242999 | Y18: 9.242999 | Z18: 8.5 | AA18: No sig. difference
A19: =OFFSET(J57,G20-1,F21,1,1) -> Males | B19: Sex | F19: Sex selection | K19: Carmarthenshire | L19: Males | M19: 2005-2009 | N19: Carmarthenshire_LE_Males_2005-2009_LA | O19: Carmarthenshire | P19: =VLOOKUP($N19,'All Data'!$A:$L,P$8,FALSE) ->  | Q19: 5.752812 | R19: =VLOOKUP($N19,'All Data'!$A:$L,Q$8,FALSE) -> 5.752812 | S19: =VLOOKUP($N19,'All Data'!$A:$L,S$8,FALSE) -> -0.4762985 | T19: =VLOOKUP($N19,'All Data'!$A:$L,T$8,FALSE) -> 11.98192 | U19: =VLOOKUP($N19,'All Data'!$A:$L,U$8,FALSE) -> 6.229108 | V19: =VLOOKUP($N19,'All Data'!$A:$L,V$8,FALSE) -> 6.2291105 | W19: No sig. difference | X19: 9.242999 | Y19: 9.242999 | Z19: 9.5 | AA19: No sig. difference
A20: =IF(A14="CONCEP",0,LOWER(A19)) -> males | B20: Sex | F20: =HLOOKUP(A15,$J$56:$V$72,5,FALSE) -> 0 | G20: 1 | I20: =VLOOKUP(A15,A28:I37,9,FALSE) -> 1 | K20: Swansea | L20: Males | M20: 2005-2009 | N20: Swansea_LE_Males_2005-2009_LA | O20: Swansea | P20: =VLOOKUP($N20,'All Data'!$A:$L,P$8,FALSE) ->  | Q20: 12.17048 | R20: =VLOOKUP($N20,'All Data'!$A:$L,Q$8,FALSE) -> 12.17048 | S20: =VLOOKUP($N20,'All Data'!$A:$L,S$8,FALSE) -> 9.207539 | T20: =VLOOKUP($N20,'All Data'!$A:$L,T$8,FALSE) -> 15.13342 | U20: =VLOOKUP($N20,'All Data'!$A:$L,U$8,FALSE) -> 2.96294 | V20: =VLOOKUP($N20,'All Data'!$A:$L,V$8,FALSE) -> 2.962941 | W20: No sig. difference | X20: 9.242999 | Y20: 9.242999 | Z20: 10.5 | AA20: No sig. difference
A21: =VLOOKUP(A15,A28:J37,9,FALSE) -> 1 | B21: Decimal places | F21: =HLOOKUP(A15,$J$56:$V$72,6,FALSE) -> 1 | G21: =INDEX(Option3sex,G20) -> Males | K21: Neath Port Talbot | L21: Males | M21: 2005-2009 | N21: Neath Port Talbot_LE_Males_2005-2009_LA | O21: Neath Port Talbot | P21: =VLOOKUP($N21,'All Data'!$A:$L,P$8,FALSE) ->  | Q21: 10.41585 | R21: =VLOOKUP($N21,'All Data'!$A:$L,Q$8,FALSE) -> 10.41585 | S21: =VLOOKUP($N21,'All Data'!$A:$L,S$8,FALSE) -> 7.977166 | T21: =VLOOKUP($N21,'All Data'!$A:$L,T$8,FALSE) -> 12.85454 | U21: =VLOOKUP($N21,'All Data'!$A:$L,U$8,FALSE) -> 2.43869 | V21: =VLOOKUP($N21,'All Data'!$A:$L,V$8,FALSE) -> 2.438684 | W21: No sig. difference | X21: 9.242999 | Y21: 9.242999 | Z21: 11.5 | AA21: No sig. difference
A22: =VLOOKUP(A15,A28:J37,10,FALSE) -> Not colouring | F22: =HLOOKUP(A15,$J$56:$V$72,7,FALSE) -> 3 | K22: Bridgend | L22: Males | M22: 2005-2009 | N22: Bridgend_LE_Males_2005-2009_LA | O22: Bridgend | P22: =VLOOKUP($N22,'All Data'!$A:$L,P$8,FALSE) ->  | Q22: 7.844999 | R22: =VLOOKUP($N22,'All Data'!$A:$L,Q$8,FALSE) -> 7.844999 | S22: =VLOOKUP($N22,'All Data'!$A:$L,S$8,FALSE) -> 4.054721 | T22: =VLOOKUP($N22,'All Data'!$A:$L,T$8,FALSE) -> 11.63528 | U22: =VLOOKUP($N22,'All Data'!$A:$L,U$8,FALSE) -> 3.790281 | V22: =VLOOKUP($N22,'All Data'!$A:$L,V$8,FALSE) -> 3.790278 | W22: No sig. difference | X22: 9.242999 | Y22: 9.242999 | Z22: 12.5 | AA22: No sig. difference
A23: =VLOOKUP(A15,$A$57:$C$67,2,FALSE) ->  | B23: Min | F23: =HLOOKUP(A15,$J$56:$V$72,8,FALSE) -> 1 | K23: The Vale of Glamorgan | L23: Males | M23: 2005-2009 | N23: The Vale of Glamorgan_LE_Males_2005-2009_LA | O23: The Vale of Glamorgan | P23: =VLOOKUP($N23,'All Data'!$A:$L,P$8,FALSE) ->  | Q23: 7.512679 | R23: =VLOOKUP($N23,'All Data'!$A:$L,Q$8,FALSE) -> 7.512679 | S23: =VLOOKUP($N23,'All Data'!$A:$L,S$8,FALSE) -> 3.138139 | T23: =VLOOKUP($N23,'All Data'!$A:$L,T$8,FALSE) -> 11.88722 | U23: =VLOOKUP($N23,'All Data'!$A:$L,U$8,FALSE) -> 4.374541 | V23: =VLOOKUP($N23,'All Data'!$A:$L,V$8,FALSE) -> 4.37454 | W23: No sig. difference | X23: 9.242999 | Y23: 9.242999 | Z23: 13.5 | AA23: No sig. difference
A24: =VLOOKUP(A15,$A$57:$C$67,3,FALSE) ->  | B24: Max | K24: Cardiff | L24: Males | M24: 2005-2009 | N24: Cardiff_LE_Males_2005-2009_LA | O24: Cardiff | P24: =VLOOKUP($N24,'All Data'!$A:$L,P$8,FALSE) ->  | Q24: 12.84547 | R24: =VLOOKUP($N24,'All Data'!$A:$L,Q$8,FALSE) -> 12.84547 | S24: =VLOOKUP($N24,'All Data'!$A:$L,S$8,FALSE) -> 10.99283 | T24: =VLOOKUP($N24,'All Data'!$A:$L,T$8,FALSE) -> 14.69811 | U24: =VLOOKUP($N24,'All Data'!$A:$L,U$8,FALSE) -> 1.85264 | V24: =VLOOKUP($N24,'All Data'!$A:$L,V$8,FALSE) -> 1.85264 | W24: Sig. high | X24: 9.242999 | Y24: 9.242999 | Z24: 14.5 | AA24: Sig. high
K25: Rhondda Cynon Taf | L25: Males | M25: 2005-2009 | N25: Rhondda Cynon Taf_LE_Males_2005-2009_LA | O25: Rhondda Cynon Taf | P25: =VLOOKUP($N25,'All Data'!$A:$L,P$8,FALSE) ->  | Q25: 7.925094 | R25: =VLOOKUP($N25,'All Data'!$A:$L,Q$8,FALSE) -> 7.925094 | S25: =VLOOKUP($N25,'All Data'!$A:$L,S$8,FALSE) -> 5.245098 | T25: =VLOOKUP($N25,'All Data'!$A:$L,T$8,FALSE) -> 10.60509 | U25: =VLOOKUP($N25,'All Data'!$A:$L,U$8,FALSE) -> 2.679996 | V25: =VLOOKUP($N25,'All Data'!$A:$L,V$8,FALSE) -> 2.679996 | W25: No sig. difference | X25: 9.242999 | Y25: 9.242999 | Z25: 15.5 | AA25: No sig. difference
G26: Statistic | K26: Merthyr Tydfil | L26: Males | M26: 2005-2009 | N26: Merthyr Tydfil_LE_Males_2005-2009_LA | O26: Merthyr Tydfil | P26: =VLOOKUP($N26,'All Data'!$A:$L,P$8,FALSE) ->  | Q26: 9.374533 | R26: =VLOOKUP($N26,'All Data'!$A:$L,Q$8,FALSE) -> 9.374533 | S26: =VLOOKUP($N26,'All Data'!$A:$L,S$8,FALSE) -> 5.005026 | T26: =VLOOKUP($N26,'All Data'!$A:$L,T$8,FALSE) -> 13.74404 | U26: =VLOOKUP($N26,'All Data'!$A:$L,U$8,FALSE) -> 4.369507 | V26: =VLOOKUP($N26,'All Data'!$A:$L,V$8,FALSE) -> 4.369507 | W26: No sig. difference | X26: 9.242999 | Y26: 9.242999 | Z26: 16.5 | AA26: No sig. difference
A27: Values for list | B27: Abbrev. | C27: Source | D27: Produced by statement | E27: Type | F27: Age | G27: For title text | H27: column header | I27: Decimals to display | J27: Colour coding | K27: Caerphilly | L27: Males | M27: 2005-2009 | N27: Caerphilly_LE_Males_2005-2009_LA | O27: Caerphilly | P27: =VLOOKUP($N27,'All Data'!$A:$L,P$8,FALSE) ->  | Q27: 8.493556 | R27: =VLOOKUP($N27,'All Data'!$A:$L,Q$8,FALSE) -> 8.493556 | S27: =VLOOKUP($N27,'All Data'!$A:$L,S$8,FALSE) -> 5.976455 | T27: =VLOOKUP($N27,'All Data'!$A:$L,T$8,FALSE) -> 11.01066 | U27: =VLOOKUP($N27,'All Data'!$A:$L,U$8,FALSE) -> 2.517104 | V27: =VLOOKUP($N27,'All Data'!$A:$L,V$8,FALSE) -> 2.517101 | W27: No sig. difference | X27: 9.242999 | Y27: 9.242999 | Z27: 17.5 | AA27: No sig. difference
A28: Inequality gap in life expectancy (SII in years) | B28: LE | C28: Source: ADDE & MYE (ONS), WIMD 2008 (WG) | D28: Produced by Public Health Wales Observatory, using ADDE & MYE (ONS), WIMD 2008 (WG) | E28: =" " ->  | F28: all ages | H28: SII in LE (95% CI) | I28: 1 | J28: Not colouring | K28: Blaenau Gwent | L28: Males | M28: 2005-2009 | N28: Blaenau Gwent_LE_Males_2005-2009_LA | O28: Blaenau Gwent | P28: =VLOOKUP($N28,'All Data'!$A:$L,P$8,FALSE) ->  | Q28: 2.646846 | R28: =VLOOKUP($N28,'All Data'!$A:$L,Q$8,FALSE) -> 2.646846 | S28: =VLOOKUP($N28,'All Data'!$A:$L,S$8,FALSE) -> -3.113655 | T28: =VLOOKUP($N28,'All Data'!$A:$L,T$8,FALSE) -> 8.407347 | U28: =VLOOKUP($N28,'All Data'!$A:$L,U$8,FALSE) -> 5.760501 | V28: =VLOOKUP($N28,'All Data'!$A:$L,V$8,FALSE) -> 5.760501 | W28: Sig. low | X28: 9.242999 | Y28: 9.242999 | Z28: 18.5 | AA28: Sig. low
A29: Proportion of population free from a common mental disorder (as measured by a Mental Health Inventory 5 score > 60) | B29: MENT | C29: Source: Welsh Health Survey | D29: Produced by Public Health Wales Observatory, using Welsh Health Survey (WG) | E29: =" " ->  | F29: aged 16+ | H29: Mental health score (95% CI) | I29: 0 | J29: Reverse | K29: Torfaen | L29: Males | M29: 2005-2009 | N29: Torfaen_LE_Males_2005-2009_LA | O29: Torfaen | P29: =VLOOKUP($N29,'All Data'!$A:$L,P$8,FALSE) ->  | Q29: 7.305144 | R29: =VLOOKUP($N29,'All Data'!$A:$L,Q$8,FALSE) -> 7.305144 | S29: =VLOOKUP($N29,'All Data'!$A:$L,S$8,FALSE) -> 4.673392 | T29: =VLOOKUP($N29,'All Data'!$A:$L,T$8,FALSE) -> 9.936896 | U29: =VLOOKUP($N29,'All Data'!$A:$L,U$8,FALSE) -> 2.631752 | V29: =VLOOKUP($N29,'All Data'!$A:$L,V$8,FALSE) -> 2.631752 | W29: No sig. difference | X29: 9.242999 | Y29: 9.242999 | Z29: 19.5 | AA29: No sig. difference
A30: Proportion of adults who reported being a current smoker | B30: Smo | C30: Source: WHS (WG) | D30: Produced by Public Health Wales Observatory, using Welsh Health Survey (WG) | F30: aged 16+ | G30: age-standardised percentage | H30: Age-standardised percentage (95% CI) | I30: 0 | J30: Sig high = worse | K30: Monmouthshire | L30: Males | M30: 2005-2009 | N30: Monmouthshire_LE_Males_2005-2009_LA | O30: Monmouthshire | P30: =VLOOKUP($N30,'All Data'!$A:$L,P$8,FALSE) ->  | Q30: 5.889338 | R30: =VLOOKUP($N30,'All Data'!$A:$L,Q$8,FALSE) -> 5.889338 | S30: =VLOOKUP($N30,'All Data'!$A:$L,S$8,FALSE) -> 4.402877 | T30: =VLOOKUP($N30,'All Data'!$A:$L,T$8,FALSE) -> 7.375799 | U30: =VLOOKUP($N30,'All Data'!$A:$L,U$8,FALSE) -> 1.486461 | V30: =VLOOKUP($N30,'All Data'!$A:$L,V$8,FALSE) -> 1.486461 | W30: Sig. low | X30: 9.242999 | Y30: 9.242999 | Z30: 20.5 | AA30: Sig. low
A31: Average days with 30 minutes moderate or vigorous physical activity (capped) | B31: ACT | C31: Source: Welsh Health Survey | D31: Produced by Public Health Wales Observatory, using Welsh Health Survey (WG) | F31: aged 16+ | G31: age-standardised | H31: Age-standardised days (95% CI) | I31: 1 | J31: Reverse | K31: Newport | L31: =$A$19 -> Males | M31: 2005-2009 | N31: Newport_LE_Males_2005-2009_LA | O31: Newport | P31: =VLOOKUP($N31,'All Data'!$A:$L,P$8,FALSE) ->  | Q31: 11.03028 | R31: =VLOOKUP($N31,'All Data'!$A:$L,Q$8,FALSE) -> 11.03028 | S31: =VLOOKUP($N31,'All Data'!$A:$L,S$8,FALSE) -> 9.4929 | T31: =VLOOKUP($N31,'All Data'!$A:$L,T$8,FALSE) -> 12.56765 | U31: =VLOOKUP($N31,'All Data'!$A:$L,U$8,FALSE) -> 1.53737 | V31: =VLOOKUP($N31,'All Data'!$A:$L,V$8,FALSE) -> 1.53738 | W31: Sig. high | X31: 9.242999 | Y31: 9.242999 | Z31: 21.5 | AA31: Sig. high
A32: Proportion of adults who reported eating five portions of fruit and vegetables the previous day | B32: FRU | C32: Source: Welsh Health Survey | D32: Produced by Public Health Wales Observatory, using Welsh Health Survey (WG) | F32: aged 16+ | G32: age-standardised | H32: Age-standardised percentage (95% CI) | I32: 0 | J32: Reverse | X32: 9.242999 | Y32: 9.242999 | Z32: 22.5
A33: Proportion of adults who reported being obese or overweight (Body Mass Index >= 25) | B33: OBE | C33: Source: Welsh Health Survey | D33: Produced by Public Health Wales Observatory, using Welsh Health Survey (WG) | F33: aged 16+ | G33: age-standardised | H33: Age-standardised percentage (95% CI) | I33: 0 | J33: Sig high = worse | X33: 9.242999 | Y33: 9.242999 | Z33: 23.5
A34: Alcohol-specific hospital admissions (person-based) | B34: ALC | C34: Source: PEDW (NWIS) & MYE (ONS) | D34: Produced by Public Health Wales Observatory, using PEDW (NWIS) & MYE (ONS) | E34: Number of admissions | F34: all ages | G34: European age-standardised rate per 100,000 | H34: EASR per 100,000 (95% CI) | I34: 0 | J34: Sig high = worse | K34: Betsi Cadwaladr UHB | L34: =$A$19 -> Males | M34: =$A$13 -> 2005-2009 | N34: =K34 & "_" & $A$14&"_"&$A$19&"_"&$A$13&"_"&"HB" -> Betsi Cadwaladr UHB_LE_Males_2005-2009_HB | O34: Betsi Cadwaladr UHB | P34: =VLOOKUP($N34,'All Data'!$A:$L,P$8,FALSE) ->  | Q34: 7.188198 | R34: =VLOOKUP($N34,'All Data'!$A:$L,Q$8,FALSE) -> 7.188198 | S34: =VLOOKUP($N34,'All Data'!$A:$L,S$8,FALSE) -> 2.866424 | T34: =VLOOKUP($N34,'All Data'!$A:$L,T$8,FALSE) -> 11.50997 | U34: =VLOOKUP($N34,'All Data'!$A:$L,U$8,FALSE) -> 4.321772 | V34: =VLOOKUP($N34,'All Data'!$A:$L,V$8,FALSE) -> 4.321774 | W34: No sig. difference | X34: 9.242999 | Y34: 9.242999 | Z34: 24.5 | AA34: No sig. difference
A35: Rate of conceptions among females aged under 18 per 1,000 females aged 15-17 | B35: CONCEP | C35: Source: Conceptions data & MYE (ONS) | D35: Produced by Public Health Wales Observatory, using Conceptions data & MYE (ONS) | E35: Number of conceptions | H35: Conception rate (95% CI) | I35: 0 | J35: Sig high = worse | K35: Powys THB | L35: =$A$19 -> Males | M35: =$A$13 -> 2005-2009 | N35: =K35 & "_" & $A$14&"_"&$A$19&"_"&$A$13&"_"&"HB" -> Powys THB_LE_Males_2005-2009_HB | O35: Powys THB | P35: =VLOOKUP($N35,'All Data'!$A:$L,P$8,FALSE) ->  | Q35: 5.472466 | R35: =VLOOKUP($N35,'All Data'!$A:$L,Q$8,FALSE) -> 5.472466 | S35: =VLOOKUP($N35,'All Data'!$A:$L,S$8,FALSE) -> -0.4952769 | T35: =VLOOKUP($N35,'All Data'!$A:$L,T$8,FALSE) -> 11.44021 | U35: =VLOOKUP($N35,'All Data'!$A:$L,U$8,FALSE) -> 5.967744 | V35: =VLOOKUP($N35,'All Data'!$A:$L,V$8,FALSE) -> 5.9677429 | W35: No sig. difference | X35: 9.242999 | Y35: 9.242999 | Z35: 25.5 | AA35: No sig. difference
A36: Admissions for hip fractures | B36: HIP | C36: Source: PEDW (NWIS) & MYE (ONS) | D36: Produced by Public Health Wales Observatory, using PEDW (NWIS) & MYE (ONS) | E36: Number of admissions | F36: aged 65+ | G36: European age-standardised rate per 100,000 | H36: EASR per 100,000 (95% CI) | I36: 0 | J36: Sig high = worse | K36: Hywel Dda HB | L36: Males | M36: 2005-2009 | N36: Hywel Dda HB_LE_Males_2005-2009_HB | O36: Hywel Dda HB | P36: =VLOOKUP($N36,'All Data'!$A:$L,P$8,FALSE) ->  | Q36: 6.83758 | R36: =VLOOKUP($N36,'All Data'!$A:$L,Q$8,FALSE) -> 6.83758 | S36: =VLOOKUP($N36,'All Data'!$A:$L,S$8,FALSE) -> 2.233189 | T36: =VLOOKUP($N36,'All Data'!$A:$L,T$8,FALSE) -> 11.44197 | U36: =VLOOKUP($N36,'All Data'!$A:$L,U$8,FALSE) -> 4.60439 | V36: =VLOOKUP($N36,'All Data'!$A:$L,V$8,FALSE) -> 4.604391 | W36: No sig. difference | X36: 9.242999 | Y36: 9.242999 | Z36: 26.5 | AA36: No sig. difference
A37: Uptake of scheduled childhood vaccinations | B37: VACC | C37: Source: NCCHD | D37: Produced by Public Health Wales Observatory, using NCCHD | E37: =" " ->  | G37: percentage | H37: Percentage (95% CI) | I37: 0 | J37: Reverse | K37: ABM UHB | L37: Males | M37: 2005-2009 | N37: ABM UHB_LE_Males_2005-2009_HB | O37: ABM UHB | P37: =VLOOKUP($N37,'All Data'!$A:$L,P$8,FALSE) ->  | Q37: 10.37601 | R37: =VLOOKUP($N37,'All Data'!$A:$L,Q$8,FALSE) -> 10.37601 | S37: =VLOOKUP($N37,'All Data'!$A:$L,S$8,FALSE) -> 8.93405 | T37: =VLOOKUP($N37,'All Data'!$A:$L,T$8,FALSE) -> 11.81796 | U37: =VLOOKUP($N37,'All Data'!$A:$L,U$8,FALSE) -> 1.44195 | V37: =VLOOKUP($N37,'All Data'!$A:$L,V$8,FALSE) -> 1.44196 | W37: No sig. difference | X37: 9.242999 | Y37: 9.242999 | Z37: 27.5 | AA37: No sig. difference
K38: Cardiff & Vale UHB | L38: Males | M38: 2005-2009 | N38: Cardiff & Vale UHB_LE_Males_2005-2009_HB | O38: Cardiff & Vale UHB | P38: =VLOOKUP($N38,'All Data'!$A:$L,P$8,FALSE) ->  | Q38: 11.81398 | R38: =VLOOKUP($N38,'All Data'!$A:$L,Q$8,FALSE) -> 11.81398 | S38: =VLOOKUP($N38,'All Data'!$A:$L,S$8,FALSE) -> 8.532632 | T38: =VLOOKUP($N38,'All Data'!$A:$L,T$8,FALSE) -> 15.09532 | U38: =VLOOKUP($N38,'All Data'!$A:$L,U$8,FALSE) -> 3.28134 | V38: =VLOOKUP($N38,'All Data'!$A:$L,V$8,FALSE) -> 3.281348 | W38: No sig. difference | X38: 9.242999 | Y38: 9.242999 | Z38: 28.5 | AA38: No sig. difference
K39: Cwm Taf HB | L39: Males | M39: 2005-2009 | N39: Cwm Taf HB_LE_Males_2005-2009_HB | O39: Cwm Taf HB | P39: =VLOOKUP($N39,'All Data'!$A:$L,P$8,FALSE) ->  | Q39: 8.02292 | R39: =VLOOKUP($N39,'All Data'!$A:$L,Q$8,FALSE) -> 8.02292 | S39: =VLOOKUP($N39,'All Data'!$A:$L,S$8,FALSE) -> 6.926785 | T39: =VLOOKUP($N39,'All Data'!$A:$L,T$8,FALSE) -> 9.119055 | U39: =VLOOKUP($N39,'All Data'!$A:$L,U$8,FALSE) -> 1.096135 | V39: =VLOOKUP($N39,'All Data'!$A:$L,V$8,FALSE) -> 1.096135 | W39: Sig. low | X39: 9.242999 | Y39: 9.242999 | Z39: 29.5 | AA39: Sig. low
K40: Aneurin Bevan HB | L40: Males | M40: 2005-2009 | N40: Aneurin Bevan HB_LE_Males_2005-2009_HB | O40: Aneurin Bevan HB | P40: =VLOOKUP($N40,'All Data'!$A:$L,P$8,FALSE) ->  | Q40: 8.834711 | R40: =VLOOKUP($N40,'All Data'!$A:$L,Q$8,FALSE) -> 8.834711 | S40: =VLOOKUP($N40,'All Data'!$A:$L,S$8,FALSE) -> 7.233314 | T40: =VLOOKUP($N40,'All Data'!$A:$L,T$8,FALSE) -> 10.43611 | U40: =VLOOKUP($N40,'All Data'!$A:$L,U$8,FALSE) -> 1.601399 | V40: =VLOOKUP($N40,'All Data'!$A:$L,V$8,FALSE) -> 1.601397 | W40: No sig. difference | X40: 9.242999 | Y40: 9.242999 | Z40: 30.5 | AA40: No sig. difference
D41: =OFFSET('Interactive controls'!$X$9,'Interactive controls'!$H$13,'Interactive controls'!$I$20,'Interactive controls'!$G$13,1) ->  | K41: Wales | L41: Males | M41: 2005-2009 | N41: =K41 & "_"& $A$14 &"_"&$A$19&"_"&$A$13&"_"&"Wales" -> Wales_LE_Males_2005-2009_Wales | O41: Wales | P41: =VLOOKUP($N41,'All Data'!$A:$L,P$8,FALSE) ->  | Q41: 9.242999 | R41: =VLOOKUP($N41,'All Data'!$A:$L,Q$8,FALSE) -> 9.242999 | S41: =VLOOKUP($N41,'All Data'!$A:$L,S$8,FALSE) -> 6.838516 | T41: =VLOOKUP($N41,'All Data'!$A:$L,T$8,FALSE) -> 11.64748 | U41: =VLOOKUP($N41,'All Data'!$A:$L,U$8,FALSE) -> 2.404481 | V41: =VLOOKUP($N41,'All Data'!$A:$L,V$8,FALSE) -> 2.404483 | W41: 0 | X41: 9.242999 | Y41: =X41 -> 9.242999 | Z41: 31
A42: For selection box title:
A43: Inequality gap in life expectancy (SII) | J43: Chart title | K43: =IF(K54="TRUE","Selection criteria invalid, please select other period or sex",A15&", "&IF(A17=0, "",A17&", ")&IF(A20=0,"",A20&", ")&IF(A16=0,"",A16&", ")&IF(F13=0,"",F13&", ")&IF(A13=0,"",A13)) -> Inequality gap in life expectancy (SII in years), males, all ages, Wales health boards, 2005-2009
A44: Free from a common mental disorder (%) | D44: Data source: National Community Child Health Database (May 2012 refresh) | J44: Wales label | K44: =IFERROR(IF(ROUND(X10,A21)>0,""),"Unavailable") ->  | O44: =OFFSET('Interactive controls'!$X$9,'Interactive controls'!$J$13,'Interactive controls'!$I$20,'Interactive controls'!$I$13,1) -> 0 | R44: =OFFSET('Interactive controls'!$X$9,0,'Interactive controls'!$I$20,'Interactive controls'!$I$13,1) -> 
A45: Currently smoking (%) | J45: Source | K45: =IF(K54="TRUE"," ",IF(INDEX(A28:C37,C3,3)=0,"Unavailable",INDEX(A28:C37,C3,3))) -> Source: ADDE & MYE (ONS), WIMD 2008 (WG)
A46: Average days with 30 min physical activity | J46: Chart source | K46: =IF(K54="TRUE"," ",IF(INDEX(A28:D37,C3,4)=0,"Unavailable",INDEX(A28:D37,C3,4))) -> Produced by Public Health Wales Observatory, using ADDE & MYE (ONS), WIMD 2008 (WG)
A47: Eating five fruit/veg per day (%) | J47: Table column | K47: =IF(K54="TRUE"," ",VLOOKUP(A15,A28:H37,5,FALSE)) -> 
A48: Overweight or obese (%) | J48: Table title | K48: =IF(K54="TRUE","Selection criteria invalid, please select other period or sex",A15&", "&IF(A17=0, "",A17&", ")&IF(A20=0,"",A20&", ")&IF(A16=0,"",A16&", ")&"Wales health boards and local authorities"&", "&IF(A13=0,"",A13)) -> Inequality gap in life expectancy (SII in years), males, all ages, Wales health boards and local authorities, 2005-2009
A49: Alcohol-specific hospital admissions | J49: Table column 3 title | K49: =IF(K54="TRUE"," ","Compared to Wales*") -> Compared to Wales*
A50: Conceptions aged under 18 | J50: Option 2 title 1 | K50: =IF(K54="TRUE","Selection criteria invalid, please select other period or sex",A15&", "&IF(A17=0, "",A17&", ")&IF(A20=0,"",A20&", ")&IF(A16=0,"",A16&", ")&"Wales local authorities"&", "&IF(A13=0,"",A13)) -> Inequality gap in life expectancy (SII in years), males, all ages, Wales local authorities, 2005-2009
A51: Hospital admissions for hip fracture 65+ | J51: Option 2 title 2 | K51: =IF(K54="TRUE","Selection criteria invalid, please select other period or sex",A15&", "&IF(A17=0, "",A17&", ")&IF(A20=0,"",A20&", ")&IF(A16=0,"",A16&", ")&"Wales health boards"&", "&IF(A13=0,"",A13)) -> Inequality gap in life expectancy (SII in years), males, all ages, Wales health boards, 2005-2009
A52: Childhood vaccinations uptake (%) | J52: legend | K52: =IF(OR(C3=1),"","95% confidence interval") -> 
J54: Test if selection is valid | K54: =IFERROR(Q10,"TRUE") -> 6.819951
A56: X-AXIS | B56: Min | C56: Max | G56: This section is for use with 'Define Name' section on the 'Formulas' tab | J56: Sloping index of inequality (SII) in healthy life expectancy (HLE) | K56: Inequality gap in life expectancy (SII in years) | L56: Proportion of adults who reported being a current smoker | M56: Average days with 30 minutes moderate or vigorous physical activity (capped) | N56: Proportion of adults who reported eating five portions of fruit and vegetables the previous day | O56: Proportion of adults who reported being obese or overweight (Body Mass Index >= 25) | P56: Alcohol-specific hospital admissions (person-based) | Q56: Rate of conceptions among females aged under 18 per 1,000 females aged 15-17 | R56: Gap between the employment rate for those with a limiting long-term health condition and the overall employment rate | S56: Uptake of scheduled childhood vaccinations | T56: Proportion of population free from a common mental disorder (as measured by a Mental Health Inventory 5 score > 60) | U56: Admissions for hip fractures | V56: Proportion free from a mental health disorder
A57: Slope index of inequality (SII) in healthy life expectancy (HLE) | B57: -10 | C57: 30 | H57: Sex (formula name: Option3sex) | I57: Variables | J57: Males | K57: Males | L57: Persons | M57: Persons | N57: Persons | O57: Persons | P57: Males | Q57: Females | R57: Persons | S57: Children at age 4 | T57: Persons | U57: Males | V57: Persons
A58: Percentage of adults who reported being a current smoker | B58: 0 | C58: 100 | J58: Females | K58: Females | P58: Females | U58: Females
A59: Inequality gap in life expectancy (SII) | B59: -10 | C59: 30 | P59: Persons | U59: Persons
A60: Average days with 30 minutes physical activity | B60: 0 | C60: 10 | I60: Rows offset | J60: 0 | K60: 0 | L60: 0 | M60: 0 | N60: 0 | O60: 0 | P60: 0 | Q60: 0 | R60: 0 | S60: 0 | T60: 0 | U60: 0 | V60: 0
A61: Proportion of adults eating five portions of fruit and vegetables per day | B61: 0 | C61: 100 | I61: Columns offset | J61: 0 | K61: 1 | L61: 2 | M61: 3 | N61: 4 | O61: 5 | P61: 6 | Q61: 7 | R61: 8 | S61: 9 | T61: 10 | U61: 11 | V61: 12
A62: Proportion of adults obese or overweight (body mass index > 25) | B62: 0 | C62: 100 | I62: No rows | J62: 3 | K62: 3 | L62: 3 | M62: 3 | N62: 3 | O62: 3 | P62: 3 | Q62: 3 | R62: 3 | S62: 3 | T62: 3 | U62: 3 | V62: 3
A63: Alcohol-specific admissions to hospital | B63: 0 | C63: 1000 | I63: No columns | J63: 1 | K63: 1 | L63: 1 | M63: 1 | N63: 1 | O63: 1 | P63: 1 | Q63: 1 | R63: 1 | S63: 1 | T63: 1 | U63: 1 | V63: 1
A64: Rate of conceptions among females aged under 18 | B64: 0 | C64: 100 | H64: Year (formula name: Option3Year) | I64: Variables | J64: 2005-2009 | K64: 2005-2009 | L64: 2009-2010 | M64: 2009-2010 | N64: 2009-2010 | O64: 2009-2010 | P64: 2010 | Q64: 2010 | R64: 2005 | S64: 2011-2012 (FY) | T64: 2009-2010 | U64: 2010 | V64: 2009-2010
A65: Uptake of scheduled childhood vaccinations | B65: 0 | C65: 100 | R65: 2006
A66: Proportion free from a mental health disorder | B66: 0 | C66: 100 | R66: 2007
A67: Admissions due to hip fractures | B67: 0 | C67: 1000 | R67: 2008
R68: 2009
I69: Rows offset | J69: 0 | K69: 0 | L69: 0 | M69: 0 | N69: 0 | O69: 0 | P69: 0 | Q69: 0 | R69: 0 | S69: 0 | T69: 0 | U69: 0 | V69: 0
I70: Columns offset | J70: 0 | K70: 1 | L70: 2 | M70: 3 | N70: 4 | O70: 5 | P70: 6 | Q70: 7 | R70: 8 | S70: 9 | T70: 10 | U70: 11 | V70: 12
I71: No rows | J71: 5 | K71: 5 | L71: 5 | M71: 5 | N71: 5 | O71: 5 | P71: 5 | Q71: 5 | R71: 5 | S71: 5 | T71: 5 | U71: 5 | V71: 5
I72: No columns | J72: 1 | K72: 1 | L72: 1 | M72: 1 | N72: 1 | O72: 1 | P72: 1 | Q72: 1 | R72: 1 | S72: 1 | T72: 1 | U72: 1 | V72: 1
A75: Uptake of scheduled childhood vaccinations

Sheet Copy tables and charts
M2: Figure 1
A7: Copying and pasting charts and tables to use in documents, reports or presentations
A9: Why use this method to copy and paste charts
A10: If the standard {Copy} and {Paste} option is used for inserting Excel charts into documents, reports
A11: or presentations then frequently the chart will lose some of its formatting and/or the axes labels may be
A12: truncated. Similarly, table column sizes are often distorted using the standard {Copy} and {Paste}
A13: method if a table is too wide. The technique descibed below overcomes these issues.
A15: Copying and pasting a chart
A16: 1 | B16: Select the chart you want to copy by left clicking on it once i.e. so that the surronding points are
B17: displayed
A18: 2 | B18: On the 'Home' tab click the paste icon
A19: 3 | B19: Click 'As picture' option and 'Copy as picture' (see figure 1)
A20: 4 | B20: Choose 'As shown on screen' and 'picture'
A21: 5 | B21: Using your mouse click on the point where you want to insert a copy of the chart e.g. in a Word
B22: document / presentation
A23: 6 | B23: On the 'Home' tab click 'paste' then 'paste special' and choose to insert as 'Picture (enhanced metafile)'
M25: Figure 2
A27: Copying and pasting a table as a picture
A28: 1 | B28: Highlight the table you want to copy by left clicking on the top left hand corner
B29: and dragging the mouse to the bottom right corner.
A30: 2 | B30: On the 'Home' tab click the paste icon
A31: 3 | B31: Click 'As picture' option and 'Copy as picture' (see figure 2)
A32: 4 | B32: Choose 'As shown on screen' and 'picture'
A33: 5 | B33: Using your mouse click on the point where you want to insert a copy of the chart e.g. in a Word
B34: document / presentation
A35: 6 | B35: On the 'Home' tab click 'paste' then 'paste special' and choose to insert as 'Picture (enhanced metafile)'

Sheet Overview (controls) (hidden)
C1: 9 | D1: 10 | E1: 9 | F1: 10 | G1: 9 | H1: 10 | I1: 9 | J1: 10 | K1: 9 | L1: 10 | M1: 9 | N1: 10 | O1: 9 | P1: 10 | Q1: 9 | R1: 10 | S1: 9 | T1: 10 | U1: 9 | V1: 10 | W1: 9 | X1: 10 | Y1: 9 | Z1: 10 | AA1: 9 | AB1: 10 | AC1: 9 | AD1: 10 | AE1: 9 | AF1: 10 | AG1: 9 | AH1: 10 | AI1: 9 | AJ1: 10 | AK1: 9 | AL1: 10
C2: HLE | D2: HLE | E2: HLE | F2: HLE | G2: LE | H2: LE | I2: LE | J2: LE | K2: MENT | L2: MENT | M2: EMP | N2: EMP | O2: SMO | P2: SMO | Q2: ACT | R2: ACT | S2: FRU | T2: FRU | U2: OBE | V2: OBE | W2: ALC | X2: ALC | Y2: ALC | Z2: ALC | AA2: ALC | AB2: ALC | AC2: CONCEP | AD2: CONCEP | AE2: HIP | AF2: HIP | AG2: HIP | AH2: HIP | AI2: HIP | AJ2: HIP | AK2: VACC | AL2: VACC
B3: Complete green sections | C3: Males | D3: Males | E3: Females | F3: Females | G3: Males | H3: Males | I3: Females | J3: Females | K3: Persons | L3: Persons | M3: Persons | N3: Persons | O3: Persons | P3: Persons | Q3: Persons | R3: Persons | S3: Persons | T3: Persons | U3: Persons | V3: Persons | W3: Persons | X3: Persons | Y3: Males | Z3: Males | AA3: Females | AB3: Females | AC3: Females | AD3: Females | AE3: Persons | AF3: Persons | AG3: Males | AH3: Males | AI3: Females | AJ3: Females | AK3: Children at age 4 | AL3: Children at age 4
C4: 2005-2009 | D4: 2005-2009 | E4: 2005-2009 | F4: 2005-2009 | G4: 2005-2009 | H4: 2005-2009 | I4: 2005-2009 | J4: 2005-2009 | K4: 2009-2010 | L4: 2009-2010 | M4: 2009-2010 | N4: 2009-2010 | O4: 2009-2010 | P4: 2009-2010 | Q4: 2009-2010 | R4: 2009-2010 | S4: 2009-2010 | T4: 2009-2010 | U4: 2009-2010 | V4: 2009-2010 | W4: 2010 | X4: 2010 | Y4: 2010 | Z4: 2010 | AA4: 2010 | AB4: 2010 | AC4: 2010 | AD4: 2010 | AE4: 2010 | AF4: 2010 | AG4: 2010 | AH4: 2010 | AI4: 2010 | AJ4: 2010 | AK4: 2011-2012 (FY) | AL4: 2011-2012 (FY)
C5: LCL | D5: UCL | E5: LCL | F5: UCL | G5: LCL | H5: UCL | I5: LCL | J5: UCL | K5: LCL | L5: UCL | M5: LCL | N5: UCL | O5: LCL | P5: UCL | Q5: LCL | R5: UCL | S5: LCL | T5: UCL | U5: LCL | V5: UCL | W5: LCL | X5: UCL | Y5: LCL | Z5: UCL | AA5: LCL | AB5: UCL | AC5: LCL | AD5: UCL | AE5: LCL | AF5: UCL | AG5: LCL | AH5: UCL | AI5: LCL | AJ5: UCL | AK5: LCL | AL5: UCL
B6: LOCAL
A7: LA | B7: Isle of Anglesey | C7: =VLOOKUP(($B7&"_"&C$2&"_"&C$3&"_"&C$4&"_"&$A7),'All Data'!$A$2:$L$1048576,C$1,FALSE) -> 0 | D7: =VLOOKUP(($B7&"_"&D$2&"_"&D$3&"_"&D$4&"_"&$A7),'All Data'!$A$2:$L$1048576,D$1,FALSE) -> 0 | E7: =VLOOKUP(($B7&"_"&E$2&"_"&E$3&"_"&E$4&"_"&$A7),'All Data'!$A$2:$L$1048576,E$1,FALSE) -> 0 | F7: =VLOOKUP(($B7&"_"&F$2&"_"&F$3&"_"&F$4&"_"&$A7),'All Data'!$A$2:$L$1048576,F$1,FALSE) -> 0 | G7: =VLOOKUP(($B7&"_"&G$2&"_"&G$3&"_"&G$4&"_"&$A7),'All Data'!$A$2:$L$1048576,G$1,FALSE) -> -0.0855653 | H7: =VLOOKUP(($B7&"_"&H$2&"_"&H$3&"_"&H$4&"_"&$A7),'All Data'!$A$2:$L$1048576,H$1,FALSE) -> 13.72547 | I7: =VLOOKUP(($B7&"_"&I$2&"_"&I$3&"_"&I$4&"_"&$A7),'All Data'!$A$2:$L$1048576,I$1,FALSE) -> 1.758882 | J7: =VLOOKUP(($B7&"_"&J$2&"_"&J$3&"_"&J$4&"_"&$A7),'All Data'!$A$2:$L$1048576,J$1,FALSE) -> 7.35703 | K7: =VLOOKUP(($B7&"_"&K$2&"_"&K$3&"_"&K$4&"_"&$A7),'All Data'!$A$2:$L$1048576,K$1,FALSE) -> 74.25951 | L7: =VLOOKUP(($B7&"_"&L$2&"_"&L$3&"_"&L$4&"_"&$A7),'All Data'!$A$2:$L$1048576,L$1,FALSE) -> 79.90374 | M7: =VLOOKUP(($B7&"_"&M$2&"_"&M$3&"_"&M$4&"_"&$A7),'All Data'!$A$2:$L$1048576,M$1,FALSE) ->  | N7: =VLOOKUP(($B7&"_"&N$2&"_"&N$3&"_"&N$4&"_"&$A7),'All Data'!$A$2:$L$1048576,N$1,FALSE) ->  | O7: =VLOOKUP(($B7&"_"&O$2&"_"&O$3&"_"&O$4&"_"&$A7),'All Data'!$A$2:$L$1048576,O$1,FALSE) -> 21.01552 | P7: =VLOOKUP(($B7&"_"&P$2&"_"&P$3&"_"&P$4&"_"&$A7),'All Data'!$A$2:$L$1048576,P$1,FALSE) -> 26.76017 | Q7: =VLOOKUP(($B7&"_"&Q$2&"_"&Q$3&"_"&Q$4&"_"&$A7),'All Data'!$A$2:$L$1048576,Q$1,FALSE) -> 2.378917 | R7: =VLOOKUP(($B7&"_"&R$2&"_"&R$3&"_"&R$4&"_"&$A7),'All Data'!$A$2:$L$1048576,R$1,FALSE) -> 2.641154 | S7: =VLOOKUP(($B7&"_"&S$2&"_"&S$3&"_"&S$4&"_"&$A7),'All Data'!$A$2:$L$1048576,S$1,FALSE) -> 34.49156 | T7: =VLOOKUP(($B7&"_"&T$2&"_"&T$3&"_"&T$4&"_"&$A7),'All Data'!$A$2:$L$1048576,T$1,FALSE) -> 40.91757 | U7: =VLOOKUP(($B7&"_"&U$2&"_"&U$3&"_"&U$4&"_"&$A7),'All Data'!$A$2:$L$1048576,U$1,FALSE) -> 51.0283 | V7: =VLOOKUP(($B7&"_"&V$2&"_"&V$3&"_"&V$4&"_"&$A7),'All Data'!$A$2:$L$1048576,V$1,FALSE) -> 57.30279 | W7: =VLOOKUP(($B7&"_"&W$2&"_"&W$3&"_"&W$4&"_"&$A7),'All Data'!$A$2:$L$1048576,W$1,FALSE) -> 355.90109 | X7: =VLOOKUP(($B7&"_"&X$2&"_"&X$3&"_"&X$4&"_"&$A7),'All Data'!$A$2:$L$1048576,X$1,FALSE) -> 456.84265 | Y7: =VLOOKUP(($B7&"_"&Y$2&"_"&Y$3&"_"&Y$4&"_"&$A7),'All Data'!$A$2:$L$1048576,Y$1,FALSE) -> 498.51384 | Z7: =VLOOKUP(($B7&"_"&Z$2&"_"&Z$3&"_"&Z$4&"_"&$A7),'All Data'!$A$2:$L$1048576,Z$1,FALSE) -> 671.2865 | AA7: =VLOOKUP(($B7&"_"&AA$2&"_"&AA$3&"_"&AA$4&"_"&$A7),'All Data'!$A$2:$L$1048576,AA$1,FALSE) -> 182.43273 | AB7: =VLOOKUP(($B7&"_"&AB$2&"_"&AB$3&"_"&AB$4&"_"&$A7),'All Data'!$A$2:$L$1048576,AB$1,FALSE) -> 290.67598 | AC7: =VLOOKUP(($B7&"_"&AC$2&"_"&AC$3&"_"&AC$4&"_"&$A7),'All Data'!$A$2:$L$1048576,AC$1,FALSE) -> 24.51012146 | AD7: =VLOOKUP(($B7&"_"&AD$2&"_"&AD$3&"_"&AD$4&"_"&$A7),'All Data'!$A$2:$L$1048576,AD$1,FALSE) -> 45.96923077 | AE7: =VLOOKUP(($B7&"_"&AE$2&"_"&AE$3&"_"&AE$4&"_"&$A7),'All Data'!$A$2:$L$1048576,AE$1,FALSE) -> 663.76607 | AF7: =VLOOKUP(($B7&"_"&AF$2&"_"&AF$3&"_"&AF$4&"_"&$A7),'All Data'!$A$2:$L$1048576,AF$1,FALSE) -> 932.65923 | AG7: =VLOOKUP(($B7&"_"&AG$2&"_"&AG$3&"_"&AG$4&"_"&$A7),'All Data'!$A$2:$L$1048576,AG$1,FALSE) -> 398.3619 | AH7: =VLOOKUP(($B7&"_"&AH$2&"_"&AH$3&"_"&AH$4&"_"&$A7),'All Data'!$A$2:$L$1048576,AH$1,FALSE) -> 764.63933 | AI7: =VLOOKUP(($B7&"_"&AI$2&"_"&AI$3&"_"&AI$4&"_"&$A7),'All Data'!$A$2:$L$1048576,AI$1,FALSE) -> 732.39572 | AJ7: =VLOOKUP(($B7&"_"&AJ$2&"_"&AJ$3&"_"&AJ$4&"_"&$A7),'All Data'!$A$2:$L$1048576,AJ$1,FALSE) -> 1103.61754 | AK7: =VLOOKUP(($B7&"_"&AK$2&"_"&AK$3&"_"&AK$4&"_"&$A7),'All Data'!$A$2:$L$1048576,AK$1,FALSE) -> 79.35389605 | AL7: =VLOOKUP(($B7&"_"&AL$2&"_"&AL$3&"_"&AL$4&"_"&$A7),'All Data'!$A$2:$L$1048576,AL$1,FALSE) -> 84.76854478
A8: LA | B8: Gwynedd | C8: =VLOOKUP(($B8&"_"&C$2&"_"&C$3&"_"&C$4&"_"&$A8),'All Data'!$A$2:$L$1048576,C$1,FALSE) -> 0 | D8: =VLOOKUP(($B8&"_"&D$2&"_"&D$3&"_"&D$4&"_"&$A8),'All Data'!$A$2:$L$1048576,D$1,FALSE) -> 0 | E8: =VLOOKUP(($B8&"_"&E$2&"_"&E$3&"_"&E$4&"_"&$A8),'All Data'!$A$2:$L$1048576,E$1,FALSE) -> 0 | F8: =VLOOKUP(($B8&"_"&F$2&"_"&F$3&"_"&F$4&"_"&$A8),'All Data'!$A$2:$L$1048576,F$1,FALSE) -> 0 | G8: =VLOOKUP(($B8&"_"&G$2&"_"&G$3&"_"&G$4&"_"&$A8),'All Data'!$A$2:$L$1048576,G$1,FALSE) -> 0.1803145 | H8: =VLOOKUP(($B8&"_"&H$2&"_"&H$3&"_"&H$4&"_"&$A8),'All Data'!$A$2:$L$1048576,H$1,FALSE) -> 6.669952 | I8: =VLOOKUP(($B8&"_"&I$2&"_"&I$3&"_"&I$4&"_"&$A8),'All Data'!$A$2:$L$1048576,I$1,FALSE) -> -3.208855 | J8: =VLOOKUP(($B8&"_"&J$2&"_"&J$3&"_"&J$4&"_"&$A8),'All Data'!$A$2:$L$1048576,J$1,FALSE) -> 8.06556 | K8: =VLOOKUP(($B8&"_"&K$2&"_"&K$3&"_"&K$4&"_"&$A8),'All Data'!$A$2:$L$1048576,K$1,FALSE) -> 75.21441 | L8: =VLOOKUP(($B8&"_"&L$2&"_"&L$3&"_"&L$4&"_"&$A8),'All Data'!$A$2:$L$1048576,L$1,FALSE) -> 80.74199 | M8: =VLOOKUP(($B8&"_"&M$2&"_"&M$3&"_"&M$4&"_"&$A8),'All Data'!$A$2:$L$1048576,M$1,FALSE) ->  | N8: =VLOOKUP(($B8&"_"&N$2&"_"&N$3&"_"&N$4&"_"&$A8),'All Data'!$A$2:$L$1048576,N$1,FALSE) ->  | O8: =VLOOKUP(($B8&"_"&O$2&"_"&O$3&"_"&O$4&"_"&$A8),'All Data'!$A$2:$L$1048576,O$1,FALSE) -> 21.19072 | P8: =VLOOKUP(($B8&"_"&P$2&"_"&P$3&"_"&P$4&"_"&$A8),'All Data'!$A$2:$L$1048576,P$1,FALSE) -> 27.04186 | Q8: =VLOOKUP(($B8&"_"&Q$2&"_"&Q$3&"_"&Q$4&"_"&$A8),'All Data'!$A$2:$L$1048576,Q$1,FALSE) -> 2.36457 | R8: =VLOOKUP(($B8&"_"&R$2&"_"&R$3&"_"&R$4&"_"&$A8),'All Data'!$A$2:$L$1048576,R$1,FALSE) -> 2.636746 | S8: =VLOOKUP(($B8&"_"&S$2&"_"&S$3&"_"&S$4&"_"&$A8),'All Data'!$A$2:$L$1048576,S$1,FALSE) -> 37.3797 | T8: =VLOOKUP(($B8&"_"&T$2&"_"&T$3&"_"&T$4&"_"&$A8),'All Data'!$A$2:$L$1048576,T$1,FALSE) -> 44.04145 | U8: =VLOOKUP(($B8&"_"&U$2&"_"&U$3&"_"&U$4&"_"&$A8),'All Data'!$A$2:$L$1048576,U$1,FALSE) -> 52.86305 | V8: =VLOOKUP(($B8&"_"&V$2&"_"&V$3&"_"&V$4&"_"&$A8),'All Data'!$A$2:$L$1048576,V$1,FALSE) -> 59.33945 | W8: =VLOOKUP(($B8&"_"&W$2&"_"&W$3&"_"&W$4&"_"&$A8),'All Data'!$A$2:$L$1048576,W$1,FALSE) -> 330.94651 | X8: =VLOOKUP(($B8&"_"&X$2&"_"&X$3&"_"&X$4&"_"&$A8),'All Data'!$A$2:$L$1048576,X$1,FALSE) -> 403.39877 | Y8: =VLOOKUP(($B8&"_"&Y$2&"_"&Y$3&"_"&Y$4&"_"&$A8),'All Data'!$A$2:$L$1048576,Y$1,FALSE) -> 427.42395 | Z8: =VLOOKUP(($B8&"_"&Z$2&"_"&Z$3&"_"&Z$4&"_"&$A8),'All Data'!$A$2:$L$1048576,Z$1,FALSE) -> 546.27973 | AA8: =VLOOKUP(($B8&"_"&AA$2&"_"&AA$3&"_"&AA$4&"_"&$A8),'All Data'!$A$2:$L$1048576,AA$1,FALSE) -> 210.11351 | AB8: =VLOOKUP(($B8&"_"&AB$2&"_"&AB$3&"_"&AB$4&"_"&$A8),'All Data'!$A$2:$L$1048576,AB$1,FALSE) -> 294.86779 | AC8: =VLOOKUP(($B8&"_"&AC$2&"_"&AC$3&"_"&AC$4&"_"&$A8),'All Data'!$A$2:$L$1048576,AC$1,FALSE) -> 26.47198178 | AD8: =VLOOKUP(($B8&"_"&AD$2&"_"&AD$3&"_"&AD$4&"_"&$A8),'All Data'!$A$2:$L$1048576,AD$1,FALSE) -> 42.32346241 | AE8: =VLOOKUP(($B8&"_"&AE$2&"_"&AE$3&"_"&AE$4&"_"&$A8),'All Data'!$A$2:$L$1048576,AE$1,FALSE) -> 696.38687 | AF8: =VLOOKUP(($B8&"_"&AF$2&"_"&AF$3&"_"&AF$4&"_"&$A8),'All Data'!$A$2:$L$1048576,AF$1,FALSE) -> 911.86861 | AG8: =VLOOKUP(($B8&"_"&AG$2&"_"&AG$3&"_"&AG$4&"_"&$A8),'All Data'!$A$2:$L$1048576,AG$1,FALSE) -> 383.79665 | AH8: =VLOOKUP(($B8&"_"&AH$2&"_"&AH$3&"_"&AH$4&"_"&$A8),'All Data'!$A$2:$L$1048576,AH$1,FALSE) -> 659.95825 | AI8: =VLOOKUP(($B8&"_"&AI$2&"_"&AI$3&"_"&AI$4&"_"&$A8),'All Data'!$A$2:$L$1048576,AI$1,FALSE) -> 850.11875 | AJ8: =VLOOKUP(($B8&"_"&AJ$2&"_"&AJ$3&"_"&AJ$4&"_"&$A8),'All Data'!$A$2:$L$1048576,AJ$1,FALSE) -> 1171.85617 | AK8: =VLOOKUP(($B8&"_"&AK$2&"_"&AK$3&"_"&AK$4&"_"&$A8),'All Data'!$A$2:$L$1048576,AK$1,FALSE) -> 82.9656945 | AL8: =VLOOKUP(($B8&"_"&AL$2&"_"&AL$3&"_"&AL$4&"_"&$A8),'All Data'!$A$2:$L$1048576,AL$1,FALSE) -> 86.9461777
A9: LA | B9: Conwy | C9: =VLOOKUP(($B9&"_"&C$2&"_"&C$3&"_"&C$4&"_"&$A9),'All Data'!$A$2:$L$1048576,C$1,FALSE) -> 0 | D9: =VLOOKUP(($B9&"_"&D$2&"_"&D$3&"_"&D$4&"_"&$A9),'All Data'!$A$2:$L$1048576,D$1,FALSE) -> 0 | E9: =VLOOKUP(($B9&"_"&E$2&"_"&E$3&"_"&E$4&"_"&$A9),'All Data'!$A$2:$L$1048576,E$1,FALSE) -> 0 | F9: =VLOOKUP(($B9&"_"&F$2&"_"&F$3&"_"&F$4&"_"&$A9),'All Data'!$A$2:$L$1048576,F$1,FALSE) -> 0 | G9: =VLOOKUP(($B9&"_"&G$2&"_"&G$3&"_"&G$4&"_"&$A9),'All Data'!$A$2:$L$1048576,G$1,FALSE) -> 5.792895 | H9: =VLOOKUP(($B9&"_"&H$2&"_"&H$3&"_"&H$4&"_"&$A9),'All Data'!$A$2:$L$1048576,H$1,FALSE) -> 10.3334 | I9: =VLOOKUP(($B9&"_"&I$2&"_"&I$3&"_"&I$4&"_"&$A9),'All Data'!$A$2:$L$1048576,I$1,FALSE) -> 4.13759 | J9: =VLOOKUP(($B9&"_"&J$2&"_"&J$3&"_"&J$4&"_"&$A9),'All Data'!$A$2:$L$1048576,J$1,FALSE) -> 9.43277 | K9: =VLOOKUP(($B9&"_"&K$2&"_"&K$3&"_"&K$4&"_"&$A9),'All Data'!$A$2:$L$1048576,K$1,FALSE) -> 77.47878 | L9: =VLOOKUP(($B9&"_"&L$2&"_"&L$3&"_"&L$4&"_"&$A9),'All Data'!$A$2:$L$1048576,L$1,FALSE) -> 82.45317 | M9: =VLOOKUP(($B9&"_"&M$2&"_"&M$3&"_"&M$4&"_"&$A9),'All Data'!$A$2:$L$1048576,M$1,FALSE) ->  | N9: =VLOOKUP(($B9&"_"&N$2&"_"&N$3&"_"&N$4&"_"&$A9),'All Data'!$A$2:$L$1048576,N$1,FALSE) ->  | O9: =VLOOKUP(($B9&"_"&O$2&"_"&O$3&"_"&O$4&"_"&$A9),'All Data'!$A$2:$L$1048576,O$1,FALSE) -> 19.44904 | P9: =VLOOKUP(($B9&"_"&P$2&"_"&P$3&"_"&P$4&"_"&$A9),'All Data'!$A$2:$L$1048576,P$1,FALSE) -> 24.84411 | Q9: =VLOOKUP(($B9&"_"&Q$2&"_"&Q$3&"_"&Q$4&"_"&$A9),'All Data'!$A$2:$L$1048576,Q$1,FALSE) -> 2.43085 | R9: =VLOOKUP(($B9&"_"&R$2&"_"&R$3&"_"&R$4&"_"&$A9),'All Data'!$A$2:$L$1048576,R$1,FALSE) -> 2.69435 | S9: =VLOOKUP(($B9&"_"&S$2&"_"&S$3&"_"&S$4&"_"&$A9),'All Data'!$A$2:$L$1048576,S$1,FALSE) -> 31.54584 | T9: =VLOOKUP(($B9&"_"&T$2&"_"&T$3&"_"&T$4&"_"&$A9),'All Data'!$A$2:$L$1048576,T$1,FALSE) -> 37.72633 | U9: =VLOOKUP(($B9&"_"&U$2&"_"&U$3&"_"&U$4&"_"&$A9),'All Data'!$A$2:$L$1048576,U$1,FALSE) -> 48.06402 | V9: =VLOOKUP(($B9&"_"&V$2&"_"&V$3&"_"&V$4&"_"&$A9),'All Data'!$A$2:$L$1048576,V$1,FALSE) -> 54.20354 | W9: =VLOOKUP(($B9&"_"&W$2&"_"&W$3&"_"&W$4&"_"&$A9),'All Data'!$A$2:$L$1048576,W$1,FALSE) -> 372.39396 | X9: =VLOOKUP(($B9&"_"&X$2&"_"&X$3&"_"&X$4&"_"&$A9),'All Data'!$A$2:$L$1048576,X$1,FALSE) -> 453.66752 | Y9: =VLOOKUP(($B9&"_"&Y$2&"_"&Y$3&"_"&Y$4&"_"&$A9),'All Data'!$A$2:$L$1048576,Y$1,FALSE) -> 465.96588 | Z9: =VLOOKUP(($B9&"_"&Z$2&"_"&Z$3&"_"&Z$4&"_"&$A9),'All Data'!$A$2:$L$1048576,Z$1,FALSE) -> 595.21693 | AA9: =VLOOKUP(($B9&"_"&AA$2&"_"&AA$3&"_"&AA$4&"_"&$A9),'All Data'!$A$2:$L$1048576,AA$1,FALSE) -> 253.77181 | AB9: =VLOOKUP(($B9&"_"&AB$2&"_"&AB$3&"_"&AB$4&"_"&$A9),'All Data'!$A$2:$L$1048576,AB$1,FALSE) -> 354.86909 | AC9: =VLOOKUP(($B9&"_"&AC$2&"_"&AC$3&"_"&AC$4&"_"&$A9),'All Data'!$A$2:$L$1048576,AC$1,FALSE) -> 30.50552209 | AD9: =VLOOKUP(($B9&"_"&AD$2&"_"&AD$3&"_"&AD$4&"_"&$A9),'All Data'!$A$2:$L$1048576,AD$1,FALSE) -> 48.31174699 | AE9: =VLOOKUP(($B9&"_"&AE$2&"_"&AE$3&"_"&AE$4&"_"&$A9),'All Data'!$A$2:$L$1048576,AE$1,FALSE) -> 627.92705 | AF9: =VLOOKUP(($B9&"_"&AF$2&"_"&AF$3&"_"&AF$4&"_"&$A9),'All Data'!$A$2:$L$1048576,AF$1,FALSE) -> 811.96809 | AG9: =VLOOKUP(($B9&"_"&AG$2&"_"&AG$3&"_"&AG$4&"_"&$A9),'All Data'!$A$2:$L$1048576,AG$1,FALSE) -> 392.51496 | AH9: =VLOOKUP(($B9&"_"&AH$2&"_"&AH$3&"_"&AH$4&"_"&$A9),'All Data'!$A$2:$L$1048576,AH$1,FALSE) -> 638.29253 | AI9: =VLOOKUP(($B9&"_"&AI$2&"_"&AI$3&"_"&AI$4&"_"&$A9),'All Data'!$A$2:$L$1048576,AI$1,FALSE) -> 733.54247 | AJ9: =VLOOKUP(($B9&"_"&AJ$2&"_"&AJ$3&"_"&AJ$4&"_"&$A9),'All Data'!$A$2:$L$1048576,AJ$1,FALSE) -> 1001.30242 | AK9: =VLOOKUP(($B9&"_"&AK$2&"_"&AK$3&"_"&AK$4&"_"&$A9),'All Data'!$A$2:$L$1048576,AK$1,FALSE) -> 78.82166231 | AL9: =VLOOKUP(($B9&"_"&AL$2&"_"&AL$3&"_"&AL$4&"_"&$A9),'All Data'!$A$2:$L$1048576,AL$1,FALSE) -> 83.41741923
A10: LA | B10: Denbighshire | C10: =VLOOKUP(($B10&"_"&C$2&"_"&C$3&"_"&C$4&"_"&$A10),'All Data'!$A$2:$L$1048576,C$1,FALSE) -> 0 | D10: =VLOOKUP(($B10&"_"&D$2&"_"&D$3&"_"&D$4&"_"&$A10),'All Data'!$A$2:$L$1048576,D$1,FALSE) -> 0 | E10: =VLOOKUP(($B10&"_"&E$2&"_"&E$3&"_"&E$4&"_"&$A10),'All Data'!$A$2:$L$1048576,E$1,FALSE) -> 0 | F10: =VLOOKUP(($B10&"_"&F$2&"_"&F$3&"_"&F$4&"_"&$A10),'All Data'!$A$2:$L$1048576,F$1,FALSE) -> 0 | G10: =VLOOKUP(($B10&"_"&G$2&"_"&G$3&"_"&G$4&"_"&$A10),'All Data'!$A$2:$L$1048576,G$1,FALSE) -> -3.09605 | H10: =VLOOKUP(($B10&"_"&H$2&"_"&H$3&"_"&H$4&"_"&$A10),'All Data'!$A$2:$L$1048576,H$1,FALSE) -> 18.38789 | I10: =VLOOKUP(($B10&"_"&I$2&"_"&I$3&"_"&I$4&"_"&$A10),'All Data'!$A$2:$L$1048576,I$1,FALSE) -> -2.959519 | J10: =VLOOKUP(($B10&"_"&J$2&"_"&J$3&"_"&J$4&"_"&$A10),'All Data'!$A$2:$L$1048576,J$1,FALSE) -> 10.43322 | K10: =VLOOKUP(($B10&"_"&K$2&"_"&K$3&"_"&K$4&"_"&$A10),'All Data'!$A$2:$L$1048576,K$1,FALSE) -> 74.47421 | L10: =VLOOKUP(($B10&"_"&L$2&"_"&L$3&"_"&L$4&"_"&$A10),'All Data'!$A$2:$L$1048576,L$1,FALSE) -> 79.5529 | M10: =VLOOKUP(($B10&"_"&M$2&"_"&M$3&"_"&M$4&"_"&$A10),'All Data'!$A$2:$L$1048576,M$1,FALSE) ->  | N10: =VLOOKUP(($B10&"_"&N$2&"_"&N$3&"_"&N$4&"_"&$A10),'All Data'!$A$2:$L$1048576,N$1,FALSE) ->  | O10: =VLOOKUP(($B10&"_"&O$2&"_"&O$3&"_"&O$4&"_"&$A10),'All Data'!$A$2:$L$1048576,O$1,FALSE) -> 20.35108 | P10: =VLOOKUP(($B10&"_"&P$2&"_"&P$3&"_"&P$4&"_"&$A10),'All Data'!$A$2:$L$1048576,P$1,FALSE) -> 25.74476 | Q10: =VLOOKUP(($B10&"_"&Q$2&"_"&Q$3&"_"&Q$4&"_"&$A10),'All Data'!$A$2:$L$1048576,Q$1,FALSE) -> 2.379158 | R10: =VLOOKUP(($B10&"_"&R$2&"_"&R$3&"_"&R$4&"_"&$A10),'All Data'!$A$2:$L$1048576,R$1,FALSE) -> 2.63719 | S10: =VLOOKUP(($B10&"_"&S$2&"_"&S$3&"_"&S$4&"_"&$A10),'All Data'!$A$2:$L$1048576,S$1,FALSE) -> 33.01999 | T10: =VLOOKUP(($B10&"_"&T$2&"_"&T$3&"_"&T$4&"_"&$A10),'All Data'!$A$2:$L$1048576,T$1,FALSE) -> 39.11475 | U10: =VLOOKUP(($B10&"_"&U$2&"_"&U$3&"_"&U$4&"_"&$A10),'All Data'!$A$2:$L$1048576,U$1,FALSE) -> 51.3506 | V10: =VLOOKUP(($B10&"_"&V$2&"_"&V$3&"_"&V$4&"_"&$A10),'All Data'!$A$2:$L$1048576,V$1,FALSE) -> 57.54043 | W10: =VLOOKUP(($B10&"_"&W$2&"_"&W$3&"_"&W$4&"_"&$A10),'All Data'!$A$2:$L$1048576,W$1,FALSE) -> 328.41045 | X10: =VLOOKUP(($B10&"_"&X$2&"_"&X$3&"_"&X$4&"_"&$A10),'All Data'!$A$2:$L$1048576,X$1,FALSE) -> 408.56401 | Y10: =VLOOKUP(($B10&"_"&Y$2&"_"&Y$3&"_"&Y$4&"_"&$A10),'All Data'!$A$2:$L$1048576,Y$1,FALSE) -> 384.24913 | Z10: =VLOOKUP(($B10&"_"&Z$2&"_"&Z$3&"_"&Z$4&"_"&$A10),'All Data'!$A$2:$L$1048576,Z$1,FALSE) -> 509.87144 | AA10: =VLOOKUP(($B10&"_"&AA$2&"_"&AA$3&"_"&AA$4&"_"&$A10),'All Data'!$A$2:$L$1048576,AA$1,FALSE) -> 245.96544 | AB10: =VLOOKUP(($B10&"_"&AB$2&"_"&AB$3&"_"&AB$4&"_"&$A10),'All Data'!$A$2:$L$1048576,AB$1,FALSE) -> 348.3412 | AC10: =VLOOKUP(($B10&"_"&AC$2&"_"&AC$3&"_"&AC$4&"_"&$A10),'All Data'!$A$2:$L$1048576,AC$1,FALSE) -> 27.2379936 | AD10: =VLOOKUP(($B10&"_"&AD$2&"_"&AD$3&"_"&AD$4&"_"&$A10),'All Data'!$A$2:$L$1048576,AD$1,FALSE) -> 44.80683031 | AE10: =VLOOKUP(($B10&"_"&AE$2&"_"&AE$3&"_"&AE$4&"_"&$A10),'All Data'!$A$2:$L$1048576,AE$1,FALSE) -> 378.21558 | AF10: =VLOOKUP(($B10&"_"&AF$2&"_"&AF$3&"_"&AF$4&"_"&$A10),'All Data'!$A$2:$L$1048576,AF$1,FALSE) -> 541.99529 | AG10: =VLOOKUP(($B10&"_"&AG$2&"_"&AG$3&"_"&AG$4&"_"&$A10),'All Data'!$A$2:$L$1048576,AG$1,FALSE) -> 175.15889 | AH10: =VLOOKUP(($B10&"_"&AH$2&"_"&AH$3&"_"&AH$4&"_"&$A10),'All Data'!$A$2:$L$1048576,AH$1,FALSE) -> 383.02936 | AI10: =VLOOKUP(($B10&"_"&AI$2&"_"&AI$3&"_"&AI$4&"_"&$A10),'All Data'!$A$2:$L$1048576,AI$1,FALSE) -> 471.04228 | AJ10: =VLOOKUP(($B10&"_"&AJ$2&"_"&AJ$3&"_"&AJ$4&"_"&$A10),'All Data'!$A$2:$L$1048576,AJ$1,FALSE) -> 720.49933 | AK10: =VLOOKUP(($B10&"_"&AK$2&"_"&AK$3&"_"&AK$4&"_"&$A10),'All Data'!$A$2:$L$1048576,AK$1,FALSE) -> 79.88976703 | AL10: =VLOOKUP(($B10&"_"&AL$2&"_"&AL$3&"_"&AL$4&"_"&$A10),'All Data'!$A$2:$L$1048576,AL$1,FALSE) -> 84.5219103
A11: LA | B11: Flintshire | C11: =VLOOKUP(($B11&"_"&C$2&"_"&C$3&"_"&C$4&"_"&$A11),'All Data'!$A$2:$L$1048576,C$1,FALSE) -> 0 | D11: =VLOOKUP(($B11&"_"&D$2&"_"&D$3&"_"&D$4&"_"&$A11),'All Data'!$A$2:$L$1048576,D$1,FALSE) -> 0 | E11: =VLOOKUP(($B11&"_"&E$2&"_"&E$3&"_"&E$4&"_"&$A11),'All Data'!$A$2:$L$1048576,E$1,FALSE) -> 0 | F11: =VLOOKUP(($B11&"_"&F$2&"_"&F$3&"_"&F$4&"_"&$A11),'All Data'!$A$2:$L$1048576,F$1,FALSE) -> 0 | G11: =VLOOKUP(($B11&"_"&G$2&"_"&G$3&"_"&G$4&"_"&$A11),'All Data'!$A$2:$L$1048576,G$1,FALSE) -> 1.470987 | H11: =VLOOKUP(($B11&"_"&H$2&"_"&H$3&"_"&H$4&"_"&$A11),'All Data'!$A$2:$L$1048576,H$1,FALSE) -> 13.44901 | I11: =VLOOKUP(($B11&"_"&I$2&"_"&I$3&"_"&I$4&"_"&$A11),'All Data'!$A$2:$L$1048576,I$1,FALSE) -> 4.129709 | J11: =VLOOKUP(($B11&"_"&J$2&"_"&J$3&"_"&J$4&"_"&$A11),'All Data'!$A$2:$L$1048576,J$1,FALSE) -> 9.49029 | K11: =VLOOKUP(($B11&"_"&K$2&"_"&K$3&"_"&K$4&"_"&$A11),'All Data'!$A$2:$L$1048576,K$1,FALSE) -> 77.05417 | L11: =VLOOKUP(($B11&"_"&L$2&"_"&L$3&"_"&L$4&"_"&$A11),'All Data'!$A$2:$L$1048576,L$1,FALSE) -> 81.73275 | M11: =VLOOKUP(($B11&"_"&M$2&"_"&M$3&"_"&M$4&"_"&$A11),'All Data'!$A$2:$L$1048576,M$1,FALSE) ->  | N11: =VLOOKUP(($B11&"_"&N$2&"_"&N$3&"_"&N$4&"_"&$A11),'All Data'!$A$2:$L$1048576,N$1,FALSE) ->  | O11: =VLOOKUP(($B11&"_"&O$2&"_"&O$3&"_"&O$4&"_"&$A11),'All Data'!$A$2:$L$1048576,O$1,FALSE) -> 18.91082 | P11: =VLOOKUP(($B11&"_"&P$2&"_"&P$3&"_"&P$4&"_"&$A11),'All Data'!$A$2:$L$1048576,P$1,FALSE) -> 24.0504 | Q11: =VLOOKUP(($B11&"_"&Q$2&"_"&Q$3&"_"&Q$4&"_"&$A11),'All Data'!$A$2:$L$1048576,Q$1,FALSE) -> 2.348149 | R11: =VLOOKUP(($B11&"_"&R$2&"_"&R$3&"_"&R$4&"_"&$A11),'All Data'!$A$2:$L$1048576,R$1,FALSE) -> 2.591137 | S11: =VLOOKUP(($B11&"_"&S$2&"_"&S$3&"_"&S$4&"_"&$A11),'All Data'!$A$2:$L$1048576,S$1,FALSE) -> 32.51419 | T11: =VLOOKUP(($B11&"_"&T$2&"_"&T$3&"_"&T$4&"_"&$A11),'All Data'!$A$2:$L$1048576,T$1,FALSE) -> 38.78325 | U11: =VLOOKUP(($B11&"_"&U$2&"_"&U$3&"_"&U$4&"_"&$A11),'All Data'!$A$2:$L$1048576,U$1,FALSE) -> 53.39932 | V11: =VLOOKUP(($B11&"_"&V$2&"_"&V$3&"_"&V$4&"_"&$A11),'All Data'!$A$2:$L$1048576,V$1,FALSE) -> 59.08834 | W11: =VLOOKUP(($B11&"_"&W$2&"_"&W$3&"_"&W$4&"_"&$A11),'All Data'!$A$2:$L$1048576,W$1,FALSE) -> 294.10234 | X11: =VLOOKUP(($B11&"_"&X$2&"_"&X$3&"_"&X$4&"_"&$A11),'All Data'!$A$2:$L$1048576,X$1,FALSE) -> 353.09653 | Y11: =VLOOKUP(($B11&"_"&Y$2&"_"&Y$3&"_"&Y$4&"_"&$A11),'All Data'!$A$2:$L$1048576,Y$1,FALSE) -> 339.83903 | Z11: =VLOOKUP(($B11&"_"&Z$2&"_"&Z$3&"_"&Z$4&"_"&$A11),'All Data'!$A$2:$L$1048576,Z$1,FALSE) -> 430.08524 | AA11: =VLOOKUP(($B11&"_"&AA$2&"_"&AA$3&"_"&AA$4&"_"&$A11),'All Data'!$A$2:$L$1048576,AA$1,FALSE) -> 228.68026 | AB11: =VLOOKUP(($B11&"_"&AB$2&"_"&AB$3&"_"&AB$4&"_"&$A11),'All Data'!$A$2:$L$1048576,AB$1,FALSE) -> 306.17178 | AC11: =VLOOKUP(($B11&"_"&AC$2&"_"&AC$3&"_"&AC$4&"_"&$A11),'All Data'!$A$2:$L$1048576,AC$1,FALSE) -> 30.87967512 | AD11: =VLOOKUP(($B11&"_"&AD$2&"_"&AD$3&"_"&AD$4&"_"&$A11),'All Data'!$A$2:$L$1048576,AD$1,FALSE) -> 45.71730855 | AE11: =VLOOKUP(($B11&"_"&AE$2&"_"&AE$3&"_"&AE$4&"_"&$A11),'All Data'!$A$2:$L$1048576,AE$1,FALSE) -> 640.13422 | AF11: =VLOOKUP(($B11&"_"&AF$2&"_"&AF$3&"_"&AF$4&"_"&$A11),'All Data'!$A$2:$L$1048576,AF$1,FALSE) -> 837.76834 | AG11: =VLOOKUP(($B11&"_"&AG$2&"_"&AG$3&"_"&AG$4&"_"&$A11),'All Data'!$A$2:$L$1048576,AG$1,FALSE) -> 359.11914 | AH11: =VLOOKUP(($B11&"_"&AH$2&"_"&AH$3&"_"&AH$4&"_"&$A11),'All Data'!$A$2:$L$1048576,AH$1,FALSE) -> 610.85365 | AI11: =VLOOKUP(($B11&"_"&AI$2&"_"&AI$3&"_"&AI$4&"_"&$A11),'All Data'!$A$2:$L$1048576,AI$1,FALSE) -> 787.12115 | AJ11: =VLOOKUP(($B11&"_"&AJ$2&"_"&AJ$3&"_"&AJ$4&"_"&$A11),'All Data'!$A$2:$L$1048576,AJ$1,FALSE) -> 1084.92247 | AK11: =VLOOKUP(($B11&"_"&AK$2&"_"&AK$3&"_"&AK$4&"_"&$A11),'All Data'!$A$2:$L$1048576,AK$1,FALSE) -> 81.266821 | AL11: =VLOOKUP(($B11&"_"&AL$2&"_"&AL$3&"_"&AL$4&"_"&$A11),'All Data'!$A$2:$L$1048576,AL$1,FALSE) -> 84.72459426
A12: LA | B12: Wrexham | C12: =VLOOKUP(($B12&"_"&C$2&"_"&C$3&"_"&C$4&"_"&$A12),'All Data'!$A$2:$L$1048576,C$1,FALSE) -> 0 | D12: =VLOOKUP(($B12&"_"&D$2&"_"&D$3&"_"&D$4&"_"&$A12),'All Data'!$A$2:$L$1048576,D$1,FALSE) -> 0 | E12: =VLOOKUP(($B12&"_"&E$2&"_"&E$3&"_"&E$4&"_"&$A12),'All Data'!$A$2:$L$1048576,E$1,FALSE) -> 0 | F12: =VLOOKUP(($B12&"_"&F$2&"_"&F$3&"_"&F$4&"_"&$A12),'All Data'!$A$2:$L$1048576,F$1,FALSE) -> 0 | G12: =VLOOKUP(($B12&"_"&G$2&"_"&G$3&"_"&G$4&"_"&$A12),'All Data'!$A$2:$L$1048576,G$1,FALSE) -> 5.541477 | H12: =VLOOKUP(($B12&"_"&H$2&"_"&H$3&"_"&H$4&"_"&$A12),'All Data'!$A$2:$L$1048576,H$1,FALSE) -> 12.81256 | I12: =VLOOKUP(($B12&"_"&I$2&"_"&I$3&"_"&I$4&"_"&$A12),'All Data'!$A$2:$L$1048576,I$1,FALSE) -> 0.9766005 | J12: =VLOOKUP(($B12&"_"&J$2&"_"&J$3&"_"&J$4&"_"&$A12),'All Data'!$A$2:$L$1048576,J$1,FALSE) -> 15.3365 | K12: =VLOOKUP(($B12&"_"&K$2&"_"&K$3&"_"&K$4&"_"&$A12),'All Data'!$A$2:$L$1048576,K$1,FALSE) -> 72.27932 | L12: =VLOOKUP(($B12&"_"&L$2&"_"&L$3&"_"&L$4&"_"&$A12),'All Data'!$A$2:$L$1048576,L$1,FALSE) -> 77.49748 | M12: =VLOOKUP(($B12&"_"&M$2&"_"&M$3&"_"&M$4&"_"&$A12),'All Data'!$A$2:$L$1048576,M$1,FALSE) ->  | N12: =VLOOKUP(($B12&"_"&N$2&"_"&N$3&"_"&N$4&"_"&$A12),'All Data'!$A$2:$L$1048576,N$1,FALSE) ->  | O12: =VLOOKUP(($B12&"_"&O$2&"_"&O$3&"_"&O$4&"_"&$A12),'All Data'!$A$2:$L$1048576,O$1,FALSE) -> 23.2677 | P12: =VLOOKUP(($B12&"_"&P$2&"_"&P$3&"_"&P$4&"_"&$A12),'All Data'!$A$2:$L$1048576,P$1,FALSE) -> 29.05224 | Q12: =VLOOKUP(($B12&"_"&Q$2&"_"&Q$3&"_"&Q$4&"_"&$A12),'All Data'!$A$2:$L$1048576,Q$1,FALSE) -> 2.238246 | R12: =VLOOKUP(($B12&"_"&R$2&"_"&R$3&"_"&R$4&"_"&$A12),'All Data'!$A$2:$L$1048576,R$1,FALSE) -> 2.494614 | S12: =VLOOKUP(($B12&"_"&S$2&"_"&S$3&"_"&S$4&"_"&$A12),'All Data'!$A$2:$L$1048576,S$1,FALSE) -> 28.83209 | T12: =VLOOKUP(($B12&"_"&T$2&"_"&T$3&"_"&T$4&"_"&$A12),'All Data'!$A$2:$L$1048576,T$1,FALSE) -> 34.65678 | U12: =VLOOKUP(($B12&"_"&U$2&"_"&U$3&"_"&U$4&"_"&$A12),'All Data'!$A$2:$L$1048576,U$1,FALSE) -> 51.40377 | V12: =VLOOKUP(($B12&"_"&V$2&"_"&V$3&"_"&V$4&"_"&$A12),'All Data'!$A$2:$L$1048576,V$1,FALSE) -> 57.29533 | W12: =VLOOKUP(($B12&"_"&W$2&"_"&W$3&"_"&W$4&"_"&$A12),'All Data'!$A$2:$L$1048576,W$1,FALSE) -> 351.2045 | X12: =VLOOKUP(($B12&"_"&X$2&"_"&X$3&"_"&X$4&"_"&$A12),'All Data'!$A$2:$L$1048576,X$1,FALSE) -> 418.61322 | Y12: =VLOOKUP(($B12&"_"&Y$2&"_"&Y$3&"_"&Y$4&"_"&$A12),'All Data'!$A$2:$L$1048576,Y$1,FALSE) -> 422.72623 | Z12: =VLOOKUP(($B12&"_"&Z$2&"_"&Z$3&"_"&Z$4&"_"&$A12),'All Data'!$A$2:$L$1048576,Z$1,FALSE) -> 528.61239 | AA12: =VLOOKUP(($B12&"_"&AA$2&"_"&AA$3&"_"&AA$4&"_"&$A12),'All Data'!$A$2:$L$1048576,AA$1,FALSE) -> 256.36304 | AB12: =VLOOKUP(($B12&"_"&AB$2&"_"&AB$3&"_"&AB$4&"_"&$A12),'All Data'!$A$2:$L$1048576,AB$1,FALSE) -> 341.25378 | AC12: =VLOOKUP(($B12&"_"&AC$2&"_"&AC$3&"_"&AC$4&"_"&$A12),'All Data'!$A$2:$L$1048576,AC$1,FALSE) -> 34.75680346 | AD12: =VLOOKUP(($B12&"_"&AD$2&"_"&AD$3&"_"&AD$4&"_"&$A12),'All Data'!$A$2:$L$1048576,AD$1,FALSE) -> 52.06436285 | AE12: =VLOOKUP(($B12&"_"&AE$2&"_"&AE$3&"_"&AE$4&"_"&$A12),'All Data'!$A$2:$L$1048576,AE$1,FALSE) -> 406.99666 | AF12: =VLOOKUP(($B12&"_"&AF$2&"_"&AF$3&"_"&AF$4&"_"&$A12),'All Data'!$A$2:$L$1048576,AF$1,FALSE) -> 574.48985 | AG12: =VLOOKUP(($B12&"_"&AG$2&"_"&AG$3&"_"&AG$4&"_"&$A12),'All Data'!$A$2:$L$1048576,AG$1,FALSE) -> 231.16973 | AH12: =VLOOKUP(($B12&"_"&AH$2&"_"&AH$3&"_"&AH$4&"_"&$A12),'All Data'!$A$2:$L$1048576,AH$1,FALSE) -> 460.38342 | AI12: =VLOOKUP(($B12&"_"&AI$2&"_"&AI$3&"_"&AI$4&"_"&$A12),'All Data'!$A$2:$L$1048576,AI$1,FALSE) -> 473.70766 | AJ12: =VLOOKUP(($B12&"_"&AJ$2&"_"&AJ$3&"_"&AJ$4&"_"&$A12),'All Data'!$A$2:$L$1048576,AJ$1,FALSE) -> 717.06965 | AK12: =VLOOKUP(($B12&"_"&AK$2&"_"&AK$3&"_"&AK$4&"_"&$A12),'All Data'!$A$2:$L$1048576,AK$1,FALSE) -> 82.93929454 | AL12: =VLOOKUP(($B12&"_"&AL$2&"_"&AL$3&"_"&AL$4&"_"&$A12),'All Data'!$A$2:$L$1048576,AL$1,FALSE) -> 86.43018348
A13: LA | B13: Powys | C13: =VLOOKUP(($B13&"_"&C$2&"_"&C$3&"_"&C$4&"_"&$A13),'All Data'!$A$2:$L$1048576,C$1,FALSE) -> 0 | D13: =VLOOKUP(($B13&"_"&D$2&"_"&D$3&"_"&D$4&"_"&$A13),'All Data'!$A$2:$L$1048576,D$1,FALSE) -> 0 | E13: =VLOOKUP(($B13&"_"&E$2&"_"&E$3&"_"&E$4&"_"&$A13),'All Data'!$A$2:$L$1048576,E$1,FALSE) -> 0 | F13: =VLOOKUP(($B13&"_"&F$2&"_"&F$3&"_"&F$4&"_"&$A13),'All Data'!$A$2:$L$1048576,F$1,FALSE) -> 0 | G13: =VLOOKUP(($B13&"_"&G$2&"_"&G$3&"_"&G$4&"_"&$A13),'All Data'!$A$2:$L$1048576,G$1,FALSE) -> -0.4952769 | H13: =VLOOKUP(($B13&"_"&H$2&"_"&H$3&"_"&H$4&"_"&$A13),'All Data'!$A$2:$L$1048576,H$1,FALSE) -> 11.44021 | I13: =VLOOKUP(($B13&"_"&I$2&"_"&I$3&"_"&I$4&"_"&$A13),'All Data'!$A$2:$L$1048576,I$1,FALSE) -> -4.037244 | J13: =VLOOKUP(($B13&"_"&J$2&"_"&J$3&"_"&J$4&"_"&$A13),'All Data'!$A$2:$L$1048576,J$1,FALSE) -> 13.85472 | K13: =VLOOKUP(($B13&"_"&K$2&"_"&K$3&"_"&K$4&"_"&$A13),'All Data'!$A$2:$L$1048576,K$1,FALSE) -> 77.07039 | L13: =VLOOKUP(($B13&"_"&L$2&"_"&L$3&"_"&L$4&"_"&$A13),'All Data'!$A$2:$L$1048576,L$1,FALSE) -> 82.57381 | M13: =VLOOKUP(($B13&"_"&M$2&"_"&M$3&"_"&M$4&"_"&$A13),'All Data'!$A$2:$L$1048576,M$1,FALSE) ->  | N13: =VLOOKUP(($B13&"_"&N$2&"_"&N$3&"_"&N$4&"_"&$A13),'All Data'!$A$2:$L$1048576,N$1,FALSE) ->  | O13: =VLOOKUP(($B13&"_"&O$2&"_"&O$3&"_"&O$4&"_"&$A13),'All Data'!$A$2:$L$1048576,O$1,FALSE) -> 19.8109 | P13: =VLOOKUP(($B13&"_"&P$2&"_"&P$3&"_"&P$4&"_"&$A13),'All Data'!$A$2:$L$1048576,P$1,FALSE) -> 25.6937 | Q13: =VLOOKUP(($B13&"_"&Q$2&"_"&Q$3&"_"&Q$4&"_"&$A13),'All Data'!$A$2:$L$1048576,Q$1,FALSE) -> 2.625976 | R13: =VLOOKUP(($B13&"_"&R$2&"_"&R$3&"_"&R$4&"_"&$A13),'All Data'!$A$2:$L$1048576,R$1,FALSE) -> 2.891827 | S13: =VLOOKUP(($B13&"_"&S$2&"_"&S$3&"_"&S$4&"_"&$A13),'All Data'!$A$2:$L$1048576,S$1,FALSE) -> 33.77557 | T13: =VLOOKUP(($B13&"_"&T$2&"_"&T$3&"_"&T$4&"_"&$A13),'All Data'!$A$2:$L$1048576,T$1,FALSE) -> 40.36398 | U13: =VLOOKUP(($B13&"_"&U$2&"_"&U$3&"_"&U$4&"_"&$A13),'All Data'!$A$2:$L$1048576,U$1,FALSE) -> 52.76245 | V13: =VLOOKUP(($B13&"_"&V$2&"_"&V$3&"_"&V$4&"_"&$A13),'All Data'!$A$2:$L$1048576,V$1,FALSE) -> 59.18378 | W13: =VLOOKUP(($B13&"_"&W$2&"_"&W$3&"_"&W$4&"_"&$A13),'All Data'!$A$2:$L$1048576,W$1,FALSE) -> 193.4983 | X13: =VLOOKUP(($B13&"_"&X$2&"_"&X$3&"_"&X$4&"_"&$A13),'All Data'!$A$2:$L$1048576,X$1,FALSE) -> 248.70436 | Y13: =VLOOKUP(($B13&"_"&Y$2&"_"&Y$3&"_"&Y$4&"_"&$A13),'All Data'!$A$2:$L$1048576,Y$1,FALSE) -> 261.83452 | Z13: =VLOOKUP(($B13&"_"&Z$2&"_"&Z$3&"_"&Z$4&"_"&$A13),'All Data'!$A$2:$L$1048576,Z$1,FALSE) -> 353.29258 | AA13: =VLOOKUP(($B13&"_"&AA$2&"_"&AA$3&"_"&AA$4&"_"&$A13),'All Data'!$A$2:$L$1048576,AA$1,FALSE) -> 105.40588 | AB13: =VLOOKUP(($B13&"_"&AB$2&"_"&AB$3&"_"&AB$4&"_"&$A13),'All Data'!$A$2:$L$1048576,AB$1,FALSE) -> 167.22681 | AC13: =VLOOKUP(($B13&"_"&AC$2&"_"&AC$3&"_"&AC$4&"_"&$A13),'All Data'!$A$2:$L$1048576,AC$1,FALSE) -> 18.14858032 | AD13: =VLOOKUP(($B13&"_"&AD$2&"_"&AD$3&"_"&AD$4&"_"&$A13),'All Data'!$A$2:$L$1048576,AD$1,FALSE) -> 30.47724621 | AE13: =VLOOKUP(($B13&"_"&AE$2&"_"&AE$3&"_"&AE$4&"_"&$A13),'All Data'!$A$2:$L$1048576,AE$1,FALSE) -> 536.83634 | AF13: =VLOOKUP(($B13&"_"&AF$2&"_"&AF$3&"_"&AF$4&"_"&$A13),'All Data'!$A$2:$L$1048576,AF$1,FALSE) -> 700.17668 | AG13: =VLOOKUP(($B13&"_"&AG$2&"_"&AG$3&"_"&AG$4&"_"&$A13),'All Data'!$A$2:$L$1048576,AG$1,FALSE) -> 274.07488 | AH13: =VLOOKUP(($B13&"_"&AH$2&"_"&AH$3&"_"&AH$4&"_"&$A13),'All Data'!$A$2:$L$1048576,AH$1,FALSE) -> 469.64096 | AI13: =VLOOKUP(($B13&"_"&AI$2&"_"&AI$3&"_"&AI$4&"_"&$A13),'All Data'!$A$2:$L$1048576,AI$1,FALSE) -> 681.24069 | AJ13: =VLOOKUP(($B13&"_"&AJ$2&"_"&AJ$3&"_"&AJ$4&"_"&$A13),'All Data'!$A$2:$L$1048576,AJ$1,FALSE) -> 932.70222 | AK13: =VLOOKUP(($B13&"_"&AK$2&"_"&AK$3&"_"&AK$4&"_"&$A13),'All Data'!$A$2:$L$1048576,AK$1,FALSE) -> 79.18320406 | AL13: =VLOOKUP(($B13&"_"&AL$2&"_"&AL$3&"_"&AL$4&"_"&$A13),'All Data'!$A$2:$L$1048576,AL$1,FALSE) -> 83.45160544
A14: LA | B14: Ceredigion | C14: =VLOOKUP(($B14&"_"&C$2&"_"&C$3&"_"&C$4&"_"&$A14),'All Data'!$A$2:$L$1048576,C$1,FALSE) -> 0 | D14: =VLOOKUP(($B14&"_"&D$2&"_"&D$3&"_"&D$4&"_"&$A14),'All Data'!$A$2:$L$1048576,D$1,FALSE) -> 0 | E14: =VLOOKUP(($B14&"_"&E$2&"_"&E$3&"_"&E$4&"_"&$A14),'All Data'!$A$2:$L$1048576,E$1,FALSE) -> 0 | F14: =VLOOKUP(($B14&"_"&F$2&"_"&F$3&"_"&F$4&"_"&$A14),'All Data'!$A$2:$L$1048576,F$1,FALSE) -> 0 | G14: =VLOOKUP(($B14&"_"&G$2&"_"&G$3&"_"&G$4&"_"&$A14),'All Data'!$A$2:$L$1048576,G$1,FALSE) -> 2.851477 | H14: =VLOOKUP(($B14&"_"&H$2&"_"&H$3&"_"&H$4&"_"&$A14),'All Data'!$A$2:$L$1048576,H$1,FALSE) -> 12.48505 | I14: =VLOOKUP(($B14&"_"&I$2&"_"&I$3&"_"&I$4&"_"&$A14),'All Data'!$A$2:$L$1048576,I$1,FALSE) -> -1.092424 | J14: =VLOOKUP(($B14&"_"&J$2&"_"&J$3&"_"&J$4&"_"&$A14),'All Data'!$A$2:$L$1048576,J$1,FALSE) -> 3.537577 | K14: =VLOOKUP(($B14&"_"&K$2&"_"&K$3&"_"&K$4&"_"&$A14),'All Data'!$A$2:$L$1048576,K$1,FALSE) -> 78.0696 | L14: =VLOOKUP(($B14&"_"&L$2&"_"&L$3&"_"&L$4&"_"&$A14),'All Data'!$A$2:$L$1048576,L$1,FALSE) -> 83.14208 | M14: =VLOOKUP(($B14&"_"&M$2&"_"&M$3&"_"&M$4&"_"&$A14),'All Data'!$A$2:$L$1048576,M$1,FALSE) ->  | N14: =VLOOKUP(($B14&"_"&N$2&"_"&N$3&"_"&N$4&"_"&$A14),'All Data'!$A$2:$L$1048576,N$1,FALSE) ->  | O14: =VLOOKUP(($B14&"_"&O$2&"_"&O$3&"_"&O$4&"_"&$A14),'All Data'!$A$2:$L$1048576,O$1,FALSE) -> 19.99239 | P14: =VLOOKUP(($B14&"_"&P$2&"_"&P$3&"_"&P$4&"_"&$A14),'All Data'!$A$2:$L$1048576,P$1,FALSE) -> 25.77476 | Q14: =VLOOKUP(($B14&"_"&Q$2&"_"&Q$3&"_"&Q$4&"_"&$A14),'All Data'!$A$2:$L$1048576,Q$1,FALSE) -> 2.543165 | R14: =VLOOKUP(($B14&"_"&R$2&"_"&R$3&"_"&R$4&"_"&$A14),'All Data'!$A$2:$L$1048576,R$1,FALSE) -> 2.805847 | S14: =VLOOKUP(($B14&"_"&S$2&"_"&S$3&"_"&S$4&"_"&$A14),'All Data'!$A$2:$L$1048576,S$1,FALSE) -> 37.88317 | T14: =VLOOKUP(($B14&"_"&T$2&"_"&T$3&"_"&T$4&"_"&$A14),'All Data'!$A$2:$L$1048576,T$1,FALSE) -> 44.24475 | U14: =VLOOKUP(($B14&"_"&U$2&"_"&U$3&"_"&U$4&"_"&$A14),'All Data'!$A$2:$L$1048576,U$1,FALSE) -> 50.31176 | V14: =VLOOKUP(($B14&"_"&V$2&"_"&V$3&"_"&V$4&"_"&$A14),'All Data'!$A$2:$L$1048576,V$1,FALSE) -> 56.61647 | W14: =VLOOKUP(($B14&"_"&W$2&"_"&W$3&"_"&W$4&"_"&$A14),'All Data'!$A$2:$L$1048576,W$1,FALSE) -> 156.51339 | X14: =VLOOKUP(($B14&"_"&X$2&"_"&X$3&"_"&X$4&"_"&$A14),'All Data'!$A$2:$L$1048576,X$1,FALSE) -> 225.04823 | Y14: =VLOOKUP(($B14&"_"&Y$2&"_"&Y$3&"_"&Y$4&"_"&$A14),'All Data'!$A$2:$L$1048576,Y$1,FALSE) -> 210.13823 | Z14: =VLOOKUP(($B14&"_"&Z$2&"_"&Z$3&"_"&Z$4&"_"&$A14),'All Data'!$A$2:$L$1048576,Z$1,FALSE) -> 328.82234 | AA14: =VLOOKUP(($B14&"_"&AA$2&"_"&AA$3&"_"&AA$4&"_"&$A14),'All Data'!$A$2:$L$1048576,AA$1,FALSE) -> 83.47194 | AB14: =VLOOKUP(($B14&"_"&AB$2&"_"&AB$3&"_"&AB$4&"_"&$A14),'All Data'!$A$2:$L$1048576,AB$1,FALSE) -> 159.42985 | AC14: =VLOOKUP(($B14&"_"&AC$2&"_"&AC$3&"_"&AC$4&"_"&$A14),'All Data'!$A$2:$L$1048576,AC$1,FALSE) -> 15.22100313 | AD14: =VLOOKUP(($B14&"_"&AD$2&"_"&AD$3&"_"&AD$4&"_"&$A14),'All Data'!$A$2:$L$1048576,AD$1,FALSE) -> 32.64028213 | AE14: =VLOOKUP(($B14&"_"&AE$2&"_"&AE$3&"_"&AE$4&"_"&$A14),'All Data'!$A$2:$L$1048576,AE$1,FALSE) -> 407.9042 | AF14: =VLOOKUP(($B14&"_"&AF$2&"_"&AF$3&"_"&AF$4&"_"&$A14),'All Data'!$A$2:$L$1048576,AF$1,FALSE) -> 605.29593 | AG14: =VLOOKUP(($B14&"_"&AG$2&"_"&AG$3&"_"&AG$4&"_"&$A14),'All Data'!$A$2:$L$1048576,AG$1,FALSE) -> 236.31157 | AH14: =VLOOKUP(($B14&"_"&AH$2&"_"&AH$3&"_"&AH$4&"_"&$A14),'All Data'!$A$2:$L$1048576,AH$1,FALSE) -> 492.1863 | AI14: =VLOOKUP(($B14&"_"&AI$2&"_"&AI$3&"_"&AI$4&"_"&$A14),'All Data'!$A$2:$L$1048576,AI$1,FALSE) -> 493.95633 | AJ14: =VLOOKUP(($B14&"_"&AJ$2&"_"&AJ$3&"_"&AJ$4&"_"&$A14),'All Data'!$A$2:$L$1048576,AJ$1,FALSE) -> 802.20324 | AK14: =VLOOKUP(($B14&"_"&AK$2&"_"&AK$3&"_"&AK$4&"_"&$A14),'All Data'!$A$2:$L$1048576,AK$1,FALSE) -> 80.76130063 | AL14: =VLOOKUP(($B14&"_"&AL$2&"_"&AL$3&"_"&AL$4&"_"&$A14),'All Data'!$A$2:$L$1048576,AL$1,FALSE) -> 86.43293797
A15: LA | B15: Pembrokeshire | C15: =VLOOKUP(($B15&"_"&C$2&"_"&C$3&"_"&C$4&"_"&$A15),'All Data'!$A$2:$L$1048576,C$1,FALSE) -> 0 | D15: =VLOOKUP(($B15&"_"&D$2&"_"&D$3&"_"&D$4&"_"&$A15),'All Data'!$A$2:$L$1048576,D$1,FALSE) -> 0 | E15: =VLOOKUP(($B15&"_"&E$2&"_"&E$3&"_"&E$4&"_"&$A15),'All Data'!$A$2:$L$1048576,E$1,FALSE) -> 0 | F15: =VLOOKUP(($B15&"_"&F$2&"_"&F$3&"_"&F$4&"_"&$A15),'All Data'!$A$2:$L$1048576,F$1,FALSE) -> 0 | G15: =VLOOKUP(($B15&"_"&G$2&"_"&G$3&"_"&G$4&"_"&$A15),'All Data'!$A$2:$L$1048576,G$1,FALSE) -> -2.478867 | H15: =VLOOKUP(($B15&"_"&H$2&"_"&H$3&"_"&H$4&"_"&$A15),'All Data'!$A$2:$L$1048576,H$1,FALSE) -> 14.37415 | I15: =VLOOKUP(($B15&"_"&I$2&"_"&I$3&"_"&I$4&"_"&$A15),'All Data'!$A$2:$L$1048576,I$1,FALSE) -> 2.1196 | J15: =VLOOKUP(($B15&"_"&J$2&"_"&J$3&"_"&J$4&"_"&$A15),'All Data'!$A$2:$L$1048576,J$1,FALSE) -> 6.233664 | K15: =VLOOKUP(($B15&"_"&K$2&"_"&K$3&"_"&K$4&"_"&$A15),'All Data'!$A$2:$L$1048576,K$1,FALSE) -> 76.06291 | L15: =VLOOKUP(($B15&"_"&L$2&"_"&L$3&"_"&L$4&"_"&$A15),'All Data'!$A$2:$L$1048576,L$1,FALSE) -> 81.0711 | M15: =VLOOKUP(($B15&"_"&M$2&"_"&M$3&"_"&M$4&"_"&$A15),'All Data'!$A$2:$L$1048576,M$1,FALSE) ->  | N15: =VLOOKUP(($B15&"_"&N$2&"_"&N$3&"_"&N$4&"_"&$A15),'All Data'!$A$2:$L$1048576,N$1,FALSE) ->  | O15: =VLOOKUP(($B15&"_"&O$2&"_"&O$3&"_"&O$4&"_"&$A15),'All Data'!$A$2:$L$1048576,O$1,FALSE) -> 19.97523 | P15: =VLOOKUP(($B15&"_"&P$2&"_"&P$3&"_"&P$4&"_"&$A15),'All Data'!$A$2:$L$1048576,P$1,FALSE) -> 25.67674 | Q15: =VLOOKUP(($B15&"_"&Q$2&"_"&Q$3&"_"&Q$4&"_"&$A15),'All Data'!$A$2:$L$1048576,Q$1,FALSE) -> 2.470079 | R15: =VLOOKUP(($B15&"_"&R$2&"_"&R$3&"_"&R$4&"_"&$A15),'All Data'!$A$2:$L$1048576,R$1,FALSE) -> 2.754415 | S15: =VLOOKUP(($B15&"_"&S$2&"_"&S$3&"_"&S$4&"_"&$A15),'All Data'!$A$2:$L$1048576,S$1,FALSE) -> 35.05041 | T15: =VLOOKUP(($B15&"_"&T$2&"_"&T$3&"_"&T$4&"_"&$A15),'All Data'!$A$2:$L$1048576,T$1,FALSE) -> 41.4793 | U15: =VLOOKUP(($B15&"_"&U$2&"_"&U$3&"_"&U$4&"_"&$A15),'All Data'!$A$2:$L$1048576,U$1,FALSE) -> 56.10068 | V15: =VLOOKUP(($B15&"_"&V$2&"_"&V$3&"_"&V$4&"_"&$A15),'All Data'!$A$2:$L$1048576,V$1,FALSE) -> 62.34066 | W15: =VLOOKUP(($B15&"_"&W$2&"_"&W$3&"_"&W$4&"_"&$A15),'All Data'!$A$2:$L$1048576,W$1,FALSE) -> 263.51382 | X15: =VLOOKUP(($B15&"_"&X$2&"_"&X$3&"_"&X$4&"_"&$A15),'All Data'!$A$2:$L$1048576,X$1,FALSE) -> 328.88472 | Y15: =VLOOKUP(($B15&"_"&Y$2&"_"&Y$3&"_"&Y$4&"_"&$A15),'All Data'!$A$2:$L$1048576,Y$1,FALSE) -> 337.44841 | Z15: =VLOOKUP(($B15&"_"&Z$2&"_"&Z$3&"_"&Z$4&"_"&$A15),'All Data'!$A$2:$L$1048576,Z$1,FALSE) -> 443.54614 | AA15: =VLOOKUP(($B15&"_"&AA$2&"_"&AA$3&"_"&AA$4&"_"&$A15),'All Data'!$A$2:$L$1048576,AA$1,FALSE) -> 171.09991 | AB15: =VLOOKUP(($B15&"_"&AB$2&"_"&AB$3&"_"&AB$4&"_"&$A15),'All Data'!$A$2:$L$1048576,AB$1,FALSE) -> 250.83873 | AC15: =VLOOKUP(($B15&"_"&AC$2&"_"&AC$3&"_"&AC$4&"_"&$A15),'All Data'!$A$2:$L$1048576,AC$1,FALSE) -> 23.16129032 | AD15: =VLOOKUP(($B15&"_"&AD$2&"_"&AD$3&"_"&AD$4&"_"&$A15),'All Data'!$A$2:$L$1048576,AD$1,FALSE) -> 37.53862479 | AE15: =VLOOKUP(($B15&"_"&AE$2&"_"&AE$3&"_"&AE$4&"_"&$A15),'All Data'!$A$2:$L$1048576,AE$1,FALSE) -> 535.00612 | AF15: =VLOOKUP(($B15&"_"&AF$2&"_"&AF$3&"_"&AF$4&"_"&$A15),'All Data'!$A$2:$L$1048576,AF$1,FALSE) -> 714.65544 | AG15: =VLOOKUP(($B15&"_"&AG$2&"_"&AG$3&"_"&AG$4&"_"&$A15),'All Data'!$A$2:$L$1048576,AG$1,FALSE) -> 309.82317 | AH15: =VLOOKUP(($B15&"_"&AH$2&"_"&AH$3&"_"&AH$4&"_"&$A15),'All Data'!$A$2:$L$1048576,AH$1,FALSE) -> 548.31986 | AI15: =VLOOKUP(($B15&"_"&AI$2&"_"&AI$3&"_"&AI$4&"_"&$A15),'All Data'!$A$2:$L$1048576,AI$1,FALSE) -> 647.54444 | AJ15: =VLOOKUP(($B15&"_"&AJ$2&"_"&AJ$3&"_"&AJ$4&"_"&$A15),'All Data'!$A$2:$L$1048576,AJ$1,FALSE) -> 916.63633 | AK15: =VLOOKUP(($B15&"_"&AK$2&"_"&AK$3&"_"&AK$4&"_"&$A15),'All Data'!$A$2:$L$1048576,AK$1,FALSE) -> 72.94297954 | AL15: =VLOOKUP(($B15&"_"&AL$2&"_"&AL$3&"_"&AL$4&"_"&$A15),'All Data'!$A$2:$L$1048576,AL$1,FALSE) -> 77.59257631
A16: LA | B16: Carmarthenshire | C16: =VLOOKUP(($B16&"_"&C$2&"_"&C$3&"_"&C$4&"_"&$A16),'All Data'!$A$2:$L$1048576,C$1,FALSE) -> 0 | D16: =VLOOKUP(($B16&"_"&D$2&"_"&D$3&"_"&D$4&"_"&$A16),'All Data'!$A$2:$L$1048576,D$1,FALSE) -> 0 | E16: =VLOOKUP(($B16&"_"&E$2&"_"&E$3&"_"&E$4&"_"&$A16),'All Data'!$A$2:$L$1048576,E$1,FALSE) -> 0 | F16: =VLOOKUP(($B16&"_"&F$2&"_"&F$3&"_"&F$4&"_"&$A16),'All Data'!$A$2:$L$1048576,F$1,FALSE) -> 0 | G16: =VLOOKUP(($B16&"_"&G$2&"_"&G$3&"_"&G$4&"_"&$A16),'All Data'!$A$2:$L$1048576,G$1,FALSE) -> -0.4762985 | H16: =VLOOKUP(($B16&"_"&H$2&"_"&H$3&"_"&H$4&"_"&$A16),'All Data'!$A$2:$L$1048576,H$1,FALSE) -> 11.98192 | I16: =VLOOKUP(($B16&"_"&I$2&"_"&I$3&"_"&I$4&"_"&$A16),'All Data'!$A$2:$L$1048576,I$1,FALSE) -> 0.2615415 | J16: =VLOOKUP(($B16&"_"&J$2&"_"&J$3&"_"&J$4&"_"&$A16),'All Data'!$A$2:$L$1048576,J$1,FALSE) -> 5.616383 | K16: =VLOOKUP(($B16&"_"&K$2&"_"&K$3&"_"&K$4&"_"&$A16),'All Data'!$A$2:$L$1048576,K$1,FALSE) -> 69.18685 | L16: =VLOOKUP(($B16&"_"&L$2&"_"&L$3&"_"&L$4&"_"&$A16),'All Data'!$A$2:$L$1048576,L$1,FALSE) -> 74.44747 | M16: =VLOOKUP(($B16&"_"&M$2&"_"&M$3&"_"&M$4&"_"&$A16),'All Data'!$A$2:$L$1048576,M$1,FALSE) ->  | N16: =VLOOKUP(($B16&"_"&N$2&"_"&N$3&"_"&N$4&"_"&$A16),'All Data'!$A$2:$L$1048576,N$1,FALSE) ->  | O16: =VLOOKUP(($B16&"_"&O$2&"_"&O$3&"_"&O$4&"_"&$A16),'All Data'!$A$2:$L$1048576,O$1,FALSE) -> 20.14069 | P16: =VLOOKUP(($B16&"_"&P$2&"_"&P$3&"_"&P$4&"_"&$A16),'All Data'!$A$2:$L$1048576,P$1,FALSE) -> 25.47021 | Q16: =VLOOKUP(($B16&"_"&Q$2&"_"&Q$3&"_"&Q$4&"_"&$A16),'All Data'!$A$2:$L$1048576,Q$1,FALSE) -> 2.237327 | R16: =VLOOKUP(($B16&"_"&R$2&"_"&R$3&"_"&R$4&"_"&$A16),'All Data'!$A$2:$L$1048576,R$1,FALSE) -> 2.484211 | S16: =VLOOKUP(($B16&"_"&S$2&"_"&S$3&"_"&S$4&"_"&$A16),'All Data'!$A$2:$L$1048576,S$1,FALSE) -> 37.09234 | T16: =VLOOKUP(($B16&"_"&T$2&"_"&T$3&"_"&T$4&"_"&$A16),'All Data'!$A$2:$L$1048576,T$1,FALSE) -> 42.96269 | U16: =VLOOKUP(($B16&"_"&U$2&"_"&U$3&"_"&U$4&"_"&$A16),'All Data'!$A$2:$L$1048576,U$1,FALSE) -> 56.72397 | V16: =VLOOKUP(($B16&"_"&V$2&"_"&V$3&"_"&V$4&"_"&$A16),'All Data'!$A$2:$L$1048576,V$1,FALSE) -> 62.17254 | W16: =VLOOKUP(($B16&"_"&W$2&"_"&W$3&"_"&W$4&"_"&$A16),'All Data'!$A$2:$L$1048576,W$1,FALSE) -> 261.40353 | X16: =VLOOKUP(($B16&"_"&X$2&"_"&X$3&"_"&X$4&"_"&$A16),'All Data'!$A$2:$L$1048576,X$1,FALSE) -> 313.06138 | Y16: =VLOOKUP(($B16&"_"&Y$2&"_"&Y$3&"_"&Y$4&"_"&$A16),'All Data'!$A$2:$L$1048576,Y$1,FALSE) -> 309.93296 | Z16: =VLOOKUP(($B16&"_"&Z$2&"_"&Z$3&"_"&Z$4&"_"&$A16),'All Data'!$A$2:$L$1048576,Z$1,FALSE) -> 392.17806 | AA16: =VLOOKUP(($B16&"_"&AA$2&"_"&AA$3&"_"&AA$4&"_"&$A16),'All Data'!$A$2:$L$1048576,AA$1,FALSE) -> 197.84765 | AB16: =VLOOKUP(($B16&"_"&AB$2&"_"&AB$3&"_"&AB$4&"_"&$A16),'All Data'!$A$2:$L$1048576,AB$1,FALSE) -> 262.77838 | AC16: =VLOOKUP(($B16&"_"&AC$2&"_"&AC$3&"_"&AC$4&"_"&$A16),'All Data'!$A$2:$L$1048576,AC$1,FALSE) -> 26.72295199 | AD16: =VLOOKUP(($B16&"_"&AD$2&"_"&AD$3&"_"&AD$4&"_"&$A16),'All Data'!$A$2:$L$1048576,AD$1,FALSE) -> 39.19901902 | AE16: =VLOOKUP(($B16&"_"&AE$2&"_"&AE$3&"_"&AE$4&"_"&$A16),'All Data'!$A$2:$L$1048576,AE$1,FALSE) -> 582.83338 | AF16: =VLOOKUP(($B16&"_"&AF$2&"_"&AF$3&"_"&AF$4&"_"&$A16),'All Data'!$A$2:$L$1048576,AF$1,FALSE) -> 732.46767 | AG16: =VLOOKUP(($B16&"_"&AG$2&"_"&AG$3&"_"&AG$4&"_"&$A16),'All Data'!$A$2:$L$1048576,AG$1,FALSE) -> 414.46634 | AH16: =VLOOKUP(($B16&"_"&AH$2&"_"&AH$3&"_"&AH$4&"_"&$A16),'All Data'!$A$2:$L$1048576,AH$1,FALSE) -> 628.24359 | AI16: =VLOOKUP(($B16&"_"&AI$2&"_"&AI$3&"_"&AI$4&"_"&$A16),'All Data'!$A$2:$L$1048576,AI$1,FALSE) -> 657.87057 | AJ16: =VLOOKUP(($B16&"_"&AJ$2&"_"&AJ$3&"_"&AJ$4&"_"&$A16),'All Data'!$A$2:$L$1048576,AJ$1,FALSE) -> 873.12228 | AK16: =VLOOKUP(($B16&"_"&AK$2&"_"&AK$3&"_"&AK$4&"_"&$A16),'All Data'!$A$2:$L$1048576,AK$1,FALSE) -> 76.78365337 | AL16: =VLOOKUP(($B16&"_"&AL$2&"_"&AL$3&"_"&AL$4&"_"&$A16),'All Data'!$A$2:$L$1048576,AL$1,FALSE) -> 80.35661874
A17: LA | B17: Swansea | C17: =VLOOKUP(($B17&"_"&C$2&"_"&C$3&"_"&C$4&"_"&$A17),'All Data'!$A$2:$L$1048576,C$1,FALSE) -> 0 | D17: =VLOOKUP(($B17&"_"&D$2&"_"&D$3&"_"&D$4&"_"&$A17),'All Data'!$A$2:$L$1048576,D$1,FALSE) -> 0 | E17: =VLOOKUP(($B17&"_"&E$2&"_"&E$3&"_"&E$4&"_"&$A17),'All Data'!$A$2:$L$1048576,E$1,FALSE) -> 0 | F17: =VLOOKUP(($B17&"_"&F$2&"_"&F$3&"_"&F$4&"_"&$A17),'All Data'!$A$2:$L$1048576,F$1,FALSE) -> 0 | G17: =VLOOKUP(($B17&"_"&G$2&"_"&G$3&"_"&G$4&"_"&$A17),'All Data'!$A$2:$L$1048576,G$1,FALSE) -> 9.207539 | H17: =VLOOKUP(($B17&"_"&H$2&"_"&H$3&"_"&H$4&"_"&$A17),'All Data'!$A$2:$L$1048576,H$1,FALSE) -> 15.13342 | I17: =VLOOKUP(($B17&"_"&I$2&"_"&I$3&"_"&I$4&"_"&$A17),'All Data'!$A$2:$L$1048576,I$1,FALSE) -> 5.344578 | J17: =VLOOKUP(($B17&"_"&J$2&"_"&J$3&"_"&J$4&"_"&$A17),'All Data'!$A$2:$L$1048576,J$1,FALSE) -> 9.411983 | K17: =VLOOKUP(($B17&"_"&K$2&"_"&K$3&"_"&K$4&"_"&$A17),'All Data'!$A$2:$L$1048576,K$1,FALSE) -> 72.635 | L17: =VLOOKUP(($B17&"_"&L$2&"_"&L$3&"_"&L$4&"_"&$A17),'All Data'!$A$2:$L$1048576,L$1,FALSE) -> 77.12044 | M17: =VLOOKUP(($B17&"_"&M$2&"_"&M$3&"_"&M$4&"_"&$A17),'All Data'!$A$2:$L$1048576,M$1,FALSE) ->  | N17: =VLOOKUP(($B17&"_"&N$2&"_"&N$3&"_"&N$4&"_"&$A17),'All Data'!$A$2:$L$1048576,N$1,FALSE) ->  | O17: =VLOOKUP(($B17&"_"&O$2&"_"&O$3&"_"&O$4&"_"&$A17),'All Data'!$A$2:$L$1048576,O$1,FALSE) -> 19.71498 | P17: =VLOOKUP(($B17&"_"&P$2&"_"&P$3&"_"&P$4&"_"&$A17),'All Data'!$A$2:$L$1048576,P$1,FALSE) -> 24.20972 | Q17: =VLOOKUP(($B17&"_"&Q$2&"_"&Q$3&"_"&Q$4&"_"&$A17),'All Data'!$A$2:$L$1048576,Q$1,FALSE) -> 2.220012 | R17: =VLOOKUP(($B17&"_"&R$2&"_"&R$3&"_"&R$4&"_"&$A17),'All Data'!$A$2:$L$1048576,R$1,FALSE) -> 2.430469 | S17: =VLOOKUP(($B17&"_"&S$2&"_"&S$3&"_"&S$4&"_"&$A17),'All Data'!$A$2:$L$1048576,S$1,FALSE) -> 35.33545 | T17: =VLOOKUP(($B17&"_"&T$2&"_"&T$3&"_"&T$4&"_"&$A17),'All Data'!$A$2:$L$1048576,T$1,FALSE) -> 40.60246 | U17: =VLOOKUP(($B17&"_"&U$2&"_"&U$3&"_"&U$4&"_"&$A17),'All Data'!$A$2:$L$1048576,U$1,FALSE) -> 54.00964 | V17: =VLOOKUP(($B17&"_"&V$2&"_"&V$3&"_"&V$4&"_"&$A17),'All Data'!$A$2:$L$1048576,V$1,FALSE) -> 59.21543 | W17: =VLOOKUP(($B17&"_"&W$2&"_"&W$3&"_"&W$4&"_"&$A17),'All Data'!$A$2:$L$1048576,W$1,FALSE) -> 290.89451 | X17: =VLOOKUP(($B17&"_"&X$2&"_"&X$3&"_"&X$4&"_"&$A17),'All Data'!$A$2:$L$1048576,X$1,FALSE) -> 337.6665 | Y17: =VLOOKUP(($B17&"_"&Y$2&"_"&Y$3&"_"&Y$4&"_"&$A17),'All Data'!$A$2:$L$1048576,Y$1,FALSE) -> 402.99573 | Z17: =VLOOKUP(($B17&"_"&Z$2&"_"&Z$3&"_"&Z$4&"_"&$A17),'All Data'!$A$2:$L$1048576,Z$1,FALSE) -> 481.80888 | AA17: =VLOOKUP(($B17&"_"&AA$2&"_"&AA$3&"_"&AA$4&"_"&$A17),'All Data'!$A$2:$L$1048576,AA$1,FALSE) -> 167.50419 | AB17: =VLOOKUP(($B17&"_"&AB$2&"_"&AB$3&"_"&AB$4&"_"&$A17),'All Data'!$A$2:$L$1048576,AB$1,FALSE) -> 220.02967 | AC17: =VLOOKUP(($B17&"_"&AC$2&"_"&AC$3&"_"&AC$4&"_"&$A17),'All Data'!$A$2:$L$1048576,AC$1,FALSE) -> 33.59390395 | AD17: =VLOOKUP(($B17&"_"&AD$2&"_"&AD$3&"_"&AD$4&"_"&$A17),'All Data'!$A$2:$L$1048576,AD$1,FALSE) -> 46.74190671 | AE17: =VLOOKUP(($B17&"_"&AE$2&"_"&AE$3&"_"&AE$4&"_"&$A17),'All Data'!$A$2:$L$1048576,AE$1,FALSE) -> 481.60448 | AF17: =VLOOKUP(($B17&"_"&AF$2&"_"&AF$3&"_"&AF$4&"_"&$A17),'All Data'!$A$2:$L$1048576,AF$1,FALSE) -> 613.0657 | AG17: =VLOOKUP(($B17&"_"&AG$2&"_"&AG$3&"_"&AG$4&"_"&$A17),'All Data'!$A$2:$L$1048576,AG$1,FALSE) -> 306.02076 | AH17: =VLOOKUP(($B17&"_"&AH$2&"_"&AH$3&"_"&AH$4&"_"&$A17),'All Data'!$A$2:$L$1048576,AH$1,FALSE) -> 486.84374 | AI17: =VLOOKUP(($B17&"_"&AI$2&"_"&AI$3&"_"&AI$4&"_"&$A17),'All Data'!$A$2:$L$1048576,AI$1,FALSE) -> 549.90408 | AJ17: =VLOOKUP(($B17&"_"&AJ$2&"_"&AJ$3&"_"&AJ$4&"_"&$A17),'All Data'!$A$2:$L$1048576,AJ$1,FALSE) -> 732.67443 | AK17: =VLOOKUP(($B17&"_"&AK$2&"_"&AK$3&"_"&AK$4&"_"&$A17),'All Data'!$A$2:$L$1048576,AK$1,FALSE) -> 78.53559756 | AL17: =VLOOKUP(($B17&"_"&AL$2&"_"&AL$3&"_"&AL$4&"_"&$A17),'All Data'!$A$2:$L$1048576,AL$1,FALSE) -> 81.54157232
A18: LA | B18: Neath Port Talbot | C18: =VLOOKUP(($B18&"_"&C$2&"_"&C$3&"_"&C$4&"_"&$A18),'All Data'!$A$2:$L$1048576,C$1,FALSE) -> 0 | D18: =VLOOKUP(($B18&"_"&D$2&"_"&D$3&"_"&D$4&"_"&$A18),'All Data'!$A$2:$L$1048576,D$1,FALSE) -> 0 | E18: =VLOOKUP(($B18&"_"&E$2&"_"&E$3&"_"&E$4&"_"&$A18),'All Data'!$A$2:$L$1048576,E$1,FALSE) -> 0 | F18: =VLOOKUP(($B18&"_"&F$2&"_"&F$3&"_"&F$4&"_"&$A18),'All Data'!$A$2:$L$1048576,F$1,FALSE) -> 0 | G18: =VLOOKUP(($B18&"_"&G$2&"_"&G$3&"_"&G$4&"_"&$A18),'All Data'!$A$2:$L$1048576,G$1,FALSE) -> 7.977166 | H18: =VLOOKUP(($B18&"_"&H$2&"_"&H$3&"_"&H$4&"_"&$A18),'All Data'!$A$2:$L$1048576,H$1,FALSE) -> 12.85454 | I18: =VLOOKUP(($B18&"_"&I$2&"_"&I$3&"_"&I$4&"_"&$A18),'All Data'!$A$2:$L$1048576,I$1,FALSE) -> 4.055021 | J18: =VLOOKUP(($B18&"_"&J$2&"_"&J$3&"_"&J$4&"_"&$A18),'All Data'!$A$2:$L$1048576,J$1,FALSE) -> 9.414994 | K18: =VLOOKUP(($B18&"_"&K$2&"_"&K$3&"_"&K$4&"_"&$A18),'All Data'!$A$2:$L$1048576,K$1,FALSE) -> 68.17946 | L18: =VLOOKUP(($B18&"_"&L$2&"_"&L$3&"_"&L$4&"_"&$A18),'All Data'!$A$2:$L$1048576,L$1,FALSE) -> 73.39335 | M18: =VLOOKUP(($B18&"_"&M$2&"_"&M$3&"_"&M$4&"_"&$A18),'All Data'!$A$2:$L$1048576,M$1,FALSE) ->  | N18: =VLOOKUP(($B18&"_"&N$2&"_"&N$3&"_"&N$4&"_"&$A18),'All Data'!$A$2:$L$1048576,N$1,FALSE) ->  | O18: =VLOOKUP(($B18&"_"&O$2&"_"&O$3&"_"&O$4&"_"&$A18),'All Data'!$A$2:$L$1048576,O$1,FALSE) -> 23.16904 | P18: =VLOOKUP(($B18&"_"&P$2&"_"&P$3&"_"&P$4&"_"&$A18),'All Data'!$A$2:$L$1048576,P$1,FALSE) -> 28.71487 | Q18: =VLOOKUP(($B18&"_"&Q$2&"_"&Q$3&"_"&Q$4&"_"&$A18),'All Data'!$A$2:$L$1048576,Q$1,FALSE) -> 2.010393 | R18: =VLOOKUP(($B18&"_"&R$2&"_"&R$3&"_"&R$4&"_"&$A18),'All Data'!$A$2:$L$1048576,R$1,FALSE) -> 2.250455 | S18: =VLOOKUP(($B18&"_"&S$2&"_"&S$3&"_"&S$4&"_"&$A18),'All Data'!$A$2:$L$1048576,S$1,FALSE) -> 29.81743 | T18: =VLOOKUP(($B18&"_"&T$2&"_"&T$3&"_"&T$4&"_"&$A18),'All Data'!$A$2:$L$1048576,T$1,FALSE) -> 35.38528 | U18: =VLOOKUP(($B18&"_"&U$2&"_"&U$3&"_"&U$4&"_"&$A18),'All Data'!$A$2:$L$1048576,U$1,FALSE) -> 57.81003 | V18: =VLOOKUP(($B18&"_"&V$2&"_"&V$3&"_"&V$4&"_"&$A18),'All Data'!$A$2:$L$1048576,V$1,FALSE) -> 63.4529 | W18: =VLOOKUP(($B18&"_"&W$2&"_"&W$3&"_"&W$4&"_"&$A18),'All Data'!$A$2:$L$1048576,W$1,FALSE) -> 320.5254 | X18: =VLOOKUP(($B18&"_"&X$2&"_"&X$3&"_"&X$4&"_"&$A18),'All Data'!$A$2:$L$1048576,X$1,FALSE) -> 384.36285 | Y18: =VLOOKUP(($B18&"_"&Y$2&"_"&Y$3&"_"&Y$4&"_"&$A18),'All Data'!$A$2:$L$1048576,Y$1,FALSE) -> 422.14395 | Z18: =VLOOKUP(($B18&"_"&Z$2&"_"&Z$3&"_"&Z$4&"_"&$A18),'All Data'!$A$2:$L$1048576,Z$1,FALSE) -> 527.47718 | AA18: =VLOOKUP(($B18&"_"&AA$2&"_"&AA$3&"_"&AA$4&"_"&$A18),'All Data'!$A$2:$L$1048576,AA$1,FALSE) -> 201.07561 | AB18: =VLOOKUP(($B18&"_"&AB$2&"_"&AB$3&"_"&AB$4&"_"&$A18),'All Data'!$A$2:$L$1048576,AB$1,FALSE) -> 276.08368 | AC18: =VLOOKUP(($B18&"_"&AC$2&"_"&AC$3&"_"&AC$4&"_"&$A18),'All Data'!$A$2:$L$1048576,AC$1,FALSE) -> 28.89005659 | AD18: =VLOOKUP(($B18&"_"&AD$2&"_"&AD$3&"_"&AD$4&"_"&$A18),'All Data'!$A$2:$L$1048576,AD$1,FALSE) -> 44.26919968 | AE18: =VLOOKUP(($B18&"_"&AE$2&"_"&AE$3&"_"&AE$4&"_"&$A18),'All Data'!$A$2:$L$1048576,AE$1,FALSE) -> 614.9091 | AF18: =VLOOKUP(($B18&"_"&AF$2&"_"&AF$3&"_"&AF$4&"_"&$A18),'All Data'!$A$2:$L$1048576,AF$1,FALSE) -> 807.82141 | AG18: =VLOOKUP(($B18&"_"&AG$2&"_"&AG$3&"_"&AG$4&"_"&$A18),'All Data'!$A$2:$L$1048576,AG$1,FALSE) -> 329.62389 | AH18: =VLOOKUP(($B18&"_"&AH$2&"_"&AH$3&"_"&AH$4&"_"&$A18),'All Data'!$A$2:$L$1048576,AH$1,FALSE) -> 572.76555 | AI18: =VLOOKUP(($B18&"_"&AI$2&"_"&AI$3&"_"&AI$4&"_"&$A18),'All Data'!$A$2:$L$1048576,AI$1,FALSE) -> 754.70075 | AJ18: =VLOOKUP(($B18&"_"&AJ$2&"_"&AJ$3&"_"&AJ$4&"_"&$A18),'All Data'!$A$2:$L$1048576,AJ$1,FALSE) -> 1045.37976 | AK18: =VLOOKUP(($B18&"_"&AK$2&"_"&AK$3&"_"&AK$4&"_"&$A18),'All Data'!$A$2:$L$1048576,AK$1,FALSE) -> 79.48948167 | AL18: =VLOOKUP(($B18&"_"&AL$2&"_"&AL$3&"_"&AL$4&"_"&$A18),'All Data'!$A$2:$L$1048576,AL$1,FALSE) -> 83.36485887
A19: LA | B19: Bridgend | C19: =VLOOKUP(($B19&"_"&C$2&"_"&C$3&"_"&C$4&"_"&$A19),'All Data'!$A$2:$L$1048576,C$1,FALSE) -> 0 | D19: =VLOOKUP(($B19&"_"&D$2&"_"&D$3&"_"&D$4&"_"&$A19),'All Data'!$A$2:$L$1048576,D$1,FALSE) -> 0 | E19: =VLOOKUP(($B19&"_"&E$2&"_"&E$3&"_"&E$4&"_"&$A19),'All Data'!$A$2:$L$1048576,E$1,FALSE) -> 0 | F19: =VLOOKUP(($B19&"_"&F$2&"_"&F$3&"_"&F$4&"_"&$A19),'All Data'!$A$2:$L$1048576,F$1,FALSE) -> 0 | G19: =VLOOKUP(($B19&"_"&G$2&"_"&G$3&"_"&G$4&"_"&$A19),'All Data'!$A$2:$L$1048576,G$1,FALSE) -> 4.054721 | H19: =VLOOKUP(($B19&"_"&H$2&"_"&H$3&"_"&H$4&"_"&$A19),'All Data'!$A$2:$L$1048576,H$1,FALSE) -> 11.63528 | I19: =VLOOKUP(($B19&"_"&I$2&"_"&I$3&"_"&I$4&"_"&$A19),'All Data'!$A$2:$L$1048576,I$1,FALSE) -> 5.105119 | J19: =VLOOKUP(($B19&"_"&J$2&"_"&J$3&"_"&J$4&"_"&$A19),'All Data'!$A$2:$L$1048576,J$1,FALSE) -> 10.93466 | K19: =VLOOKUP(($B19&"_"&K$2&"_"&K$3&"_"&K$4&"_"&$A19),'All Data'!$A$2:$L$1048576,K$1,FALSE) -> 71.24562 | L19: =VLOOKUP(($B19&"_"&L$2&"_"&L$3&"_"&L$4&"_"&$A19),'All Data'!$A$2:$L$1048576,L$1,FALSE) -> 76.60163 | M19: =VLOOKUP(($B19&"_"&M$2&"_"&M$3&"_"&M$4&"_"&$A19),'All Data'!$A$2:$L$1048576,M$1,FALSE) ->  | N19: =VLOOKUP(($B19&"_"&N$2&"_"&N$3&"_"&N$4&"_"&$A19),'All Data'!$A$2:$L$1048576,N$1,FALSE) ->  | O19: =VLOOKUP(($B19&"_"&O$2&"_"&O$3&"_"&O$4&"_"&$A19),'All Data'!$A$2:$L$1048576,O$1,FALSE) -> 19.09801 | P19: =VLOOKUP(($B19&"_"&P$2&"_"&P$3&"_"&P$4&"_"&$A19),'All Data'!$A$2:$L$1048576,P$1,FALSE) -> 24.36975 | Q19: =VLOOKUP(($B19&"_"&Q$2&"_"&Q$3&"_"&Q$4&"_"&$A19),'All Data'!$A$2:$L$1048576,Q$1,FALSE) -> 2.180026 | R19: =VLOOKUP(($B19&"_"&R$2&"_"&R$3&"_"&R$4&"_"&$A19),'All Data'!$A$2:$L$1048576,R$1,FALSE) -> 2.439456 | S19: =VLOOKUP(($B19&"_"&S$2&"_"&S$3&"_"&S$4&"_"&$A19),'All Data'!$A$2:$L$1048576,S$1,FALSE) -> 27.92086 | T19: =VLOOKUP(($B19&"_"&T$2&"_"&T$3&"_"&T$4&"_"&$A19),'All Data'!$A$2:$L$1048576,T$1,FALSE) -> 33.6379 | U19: =VLOOKUP(($B19&"_"&U$2&"_"&U$3&"_"&U$4&"_"&$A19),'All Data'!$A$2:$L$1048576,U$1,FALSE) -> 57.01521 | V19: =VLOOKUP(($B19&"_"&V$2&"_"&V$3&"_"&V$4&"_"&$A19),'All Data'!$A$2:$L$1048576,V$1,FALSE) -> 62.91102 | W19: =VLOOKUP(($B19&"_"&W$2&"_"&W$3&"_"&W$4&"_"&$A19),'All Data'!$A$2:$L$1048576,W$1,FALSE) -> 274.17686 | X19: =VLOOKUP(($B19&"_"&X$2&"_"&X$3&"_"&X$4&"_"&$A19),'All Data'!$A$2:$L$1048576,X$1,FALSE) -> 334.18281 | Y19: =VLOOKUP(($B19&"_"&Y$2&"_"&Y$3&"_"&Y$4&"_"&$A19),'All Data'!$A$2:$L$1048576,Y$1,FALSE) -> 377.18805 | Z19: =VLOOKUP(($B19&"_"&Z$2&"_"&Z$3&"_"&Z$4&"_"&$A19),'All Data'!$A$2:$L$1048576,Z$1,FALSE) -> 477.73341 | AA19: =VLOOKUP(($B19&"_"&AA$2&"_"&AA$3&"_"&AA$4&"_"&$A19),'All Data'!$A$2:$L$1048576,AA$1,FALSE) -> 154.05044 | AB19: =VLOOKUP(($B19&"_"&AB$2&"_"&AB$3&"_"&AB$4&"_"&$A19),'All Data'!$A$2:$L$1048576,AB$1,FALSE) -> 221.84201 | AC19: =VLOOKUP(($B19&"_"&AC$2&"_"&AC$3&"_"&AC$4&"_"&$A19),'All Data'!$A$2:$L$1048576,AC$1,FALSE) -> 34.57866489 | AD19: =VLOOKUP(($B19&"_"&AD$2&"_"&AD$3&"_"&AD$4&"_"&$A19),'All Data'!$A$2:$L$1048576,AD$1,FALSE) -> 51.59959213 | AE19: =VLOOKUP(($B19&"_"&AE$2&"_"&AE$3&"_"&AE$4&"_"&$A19),'All Data'!$A$2:$L$1048576,AE$1,FALSE) -> 392.59124 | AF19: =VLOOKUP(($B19&"_"&AF$2&"_"&AF$3&"_"&AF$4&"_"&$A19),'All Data'!$A$2:$L$1048576,AF$1,FALSE) -> 550.75044 | AG19: =VLOOKUP(($B19&"_"&AG$2&"_"&AG$3&"_"&AG$4&"_"&$A19),'All Data'!$A$2:$L$1048576,AG$1,FALSE) -> 201.86581 | AH19: =VLOOKUP(($B19&"_"&AH$2&"_"&AH$3&"_"&AH$4&"_"&$A19),'All Data'!$A$2:$L$1048576,AH$1,FALSE) -> 409.87305 | AI19: =VLOOKUP(($B19&"_"&AI$2&"_"&AI$3&"_"&AI$4&"_"&$A19),'All Data'!$A$2:$L$1048576,AI$1,FALSE) -> 473.9328 | AJ19: =VLOOKUP(($B19&"_"&AJ$2&"_"&AJ$3&"_"&AJ$4&"_"&$A19),'All Data'!$A$2:$L$1048576,AJ$1,FALSE) -> 705.2077 | AK19: =VLOOKUP(($B19&"_"&AK$2&"_"&AK$3&"_"&AK$4&"_"&$A19),'All Data'!$A$2:$L$1048576,AK$1,FALSE) -> 78.92478963 | AL19: =VLOOKUP(($B19&"_"&AL$2&"_"&AL$3&"_"&AL$4&"_"&$A19),'All Data'!$A$2:$L$1048576,AL$1,FALSE) -> 82.82171111
A20: LA | B20: The Vale of Glamorgan | C20: =VLOOKUP(($B20&"_"&C$2&"_"&C$3&"_"&C$4&"_"&$A20),'All Data'!$A$2:$L$1048576,C$1,FALSE) -> 0 | D20: =VLOOKUP(($B20&"_"&D$2&"_"&D$3&"_"&D$4&"_"&$A20),'All Data'!$A$2:$L$1048576,D$1,FALSE) -> 0 | E20: =VLOOKUP(($B20&"_"&E$2&"_"&E$3&"_"&E$4&"_"&$A20),'All Data'!$A$2:$L$1048576,E$1,FALSE) -> 0 | F20: =VLOOKUP(($B20&"_"&F$2&"_"&F$3&"_"&F$4&"_"&$A20),'All Data'!$A$2:$L$1048576,F$1,FALSE) -> 0 | G20: =VLOOKUP(($B20&"_"&G$2&"_"&G$3&"_"&G$4&"_"&$A20),'All Data'!$A$2:$L$1048576,G$1,FALSE) -> 3.138139 | H20: =VLOOKUP(($B20&"_"&H$2&"_"&H$3&"_"&H$4&"_"&$A20),'All Data'!$A$2:$L$1048576,H$1,FALSE) -> 11.88722 | I20: =VLOOKUP(($B20&"_"&I$2&"_"&I$3&"_"&I$4&"_"&$A20),'All Data'!$A$2:$L$1048576,I$1,FALSE) -> 6.737668 | J20: =VLOOKUP(($B20&"_"&J$2&"_"&J$3&"_"&J$4&"_"&$A20),'All Data'!$A$2:$L$1048576,J$1,FALSE) -> 8.149842 | K20: =VLOOKUP(($B20&"_"&K$2&"_"&K$3&"_"&K$4&"_"&$A20),'All Data'!$A$2:$L$1048576,K$1,FALSE) -> 74.04566 | L20: =VLOOKUP(($B20&"_"&L$2&"_"&L$3&"_"&L$4&"_"&$A20),'All Data'!$A$2:$L$1048576,L$1,FALSE) -> 79.37935 | M20: =VLOOKUP(($B20&"_"&M$2&"_"&M$3&"_"&M$4&"_"&$A20),'All Data'!$A$2:$L$1048576,M$1,FALSE) ->  | N20: =VLOOKUP(($B20&"_"&N$2&"_"&N$3&"_"&N$4&"_"&$A20),'All Data'!$A$2:$L$1048576,N$1,FALSE) ->  | O20: =VLOOKUP(($B20&"_"&O$2&"_"&O$3&"_"&O$4&"_"&$A20),'All Data'!$A$2:$L$1048576,O$1,FALSE) -> 18.21093 | P20: =VLOOKUP(($B20&"_"&P$2&"_"&P$3&"_"&P$4&"_"&$A20),'All Data'!$A$2:$L$1048576,P$1,FALSE) -> 23.89978 | Q20: =VLOOKUP(($B20&"_"&Q$2&"_"&Q$3&"_"&Q$4&"_"&$A20),'All Data'!$A$2:$L$1048576,Q$1,FALSE) -> 2.298525 | R20: =VLOOKUP(($B20&"_"&R$2&"_"&R$3&"_"&R$4&"_"&$A20),'All Data'!$A$2:$L$1048576,R$1,FALSE) -> 2.558449 | S20: =VLOOKUP(($B20&"_"&S$2&"_"&S$3&"_"&S$4&"_"&$A20),'All Data'!$A$2:$L$1048576,S$1,FALSE) -> 30.62097 | T20: =VLOOKUP(($B20&"_"&T$2&"_"&T$3&"_"&T$4&"_"&$A20),'All Data'!$A$2:$L$1048576,T$1,FALSE) -> 36.66215 | U20: =VLOOKUP(($B20&"_"&U$2&"_"&U$3&"_"&U$4&"_"&$A20),'All Data'!$A$2:$L$1048576,U$1,FALSE) -> 51.47766 | V20: =VLOOKUP(($B20&"_"&V$2&"_"&V$3&"_"&V$4&"_"&$A20),'All Data'!$A$2:$L$1048576,V$1,FALSE) -> 57.83926 | W20: =VLOOKUP(($B20&"_"&W$2&"_"&W$3&"_"&W$4&"_"&$A20),'All Data'!$A$2:$L$1048576,W$1,FALSE) -> 304.10404 | X20: =VLOOKUP(($B20&"_"&X$2&"_"&X$3&"_"&X$4&"_"&$A20),'All Data'!$A$2:$L$1048576,X$1,FALSE) -> 370.19158 | Y20: =VLOOKUP(($B20&"_"&Y$2&"_"&Y$3&"_"&Y$4&"_"&$A20),'All Data'!$A$2:$L$1048576,Y$1,FALSE) -> 383.36163 | Z20: =VLOOKUP(($B20&"_"&Z$2&"_"&Z$3&"_"&Z$4&"_"&$A20),'All Data'!$A$2:$L$1048576,Z$1,FALSE) -> 491.02281 | AA20: =VLOOKUP(($B20&"_"&AA$2&"_"&AA$3&"_"&AA$4&"_"&$A20),'All Data'!$A$2:$L$1048576,AA$1,FALSE) -> 208.17414 | AB20: =VLOOKUP(($B20&"_"&AB$2&"_"&AB$3&"_"&AB$4&"_"&$A20),'All Data'!$A$2:$L$1048576,AB$1,FALSE) -> 289.07359 | AC20: =VLOOKUP(($B20&"_"&AC$2&"_"&AC$3&"_"&AC$4&"_"&$A20),'All Data'!$A$2:$L$1048576,AC$1,FALSE) -> 25.26050081 | AD20: =VLOOKUP(($B20&"_"&AD$2&"_"&AD$3&"_"&AD$4&"_"&$A20),'All Data'!$A$2:$L$1048576,AD$1,FALSE) -> 39.76494346 | AE20: =VLOOKUP(($B20&"_"&AE$2&"_"&AE$3&"_"&AE$4&"_"&$A20),'All Data'!$A$2:$L$1048576,AE$1,FALSE) -> 430.81007 | AF20: =VLOOKUP(($B20&"_"&AF$2&"_"&AF$3&"_"&AF$4&"_"&$A20),'All Data'!$A$2:$L$1048576,AF$1,FALSE) -> 606.70538 | AG20: =VLOOKUP(($B20&"_"&AG$2&"_"&AG$3&"_"&AG$4&"_"&$A20),'All Data'!$A$2:$L$1048576,AG$1,FALSE) -> 213.44672 | AH20: =VLOOKUP(($B20&"_"&AH$2&"_"&AH$3&"_"&AH$4&"_"&$A20),'All Data'!$A$2:$L$1048576,AH$1,FALSE) -> 428.28356 | AI20: =VLOOKUP(($B20&"_"&AI$2&"_"&AI$3&"_"&AI$4&"_"&$A20),'All Data'!$A$2:$L$1048576,AI$1,FALSE) -> 544.29618 | AJ20: =VLOOKUP(($B20&"_"&AJ$2&"_"&AJ$3&"_"&AJ$4&"_"&$A20),'All Data'!$A$2:$L$1048576,AJ$1,FALSE) -> 816.01761 | AK20: =VLOOKUP(($B20&"_"&AK$2&"_"&AK$3&"_"&AK$4&"_"&$A20),'All Data'!$A$2:$L$1048576,AK$1,FALSE) -> 79.33422403 | AL20: =VLOOKUP(($B20&"_"&AL$2&"_"&AL$3&"_"&AL$4&"_"&$A20),'All Data'!$A$2:$L$1048576,AL$1,FALSE) -> 83.25465217
A21: LA | B21: Cardiff | C21: =VLOOKUP(($B21&"_"&C$2&"_"&C$3&"_"&C$4&"_"&$A21),'All Data'!$A$2:$L$1048576,C$1,FALSE) -> 0 | D21: =VLOOKUP(($B21&"_"&D$2&"_"&D$3&"_"&D$4&"_"&$A21),'All Data'!$A$2:$L$1048576,D$1,FALSE) -> 0 | E21: =VLOOKUP(($B21&"_"&E$2&"_"&E$3&"_"&E$4&"_"&$A21),'All Data'!$A$2:$L$1048576,E$1,FALSE) -> 0 | F21: =VLOOKUP(($B21&"_"&F$2&"_"&F$3&"_"&F$4&"_"&$A21),'All Data'!$A$2:$L$1048576,F$1,FALSE) -> 0 | G21: =VLOOKUP(($B21&"_"&G$2&"_"&G$3&"_"&G$4&"_"&$A21),'All Data'!$A$2:$L$1048576,G$1,FALSE) -> 10.99283 | H21: =VLOOKUP(($B21&"_"&H$2&"_"&H$3&"_"&H$4&"_"&$A21),'All Data'!$A$2:$L$1048576,H$1,FALSE) -> 14.69811 | I21: =VLOOKUP(($B21&"_"&I$2&"_"&I$3&"_"&I$4&"_"&$A21),'All Data'!$A$2:$L$1048576,I$1,FALSE) -> 8.246158 | J21: =VLOOKUP(($B21&"_"&J$2&"_"&J$3&"_"&J$4&"_"&$A21),'All Data'!$A$2:$L$1048576,J$1,FALSE) -> 11.68303 | K21: =VLOOKUP(($B21&"_"&K$2&"_"&K$3&"_"&K$4&"_"&$A21),'All Data'!$A$2:$L$1048576,K$1,FALSE) -> 71.658 | L21: =VLOOKUP(($B21&"_"&L$2&"_"&L$3&"_"&L$4&"_"&$A21),'All Data'!$A$2:$L$1048576,L$1,FALSE) -> 75.7762 | M21: =VLOOKUP(($B21&"_"&M$2&"_"&M$3&"_"&M$4&"_"&$A21),'All Data'!$A$2:$L$1048576,M$1,FALSE) ->  | N21: =VLOOKUP(($B21&"_"&N$2&"_"&N$3&"_"&N$4&"_"&$A21),'All Data'!$A$2:$L$1048576,N$1,FALSE) ->  | O21: =VLOOKUP(($B21&"_"&O$2&"_"&O$3&"_"&O$4&"_"&$A21),'All Data'!$A$2:$L$1048576,O$1,FALSE) -> 20.93923 | P21: =VLOOKUP(($B21&"_"&P$2&"_"&P$3&"_"&P$4&"_"&$A21),'All Data'!$A$2:$L$1048576,P$1,FALSE) -> 24.9273 | Q21: =VLOOKUP(($B21&"_"&Q$2&"_"&Q$3&"_"&Q$4&"_"&$A21),'All Data'!$A$2:$L$1048576,Q$1,FALSE) -> 2.074692 | R21: =VLOOKUP(($B21&"_"&R$2&"_"&R$3&"_"&R$4&"_"&$A21),'All Data'!$A$2:$L$1048576,R$1,FALSE) -> 2.261941 | S21: =VLOOKUP(($B21&"_"&S$2&"_"&S$3&"_"&S$4&"_"&$A21),'All Data'!$A$2:$L$1048576,S$1,FALSE) -> 35.37107 | T21: =VLOOKUP(($B21&"_"&T$2&"_"&T$3&"_"&T$4&"_"&$A21),'All Data'!$A$2:$L$1048576,T$1,FALSE) -> 39.98157 | U21: =VLOOKUP(($B21&"_"&U$2&"_"&U$3&"_"&U$4&"_"&$A21),'All Data'!$A$2:$L$1048576,U$1,FALSE) -> 52.20618 | V21: =VLOOKUP(($B21&"_"&V$2&"_"&V$3&"_"&V$4&"_"&$A21),'All Data'!$A$2:$L$1048576,V$1,FALSE) -> 56.90389 | W21: =VLOOKUP(($B21&"_"&W$2&"_"&W$3&"_"&W$4&"_"&$A21),'All Data'!$A$2:$L$1048576,W$1,FALSE) -> 296.02696 | X21: =VLOOKUP(($B21&"_"&X$2&"_"&X$3&"_"&X$4&"_"&$A21),'All Data'!$A$2:$L$1048576,X$1,FALSE) -> 335.43924 | Y21: =VLOOKUP(($B21&"_"&Y$2&"_"&Y$3&"_"&Y$4&"_"&$A21),'All Data'!$A$2:$L$1048576,Y$1,FALSE) -> 384.34135 | Z21: =VLOOKUP(($B21&"_"&Z$2&"_"&Z$3&"_"&Z$4&"_"&$A21),'All Data'!$A$2:$L$1048576,Z$1,FALSE) -> 449.30076 | AA21: =VLOOKUP(($B21&"_"&AA$2&"_"&AA$3&"_"&AA$4&"_"&$A21),'All Data'!$A$2:$L$1048576,AA$1,FALSE) -> 197.50946 | AB21: =VLOOKUP(($B21&"_"&AB$2&"_"&AB$3&"_"&AB$4&"_"&$A21),'All Data'!$A$2:$L$1048576,AB$1,FALSE) -> 243.65133 | AC21: =VLOOKUP(($B21&"_"&AC$2&"_"&AC$3&"_"&AC$4&"_"&$A21),'All Data'!$A$2:$L$1048576,AC$1,FALSE) -> 41.59781753 | AD21: =VLOOKUP(($B21&"_"&AD$2&"_"&AD$3&"_"&AD$4&"_"&$A21),'All Data'!$A$2:$L$1048576,AD$1,FALSE) -> 53.15254967 | AE21: =VLOOKUP(($B21&"_"&AE$2&"_"&AE$3&"_"&AE$4&"_"&$A21),'All Data'!$A$2:$L$1048576,AE$1,FALSE) -> 454.97892 | AF21: =VLOOKUP(($B21&"_"&AF$2&"_"&AF$3&"_"&AF$4&"_"&$A21),'All Data'!$A$2:$L$1048576,AF$1,FALSE) -> 578.96947 | AG21: =VLOOKUP(($B21&"_"&AG$2&"_"&AG$3&"_"&AG$4&"_"&$A21),'All Data'!$A$2:$L$1048576,AG$1,FALSE) -> 305.64252 | AH21: =VLOOKUP(($B21&"_"&AH$2&"_"&AH$3&"_"&AH$4&"_"&$A21),'All Data'!$A$2:$L$1048576,AH$1,FALSE) -> 475.98303 | AI21: =VLOOKUP(($B21&"_"&AI$2&"_"&AI$3&"_"&AI$4&"_"&$A21),'All Data'!$A$2:$L$1048576,AI$1,FALSE) -> 514.13673 | AJ21: =VLOOKUP(($B21&"_"&AJ$2&"_"&AJ$3&"_"&AJ$4&"_"&$A21),'All Data'!$A$2:$L$1048576,AJ$1,FALSE) -> 689.90997 | AK21: =VLOOKUP(($B21&"_"&AK$2&"_"&AK$3&"_"&AK$4&"_"&$A21),'All Data'!$A$2:$L$1048576,AK$1,FALSE) -> 75.61069521 | AL21: =VLOOKUP(($B21&"_"&AL$2&"_"&AL$3&"_"&AL$4&"_"&$A21),'All Data'!$A$2:$L$1048576,AL$1,FALSE) -> 78.09492967
A22: LA | B22: Rhondda Cynon Taf | C22: =VLOOKUP(($B22&"_"&C$2&"_"&C$3&"_"&C$4&"_"&$A22),'All Data'!$A$2:$L$1048576,C$1,FALSE) -> 0 | D22: =VLOOKUP(($B22&"_"&D$2&"_"&D$3&"_"&D$4&"_"&$A22),'All Data'!$A$2:$L$1048576,D$1,FALSE) -> 0 | E22: =VLOOKUP(($B22&"_"&E$2&"_"&E$3&"_"&E$4&"_"&$A22),'All Data'!$A$2:$L$1048576,E$1,FALSE) -> 0 | F22: =VLOOKUP(($B22&"_"&F$2&"_"&F$3&"_"&F$4&"_"&$A22),'All Data'!$A$2:$L$1048576,F$1,FALSE) -> 0 | G22: =VLOOKUP(($B22&"_"&G$2&"_"&G$3&"_"&G$4&"_"&$A22),'All Data'!$A$2:$L$1048576,G$1,FALSE) -> 5.245098 | H22: =VLOOKUP(($B22&"_"&H$2&"_"&H$3&"_"&H$4&"_"&$A22),'All Data'!$A$2:$L$1048576,H$1,FALSE) -> 10.60509 | I22: =VLOOKUP(($B22&"_"&I$2&"_"&I$3&"_"&I$4&"_"&$A22),'All Data'!$A$2:$L$1048576,I$1,FALSE) -> 3.569759 | J22: =VLOOKUP(($B22&"_"&J$2&"_"&J$3&"_"&J$4&"_"&$A22),'All Data'!$A$2:$L$1048576,J$1,FALSE) -> 7.219515 | K22: =VLOOKUP(($B22&"_"&K$2&"_"&K$3&"_"&K$4&"_"&$A22),'All Data'!$A$2:$L$1048576,K$1,FALSE) -> 68.31724 | L22: =VLOOKUP(($B22&"_"&L$2&"_"&L$3&"_"&L$4&"_"&$A22),'All Data'!$A$2:$L$1048576,L$1,FALSE) -> 73.3137 | M22: =VLOOKUP(($B22&"_"&M$2&"_"&M$3&"_"&M$4&"_"&$A22),'All Data'!$A$2:$L$1048576,M$1,FALSE) ->  | N22: =VLOOKUP(($B22&"_"&N$2&"_"&N$3&"_"&N$4&"_"&$A22),'All Data'!$A$2:$L$1048576,N$1,FALSE) ->  | O22: =VLOOKUP(($B22&"_"&O$2&"_"&O$3&"_"&O$4&"_"&$A22),'All Data'!$A$2:$L$1048576,O$1,FALSE) -> 24.32486 | P22: =VLOOKUP(($B22&"_"&P$2&"_"&P$3&"_"&P$4&"_"&$A22),'All Data'!$A$2:$L$1048576,P$1,FALSE) -> 29.3437 | Q22: =VLOOKUP(($B22&"_"&Q$2&"_"&Q$3&"_"&Q$4&"_"&$A22),'All Data'!$A$2:$L$1048576,Q$1,FALSE) -> 2.080847 | R22: =VLOOKUP(($B22&"_"&R$2&"_"&R$3&"_"&R$4&"_"&$A22),'All Data'!$A$2:$L$1048576,R$1,FALSE) -> 2.309117 | S22: =VLOOKUP(($B22&"_"&S$2&"_"&S$3&"_"&S$4&"_"&$A22),'All Data'!$A$2:$L$1048576,S$1,FALSE) -> 27.25534 | T22: =VLOOKUP(($B22&"_"&T$2&"_"&T$3&"_"&T$4&"_"&$A22),'All Data'!$A$2:$L$1048576,T$1,FALSE) -> 32.52105 | U22: =VLOOKUP(($B22&"_"&U$2&"_"&U$3&"_"&U$4&"_"&$A22),'All Data'!$A$2:$L$1048576,U$1,FALSE) -> 59.05662 | V22: =VLOOKUP(($B22&"_"&V$2&"_"&V$3&"_"&V$4&"_"&$A22),'All Data'!$A$2:$L$1048576,V$1,FALSE) -> 64.04686 | W22: =VLOOKUP(($B22&"_"&W$2&"_"&W$3&"_"&W$4&"_"&$A22),'All Data'!$A$2:$L$1048576,W$1,FALSE) -> 326.13753 | X22: =VLOOKUP(($B22&"_"&X$2&"_"&X$3&"_"&X$4&"_"&$A22),'All Data'!$A$2:$L$1048576,X$1,FALSE) -> 374.91578 | Y22: =VLOOKUP(($B22&"_"&Y$2&"_"&Y$3&"_"&Y$4&"_"&$A22),'All Data'!$A$2:$L$1048576,Y$1,FALSE) -> 428.20329 | Z22: =VLOOKUP(($B22&"_"&Z$2&"_"&Z$3&"_"&Z$4&"_"&$A22),'All Data'!$A$2:$L$1048576,Z$1,FALSE) -> 508.48373 | AA22: =VLOOKUP(($B22&"_"&AA$2&"_"&AA$3&"_"&AA$4&"_"&$A22),'All Data'!$A$2:$L$1048576,AA$1,FALSE) -> 211.05869 | AB22: =VLOOKUP(($B22&"_"&AB$2&"_"&AB$3&"_"&AB$4&"_"&$A22),'All Data'!$A$2:$L$1048576,AB$1,FALSE) -> 268.42295 | AC22: =VLOOKUP(($B22&"_"&AC$2&"_"&AC$3&"_"&AC$4&"_"&$A22),'All Data'!$A$2:$L$1048576,AC$1,FALSE) -> 41.90231017 | AD22: =VLOOKUP(($B22&"_"&AD$2&"_"&AD$3&"_"&AD$4&"_"&$A22),'All Data'!$A$2:$L$1048576,AD$1,FALSE) -> 55.29788392 | AE22: =VLOOKUP(($B22&"_"&AE$2&"_"&AE$3&"_"&AE$4&"_"&$A22),'All Data'!$A$2:$L$1048576,AE$1,FALSE) -> 651.61521 | AF22: =VLOOKUP(($B22&"_"&AF$2&"_"&AF$3&"_"&AF$4&"_"&$A22),'All Data'!$A$2:$L$1048576,AF$1,FALSE) -> 805.18415 | AG22: =VLOOKUP(($B22&"_"&AG$2&"_"&AG$3&"_"&AG$4&"_"&$A22),'All Data'!$A$2:$L$1048576,AG$1,FALSE) -> 372.04255 | AH22: =VLOOKUP(($B22&"_"&AH$2&"_"&AH$3&"_"&AH$4&"_"&$A22),'All Data'!$A$2:$L$1048576,AH$1,FALSE) -> 574.23396 | AI22: =VLOOKUP(($B22&"_"&AI$2&"_"&AI$3&"_"&AI$4&"_"&$A22),'All Data'!$A$2:$L$1048576,AI$1,FALSE) -> 769.36742 | AJ22: =VLOOKUP(($B22&"_"&AJ$2&"_"&AJ$3&"_"&AJ$4&"_"&$A22),'All Data'!$A$2:$L$1048576,AJ$1,FALSE) -> 986.89661 | AK22: =VLOOKUP(($B22&"_"&AK$2&"_"&AK$3&"_"&AK$4&"_"&$A22),'All Data'!$A$2:$L$1048576,AK$1,FALSE) -> 81.14322017 | AL22: =VLOOKUP(($B22&"_"&AL$2&"_"&AL$3&"_"&AL$4&"_"&$A22),'All Data'!$A$2:$L$1048576,AL$1,FALSE) -> 83.98276157
A23: LA | B23: Merthyr Tydfil | C23: =VLOOKUP(($B23&"_"&C$2&"_"&C$3&"_"&C$4&"_"&$A23),'All Data'!$A$2:$L$1048576,C$1,FALSE) -> 0 | D23: =VLOOKUP(($B23&"_"&D$2&"_"&D$3&"_"&D$4&"_"&$A23),'All Data'!$A$2:$L$1048576,D$1,FALSE) -> 0 | E23: =VLOOKUP(($B23&"_"&E$2&"_"&E$3&"_"&E$4&"_"&$A23),'All Data'!$A$2:$L$1048576,E$1,FALSE) -> 0 | F23: =VLOOKUP(($B23&"_"&F$2&"_"&F$3&"_"&F$4&"_"&$A23),'All Data'!$A$2:$L$1048576,F$1,FALSE) -> 0 | G23: =VLOOKUP(($B23&"_"&G$2&"_"&G$3&"_"&G$4&"_"&$A23),'All Data'!$A$2:$L$1048576,G$1,FALSE) -> 5.005026 | H23: =VLOOKUP(($B23&"_"&H$2&"_"&H$3&"_"&H$4&"_"&$A23),'All Data'!$A$2:$L$1048576,H$1,FALSE) -> 13.74404 | I23: =VLOOKUP(($B23&"_"&I$2&"_"&I$3&"_"&I$4&"_"&$A23),'All Data'!$A$2:$L$1048576,I$1,FALSE) -> 4.382852 | J23: =VLOOKUP(($B23&"_"&J$2&"_"&J$3&"_"&J$4&"_"&$A23),'All Data'!$A$2:$L$1048576,J$1,FALSE) -> 11.16488 | K23: =VLOOKUP(($B23&"_"&K$2&"_"&K$3&"_"&K$4&"_"&$A23),'All Data'!$A$2:$L$1048576,K$1,FALSE) -> 63.69667 | L23: =VLOOKUP(($B23&"_"&L$2&"_"&L$3&"_"&L$4&"_"&$A23),'All Data'!$A$2:$L$1048576,L$1,FALSE) -> 69.45248 | M23: =VLOOKUP(($B23&"_"&M$2&"_"&M$3&"_"&M$4&"_"&$A23),'All Data'!$A$2:$L$1048576,M$1,FALSE) ->  | N23: =VLOOKUP(($B23&"_"&N$2&"_"&N$3&"_"&N$4&"_"&$A23),'All Data'!$A$2:$L$1048576,N$1,FALSE) ->  | O23: =VLOOKUP(($B23&"_"&O$2&"_"&O$3&"_"&O$4&"_"&$A23),'All Data'!$A$2:$L$1048576,O$1,FALSE) -> 23.3406 | P23: =VLOOKUP(($B23&"_"&P$2&"_"&P$3&"_"&P$4&"_"&$A23),'All Data'!$A$2:$L$1048576,P$1,FALSE) -> 29.19199 | Q23: =VLOOKUP(($B23&"_"&Q$2&"_"&Q$3&"_"&Q$4&"_"&$A23),'All Data'!$A$2:$L$1048576,Q$1,FALSE) -> 2.040601 | R23: =VLOOKUP(($B23&"_"&R$2&"_"&R$3&"_"&R$4&"_"&$A23),'All Data'!$A$2:$L$1048576,R$1,FALSE) -> 2.311552 | S23: =VLOOKUP(($B23&"_"&S$2&"_"&S$3&"_"&S$4&"_"&$A23),'All Data'!$A$2:$L$1048576,S$1,FALSE) -> 29.56718 | T23: =VLOOKUP(($B23&"_"&T$2&"_"&T$3&"_"&T$4&"_"&$A23),'All Data'!$A$2:$L$1048576,T$1,FALSE) -> 35.48618 | U23: =VLOOKUP(($B23&"_"&U$2&"_"&U$3&"_"&U$4&"_"&$A23),'All Data'!$A$2:$L$1048576,U$1,FALSE) -> 60.37034 | V23: =VLOOKUP(($B23&"_"&V$2&"_"&V$3&"_"&V$4&"_"&$A23),'All Data'!$A$2:$L$1048576,V$1,FALSE) -> 66.3362 | W23: =VLOOKUP(($B23&"_"&W$2&"_"&W$3&"_"&W$4&"_"&$A23),'All Data'!$A$2:$L$1048576,W$1,FALSE) -> 313.01637 | X23: =VLOOKUP(($B23&"_"&X$2&"_"&X$3&"_"&X$4&"_"&$A23),'All Data'!$A$2:$L$1048576,X$1,FALSE) -> 416.46296 | Y23: =VLOOKUP(($B23&"_"&Y$2&"_"&Y$3&"_"&Y$4&"_"&$A23),'All Data'!$A$2:$L$1048576,Y$1,FALSE) -> 442.0115 | Z23: =VLOOKUP(($B23&"_"&Z$2&"_"&Z$3&"_"&Z$4&"_"&$A23),'All Data'!$A$2:$L$1048576,Z$1,FALSE) -> 619.44531 | AA23: =VLOOKUP(($B23&"_"&AA$2&"_"&AA$3&"_"&AA$4&"_"&$A23),'All Data'!$A$2:$L$1048576,AA$1,FALSE) -> 156.22108 | AB23: =VLOOKUP(($B23&"_"&AB$2&"_"&AB$3&"_"&AB$4&"_"&$A23),'All Data'!$A$2:$L$1048576,AB$1,FALSE) -> 270.06823 | AC23: =VLOOKUP(($B23&"_"&AC$2&"_"&AC$3&"_"&AC$4&"_"&$A23),'All Data'!$A$2:$L$1048576,AC$1,FALSE) -> 32.95454545 | AD23: =VLOOKUP(($B23&"_"&AD$2&"_"&AD$3&"_"&AD$4&"_"&$A23),'All Data'!$A$2:$L$1048576,AD$1,FALSE) -> 58.89181818 | AE23: =VLOOKUP(($B23&"_"&AE$2&"_"&AE$3&"_"&AE$4&"_"&$A23),'All Data'!$A$2:$L$1048576,AE$1,FALSE) -> 512.9762 | AF23: =VLOOKUP(($B23&"_"&AF$2&"_"&AF$3&"_"&AF$4&"_"&$A23),'All Data'!$A$2:$L$1048576,AF$1,FALSE) -> 811.06411 | AG23: =VLOOKUP(($B23&"_"&AG$2&"_"&AG$3&"_"&AG$4&"_"&$A23),'All Data'!$A$2:$L$1048576,AG$1,FALSE) -> 252.85289 | AH23: =VLOOKUP(($B23&"_"&AH$2&"_"&AH$3&"_"&AH$4&"_"&$A23),'All Data'!$A$2:$L$1048576,AH$1,FALSE) -> 666.32568 | AI23: =VLOOKUP(($B23&"_"&AI$2&"_"&AI$3&"_"&AI$4&"_"&$A23),'All Data'!$A$2:$L$1048576,AI$1,FALSE) -> 610.3038 | AJ23: =VLOOKUP(($B23&"_"&AJ$2&"_"&AJ$3&"_"&AJ$4&"_"&$A23),'All Data'!$A$2:$L$1048576,AJ$1,FALSE) -> 1051.07318 | AK23: =VLOOKUP(($B23&"_"&AK$2&"_"&AK$3&"_"&AK$4&"_"&$A23),'All Data'!$A$2:$L$1048576,AK$1,FALSE) -> 82.24479318 | AL23: =VLOOKUP(($B23&"_"&AL$2&"_"&AL$3&"_"&AL$4&"_"&$A23),'All Data'!$A$2:$L$1048576,AL$1,FALSE) -> 87.55528787
A24: LA | B24: Caerphilly | C24: =VLOOKUP(($B24&"_"&C$2&"_"&C$3&"_"&C$4&"_"&$A24),'All Data'!$A$2:$L$1048576,C$1,FALSE) -> 0 | D24: =VLOOKUP(($B24&"_"&D$2&"_"&D$3&"_"&D$4&"_"&$A24),'All Data'!$A$2:$L$1048576,D$1,FALSE) -> 0 | E24: =VLOOKUP(($B24&"_"&E$2&"_"&E$3&"_"&E$4&"_"&$A24),'All Data'!$A$2:$L$1048576,E$1,FALSE) -> 0 | F24: =VLOOKUP(($B24&"_"&F$2&"_"&F$3&"_"&F$4&"_"&$A24),'All Data'!$A$2:$L$1048576,F$1,FALSE) -> 0 | G24: =VLOOKUP(($B24&"_"&G$2&"_"&G$3&"_"&G$4&"_"&$A24),'All Data'!$A$2:$L$1048576,G$1,FALSE) -> 5.976455 | H24: =VLOOKUP(($B24&"_"&H$2&"_"&H$3&"_"&H$4&"_"&$A24),'All Data'!$A$2:$L$1048576,H$1,FALSE) -> 11.01066 | I24: =VLOOKUP(($B24&"_"&I$2&"_"&I$3&"_"&I$4&"_"&$A24),'All Data'!$A$2:$L$1048576,I$1,FALSE) -> 5.821472 | J24: =VLOOKUP(($B24&"_"&J$2&"_"&J$3&"_"&J$4&"_"&$A24),'All Data'!$A$2:$L$1048576,J$1,FALSE) -> 9.837379 | K24: =VLOOKUP(($B24&"_"&K$2&"_"&K$3&"_"&K$4&"_"&$A24),'All Data'!$A$2:$L$1048576,K$1,FALSE) -> 65.99661 | L24: =VLOOKUP(($B24&"_"&L$2&"_"&L$3&"_"&L$4&"_"&$A24),'All Data'!$A$2:$L$1048576,L$1,FALSE) -> 71.44165 | M24: =VLOOKUP(($B24&"_"&M$2&"_"&M$3&"_"&M$4&"_"&$A24),'All Data'!$A$2:$L$1048576,M$1,FALSE) ->  | N24: =VLOOKUP(($B24&"_"&N$2&"_"&N$3&"_"&N$4&"_"&$A24),'All Data'!$A$2:$L$1048576,N$1,FALSE) ->  | O24: =VLOOKUP(($B24&"_"&O$2&"_"&O$3&"_"&O$4&"_"&$A24),'All Data'!$A$2:$L$1048576,O$1,FALSE) -> 21.26661 | P24: =VLOOKUP(($B24&"_"&P$2&"_"&P$3&"_"&P$4&"_"&$A24),'All Data'!$A$2:$L$1048576,P$1,FALSE) -> 26.41367 | Q24: =VLOOKUP(($B24&"_"&Q$2&"_"&Q$3&"_"&Q$4&"_"&$A24),'All Data'!$A$2:$L$1048576,Q$1,FALSE) -> 2.075346 | R24: =VLOOKUP(($B24&"_"&R$2&"_"&R$3&"_"&R$4&"_"&$A24),'All Data'!$A$2:$L$1048576,R$1,FALSE) -> 2.321898 | S24: =VLOOKUP(($B24&"_"&S$2&"_"&S$3&"_"&S$4&"_"&$A24),'All Data'!$A$2:$L$1048576,S$1,FALSE) -> 26.96314 | T24: =VLOOKUP(($B24&"_"&T$2&"_"&T$3&"_"&T$4&"_"&$A24),'All Data'!$A$2:$L$1048576,T$1,FALSE) -> 32.41584 | U24: =VLOOKUP(($B24&"_"&U$2&"_"&U$3&"_"&U$4&"_"&$A24),'All Data'!$A$2:$L$1048576,U$1,FALSE) -> 57.25634 | V24: =VLOOKUP(($B24&"_"&V$2&"_"&V$3&"_"&V$4&"_"&$A24),'All Data'!$A$2:$L$1048576,V$1,FALSE) -> 63.08896 | W24: =VLOOKUP(($B24&"_"&W$2&"_"&W$3&"_"&W$4&"_"&$A24),'All Data'!$A$2:$L$1048576,W$1,FALSE) -> 297.78613 | X24: =VLOOKUP(($B24&"_"&X$2&"_"&X$3&"_"&X$4&"_"&$A24),'All Data'!$A$2:$L$1048576,X$1,FALSE) -> 352.71105 | Y24: =VLOOKUP(($B24&"_"&Y$2&"_"&Y$3&"_"&Y$4&"_"&$A24),'All Data'!$A$2:$L$1048576,Y$1,FALSE) -> 395.65878 | Z24: =VLOOKUP(($B24&"_"&Z$2&"_"&Z$3&"_"&Z$4&"_"&$A24),'All Data'!$A$2:$L$1048576,Z$1,FALSE) -> 487.06014 | AA24: =VLOOKUP(($B24&"_"&AA$2&"_"&AA$3&"_"&AA$4&"_"&$A24),'All Data'!$A$2:$L$1048576,AA$1,FALSE) -> 184.45939 | AB24: =VLOOKUP(($B24&"_"&AB$2&"_"&AB$3&"_"&AB$4&"_"&$A24),'All Data'!$A$2:$L$1048576,AB$1,FALSE) -> 247.83458 | AC24: =VLOOKUP(($B24&"_"&AC$2&"_"&AC$3&"_"&AC$4&"_"&$A24),'All Data'!$A$2:$L$1048576,AC$1,FALSE) -> 32.40243487 | AD24: =VLOOKUP(($B24&"_"&AD$2&"_"&AD$3&"_"&AD$4&"_"&$A24),'All Data'!$A$2:$L$1048576,AD$1,FALSE) -> 46.06015076 | AE24: =VLOOKUP(($B24&"_"&AE$2&"_"&AE$3&"_"&AE$4&"_"&$A24),'All Data'!$A$2:$L$1048576,AE$1,FALSE) -> 674.36541 | AF24: =VLOOKUP(($B24&"_"&AF$2&"_"&AF$3&"_"&AF$4&"_"&$A24),'All Data'!$A$2:$L$1048576,AF$1,FALSE) -> 863.04348 | AG24: =VLOOKUP(($B24&"_"&AG$2&"_"&AG$3&"_"&AG$4&"_"&$A24),'All Data'!$A$2:$L$1048576,AG$1,FALSE) -> 340.39313 | AH24: =VLOOKUP(($B24&"_"&AH$2&"_"&AH$3&"_"&AH$4&"_"&$A24),'All Data'!$A$2:$L$1048576,AH$1,FALSE) -> 576.67728 | AI24: =VLOOKUP(($B24&"_"&AI$2&"_"&AI$3&"_"&AI$4&"_"&$A24),'All Data'!$A$2:$L$1048576,AI$1,FALSE) -> 824.34854 | AJ24: =VLOOKUP(($B24&"_"&AJ$2&"_"&AJ$3&"_"&AJ$4&"_"&$A24),'All Data'!$A$2:$L$1048576,AJ$1,FALSE) -> 1097.65846 | AK24: =VLOOKUP(($B24&"_"&AK$2&"_"&AK$3&"_"&AK$4&"_"&$A24),'All Data'!$A$2:$L$1048576,AK$1,FALSE) -> 80.07577682 | AL24: =VLOOKUP(($B24&"_"&AL$2&"_"&AL$3&"_"&AL$4&"_"&$A24),'All Data'!$A$2:$L$1048576,AL$1,FALSE) -> 83.41500066
A25: LA | B25: Blaenau Gwent | C25: =VLOOKUP(($B25&"_"&C$2&"_"&C$3&"_"&C$4&"_"&$A25),'All Data'!$A$2:$L$1048576,C$1,FALSE) -> 0 | D25: =VLOOKUP(($B25&"_"&D$2&"_"&D$3&"_"&D$4&"_"&$A25),'All Data'!$A$2:$L$1048576,D$1,FALSE) -> 0 | E25: =VLOOKUP(($B25&"_"&E$2&"_"&E$3&"_"&E$4&"_"&$A25),'All Data'!$A$2:$L$1048576,E$1,FALSE) -> 0 | F25: =VLOOKUP(($B25&"_"&F$2&"_"&F$3&"_"&F$4&"_"&$A25),'All Data'!$A$2:$L$1048576,F$1,FALSE) -> 0 | G25: =VLOOKUP(($B25&"_"&G$2&"_"&G$3&"_"&G$4&"_"&$A25),'All Data'!$A$2:$L$1048576,G$1,FALSE) -> -3.113655 | H25: =VLOOKUP(($B25&"_"&H$2&"_"&H$3&"_"&H$4&"_"&$A25),'All Data'!$A$2:$L$1048576,H$1,FALSE) -> 8.407347 | I25: =VLOOKUP(($B25&"_"&I$2&"_"&I$3&"_"&I$4&"_"&$A25),'All Data'!$A$2:$L$1048576,I$1,FALSE) -> -1.882884 | J25: =VLOOKUP(($B25&"_"&J$2&"_"&J$3&"_"&J$4&"_"&$A25),'All Data'!$A$2:$L$1048576,J$1,FALSE) -> 5.759999 | K25: =VLOOKUP(($B25&"_"&K$2&"_"&K$3&"_"&K$4&"_"&$A25),'All Data'!$A$2:$L$1048576,K$1,FALSE) -> 62.10064 | L25: =VLOOKUP(($B25&"_"&L$2&"_"&L$3&"_"&L$4&"_"&$A25),'All Data'!$A$2:$L$1048576,L$1,FALSE) -> 68.19925 | M25: =VLOOKUP(($B25&"_"&M$2&"_"&M$3&"_"&M$4&"_"&$A25),'All Data'!$A$2:$L$1048576,M$1,FALSE) ->  | N25: =VLOOKUP(($B25&"_"&N$2&"_"&N$3&"_"&N$4&"_"&$A25),'All Data'!$A$2:$L$1048576,N$1,FALSE) ->  | O25: =VLOOKUP(($B25&"_"&O$2&"_"&O$3&"_"&O$4&"_"&$A25),'All Data'!$A$2:$L$1048576,O$1,FALSE) -> 24.71242 | P25: =VLOOKUP(($B25&"_"&P$2&"_"&P$3&"_"&P$4&"_"&$A25),'All Data'!$A$2:$L$1048576,P$1,FALSE) -> 30.59535 | Q25: =VLOOKUP(($B25&"_"&Q$2&"_"&Q$3&"_"&Q$4&"_"&$A25),'All Data'!$A$2:$L$1048576,Q$1,FALSE) -> 2.069997 | R25: =VLOOKUP(($B25&"_"&R$2&"_"&R$3&"_"&R$4&"_"&$A25),'All Data'!$A$2:$L$1048576,R$1,FALSE) -> 2.328535 | S25: =VLOOKUP(($B25&"_"&S$2&"_"&S$3&"_"&S$4&"_"&$A25),'All Data'!$A$2:$L$1048576,S$1,FALSE) -> 25.49272 | T25: =VLOOKUP(($B25&"_"&T$2&"_"&T$3&"_"&T$4&"_"&$A25),'All Data'!$A$2:$L$1048576,T$1,FALSE) -> 31.29712 | U25: =VLOOKUP(($B25&"_"&U$2&"_"&U$3&"_"&U$4&"_"&$A25),'All Data'!$A$2:$L$1048576,U$1,FALSE) -> 57.88522 | V25: =VLOOKUP(($B25&"_"&V$2&"_"&V$3&"_"&V$4&"_"&$A25),'All Data'!$A$2:$L$1048576,V$1,FALSE) -> 63.88026 | W25: =VLOOKUP(($B25&"_"&W$2&"_"&W$3&"_"&W$4&"_"&$A25),'All Data'!$A$2:$L$1048576,W$1,FALSE) -> 369.63903 | X25: =VLOOKUP(($B25&"_"&X$2&"_"&X$3&"_"&X$4&"_"&$A25),'All Data'!$A$2:$L$1048576,X$1,FALSE) -> 469.67525 | Y25: =VLOOKUP(($B25&"_"&Y$2&"_"&Y$3&"_"&Y$4&"_"&$A25),'All Data'!$A$2:$L$1048576,Y$1,FALSE) -> 503.92584 | Z25: =VLOOKUP(($B25&"_"&Z$2&"_"&Z$3&"_"&Z$4&"_"&$A25),'All Data'!$A$2:$L$1048576,Z$1,FALSE) -> 674.0557 | AA25: =VLOOKUP(($B25&"_"&AA$2&"_"&AA$3&"_"&AA$4&"_"&$A25),'All Data'!$A$2:$L$1048576,AA$1,FALSE) -> 208.58721 | AB25: =VLOOKUP(($B25&"_"&AB$2&"_"&AB$3&"_"&AB$4&"_"&$A25),'All Data'!$A$2:$L$1048576,AB$1,FALSE) -> 320.27783 | AC25: =VLOOKUP(($B25&"_"&AC$2&"_"&AC$3&"_"&AC$4&"_"&$A25),'All Data'!$A$2:$L$1048576,AC$1,FALSE) -> 28.19041001 | AD25: =VLOOKUP(($B25&"_"&AD$2&"_"&AD$3&"_"&AD$4&"_"&$A25),'All Data'!$A$2:$L$1048576,AD$1,FALSE) -> 48.96316887 | AE25: =VLOOKUP(($B25&"_"&AE$2&"_"&AE$3&"_"&AE$4&"_"&$A25),'All Data'!$A$2:$L$1048576,AE$1,FALSE) -> 796.27994 | AF25: =VLOOKUP(($B25&"_"&AF$2&"_"&AF$3&"_"&AF$4&"_"&$A25),'All Data'!$A$2:$L$1048576,AF$1,FALSE) -> 1107.4206 | AG25: =VLOOKUP(($B25&"_"&AG$2&"_"&AG$3&"_"&AG$4&"_"&$A25),'All Data'!$A$2:$L$1048576,AG$1,FALSE) -> 430.42426 | AH25: =VLOOKUP(($B25&"_"&AH$2&"_"&AH$3&"_"&AH$4&"_"&$A25),'All Data'!$A$2:$L$1048576,AH$1,FALSE) -> 855.55473 | AI25: =VLOOKUP(($B25&"_"&AI$2&"_"&AI$3&"_"&AI$4&"_"&$A25),'All Data'!$A$2:$L$1048576,AI$1,FALSE) -> 930.71866 | AJ25: =VLOOKUP(($B25&"_"&AJ$2&"_"&AJ$3&"_"&AJ$4&"_"&$A25),'All Data'!$A$2:$L$1048576,AJ$1,FALSE) -> 1373.0137 | AK25: =VLOOKUP(($B25&"_"&AK$2&"_"&AK$3&"_"&AK$4&"_"&$A25),'All Data'!$A$2:$L$1048576,AK$1,FALSE) -> 81.16770282 | AL25: =VLOOKUP(($B25&"_"&AL$2&"_"&AL$3&"_"&AL$4&"_"&$A25),'All Data'!$A$2:$L$1048576,AL$1,FALSE) -> 86.38557
A26: LA | B26: Torfaen | C26: =VLOOKUP(($B26&"_"&C$2&"_"&C$3&"_"&C$4&"_"&$A26),'All Data'!$A$2:$L$1048576,C$1,FALSE) -> 0 | D26: =VLOOKUP(($B26&"_"&D$2&"_"&D$3&"_"&D$4&"_"&$A26),'All Data'!$A$2:$L$1048576,D$1,FALSE) -> 0 | E26: =VLOOKUP(($B26&"_"&E$2&"_"&E$3&"_"&E$4&"_"&$A26),'All Data'!$A$2:$L$1048576,E$1,FALSE) -> 0 | F26: =VLOOKUP(($B26&"_"&F$2&"_"&F$3&"_"&F$4&"_"&$A26),'All Data'!$A$2:$L$1048576,F$1,FALSE) -> 0 | G26: =VLOOKUP(($B26&"_"&G$2&"_"&G$3&"_"&G$4&"_"&$A26),'All Data'!$A$2:$L$1048576,G$1,FALSE) -> 4.673392 | H26: =VLOOKUP(($B26&"_"&H$2&"_"&H$3&"_"&H$4&"_"&$A26),'All Data'!$A$2:$L$1048576,H$1,FALSE) -> 9.936896 | I26: =VLOOKUP(($B26&"_"&I$2&"_"&I$3&"_"&I$4&"_"&$A26),'All Data'!$A$2:$L$1048576,I$1,FALSE) -> 2.995135 | J26: =VLOOKUP(($B26&"_"&J$2&"_"&J$3&"_"&J$4&"_"&$A26),'All Data'!$A$2:$L$1048576,J$1,FALSE) -> 9.108655 | K26: =VLOOKUP(($B26&"_"&K$2&"_"&K$3&"_"&K$4&"_"&$A26),'All Data'!$A$2:$L$1048576,K$1,FALSE) -> 67.92607 | L26: =VLOOKUP(($B26&"_"&L$2&"_"&L$3&"_"&L$4&"_"&$A26),'All Data'!$A$2:$L$1048576,L$1,FALSE) -> 73.59476 | M26: =VLOOKUP(($B26&"_"&M$2&"_"&M$3&"_"&M$4&"_"&$A26),'All Data'!$A$2:$L$1048576,M$1,FALSE) ->  | N26: =VLOOKUP(($B26&"_"&N$2&"_"&N$3&"_"&N$4&"_"&$A26),'All Data'!$A$2:$L$1048576,N$1,FALSE) ->  | O26: =VLOOKUP(($B26&"_"&O$2&"_"&O$3&"_"&O$4&"_"&$A26),'All Data'!$A$2:$L$1048576,O$1,FALSE) -> 22.64048 | P26: =VLOOKUP(($B26&"_"&P$2&"_"&P$3&"_"&P$4&"_"&$A26),'All Data'!$A$2:$L$1048576,P$1,FALSE) -> 28.46601 | Q26: =VLOOKUP(($B26&"_"&Q$2&"_"&Q$3&"_"&Q$4&"_"&$A26),'All Data'!$A$2:$L$1048576,Q$1,FALSE) -> 2.115748 | R26: =VLOOKUP(($B26&"_"&R$2&"_"&R$3&"_"&R$4&"_"&$A26),'All Data'!$A$2:$L$1048576,R$1,FALSE) -> 2.379931 | S26: =VLOOKUP(($B26&"_"&S$2&"_"&S$3&"_"&S$4&"_"&$A26),'All Data'!$A$2:$L$1048576,S$1,FALSE) -> 26.6384 | T26: =VLOOKUP(($B26&"_"&T$2&"_"&T$3&"_"&T$4&"_"&$A26),'All Data'!$A$2:$L$1048576,T$1,FALSE) -> 32.47815 | U26: =VLOOKUP(($B26&"_"&U$2&"_"&U$3&"_"&U$4&"_"&$A26),'All Data'!$A$2:$L$1048576,U$1,FALSE) -> 59.67367 | V26: =VLOOKUP(($B26&"_"&V$2&"_"&V$3&"_"&V$4&"_"&$A26),'All Data'!$A$2:$L$1048576,V$1,FALSE) -> 65.50141 | W26: =VLOOKUP(($B26&"_"&W$2&"_"&W$3&"_"&W$4&"_"&$A26),'All Data'!$A$2:$L$1048576,W$1,FALSE) -> 367.01082 | X26: =VLOOKUP(($B26&"_"&X$2&"_"&X$3&"_"&X$4&"_"&$A26),'All Data'!$A$2:$L$1048576,X$1,FALSE) -> 452.48548 | Y26: =VLOOKUP(($B26&"_"&Y$2&"_"&Y$3&"_"&Y$4&"_"&$A26),'All Data'!$A$2:$L$1048576,Y$1,FALSE) -> 443.72446 | Z26: =VLOOKUP(($B26&"_"&Z$2&"_"&Z$3&"_"&Z$4&"_"&$A26),'All Data'!$A$2:$L$1048576,Z$1,FALSE) -> 579.30796 | AA26: =VLOOKUP(($B26&"_"&AA$2&"_"&AA$3&"_"&AA$4&"_"&$A26),'All Data'!$A$2:$L$1048576,AA$1,FALSE) -> 263.68432 | AB26: =VLOOKUP(($B26&"_"&AB$2&"_"&AB$3&"_"&AB$4&"_"&$A26),'All Data'!$A$2:$L$1048576,AB$1,FALSE) -> 371.35329 | AC26: =VLOOKUP(($B26&"_"&AC$2&"_"&AC$3&"_"&AC$4&"_"&$A26),'All Data'!$A$2:$L$1048576,AC$1,FALSE) -> 29.64439536 | AD26: =VLOOKUP(($B26&"_"&AD$2&"_"&AD$3&"_"&AD$4&"_"&$A26),'All Data'!$A$2:$L$1048576,AD$1,FALSE) -> 48.21866372 | AE26: =VLOOKUP(($B26&"_"&AE$2&"_"&AE$3&"_"&AE$4&"_"&$A26),'All Data'!$A$2:$L$1048576,AE$1,FALSE) -> 587.55558 | AF26: =VLOOKUP(($B26&"_"&AF$2&"_"&AF$3&"_"&AF$4&"_"&$A26),'All Data'!$A$2:$L$1048576,AF$1,FALSE) -> 814.73058 | AG26: =VLOOKUP(($B26&"_"&AG$2&"_"&AG$3&"_"&AG$4&"_"&$A26),'All Data'!$A$2:$L$1048576,AG$1,FALSE) -> 332.75513 | AH26: =VLOOKUP(($B26&"_"&AH$2&"_"&AH$3&"_"&AH$4&"_"&$A26),'All Data'!$A$2:$L$1048576,AH$1,FALSE) -> 641.69996 | AI26: =VLOOKUP(($B26&"_"&AI$2&"_"&AI$3&"_"&AI$4&"_"&$A26),'All Data'!$A$2:$L$1048576,AI$1,FALSE) -> 676.31076 | AJ26: =VLOOKUP(($B26&"_"&AJ$2&"_"&AJ$3&"_"&AJ$4&"_"&$A26),'All Data'!$A$2:$L$1048576,AJ$1,FALSE) -> 992.2325 | AK26: =VLOOKUP(($B26&"_"&AK$2&"_"&AK$3&"_"&AK$4&"_"&$A26),'All Data'!$A$2:$L$1048576,AK$1,FALSE) -> 80.55073412 | AL26: =VLOOKUP(($B26&"_"&AL$2&"_"&AL$3&"_"&AL$4&"_"&$A26),'All Data'!$A$2:$L$1048576,AL$1,FALSE) -> 85.06645631
A27: LA | B27: Monmouthshire | C27: =VLOOKUP(($B27&"_"&C$2&"_"&C$3&"_"&C$4&"_"&$A27),'All Data'!$A$2:$L$1048576,C$1,FALSE) -> 0 | D27: =VLOOKUP(($B27&"_"&D$2&"_"&D$3&"_"&D$4&"_"&$A27),'All Data'!$A$2:$L$1048576,D$1,FALSE) -> 0 | E27: =VLOOKUP(($B27&"_"&E$2&"_"&E$3&"_"&E$4&"_"&$A27),'All Data'!$A$2:$L$1048576,E$1,FALSE) -> 0 | F27: =VLOOKUP(($B27&"_"&F$2&"_"&F$3&"_"&F$4&"_"&$A27),'All Data'!$A$2:$L$1048576,F$1,FALSE) -> 0 | G27: =VLOOKUP(($B27&"_"&G$2&"_"&G$3&"_"&G$4&"_"&$A27),'All Data'!$A$2:$L$1048576,G$1,FALSE) -> 4.402877 | H27: =VLOOKUP(($B27&"_"&H$2&"_"&H$3&"_"&H$4&"_"&$A27),'All Data'!$A$2:$L$1048576,H$1,FALSE) -> 7.375799 | I27: =VLOOKUP(($B27&"_"&I$2&"_"&I$3&"_"&I$4&"_"&$A27),'All Data'!$A$2:$L$1048576,I$1,FALSE) -> 0.0502363 | J27: =VLOOKUP(($B27&"_"&J$2&"_"&J$3&"_"&J$4&"_"&$A27),'All Data'!$A$2:$L$1048576,J$1,FALSE) -> 8.175888 | K27: =VLOOKUP(($B27&"_"&K$2&"_"&K$3&"_"&K$4&"_"&$A27),'All Data'!$A$2:$L$1048576,K$1,FALSE) -> 77.9836 | L27: =VLOOKUP(($B27&"_"&L$2&"_"&L$3&"_"&L$4&"_"&$A27),'All Data'!$A$2:$L$1048576,L$1,FALSE) -> 82.99614 | M27: =VLOOKUP(($B27&"_"&M$2&"_"&M$3&"_"&M$4&"_"&$A27),'All Data'!$A$2:$L$1048576,M$1,FALSE) ->  | N27: =VLOOKUP(($B27&"_"&N$2&"_"&N$3&"_"&N$4&"_"&$A27),'All Data'!$A$2:$L$1048576,N$1,FALSE) ->  | O27: =VLOOKUP(($B27&"_"&O$2&"_"&O$3&"_"&O$4&"_"&$A27),'All Data'!$A$2:$L$1048576,O$1,FALSE) -> 15.89932 | P27: =VLOOKUP(($B27&"_"&P$2&"_"&P$3&"_"&P$4&"_"&$A27),'All Data'!$A$2:$L$1048576,P$1,FALSE) -> 21.34755 | Q27: =VLOOKUP(($B27&"_"&Q$2&"_"&Q$3&"_"&Q$4&"_"&$A27),'All Data'!$A$2:$L$1048576,Q$1,FALSE) -> 2.549871 | R27: =VLOOKUP(($B27&"_"&R$2&"_"&R$3&"_"&R$4&"_"&$A27),'All Data'!$A$2:$L$1048576,R$1,FALSE) -> 2.814168 | S27: =VLOOKUP(($B27&"_"&S$2&"_"&S$3&"_"&S$4&"_"&$A27),'All Data'!$A$2:$L$1048576,S$1,FALSE) -> 34.47568 | T27: =VLOOKUP(($B27&"_"&T$2&"_"&T$3&"_"&T$4&"_"&$A27),'All Data'!$A$2:$L$1048576,T$1,FALSE) -> 40.78666 | U27: =VLOOKUP(($B27&"_"&U$2&"_"&U$3&"_"&U$4&"_"&$A27),'All Data'!$A$2:$L$1048576,U$1,FALSE) -> 50.57932 | V27: =VLOOKUP(($B27&"_"&V$2&"_"&V$3&"_"&V$4&"_"&$A27),'All Data'!$A$2:$L$1048576,V$1,FALSE) -> 56.78894 | W27: =VLOOKUP(($B27&"_"&W$2&"_"&W$3&"_"&W$4&"_"&$A27),'All Data'!$A$2:$L$1048576,W$1,FALSE) -> 234.27701 | X27: =VLOOKUP(($B27&"_"&X$2&"_"&X$3&"_"&X$4&"_"&$A27),'All Data'!$A$2:$L$1048576,X$1,FALSE) -> 307.08187 | Y27: =VLOOKUP(($B27&"_"&Y$2&"_"&Y$3&"_"&Y$4&"_"&$A27),'All Data'!$A$2:$L$1048576,Y$1,FALSE) -> 291.63343 | Z27: =VLOOKUP(($B27&"_"&Z$2&"_"&Z$3&"_"&Z$4&"_"&$A27),'All Data'!$A$2:$L$1048576,Z$1,FALSE) -> 406.41302 | AA27: =VLOOKUP(($B27&"_"&AA$2&"_"&AA$3&"_"&AA$4&"_"&$A27),'All Data'!$A$2:$L$1048576,AA$1,FALSE) -> 154.98956 | AB27: =VLOOKUP(($B27&"_"&AB$2&"_"&AB$3&"_"&AB$4&"_"&$A27),'All Data'!$A$2:$L$1048576,AB$1,FALSE) -> 248.57151 | AC27: =VLOOKUP(($B27&"_"&AC$2&"_"&AC$3&"_"&AC$4&"_"&$A27),'All Data'!$A$2:$L$1048576,AC$1,FALSE) -> 16.04548007 | AD27: =VLOOKUP(($B27&"_"&AD$2&"_"&AD$3&"_"&AD$4&"_"&$A27),'All Data'!$A$2:$L$1048576,AD$1,FALSE) -> 30.58338012 | AE27: =VLOOKUP(($B27&"_"&AE$2&"_"&AE$3&"_"&AE$4&"_"&$A27),'All Data'!$A$2:$L$1048576,AE$1,FALSE) -> 692.56087 | AF27: =VLOOKUP(($B27&"_"&AF$2&"_"&AF$3&"_"&AF$4&"_"&$A27),'All Data'!$A$2:$L$1048576,AF$1,FALSE) -> 927.73506 | AG27: =VLOOKUP(($B27&"_"&AG$2&"_"&AG$3&"_"&AG$4&"_"&$A27),'All Data'!$A$2:$L$1048576,AG$1,FALSE) -> 394.61508 | AH27: =VLOOKUP(($B27&"_"&AH$2&"_"&AH$3&"_"&AH$4&"_"&$A27),'All Data'!$A$2:$L$1048576,AH$1,FALSE) -> 702.36666 | AI27: =VLOOKUP(($B27&"_"&AI$2&"_"&AI$3&"_"&AI$4&"_"&$A27),'All Data'!$A$2:$L$1048576,AI$1,FALSE) -> 812.49189 | AJ27: =VLOOKUP(($B27&"_"&AJ$2&"_"&AJ$3&"_"&AJ$4&"_"&$A27),'All Data'!$A$2:$L$1048576,AJ$1,FALSE) -> 1153.25151 | AK27: =VLOOKUP(($B27&"_"&AK$2&"_"&AK$3&"_"&AK$4&"_"&$A27),'All Data'!$A$2:$L$1048576,AK$1,FALSE) -> 80.54630379 | AL27: =VLOOKUP(($B27&"_"&AL$2&"_"&AL$3&"_"&AL$4&"_"&$A27),'All Data'!$A$2:$L$1048576,AL$1,FALSE) -> 85.52074325
A28: LA | B28: Newport | C28: =VLOOKUP(($B28&"_"&C$2&"_"&C$3&"_"&C$4&"_"&$A28),'All Data'!$A$2:$L$1048576,C$1,FALSE) -> 0 | D28: =VLOOKUP(($B28&"_"&D$2&"_"&D$3&"_"&D$4&"_"&$A28),'All Data'!$A$2:$L$1048576,D$1,FALSE) -> 0 | E28: =VLOOKUP(($B28&"_"&E$2&"_"&E$3&"_"&E$4&"_"&$A28),'All Data'!$A$2:$L$1048576,E$1,FALSE) -> 0 | F28: =VLOOKUP(($B28&"_"&F$2&"_"&F$3&"_"&F$4&"_"&$A28),'All Data'!$A$2:$L$1048576,F$1,FALSE) -> 0 | G28: =VLOOKUP(($B28&"_"&G$2&"_"&G$3&"_"&G$4&"_"&$A28),'All Data'!$A$2:$L$1048576,G$1,FALSE) -> 9.4929 | H28: =VLOOKUP(($B28&"_"&H$2&"_"&H$3&"_"&H$4&"_"&$A28),'All Data'!$A$2:$L$1048576,H$1,FALSE) -> 12.56765 | I28: =VLOOKUP(($B28&"_"&I$2&"_"&I$3&"_"&I$4&"_"&$A28),'All Data'!$A$2:$L$1048576,I$1,FALSE) -> -0.1301842 | J28: =VLOOKUP(($B28&"_"&J$2&"_"&J$3&"_"&J$4&"_"&$A28),'All Data'!$A$2:$L$1048576,J$1,FALSE) -> 12.65284 | K28: =VLOOKUP(($B28&"_"&K$2&"_"&K$3&"_"&K$4&"_"&$A28),'All Data'!$A$2:$L$1048576,K$1,FALSE) -> 69.49874 | L28: =VLOOKUP(($B28&"_"&L$2&"_"&L$3&"_"&L$4&"_"&$A28),'All Data'!$A$2:$L$1048576,L$1,FALSE) -> 74.69821 | M28: =VLOOKUP(($B28&"_"&M$2&"_"&M$3&"_"&M$4&"_"&$A28),'All Data'!$A$2:$L$1048576,M$1,FALSE) ->  | N28: =VLOOKUP(($B28&"_"&N$2&"_"&N$3&"_"&N$4&"_"&$A28),'All Data'!$A$2:$L$1048576,N$1,FALSE) ->  | O28: =VLOOKUP(($B28&"_"&O$2&"_"&O$3&"_"&O$4&"_"&$A28),'All Data'!$A$2:$L$1048576,O$1,FALSE) -> 21.83703 | P28: =VLOOKUP(($B28&"_"&P$2&"_"&P$3&"_"&P$4&"_"&$A28),'All Data'!$A$2:$L$1048576,P$1,FALSE) -> 27.5834 | Q28: =VLOOKUP(($B28&"_"&Q$2&"_"&Q$3&"_"&Q$4&"_"&$A28),'All Data'!$A$2:$L$1048576,Q$1,FALSE) -> 2.123467 | R28: =VLOOKUP(($B28&"_"&R$2&"_"&R$3&"_"&R$4&"_"&$A28),'All Data'!$A$2:$L$1048576,R$1,FALSE) -> 2.36385 | S28: =VLOOKUP(($B28&"_"&S$2&"_"&S$3&"_"&S$4&"_"&$A28),'All Data'!$A$2:$L$1048576,S$1,FALSE) -> 30.61519 | T28: =VLOOKUP(($B28&"_"&T$2&"_"&T$3&"_"&T$4&"_"&$A28),'All Data'!$A$2:$L$1048576,T$1,FALSE) -> 36.44619 | U28: =VLOOKUP(($B28&"_"&U$2&"_"&U$3&"_"&U$4&"_"&$A28),'All Data'!$A$2:$L$1048576,U$1,FALSE) -> 54.967 | V28: =VLOOKUP(($B28&"_"&V$2&"_"&V$3&"_"&V$4&"_"&$A28),'All Data'!$A$2:$L$1048576,V$1,FALSE) -> 60.87619 | W28: =VLOOKUP(($B28&"_"&W$2&"_"&W$3&"_"&W$4&"_"&$A28),'All Data'!$A$2:$L$1048576,W$1,FALSE) -> 392.11441 | X28: =VLOOKUP(($B28&"_"&X$2&"_"&X$3&"_"&X$4&"_"&$A28),'All Data'!$A$2:$L$1048576,X$1,FALSE) -> 461.89838 | Y28: =VLOOKUP(($B28&"_"&Y$2&"_"&Y$3&"_"&Y$4&"_"&$A28),'All Data'!$A$2:$L$1048576,Y$1,FALSE) -> 499.96275 | Z28: =VLOOKUP(($B28&"_"&Z$2&"_"&Z$3&"_"&Z$4&"_"&$A28),'All Data'!$A$2:$L$1048576,Z$1,FALSE) -> 614.04325 | AA28: =VLOOKUP(($B28&"_"&AA$2&"_"&AA$3&"_"&AA$4&"_"&$A28),'All Data'!$A$2:$L$1048576,AA$1,FALSE) -> 264.36345 | AB28: =VLOOKUP(($B28&"_"&AB$2&"_"&AB$3&"_"&AB$4&"_"&$A28),'All Data'!$A$2:$L$1048576,AB$1,FALSE) -> 347.55135 | AC28: =VLOOKUP(($B28&"_"&AC$2&"_"&AC$3&"_"&AC$4&"_"&$A28),'All Data'!$A$2:$L$1048576,AC$1,FALSE) -> 35.03174281 | AD28: =VLOOKUP(($B28&"_"&AD$2&"_"&AD$3&"_"&AD$4&"_"&$A28),'All Data'!$A$2:$L$1048576,AD$1,FALSE) -> 50.61518275 | AE28: =VLOOKUP(($B28&"_"&AE$2&"_"&AE$3&"_"&AE$4&"_"&$A28),'All Data'!$A$2:$L$1048576,AE$1,FALSE) -> 546.67103 | AF28: =VLOOKUP(($B28&"_"&AF$2&"_"&AF$3&"_"&AF$4&"_"&$A28),'All Data'!$A$2:$L$1048576,AF$1,FALSE) -> 728.2447 | AG28: =VLOOKUP(($B28&"_"&AG$2&"_"&AG$3&"_"&AG$4&"_"&$A28),'All Data'!$A$2:$L$1048576,AG$1,FALSE) -> 356.98422 | AH28: =VLOOKUP(($B28&"_"&AH$2&"_"&AH$3&"_"&AH$4&"_"&$A28),'All Data'!$A$2:$L$1048576,AH$1,FALSE) -> 618.16554 | AI28: =VLOOKUP(($B28&"_"&AI$2&"_"&AI$3&"_"&AI$4&"_"&$A28),'All Data'!$A$2:$L$1048576,AI$1,FALSE) -> 626.53037 | AJ28: =VLOOKUP(($B28&"_"&AJ$2&"_"&AJ$3&"_"&AJ$4&"_"&$A28),'All Data'!$A$2:$L$1048576,AJ$1,FALSE) -> 884.44755 | AK28: =VLOOKUP(($B28&"_"&AK$2&"_"&AK$3&"_"&AK$4&"_"&$A28),'All Data'!$A$2:$L$1048576,AK$1,FALSE) -> 74.58016358 | AL28: =VLOOKUP(($B28&"_"&AL$2&"_"&AL$3&"_"&AL$4&"_"&$A28),'All Data'!$A$2:$L$1048576,AL$1,FALSE) -> 78.38389587
A29: HB | B29: Betsi Cadwaladr UHB | C29: =VLOOKUP(($B29&"_"&C$2&"_"&C$3&"_"&C$4&"_"&$A29),'All Data'!$A$2:$L$1048576,C$1,FALSE) -> 0 | D29: =VLOOKUP(($B29&"_"&D$2&"_"&D$3&"_"&D$4&"_"&$A29),'All Data'!$A$2:$L$1048576,D$1,FALSE) -> 0 | E29: =VLOOKUP(($B29&"_"&E$2&"_"&E$3&"_"&E$4&"_"&$A29),'All Data'!$A$2:$L$1048576,E$1,FALSE) -> 0 | F29: =VLOOKUP(($B29&"_"&F$2&"_"&F$3&"_"&F$4&"_"&$A29),'All Data'!$A$2:$L$1048576,F$1,FALSE) -> 0 | G29: =VLOOKUP(($B29&"_"&G$2&"_"&G$3&"_"&G$4&"_"&$A29),'All Data'!$A$2:$L$1048576,G$1,FALSE) -> 2.866424 | H29: =VLOOKUP(($B29&"_"&H$2&"_"&H$3&"_"&H$4&"_"&$A29),'All Data'!$A$2:$L$1048576,H$1,FALSE) -> 11.50997 | I29: =VLOOKUP(($B29&"_"&I$2&"_"&I$3&"_"&I$4&"_"&$A29),'All Data'!$A$2:$L$1048576,I$1,FALSE) -> 2.015318 | J29: =VLOOKUP(($B29&"_"&J$2&"_"&J$3&"_"&J$4&"_"&$A29),'All Data'!$A$2:$L$1048576,J$1,FALSE) -> 9.051629 | K29: =VLOOKUP(($B29&"_"&K$2&"_"&K$3&"_"&K$4&"_"&$A29),'All Data'!$A$2:$L$1048576,K$1,FALSE) -> 76.70863 | L29: =VLOOKUP(($B29&"_"&L$2&"_"&L$3&"_"&L$4&"_"&$A29),'All Data'!$A$2:$L$1048576,L$1,FALSE) -> 78.84689 | M29: =VLOOKUP(($B29&"_"&M$2&"_"&M$3&"_"&M$4&"_"&$A29),'All Data'!$A$2:$L$1048576,M$1,FALSE) ->  | N29: =VLOOKUP(($B29&"_"&N$2&"_"&N$3&"_"&N$4&"_"&$A29),'All Data'!$A$2:$L$1048576,N$1,FALSE) ->  | O29: =VLOOKUP(($B29&"_"&O$2&"_"&O$3&"_"&O$4&"_"&$A29),'All Data'!$A$2:$L$1048576,O$1,FALSE) -> 22.21743 | P29: =VLOOKUP(($B29&"_"&P$2&"_"&P$3&"_"&P$4&"_"&$A29),'All Data'!$A$2:$L$1048576,P$1,FALSE) -> 24.53508 | Q29: =VLOOKUP(($B29&"_"&Q$2&"_"&Q$3&"_"&Q$4&"_"&$A29),'All Data'!$A$2:$L$1048576,Q$1,FALSE) -> 2.426735 | R29: =VLOOKUP(($B29&"_"&R$2&"_"&R$3&"_"&R$4&"_"&$A29),'All Data'!$A$2:$L$1048576,R$1,FALSE) -> 2.534382 | S29: =VLOOKUP(($B29&"_"&S$2&"_"&S$3&"_"&S$4&"_"&$A29),'All Data'!$A$2:$L$1048576,S$1,FALSE) -> 34.63662 | T29: =VLOOKUP(($B29&"_"&T$2&"_"&T$3&"_"&T$4&"_"&$A29),'All Data'!$A$2:$L$1048576,T$1,FALSE) -> 37.234 | U29: =VLOOKUP(($B29&"_"&U$2&"_"&U$3&"_"&U$4&"_"&$A29),'All Data'!$A$2:$L$1048576,U$1,FALSE) -> 53.25758 | V29: =VLOOKUP(($B29&"_"&V$2&"_"&V$3&"_"&V$4&"_"&$A29),'All Data'!$A$2:$L$1048576,V$1,FALSE) -> 55.77763 | W29: =VLOOKUP(($B29&"_"&W$2&"_"&W$3&"_"&W$4&"_"&$A29),'All Data'!$A$2:$L$1048576,W$1,FALSE) -> 355.25817 | X29: =VLOOKUP(($B29&"_"&X$2&"_"&X$3&"_"&X$4&"_"&$A29),'All Data'!$A$2:$L$1048576,X$1,FALSE) -> 385.04556 | Y29: =VLOOKUP(($B29&"_"&Y$2&"_"&Y$3&"_"&Y$4&"_"&$A29),'All Data'!$A$2:$L$1048576,Y$1,FALSE) -> 445.01457 | Z29: =VLOOKUP(($B29&"_"&Z$2&"_"&Z$3&"_"&Z$4&"_"&$A29),'All Data'!$A$2:$L$1048576,Z$1,FALSE) -> 492.38619 | AA29: =VLOOKUP(($B29&"_"&AA$2&"_"&AA$3&"_"&AA$4&"_"&$A29),'All Data'!$A$2:$L$1048576,AA$1,FALSE) -> 256.86076 | AB29: =VLOOKUP(($B29&"_"&AB$2&"_"&AB$3&"_"&AB$4&"_"&$A29),'All Data'!$A$2:$L$1048576,AB$1,FALSE) -> 293.44396 | AC29: =VLOOKUP(($B29&"_"&AC$2&"_"&AC$3&"_"&AC$4&"_"&$A29),'All Data'!$A$2:$L$1048576,AC$1,FALSE) -> 34.03697771 | AD29: =VLOOKUP(($B29&"_"&AD$2&"_"&AD$3&"_"&AD$4&"_"&$A29),'All Data'!$A$2:$L$1048576,AD$1,FALSE) -> 40.92802551 | AE29: =VLOOKUP(($B29&"_"&AE$2&"_"&AE$3&"_"&AE$4&"_"&$A29),'All Data'!$A$2:$L$1048576,AE$1,FALSE) -> 622.87671 | AF29: =VLOOKUP(($B29&"_"&AF$2&"_"&AF$3&"_"&AF$4&"_"&$A29),'All Data'!$A$2:$L$1048576,AF$1,FALSE) -> 702.51561 | AG29: =VLOOKUP(($B29&"_"&AG$2&"_"&AG$3&"_"&AG$4&"_"&$A29),'All Data'!$A$2:$L$1048576,AG$1,FALSE) -> 391.41392 | AH29: =VLOOKUP(($B29&"_"&AH$2&"_"&AH$3&"_"&AH$4&"_"&$A29),'All Data'!$A$2:$L$1048576,AH$1,FALSE) -> 495.1599 | AI29: =VLOOKUP(($B29&"_"&AI$2&"_"&AI$3&"_"&AI$4&"_"&$A29),'All Data'!$A$2:$L$1048576,AI$1,FALSE) -> 755.8251 | AJ29: =VLOOKUP(($B29&"_"&AJ$2&"_"&AJ$3&"_"&AJ$4&"_"&$A29),'All Data'!$A$2:$L$1048576,AJ$1,FALSE) -> 872.92105 | AK29: =VLOOKUP(($B29&"_"&AK$2&"_"&AK$3&"_"&AK$4&"_"&$A29),'All Data'!$A$2:$L$1048576,AK$1,FALSE) -> 82.44393825 | AL29: =VLOOKUP(($B29&"_"&AL$2&"_"&AL$3&"_"&AL$4&"_"&$A29),'All Data'!$A$2:$L$1048576,AL$1,FALSE) -> 84.12304187
A30: HB | B30: Powys THB | C30: =VLOOKUP(($B30&"_"&C$2&"_"&C$3&"_"&C$4&"_"&$A30),'All Data'!$A$2:$L$1048576,C$1,FALSE) -> 0 | D30: =VLOOKUP(($B30&"_"&D$2&"_"&D$3&"_"&D$4&"_"&$A30),'All Data'!$A$2:$L$1048576,D$1,FALSE) -> 0 | E30: =VLOOKUP(($B30&"_"&E$2&"_"&E$3&"_"&E$4&"_"&$A30),'All Data'!$A$2:$L$1048576,E$1,FALSE) -> 0 | F30: =VLOOKUP(($B30&"_"&F$2&"_"&F$3&"_"&F$4&"_"&$A30),'All Data'!$A$2:$L$1048576,F$1,FALSE) -> 0 | G30: =VLOOKUP(($B30&"_"&G$2&"_"&G$3&"_"&G$4&"_"&$A30),'All Data'!$A$2:$L$1048576,G$1,FALSE) -> -0.4952769 | H30: =VLOOKUP(($B30&"_"&H$2&"_"&H$3&"_"&H$4&"_"&$A30),'All Data'!$A$2:$L$1048576,H$1,FALSE) -> 11.44021 | I30: =VLOOKUP(($B30&"_"&I$2&"_"&I$3&"_"&I$4&"_"&$A30),'All Data'!$A$2:$L$1048576,I$1,FALSE) -> -4.037244 | J30: =VLOOKUP(($B30&"_"&J$2&"_"&J$3&"_"&J$4&"_"&$A30),'All Data'!$A$2:$L$1048576,J$1,FALSE) -> 13.85472 | K30: =VLOOKUP(($B30&"_"&K$2&"_"&K$3&"_"&K$4&"_"&$A30),'All Data'!$A$2:$L$1048576,K$1,FALSE) -> 77.07039 | L30: =VLOOKUP(($B30&"_"&L$2&"_"&L$3&"_"&L$4&"_"&$A30),'All Data'!$A$2:$L$1048576,L$1,FALSE) -> 82.57381 | M30: =VLOOKUP(($B30&"_"&M$2&"_"&M$3&"_"&M$4&"_"&$A30),'All Data'!$A$2:$L$1048576,M$1,FALSE) ->  | N30: =VLOOKUP(($B30&"_"&N$2&"_"&N$3&"_"&N$4&"_"&$A30),'All Data'!$A$2:$L$1048576,N$1,FALSE) ->  | O30: =VLOOKUP(($B30&"_"&O$2&"_"&O$3&"_"&O$4&"_"&$A30),'All Data'!$A$2:$L$1048576,O$1,FALSE) -> 19.8109 | P30: =VLOOKUP(($B30&"_"&P$2&"_"&P$3&"_"&P$4&"_"&$A30),'All Data'!$A$2:$L$1048576,P$1,FALSE) -> 25.6937 | Q30: =VLOOKUP(($B30&"_"&Q$2&"_"&Q$3&"_"&Q$4&"_"&$A30),'All Data'!$A$2:$L$1048576,Q$1,FALSE) -> 2.625976 | R30: =VLOOKUP(($B30&"_"&R$2&"_"&R$3&"_"&R$4&"_"&$A30),'All Data'!$A$2:$L$1048576,R$1,FALSE) -> 2.891827 | S30: =VLOOKUP(($B30&"_"&S$2&"_"&S$3&"_"&S$4&"_"&$A30),'All Data'!$A$2:$L$1048576,S$1,FALSE) -> 33.77557 | T30: =VLOOKUP(($B30&"_"&T$2&"_"&T$3&"_"&T$4&"_"&$A30),'All Data'!$A$2:$L$1048576,T$1,FALSE) -> 40.36398 | U30: =VLOOKUP(($B30&"_"&U$2&"_"&U$3&"_"&U$4&"_"&$A30),'All Data'!$A$2:$L$1048576,U$1,FALSE) -> 52.76245 | V30: =VLOOKUP(($B30&"_"&V$2&"_"&V$3&"_"&V$4&"_"&$A30),'All Data'!$A$2:$L$1048576,V$1,FALSE) -> 59.18378 | W30: =VLOOKUP(($B30&"_"&W$2&"_"&W$3&"_"&W$4&"_"&$A30),'All Data'!$A$2:$L$1048576,W$1,FALSE) -> 193.4983 | X30: =VLOOKUP(($B30&"_"&X$2&"_"&X$3&"_"&X$4&"_"&$A30),'All Data'!$A$2:$L$1048576,X$1,FALSE) -> 248.70436 | Y30: =VLOOKUP(($B30&"_"&Y$2&"_"&Y$3&"_"&Y$4&"_"&$A30),'All Data'!$A$2:$L$1048576,Y$1,FALSE) -> 261.83452 | Z30: =VLOOKUP(($B30&"_"&Z$2&"_"&Z$3&"_"&Z$4&"_"&$A30),'All Data'!$A$2:$L$1048576,Z$1,FALSE) -> 353.29258 | AA30: =VLOOKUP(($B30&"_"&AA$2&"_"&AA$3&"_"&AA$4&"_"&$A30),'All Data'!$A$2:$L$1048576,AA$1,FALSE) -> 105.40588 | AB30: =VLOOKUP(($B30&"_"&AB$2&"_"&AB$3&"_"&AB$4&"_"&$A30),'All Data'!$A$2:$L$1048576,AB$1,FALSE) -> 167.22681 | AC30: =VLOOKUP(($B30&"_"&AC$2&"_"&AC$3&"_"&AC$4&"_"&$A30),'All Data'!$A$2:$L$1048576,AC$1,FALSE) -> 18.14858032 | AD30: =VLOOKUP(($B30&"_"&AD$2&"_"&AD$3&"_"&AD$4&"_"&$A30),'All Data'!$A$2:$L$1048576,AD$1,FALSE) -> 30.47724621 | AE30: =VLOOKUP(($B30&"_"&AE$2&"_"&AE$3&"_"&AE$4&"_"&$A30),'All Data'!$A$2:$L$1048576,AE$1,FALSE) -> 536.83634 | AF30: =VLOOKUP(($B30&"_"&AF$2&"_"&AF$3&"_"&AF$4&"_"&$A30),'All Data'!$A$2:$L$1048576,AF$1,FALSE) -> 700.17668 | AG30: =VLOOKUP(($B30&"_"&AG$2&"_"&AG$3&"_"&AG$4&"_"&$A30),'All Data'!$A$2:$L$1048576,AG$1,FALSE) -> 274.07488 | AH30: =VLOOKUP(($B30&"_"&AH$2&"_"&AH$3&"_"&AH$4&"_"&$A30),'All Data'!$A$2:$L$1048576,AH$1,FALSE) -> 469.64096 | AI30: =VLOOKUP(($B30&"_"&AI$2&"_"&AI$3&"_"&AI$4&"_"&$A30),'All Data'!$A$2:$L$1048576,AI$1,FALSE) -> 681.24069 | AJ30: =VLOOKUP(($B30&"_"&AJ$2&"_"&AJ$3&"_"&AJ$4&"_"&$A30),'All Data'!$A$2:$L$1048576,AJ$1,FALSE) -> 932.70222 | AK30: =VLOOKUP(($B30&"_"&AK$2&"_"&AK$3&"_"&AK$4&"_"&$A30),'All Data'!$A$2:$L$1048576,AK$1,FALSE) -> 79.18320406 | AL30: =VLOOKUP(($B30&"_"&AL$2&"_"&AL$3&"_"&AL$4&"_"&$A30),'All Data'!$A$2:$L$1048576,AL$1,FALSE) -> 83.45160544
A31: HB | B31: Hywel Dda HB | C31: =VLOOKUP(($B31&"_"&C$2&"_"&C$3&"_"&C$4&"_"&$A31),'All Data'!$A$2:$L$1048576,C$1,FALSE) -> 0 | D31: =VLOOKUP(($B31&"_"&D$2&"_"&D$3&"_"&D$4&"_"&$A31),'All Data'!$A$2:$L$1048576,D$1,FALSE) -> 0 | E31: =VLOOKUP(($B31&"_"&E$2&"_"&E$3&"_"&E$4&"_"&$A31),'All Data'!$A$2:$L$1048576,E$1,FALSE) -> 0 | F31: =VLOOKUP(($B31&"_"&F$2&"_"&F$3&"_"&F$4&"_"&$A31),'All Data'!$A$2:$L$1048576,F$1,FALSE) -> 0 | G31: =VLOOKUP(($B31&"_"&G$2&"_"&G$3&"_"&G$4&"_"&$A31),'All Data'!$A$2:$L$1048576,G$1,FALSE) -> 2.233189 | H31: =VLOOKUP(($B31&"_"&H$2&"_"&H$3&"_"&H$4&"_"&$A31),'All Data'!$A$2:$L$1048576,H$1,FALSE) -> 11.44197 | I31: =VLOOKUP(($B31&"_"&I$2&"_"&I$3&"_"&I$4&"_"&$A31),'All Data'!$A$2:$L$1048576,I$1,FALSE) -> 1.274608 | J31: =VLOOKUP(($B31&"_"&J$2&"_"&J$3&"_"&J$4&"_"&$A31),'All Data'!$A$2:$L$1048576,J$1,FALSE) -> 6.831356 | K31: =VLOOKUP(($B31&"_"&K$2&"_"&K$3&"_"&K$4&"_"&$A31),'All Data'!$A$2:$L$1048576,K$1,FALSE) -> 74.18767 | L31: =VLOOKUP(($B31&"_"&L$2&"_"&L$3&"_"&L$4&"_"&$A31),'All Data'!$A$2:$L$1048576,L$1,FALSE) -> 77.31519 | M31: =VLOOKUP(($B31&"_"&M$2&"_"&M$3&"_"&M$4&"_"&$A31),'All Data'!$A$2:$L$1048576,M$1,FALSE) ->  | N31: =VLOOKUP(($B31&"_"&N$2&"_"&N$3&"_"&N$4&"_"&$A31),'All Data'!$A$2:$L$1048576,N$1,FALSE) ->  | O31: =VLOOKUP(($B31&"_"&O$2&"_"&O$3&"_"&O$4&"_"&$A31),'All Data'!$A$2:$L$1048576,O$1,FALSE) -> 21.25824 | P31: =VLOOKUP(($B31&"_"&P$2&"_"&P$3&"_"&P$4&"_"&$A31),'All Data'!$A$2:$L$1048576,P$1,FALSE) -> 24.59175 | Q31: =VLOOKUP(($B31&"_"&Q$2&"_"&Q$3&"_"&Q$4&"_"&$A31),'All Data'!$A$2:$L$1048576,Q$1,FALSE) -> 2.421321 | R31: =VLOOKUP(($B31&"_"&R$2&"_"&R$3&"_"&R$4&"_"&$A31),'All Data'!$A$2:$L$1048576,R$1,FALSE) -> 2.577352 | S31: =VLOOKUP(($B31&"_"&S$2&"_"&S$3&"_"&S$4&"_"&$A31),'All Data'!$A$2:$L$1048576,S$1,FALSE) -> 37.88745 | T31: =VLOOKUP(($B31&"_"&T$2&"_"&T$3&"_"&T$4&"_"&$A31),'All Data'!$A$2:$L$1048576,T$1,FALSE) -> 41.54707 | U31: =VLOOKUP(($B31&"_"&U$2&"_"&U$3&"_"&U$4&"_"&$A31),'All Data'!$A$2:$L$1048576,U$1,FALSE) -> 56.28181 | V31: =VLOOKUP(($B31&"_"&V$2&"_"&V$3&"_"&V$4&"_"&$A31),'All Data'!$A$2:$L$1048576,V$1,FALSE) -> 59.76636 | W31: =VLOOKUP(($B31&"_"&W$2&"_"&W$3&"_"&W$4&"_"&$A31),'All Data'!$A$2:$L$1048576,W$1,FALSE) -> 251.38106 | X31: =VLOOKUP(($B31&"_"&X$2&"_"&X$3&"_"&X$4&"_"&$A31),'All Data'!$A$2:$L$1048576,X$1,FALSE) -> 286.08052 | Y31: =VLOOKUP(($B31&"_"&Y$2&"_"&Y$3&"_"&Y$4&"_"&$A31),'All Data'!$A$2:$L$1048576,Y$1,FALSE) -> 315.42233 | Z31: =VLOOKUP(($B31&"_"&Z$2&"_"&Z$3&"_"&Z$4&"_"&$A31),'All Data'!$A$2:$L$1048576,Z$1,FALSE) -> 371.67508 | AA31: =VLOOKUP(($B31&"_"&AA$2&"_"&AA$3&"_"&AA$4&"_"&$A31),'All Data'!$A$2:$L$1048576,AA$1,FALSE) -> 179.12868 | AB31: =VLOOKUP(($B31&"_"&AB$2&"_"&AB$3&"_"&AB$4&"_"&$A31),'All Data'!$A$2:$L$1048576,AB$1,FALSE) -> 221.46434 | AC31: =VLOOKUP(($B31&"_"&AC$2&"_"&AC$3&"_"&AC$4&"_"&$A31),'All Data'!$A$2:$L$1048576,AC$1,FALSE) -> 25.89094921 | AD31: =VLOOKUP(($B31&"_"&AD$2&"_"&AD$3&"_"&AD$4&"_"&$A31),'All Data'!$A$2:$L$1048576,AD$1,FALSE) -> 34.12166763 | AE31: =VLOOKUP(($B31&"_"&AE$2&"_"&AE$3&"_"&AE$4&"_"&$A31),'All Data'!$A$2:$L$1048576,AE$1,FALSE) -> 562.75545 | AF31: =VLOOKUP(($B31&"_"&AF$2&"_"&AF$3&"_"&AF$4&"_"&$A31),'All Data'!$A$2:$L$1048576,AF$1,FALSE) -> 661.79617 | AG31: =VLOOKUP(($B31&"_"&AG$2&"_"&AG$3&"_"&AG$4&"_"&$A31),'All Data'!$A$2:$L$1048576,AG$1,FALSE) -> 382.89184 | AH31: =VLOOKUP(($B31&"_"&AH$2&"_"&AH$3&"_"&AH$4&"_"&$A31),'All Data'!$A$2:$L$1048576,AH$1,FALSE) -> 517.36028 | AI31: =VLOOKUP(($B31&"_"&AI$2&"_"&AI$3&"_"&AI$4&"_"&$A31),'All Data'!$A$2:$L$1048576,AI$1,FALSE) -> 666.9738 | AJ31: =VLOOKUP(($B31&"_"&AJ$2&"_"&AJ$3&"_"&AJ$4&"_"&$A31),'All Data'!$A$2:$L$1048576,AJ$1,FALSE) -> 813.13553 | AK31: =VLOOKUP(($B31&"_"&AK$2&"_"&AK$3&"_"&AK$4&"_"&$A31),'All Data'!$A$2:$L$1048576,AK$1,FALSE) -> 77.07493143 | AL31: =VLOOKUP(($B31&"_"&AL$2&"_"&AL$3&"_"&AL$4&"_"&$A31),'All Data'!$A$2:$L$1048576,AL$1,FALSE) -> 79.62989995
A32: HB | B32: ABM UHB | C32: =VLOOKUP(($B32&"_"&C$2&"_"&C$3&"_"&C$4&"_"&$A32),'All Data'!$A$2:$L$1048576,C$1,FALSE) -> 0 | D32: =VLOOKUP(($B32&"_"&D$2&"_"&D$3&"_"&D$4&"_"&$A32),'All Data'!$A$2:$L$1048576,D$1,FALSE) -> 0 | E32: =VLOOKUP(($B32&"_"&E$2&"_"&E$3&"_"&E$4&"_"&$A32),'All Data'!$A$2:$L$1048576,E$1,FALSE) -> 0 | F32: =VLOOKUP(($B32&"_"&F$2&"_"&F$3&"_"&F$4&"_"&$A32),'All Data'!$A$2:$L$1048576,F$1,FALSE) -> 0 | G32: =VLOOKUP(($B32&"_"&G$2&"_"&G$3&"_"&G$4&"_"&$A32),'All Data'!$A$2:$L$1048576,G$1,FALSE) -> 8.93405 | H32: =VLOOKUP(($B32&"_"&H$2&"_"&H$3&"_"&H$4&"_"&$A32),'All Data'!$A$2:$L$1048576,H$1,FALSE) -> 11.81796 | I32: =VLOOKUP(($B32&"_"&I$2&"_"&I$3&"_"&I$4&"_"&$A32),'All Data'!$A$2:$L$1048576,I$1,FALSE) -> 5.711448 | J32: =VLOOKUP(($B32&"_"&J$2&"_"&J$3&"_"&J$4&"_"&$A32),'All Data'!$A$2:$L$1048576,J$1,FALSE) -> 8.941747 | K32: =VLOOKUP(($B32&"_"&K$2&"_"&K$3&"_"&K$4&"_"&$A32),'All Data'!$A$2:$L$1048576,K$1,FALSE) -> 72.1541 | L32: =VLOOKUP(($B32&"_"&L$2&"_"&L$3&"_"&L$4&"_"&$A32),'All Data'!$A$2:$L$1048576,L$1,FALSE) -> 75.03022 | M32: =VLOOKUP(($B32&"_"&M$2&"_"&M$3&"_"&M$4&"_"&$A32),'All Data'!$A$2:$L$1048576,M$1,FALSE) ->  | N32: =VLOOKUP(($B32&"_"&N$2&"_"&N$3&"_"&N$4&"_"&$A32),'All Data'!$A$2:$L$1048576,N$1,FALSE) ->  | O32: =VLOOKUP(($B32&"_"&O$2&"_"&O$3&"_"&O$4&"_"&$A32),'All Data'!$A$2:$L$1048576,O$1,FALSE) -> 21.46192 | P32: =VLOOKUP(($B32&"_"&P$2&"_"&P$3&"_"&P$4&"_"&$A32),'All Data'!$A$2:$L$1048576,P$1,FALSE) -> 24.38209 | Q32: =VLOOKUP(($B32&"_"&Q$2&"_"&Q$3&"_"&Q$4&"_"&$A32),'All Data'!$A$2:$L$1048576,Q$1,FALSE) -> 2.197669 | R32: =VLOOKUP(($B32&"_"&R$2&"_"&R$3&"_"&R$4&"_"&$A32),'All Data'!$A$2:$L$1048576,R$1,FALSE) -> 2.333755 | S32: =VLOOKUP(($B32&"_"&S$2&"_"&S$3&"_"&S$4&"_"&$A32),'All Data'!$A$2:$L$1048576,S$1,FALSE) -> 32.95783 | T32: =VLOOKUP(($B32&"_"&T$2&"_"&T$3&"_"&T$4&"_"&$A32),'All Data'!$A$2:$L$1048576,T$1,FALSE) -> 36.19656 | U32: =VLOOKUP(($B32&"_"&U$2&"_"&U$3&"_"&U$4&"_"&$A32),'All Data'!$A$2:$L$1048576,U$1,FALSE) -> 56.8207 | V32: =VLOOKUP(($B32&"_"&V$2&"_"&V$3&"_"&V$4&"_"&$A32),'All Data'!$A$2:$L$1048576,V$1,FALSE) -> 60.08559 | W32: =VLOOKUP(($B32&"_"&W$2&"_"&W$3&"_"&W$4&"_"&$A32),'All Data'!$A$2:$L$1048576,W$1,FALSE) -> 303.93767 | X32: =VLOOKUP(($B32&"_"&X$2&"_"&X$3&"_"&X$4&"_"&$A32),'All Data'!$A$2:$L$1048576,X$1,FALSE) -> 335.52395 | Y32: =VLOOKUP(($B32&"_"&Y$2&"_"&Y$3&"_"&Y$4&"_"&$A32),'All Data'!$A$2:$L$1048576,Y$1,FALSE) -> 416.61968 | Z32: =VLOOKUP(($B32&"_"&Z$2&"_"&Z$3&"_"&Z$4&"_"&$A32),'All Data'!$A$2:$L$1048576,Z$1,FALSE) -> 469.30334 | AA32: =VLOOKUP(($B32&"_"&AA$2&"_"&AA$3&"_"&AA$4&"_"&$A32),'All Data'!$A$2:$L$1048576,AA$1,FALSE) -> 184.64719 | AB32: =VLOOKUP(($B32&"_"&AB$2&"_"&AB$3&"_"&AB$4&"_"&$A32),'All Data'!$A$2:$L$1048576,AB$1,FALSE) -> 220.60075 | AC32: =VLOOKUP(($B32&"_"&AC$2&"_"&AC$3&"_"&AC$4&"_"&$A32),'All Data'!$A$2:$L$1048576,AC$1,FALSE) -> 35.31924946 | AD32: =VLOOKUP(($B32&"_"&AD$2&"_"&AD$3&"_"&AD$4&"_"&$A32),'All Data'!$A$2:$L$1048576,AD$1,FALSE) -> 43.85901305 | AE32: =VLOOKUP(($B32&"_"&AE$2&"_"&AE$3&"_"&AE$4&"_"&$A32),'All Data'!$A$2:$L$1048576,AE$1,FALSE) -> 524.96155 | AF32: =VLOOKUP(($B32&"_"&AF$2&"_"&AF$3&"_"&AF$4&"_"&$A32),'All Data'!$A$2:$L$1048576,AF$1,FALSE) -> 614.92029 | AG32: =VLOOKUP(($B32&"_"&AG$2&"_"&AG$3&"_"&AG$4&"_"&$A32),'All Data'!$A$2:$L$1048576,AG$1,FALSE) -> 318.0436 | AH32: =VLOOKUP(($B32&"_"&AH$2&"_"&AH$3&"_"&AH$4&"_"&$A32),'All Data'!$A$2:$L$1048576,AH$1,FALSE) -> 434.76105 | AI32: =VLOOKUP(($B32&"_"&AI$2&"_"&AI$3&"_"&AI$4&"_"&$A32),'All Data'!$A$2:$L$1048576,AI$1,FALSE) -> 631.25886 | AJ32: =VLOOKUP(($B32&"_"&AJ$2&"_"&AJ$3&"_"&AJ$4&"_"&$A32),'All Data'!$A$2:$L$1048576,AJ$1,FALSE) -> 761.57303 | AK32: =VLOOKUP(($B32&"_"&AK$2&"_"&AK$3&"_"&AK$4&"_"&$A32),'All Data'!$A$2:$L$1048576,AK$1,FALSE) -> 79.6567637 | AL32: =VLOOKUP(($B32&"_"&AL$2&"_"&AL$3&"_"&AL$4&"_"&$A32),'All Data'!$A$2:$L$1048576,AL$1,FALSE) -> 81.68626583
A33: HB | B33: Cardiff & Vale UHB | C33: =VLOOKUP(($B33&"_"&C$2&"_"&C$3&"_"&C$4&"_"&$A33),'All Data'!$A$2:$L$1048576,C$1,FALSE) -> 0 | D33: =VLOOKUP(($B33&"_"&D$2&"_"&D$3&"_"&D$4&"_"&$A33),'All Data'!$A$2:$L$1048576,D$1,FALSE) -> 0 | E33: =VLOOKUP(($B33&"_"&E$2&"_"&E$3&"_"&E$4&"_"&$A33),'All Data'!$A$2:$L$1048576,E$1,FALSE) -> 0 | F33: =VLOOKUP(($B33&"_"&F$2&"_"&F$3&"_"&F$4&"_"&$A33),'All Data'!$A$2:$L$1048576,F$1,FALSE) -> 0 | G33: =VLOOKUP(($B33&"_"&G$2&"_"&G$3&"_"&G$4&"_"&$A33),'All Data'!$A$2:$L$1048576,G$1,FALSE) -> 8.532632 | H33: =VLOOKUP(($B33&"_"&H$2&"_"&H$3&"_"&H$4&"_"&$A33),'All Data'!$A$2:$L$1048576,H$1,FALSE) -> 15.09532 | I33: =VLOOKUP(($B33&"_"&I$2&"_"&I$3&"_"&I$4&"_"&$A33),'All Data'!$A$2:$L$1048576,I$1,FALSE) -> 8.014632 | J33: =VLOOKUP(($B33&"_"&J$2&"_"&J$3&"_"&J$4&"_"&$A33),'All Data'!$A$2:$L$1048576,J$1,FALSE) -> 11.84717 | K33: =VLOOKUP(($B33&"_"&K$2&"_"&K$3&"_"&K$4&"_"&$A33),'All Data'!$A$2:$L$1048576,K$1,FALSE) -> 72.96963 | L33: =VLOOKUP(($B33&"_"&L$2&"_"&L$3&"_"&L$4&"_"&$A33),'All Data'!$A$2:$L$1048576,L$1,FALSE) -> 76.26829 | M33: =VLOOKUP(($B33&"_"&M$2&"_"&M$3&"_"&M$4&"_"&$A33),'All Data'!$A$2:$L$1048576,M$1,FALSE) ->  | N33: =VLOOKUP(($B33&"_"&N$2&"_"&N$3&"_"&N$4&"_"&$A33),'All Data'!$A$2:$L$1048576,N$1,FALSE) ->  | O33: =VLOOKUP(($B33&"_"&O$2&"_"&O$3&"_"&O$4&"_"&$A33),'All Data'!$A$2:$L$1048576,O$1,FALSE) -> 20.70471 | P33: =VLOOKUP(($B33&"_"&P$2&"_"&P$3&"_"&P$4&"_"&$A33),'All Data'!$A$2:$L$1048576,P$1,FALSE) -> 23.96257 | Q33: =VLOOKUP(($B33&"_"&Q$2&"_"&Q$3&"_"&Q$4&"_"&$A33),'All Data'!$A$2:$L$1048576,Q$1,FALSE) -> 2.170051 | R33: =VLOOKUP(($B33&"_"&R$2&"_"&R$3&"_"&R$4&"_"&$A33),'All Data'!$A$2:$L$1048576,R$1,FALSE) -> 2.322204 | S33: =VLOOKUP(($B33&"_"&S$2&"_"&S$3&"_"&S$4&"_"&$A33),'All Data'!$A$2:$L$1048576,S$1,FALSE) -> 34.73414 | T33: =VLOOKUP(($B33&"_"&T$2&"_"&T$3&"_"&T$4&"_"&$A33),'All Data'!$A$2:$L$1048576,T$1,FALSE) -> 38.44441 | U33: =VLOOKUP(($B33&"_"&U$2&"_"&U$3&"_"&U$4&"_"&$A33),'All Data'!$A$2:$L$1048576,U$1,FALSE) -> 52.54546 | V33: =VLOOKUP(($B33&"_"&V$2&"_"&V$3&"_"&V$4&"_"&$A33),'All Data'!$A$2:$L$1048576,V$1,FALSE) -> 56.36435 | W33: =VLOOKUP(($B33&"_"&W$2&"_"&W$3&"_"&W$4&"_"&$A33),'All Data'!$A$2:$L$1048576,W$1,FALSE) -> 298.76713 | X33: =VLOOKUP(($B33&"_"&X$2&"_"&X$3&"_"&X$4&"_"&$A33),'All Data'!$A$2:$L$1048576,X$1,FALSE) -> 331.67358 | Y33: =VLOOKUP(($B33&"_"&Y$2&"_"&Y$3&"_"&Y$4&"_"&$A33),'All Data'!$A$2:$L$1048576,Y$1,FALSE) -> 387.45397 | Z33: =VLOOKUP(($B33&"_"&Z$2&"_"&Z$3&"_"&Z$4&"_"&$A33),'All Data'!$A$2:$L$1048576,Z$1,FALSE) -> 441.6148 | AA33: =VLOOKUP(($B33&"_"&AA$2&"_"&AA$3&"_"&AA$4&"_"&$A33),'All Data'!$A$2:$L$1048576,AA$1,FALSE) -> 203.21733 | AB33: =VLOOKUP(($B33&"_"&AB$2&"_"&AB$3&"_"&AB$4&"_"&$A33),'All Data'!$A$2:$L$1048576,AB$1,FALSE) -> 241.98869 | AC33: =VLOOKUP(($B33&"_"&AC$2&"_"&AC$3&"_"&AC$4&"_"&$A33),'All Data'!$A$2:$L$1048576,AC$1,FALSE) -> 38.07681832 | AD33: =VLOOKUP(($B33&"_"&AD$2&"_"&AD$3&"_"&AD$4&"_"&$A33),'All Data'!$A$2:$L$1048576,AD$1,FALSE) -> 47.19220105 | AE33: =VLOOKUP(($B33&"_"&AE$2&"_"&AE$3&"_"&AE$4&"_"&$A33),'All Data'!$A$2:$L$1048576,AE$1,FALSE) -> 464.1002 | AF33: =VLOOKUP(($B33&"_"&AF$2&"_"&AF$3&"_"&AF$4&"_"&$A33),'All Data'!$A$2:$L$1048576,AF$1,FALSE) -> 564.47315 | AG33: =VLOOKUP(($B33&"_"&AG$2&"_"&AG$3&"_"&AG$4&"_"&$A33),'All Data'!$A$2:$L$1048576,AG$1,FALSE) -> 295.39591 | AH33: =VLOOKUP(($B33&"_"&AH$2&"_"&AH$3&"_"&AH$4&"_"&$A33),'All Data'!$A$2:$L$1048576,AH$1,FALSE) -> 427.43476 | AI33: =VLOOKUP(($B33&"_"&AI$2&"_"&AI$3&"_"&AI$4&"_"&$A33),'All Data'!$A$2:$L$1048576,AI$1,FALSE) -> 550.15212 | AJ33: =VLOOKUP(($B33&"_"&AJ$2&"_"&AJ$3&"_"&AJ$4&"_"&$A33),'All Data'!$A$2:$L$1048576,AJ$1,FALSE) -> 696.86043 | AK33: =VLOOKUP(($B33&"_"&AK$2&"_"&AK$3&"_"&AK$4&"_"&$A33),'All Data'!$A$2:$L$1048576,AK$1,FALSE) -> 76.95171851 | AL33: =VLOOKUP(($B33&"_"&AL$2&"_"&AL$3&"_"&AL$4&"_"&$A33),'All Data'!$A$2:$L$1048576,AL$1,FALSE) -> 79.05785266
A34: HB | B34: Cwm Taf HB | C34: =VLOOKUP(($B34&"_"&C$2&"_"&C$3&"_"&C$4&"_"&$A34),'All Data'!$A$2:$L$1048576,C$1,FALSE) -> 0 | D34: =VLOOKUP(($B34&"_"&D$2&"_"&D$3&"_"&D$4&"_"&$A34),'All Data'!$A$2:$L$1048576,D$1,FALSE) -> 0 | E34: =VLOOKUP(($B34&"_"&E$2&"_"&E$3&"_"&E$4&"_"&$A34),'All Data'!$A$2:$L$1048576,E$1,FALSE) -> 0 | F34: =VLOOKUP(($B34&"_"&F$2&"_"&F$3&"_"&F$4&"_"&$A34),'All Data'!$A$2:$L$1048576,F$1,FALSE) -> 0 | G34: =VLOOKUP(($B34&"_"&G$2&"_"&G$3&"_"&G$4&"_"&$A34),'All Data'!$A$2:$L$1048576,G$1,FALSE) -> 6.926785 | H34: =VLOOKUP(($B34&"_"&H$2&"_"&H$3&"_"&H$4&"_"&$A34),'All Data'!$A$2:$L$1048576,H$1,FALSE) -> 9.119055 | I34: =VLOOKUP(($B34&"_"&I$2&"_"&I$3&"_"&I$4&"_"&$A34),'All Data'!$A$2:$L$1048576,I$1,FALSE) -> 4.339259 | J34: =VLOOKUP(($B34&"_"&J$2&"_"&J$3&"_"&J$4&"_"&$A34),'All Data'!$A$2:$L$1048576,J$1,FALSE) -> 7.756504 | K34: =VLOOKUP(($B34&"_"&K$2&"_"&K$3&"_"&K$4&"_"&$A34),'All Data'!$A$2:$L$1048576,K$1,FALSE) -> 67.91071 | L34: =VLOOKUP(($B34&"_"&L$2&"_"&L$3&"_"&L$4&"_"&$A34),'All Data'!$A$2:$L$1048576,L$1,FALSE) -> 72.10977 | M34: =VLOOKUP(($B34&"_"&M$2&"_"&M$3&"_"&M$4&"_"&$A34),'All Data'!$A$2:$L$1048576,M$1,FALSE) ->  | N34: =VLOOKUP(($B34&"_"&N$2&"_"&N$3&"_"&N$4&"_"&$A34),'All Data'!$A$2:$L$1048576,N$1,FALSE) ->  | O34: =VLOOKUP(($B34&"_"&O$2&"_"&O$3&"_"&O$4&"_"&$A34),'All Data'!$A$2:$L$1048576,O$1,FALSE) -> 24.62538 | P34: =VLOOKUP(($B34&"_"&P$2&"_"&P$3&"_"&P$4&"_"&$A34),'All Data'!$A$2:$L$1048576,P$1,FALSE) -> 28.83604 | Q34: =VLOOKUP(($B34&"_"&Q$2&"_"&Q$3&"_"&Q$4&"_"&$A34),'All Data'!$A$2:$L$1048576,Q$1,FALSE) -> 2.094635 | R34: =VLOOKUP(($B34&"_"&R$2&"_"&R$3&"_"&R$4&"_"&$A34),'All Data'!$A$2:$L$1048576,R$1,FALSE) -> 2.28656 | S34: =VLOOKUP(($B34&"_"&S$2&"_"&S$3&"_"&S$4&"_"&$A34),'All Data'!$A$2:$L$1048576,S$1,FALSE) -> 28.19109 | T34: =VLOOKUP(($B34&"_"&T$2&"_"&T$3&"_"&T$4&"_"&$A34),'All Data'!$A$2:$L$1048576,T$1,FALSE) -> 32.59762 | U34: =VLOOKUP(($B34&"_"&U$2&"_"&U$3&"_"&U$4&"_"&$A34),'All Data'!$A$2:$L$1048576,U$1,FALSE) -> 59.79606 | V34: =VLOOKUP(($B34&"_"&V$2&"_"&V$3&"_"&V$4&"_"&$A34),'All Data'!$A$2:$L$1048576,V$1,FALSE) -> 63.99542 | W34: =VLOOKUP(($B34&"_"&W$2&"_"&W$3&"_"&W$4&"_"&$A34),'All Data'!$A$2:$L$1048576,W$1,FALSE) -> 330.71086 | X34: =VLOOKUP(($B34&"_"&X$2&"_"&X$3&"_"&X$4&"_"&$A34),'All Data'!$A$2:$L$1048576,X$1,FALSE) -> 374.69896 | Y34: =VLOOKUP(($B34&"_"&Y$2&"_"&Y$3&"_"&Y$4&"_"&$A34),'All Data'!$A$2:$L$1048576,Y$1,FALSE) -> 442.7231 | Z34: =VLOOKUP(($B34&"_"&Z$2&"_"&Z$3&"_"&Z$4&"_"&$A34),'All Data'!$A$2:$L$1048576,Z$1,FALSE) -> 515.7002 | AA34: =VLOOKUP(($B34&"_"&AA$2&"_"&AA$3&"_"&AA$4&"_"&$A34),'All Data'!$A$2:$L$1048576,AA$1,FALSE) -> 207.83734 | AB34: =VLOOKUP(($B34&"_"&AB$2&"_"&AB$3&"_"&AB$4&"_"&$A34),'All Data'!$A$2:$L$1048576,AB$1,FALSE) -> 258.73524 | AC34: =VLOOKUP(($B34&"_"&AC$2&"_"&AC$3&"_"&AC$4&"_"&$A34),'All Data'!$A$2:$L$1048576,AC$1,FALSE) -> 41.85536178 | AD34: =VLOOKUP(($B34&"_"&AD$2&"_"&AD$3&"_"&AD$4&"_"&$A34),'All Data'!$A$2:$L$1048576,AD$1,FALSE) -> 53.68860674 | AE34: =VLOOKUP(($B34&"_"&AE$2&"_"&AE$3&"_"&AE$4&"_"&$A34),'All Data'!$A$2:$L$1048576,AE$1,FALSE) -> 644.7374 | AF34: =VLOOKUP(($B34&"_"&AF$2&"_"&AF$3&"_"&AF$4&"_"&$A34),'All Data'!$A$2:$L$1048576,AF$1,FALSE) -> 780.65484 | AG34: =VLOOKUP(($B34&"_"&AG$2&"_"&AG$3&"_"&AG$4&"_"&$A34),'All Data'!$A$2:$L$1048576,AG$1,FALSE) -> 371.32716 | AH34: =VLOOKUP(($B34&"_"&AH$2&"_"&AH$3&"_"&AH$4&"_"&$A34),'All Data'!$A$2:$L$1048576,AH$1,FALSE) -> 549.80239 | AI34: =VLOOKUP(($B34&"_"&AI$2&"_"&AI$3&"_"&AI$4&"_"&$A34),'All Data'!$A$2:$L$1048576,AI$1,FALSE) -> 768.18421 | AJ34: =VLOOKUP(($B34&"_"&AJ$2&"_"&AJ$3&"_"&AJ$4&"_"&$A34),'All Data'!$A$2:$L$1048576,AJ$1,FALSE) -> 962.30083 | AK34: =VLOOKUP(($B34&"_"&AK$2&"_"&AK$3&"_"&AK$4&"_"&$A34),'All Data'!$A$2:$L$1048576,AK$1,FALSE) -> 81.81853723 | AL34: =VLOOKUP(($B34&"_"&AL$2&"_"&AL$3&"_"&AL$4&"_"&$A34),'All Data'!$A$2:$L$1048576,AL$1,FALSE) -> 84.32670677
A35: HB | B35: Aneurin Bevan HB | C35: =VLOOKUP(($B35&"_"&C$2&"_"&C$3&"_"&C$4&"_"&$A35),'All Data'!$A$2:$L$1048576,C$1,FALSE) -> 0 | D35: =VLOOKUP(($B35&"_"&D$2&"_"&D$3&"_"&D$4&"_"&$A35),'All Data'!$A$2:$L$1048576,D$1,FALSE) -> 0 | E35: =VLOOKUP(($B35&"_"&E$2&"_"&E$3&"_"&E$4&"_"&$A35),'All Data'!$A$2:$L$1048576,E$1,FALSE) -> 0 | F35: =VLOOKUP(($B35&"_"&F$2&"_"&F$3&"_"&F$4&"_"&$A35),'All Data'!$A$2:$L$1048576,F$1,FALSE) -> 0 | G35: =VLOOKUP(($B35&"_"&G$2&"_"&G$3&"_"&G$4&"_"&$A35),'All Data'!$A$2:$L$1048576,G$1,FALSE) -> 7.233314 | H35: =VLOOKUP(($B35&"_"&H$2&"_"&H$3&"_"&H$4&"_"&$A35),'All Data'!$A$2:$L$1048576,H$1,FALSE) -> 10.43611 | I35: =VLOOKUP(($B35&"_"&I$2&"_"&I$3&"_"&I$4&"_"&$A35),'All Data'!$A$2:$L$1048576,I$1,FALSE) -> 5.062984 | J35: =VLOOKUP(($B35&"_"&J$2&"_"&J$3&"_"&J$4&"_"&$A35),'All Data'!$A$2:$L$1048576,J$1,FALSE) -> 9.858346 | K35: =VLOOKUP(($B35&"_"&K$2&"_"&K$3&"_"&K$4&"_"&$A35),'All Data'!$A$2:$L$1048576,K$1,FALSE) -> 70.18711 | L35: =VLOOKUP(($B35&"_"&L$2&"_"&L$3&"_"&L$4&"_"&$A35),'All Data'!$A$2:$L$1048576,L$1,FALSE) -> 72.71622 | M35: =VLOOKUP(($B35&"_"&M$2&"_"&M$3&"_"&M$4&"_"&$A35),'All Data'!$A$2:$L$1048576,M$1,FALSE) ->  | N35: =VLOOKUP(($B35&"_"&N$2&"_"&N$3&"_"&N$4&"_"&$A35),'All Data'!$A$2:$L$1048576,N$1,FALSE) ->  | O35: =VLOOKUP(($B35&"_"&O$2&"_"&O$3&"_"&O$4&"_"&$A35),'All Data'!$A$2:$L$1048576,O$1,FALSE) -> 22.65411 | P35: =VLOOKUP(($B35&"_"&P$2&"_"&P$3&"_"&P$4&"_"&$A35),'All Data'!$A$2:$L$1048576,P$1,FALSE) -> 25.24035 | Q35: =VLOOKUP(($B35&"_"&Q$2&"_"&Q$3&"_"&Q$4&"_"&$A35),'All Data'!$A$2:$L$1048576,Q$1,FALSE) -> 2.236991 | R35: =VLOOKUP(($B35&"_"&R$2&"_"&R$3&"_"&R$4&"_"&$A35),'All Data'!$A$2:$L$1048576,R$1,FALSE) -> 2.354314 | S35: =VLOOKUP(($B35&"_"&S$2&"_"&S$3&"_"&S$4&"_"&$A35),'All Data'!$A$2:$L$1048576,S$1,FALSE) -> 30.34227 | T35: =VLOOKUP(($B35&"_"&T$2&"_"&T$3&"_"&T$4&"_"&$A35),'All Data'!$A$2:$L$1048576,T$1,FALSE) -> 33.04184 | U35: =VLOOKUP(($B35&"_"&U$2&"_"&U$3&"_"&U$4&"_"&$A35),'All Data'!$A$2:$L$1048576,U$1,FALSE) -> 57.71393 | V35: =VLOOKUP(($B35&"_"&V$2&"_"&V$3&"_"&V$4&"_"&$A35),'All Data'!$A$2:$L$1048576,V$1,FALSE) -> 60.49702 | W35: =VLOOKUP(($B35&"_"&W$2&"_"&W$3&"_"&W$4&"_"&$A35),'All Data'!$A$2:$L$1048576,W$1,FALSE) -> 349.62098 | X35: =VLOOKUP(($B35&"_"&X$2&"_"&X$3&"_"&X$4&"_"&$A35),'All Data'!$A$2:$L$1048576,X$1,FALSE) -> 381.89045 | Y35: =VLOOKUP(($B35&"_"&Y$2&"_"&Y$3&"_"&Y$4&"_"&$A35),'All Data'!$A$2:$L$1048576,Y$1,FALSE) -> 456.38062 | Z35: =VLOOKUP(($B35&"_"&Z$2&"_"&Z$3&"_"&Z$4&"_"&$A35),'All Data'!$A$2:$L$1048576,Z$1,FALSE) -> 509.15725 | AA35: =VLOOKUP(($B35&"_"&AA$2&"_"&AA$3&"_"&AA$4&"_"&$A35),'All Data'!$A$2:$L$1048576,AA$1,FALSE) -> 235.94047 | AB35: =VLOOKUP(($B35&"_"&AB$2&"_"&AB$3&"_"&AB$4&"_"&$A35),'All Data'!$A$2:$L$1048576,AB$1,FALSE) -> 274.09873 | AC35: =VLOOKUP(($B35&"_"&AC$2&"_"&AC$3&"_"&AC$4&"_"&$A35),'All Data'!$A$2:$L$1048576,AC$1,FALSE) -> 33.32827946 | AD35: =VLOOKUP(($B35&"_"&AD$2&"_"&AD$3&"_"&AD$4&"_"&$A35),'All Data'!$A$2:$L$1048576,AD$1,FALSE) -> 40.52802597 | AE35: =VLOOKUP(($B35&"_"&AE$2&"_"&AE$3&"_"&AE$4&"_"&$A35),'All Data'!$A$2:$L$1048576,AE$1,FALSE) -> 703.21074 | AF35: =VLOOKUP(($B35&"_"&AF$2&"_"&AF$3&"_"&AF$4&"_"&$A35),'All Data'!$A$2:$L$1048576,AF$1,FALSE) -> 800.08818 | AG35: =VLOOKUP(($B35&"_"&AG$2&"_"&AG$3&"_"&AG$4&"_"&$A35),'All Data'!$A$2:$L$1048576,AG$1,FALSE) -> 435.4772 | AH35: =VLOOKUP(($B35&"_"&AH$2&"_"&AH$3&"_"&AH$4&"_"&$A35),'All Data'!$A$2:$L$1048576,AH$1,FALSE) -> 563.84666 | AI35: =VLOOKUP(($B35&"_"&AI$2&"_"&AI$3&"_"&AI$4&"_"&$A35),'All Data'!$A$2:$L$1048576,AI$1,FALSE) -> 839.4914 | AJ35: =VLOOKUP(($B35&"_"&AJ$2&"_"&AJ$3&"_"&AJ$4&"_"&$A35),'All Data'!$A$2:$L$1048576,AJ$1,FALSE) -> 977.56627 | AK35: =VLOOKUP(($B35&"_"&AK$2&"_"&AK$3&"_"&AK$4&"_"&$A35),'All Data'!$A$2:$L$1048576,AK$1,FALSE) -> 79.93677058 | AL35: =VLOOKUP(($B35&"_"&AL$2&"_"&AL$3&"_"&AL$4&"_"&$A35),'All Data'!$A$2:$L$1048576,AL$1,FALSE) -> 81.82631122
A36: WALES | B36: WALES | C36: =VLOOKUP(($B36&"_"&C$2&"_"&C$3&"_"&C$4&"_"&$A36),'All Data'!$A$2:$L$1048576,8,FALSE) -> 18.93738 | D36: =VLOOKUP(($B36&"_"&D$2&"_"&D$3&"_"&D$4&"_"&$A36),'All Data'!$A$2:$L$1048576,8,FALSE) -> 18.93738 | E36: =VLOOKUP(($B36&"_"&E$2&"_"&E$3&"_"&E$4&"_"&$A36),'All Data'!$A$2:$L$1048576,8,FALSE) -> 17.79286 | F36: =VLOOKUP(($B36&"_"&F$2&"_"&F$3&"_"&F$4&"_"&$A36),'All Data'!$A$2:$L$1048576,8,FALSE) -> 17.79286 | G36: =VLOOKUP(($B36&"_"&G$2&"_"&G$3&"_"&G$4&"_"&$A36),'All Data'!$A$2:$L$1048576,8,FALSE) -> 9.242999 | H36: =VLOOKUP(($B36&"_"&H$2&"_"&H$3&"_"&H$4&"_"&$A36),'All Data'!$A$2:$L$1048576,8,FALSE) -> 9.242999 | I36: =VLOOKUP(($B36&"_"&I$2&"_"&I$3&"_"&I$4&"_"&$A36),'All Data'!$A$2:$L$1048576,8,FALSE) -> 7.055719 | J36: =VLOOKUP(($B36&"_"&J$2&"_"&J$3&"_"&J$4&"_"&$A36),'All Data'!$A$2:$L$1048576,8,FALSE) -> 7.055719 | K36: =VLOOKUP(($B36&"_"&K$2&"_"&K$3&"_"&K$4&"_"&$A36),'All Data'!$A$2:$L$1048576,8,FALSE) -> 74.51558 | L36: =VLOOKUP(($B36&"_"&L$2&"_"&L$3&"_"&L$4&"_"&$A36),'All Data'!$A$2:$L$1048576,8,FALSE) -> 74.51558 | M36: =VLOOKUP(($B36&"_"&M$2&"_"&M$3&"_"&M$4&"_"&$A36),'All Data'!$A$2:$L$1048576,8,FALSE) ->  | N36: =VLOOKUP(($B36&"_"&N$2&"_"&N$3&"_"&N$4&"_"&$A36),'All Data'!$A$2:$L$1048576,8,FALSE) ->  | O36: =VLOOKUP(($B36&"_"&O$2&"_"&O$3&"_"&O$4&"_"&$A36),'All Data'!$A$2:$L$1048576,8,FALSE) -> 23.51488686 | P36: =VLOOKUP(($B36&"_"&P$2&"_"&P$3&"_"&P$4&"_"&$A36),'All Data'!$A$2:$L$1048576,8,FALSE) -> 23.51488686 | Q36: =VLOOKUP(($B36&"_"&Q$2&"_"&Q$3&"_"&Q$4&"_"&$A36),'All Data'!$A$2:$L$1048576,8,FALSE) -> 2.361671368 | R36: =VLOOKUP(($B36&"_"&R$2&"_"&R$3&"_"&R$4&"_"&$A36),'All Data'!$A$2:$L$1048576,8,FALSE) -> 2.361671368 | S36: =VLOOKUP(($B36&"_"&S$2&"_"&S$3&"_"&S$4&"_"&$A36),'All Data'!$A$2:$L$1048576,8,FALSE) -> 35.01629255 | T36: =VLOOKUP(($B36&"_"&T$2&"_"&T$3&"_"&T$4&"_"&$A36),'All Data'!$A$2:$L$1048576,8,FALSE) -> 35.01629255 | U36: =VLOOKUP(($B36&"_"&U$2&"_"&U$3&"_"&U$4&"_"&$A36),'All Data'!$A$2:$L$1048576,8,FALSE) -> 57.28059663 | V36: =VLOOKUP(($B36&"_"&V$2&"_"&V$3&"_"&V$4&"_"&$A36),'All Data'!$A$2:$L$1048576,8,FALSE) -> 57.28059663 | W36: =VLOOKUP(($B36&"_"&W$2&"_"&W$3&"_"&W$4&"_"&$A36),'All Data'!$A$2:$L$1048576,8,FALSE) -> 328.43512 | X36: =VLOOKUP(($B36&"_"&X$2&"_"&X$3&"_"&X$4&"_"&$A36),'All Data'!$A$2:$L$1048576,8,FALSE) -> 328.43512 | Y36: =VLOOKUP(($B36&"_"&Y$2&"_"&Y$3&"_"&Y$4&"_"&$A36),'All Data'!$A$2:$L$1048576,8,FALSE) -> 431.66547 | Z36: =VLOOKUP(($B36&"_"&Z$2&"_"&Z$3&"_"&Z$4&"_"&$A36),'All Data'!$A$2:$L$1048576,8,FALSE) -> 431.66547 | AA36: =VLOOKUP(($B36&"_"&AA$2&"_"&AA$3&"_"&AA$4&"_"&$A36),'All Data'!$A$2:$L$1048576,8,FALSE) -> 230.16815 | AB36: =VLOOKUP(($B36&"_"&AB$2&"_"&AB$3&"_"&AB$4&"_"&$A36),'All Data'!$A$2:$L$1048576,8,FALSE) -> 230.16815 | AC36: =VLOOKUP(($B36&"_"&AC$2&"_"&AC$3&"_"&AC$4&"_"&$A36),'All Data'!$A$2:$L$1048576,8,FALSE) -> 37.70269046 | AD36: =VLOOKUP(($B36&"_"&AD$2&"_"&AD$3&"_"&AD$4&"_"&$A36),'All Data'!$A$2:$L$1048576,8,FALSE) -> 37.70269046 | AE36: =VLOOKUP(($B36&"_"&AE$2&"_"&AE$3&"_"&AE$4&"_"&$A36),'All Data'!$A$2:$L$1048576,8,FALSE) -> 636.4034 | AF36: =VLOOKUP(($B36&"_"&AF$2&"_"&AF$3&"_"&AF$4&"_"&$A36),'All Data'!$A$2:$L$1048576,8,FALSE) -> 636.4034 | AG36: =VLOOKUP(($B36&"_"&AG$2&"_"&AG$3&"_"&AG$4&"_"&$A36),'All Data'!$A$2:$L$1048576,8,FALSE) -> 424.9007 | AH36: =VLOOKUP(($B36&"_"&AH$2&"_"&AH$3&"_"&AH$4&"_"&$A36),'All Data'!$A$2:$L$1048576,8,FALSE) -> 424.9007 | AI36: =VLOOKUP(($B36&"_"&AI$2&"_"&AI$3&"_"&AI$4&"_"&$A36),'All Data'!$A$2:$L$1048576,8,FALSE) -> 777.3478 | AJ36: =VLOOKUP(($B36&"_"&AJ$2&"_"&AJ$3&"_"&AJ$4&"_"&$A36),'All Data'!$A$2:$L$1048576,8,FALSE) -> 777.3478 | AK36: =VLOOKUP(($B36&"_"&AK$2&"_"&AK$3&"_"&AK$4&"_"&$A36),'All Data'!$A$2:$L$1048576,8,FALSE) -> 80.8423952 | AL36: =VLOOKUP(($B36&"_"&AL$2&"_"&AL$3&"_"&AL$4&"_"&$A36),'All Data'!$A$2:$L$1048576,8,FALSE) -> 80.8423952

Sheet All Data (hidden)
A1: lookup | B1: Short name | C1: Year | D1: Sex | E1: AreaName | F1: Type | G1: Annual average | H1: EASR | I1: 95% LCL | J1: 95% UCL | K1: error + | L1: error -
A2: =TRIM(E2)&"_"&B2&"_"&D2&"_"&C2&"_"&F2 -> Blaenau Gwent_Smo_Persons_2009-2010_LA | B2: Smo | C2: 2009-2010 | D2: Persons | E2: Blaenau Gwent | F2: LA | G2: =" " ->  | H2: 27.65388296 | I2: 24.71242 | J2: 30.59535 | K2: 2.941467037 | L2: 2.941462963
A3: =TRIM(E3)&"_"&B3&"_"&D3&"_"&C3&"_"&F3 -> Rhondda Cynon Taf_Smo_Persons_2009-2010_LA | B3: Smo | C3: 2009-2010 | D3: Persons | E3: Rhondda Cynon Taf | F3: LA | G3: =" " ->  | H3: 26.83427862 | I3: 24.32486 | J3: 29.3437 | K3: 2.509421385 | L3: 2.509418615
A4: Merthyr Tydfil_Smo_Persons_2009-2010_LA | B4: Smo | C4: 2009-2010 | D4: Persons | E4: Merthyr Tydfil | F4: LA | H4: 26.26629677 | I4: 23.3406 | J4: 29.19199 | K4: 2.925693233 | L4: 2.925696767
A5: Wrexham_Smo_Persons_2009-2010_LA | B5: Smo | C5: 2009-2010 | D5: Persons | E5: Wrexham | F5: LA | H5: 26.15997465 | I5: 23.2677 | J5: 29.05224 | K5: 2.892265353 | L5: 2.892274647
A6: Neath Port Talbot_Smo_Persons_2009-2010_LA | B6: Smo | C6: 2009-2010 | D6: Persons | E6: Neath Port Talbot | F6: LA | H6: 25.941955 | I6: 23.16904 | J6: 28.71487 | K6: 2.772915001 | L6: 2.772914999
A7: Torfaen_Smo_Persons_2009-2010_LA | B7: Smo | C7: 2009-2010 | D7: Persons | E7: Torfaen | F7: LA | H7: 25.55324457 | I7: 22.64048 | J7: 28.46601 | K7: 2.912765434 | L7: 2.912764566
A8: Newport_Smo_Persons_2009-2010_LA | B8: Smo | C8: 2009-2010 | D8: Persons | E8: Newport | F8: LA | H8: 24.71021244 | I8: 21.83703 | J8: 27.5834 | K8: 2.873187557 | L8: 2.873182443
A9: Gwynedd_Smo_Persons_2009-2010_LA | B9: Smo | C9: 2009-2010 | D9: Persons | E9: Gwynedd | F9: LA | H9: 24.11628833 | I9: 21.19072 | J9: 27.04186 | K9: 2.925571671 | L9: 2.925568329
A10: Isle of Anglesey_Smo_Persons_2009-2010_LA | B10: Smo | C10: 2009-2010 | D10: Persons | E10: Isle of Anglesey | F10: LA | H10: 23.88784622 | I10: 21.01552 | J10: 26.76017 | K10: 2.872323781 | L10: 2.872326219
A11: Caerphilly_Smo_Persons_2009-2010_LA | B11: Smo | C11: 2009-2010 | D11: Persons | E11: Caerphilly | F11: LA | H11: 23.84013734 | I11: 21.26661 | J11: 26.41367 | K11: 2.573532664 | L11: 2.573527336
A12: Denbighshire_Smo_Persons_2009-2010_LA | B12: Smo | C12: 2009-2010 | D12: Persons | E12: Denbighshire | F12: LA | H12: 23.04792013 | I12: 20.35108 | J12: 25.74476 | K12: 2.696839865 | L12: 2.696840135
A13: Cardiff_Smo_Persons_2009-2010_LA | B13: Smo | C13: 2009-2010 | D13: Persons | E13: Cardiff | F13: LA | H13: 22.9332638 | I13: 20.93923 | J13: 24.9273 | K13: 1.994036201 | L13: 1.994033799
A14: Ceredigion_Smo_Persons_2009-2010_LA | B14: Smo | C14: 2009-2010 | D14: Persons | E14: Ceredigion | F14: LA | H14: 22.88357071 | I14: 19.99239 | J14: 25.77476 | K14: 2.891189291 | L14: 2.891180709
A15: Pembrokeshire_Smo_Persons_2009-2010_LA | B15: Smo | C15: 2009-2010 | D15: Persons | E15: Pembrokeshire | F15: LA | H15: 22.82598757 | I15: 19.97523 | J15: 25.67674 | K15: 2.850752434 | L15: 2.850757566
A16: Carmarthenshire_Smo_Persons_2009-2010_LA | B16: Smo | C16: 2009-2010 | D16: Persons | E16: Carmarthenshire | F16: LA | H16: 22.80545121 | I16: 20.14069 | J16: 25.47021 | K16: 2.664758786 | L16: 2.664761214
A17: Powys_Smo_Persons_2009-2010_LA | B17: Smo | C17: 2009-2010 | D17: Persons | E17: Powys | F17: LA | H17: 22.75230141 | I17: 19.8109 | J17: 25.6937 | K17: 2.941398594 | L17: 2.941401406
A18: Conwy_Smo_Persons_2009-2010_LA | B18: Smo | C18: 2009-2010 | D18: Persons | E18: Conwy | F18: LA | H18: 22.14657577 | I18: 19.44904 | J18: 24.84411 | K18: 2.697534231 | L18: 2.697535769
A19: Swansea_Smo_Persons_2009-2010_LA | B19: Smo | C19: 2009-2010 | D19: Persons | E19: Swansea | F19: LA | H19: 21.96234941 | I19: 19.71498 | J19: 24.20972 | K19: 2.247370593 | L19: 2.247369407
A20: Bridgend_Smo_Persons_2009-2010_LA | B20: Smo | C20: 2009-2010 | D20: Persons | E20: Bridgend | F20: LA | H20: 21.73387818 | I20: 19.09801 | J20: 24.36975 | K20: 2.63587182 | L20: 2.63586818
A21: Flintshire_Smo_Persons_2009-2010_LA | B21: Smo | C21: 2009-2010 | D21: Persons | E21: Flintshire | F21: LA | H21: 21.48060871 | I21: 18.91082 | J21: 24.0504 | K21: 2.569791292 | L21: 2.569788708
A22: The Vale of Glamorgan_Smo_Persons_2009-2010_LA | B22: Smo | C22: 2009-2010 | D22: Persons | E22: The Vale of Glamorgan | F22: LA | H22: 21.05535114 | I22: 18.21093 | J22: 23.89978 | K22: 2.844428859 | L22: 2.844421141
A23: Monmouthshire_Smo_Persons_2009-2010_LA | B23: Smo | C23: 2009-2010 | D23: Persons | E23: Monmouthshire | F23: LA | H23: 18.62343322 | I23: 15.89932 | J23: 21.34755 | K23: 2.724116781 | L23: 2.724113219
A24: Cwm Taf HB_Smo_Persons_2009-2010_HB | B24: Smo | C24: 2009-2010 | D24: Persons | E24: Cwm Taf HB | F24: HB | H24: 26.73071202 | I24: 24.62538 | J24: 28.83604 | K24: 2.105327976 | L24: 2.105332024
A25: Aneurin Bevan HB_Smo_Persons_2009-2010_HB | B25: Smo | C25: 2009-2010 | D25: Persons | E25: Aneurin Bevan HB | F25: HB | H25: 23.94722978 | I25: 22.65411 | J25: 25.24035 | K25: 1.293120224 | L25: 1.293119776
A26: Betsi Cadwaladr UHB_Smo_Persons_2009-2010_HB | B26: Smo | C26: 2009-2010 | D26: Persons | E26: Betsi Cadwaladr UHB | F26: HB | H26: 23.37625687 | I26: 22.21743 | J26: 24.53508 | K26: 1.158823128 | L26: 1.158826872
A27: Hywel Dda HB_Smo_Persons_2009-2010_HB | B27: Smo | C27: 2009-2010 | D27: Persons | E27: Hywel Dda HB | F27: HB | H27: 22.92499811 | I27: 21.25824 | J27: 24.59175 | K27: 1.666751892 | L27: 1.666758108
A28: ABM UHB_Smo_Persons_2009-2010_HB | B28: Smo | C28: 2009-2010 | D28: Persons | E28: ABM UHB | F28: HB | H28: 22.92200379 | I28: 21.46192 | J28: 24.38209 | K28: 1.460086213 | L28: 1.460083787
A29: Powys THB_Smo_Persons_2009-2010_HB | B29: Smo | C29: 2009-2010 | D29: Persons | E29: Powys THB | F29: HB | H29: 22.75230141 | I29: 19.8109 | J29: 25.6937 | K29: 2.941398594 | L29: 2.941401406
A30: Cardiff & Vale UHB_Smo_Persons_2009-2010_HB | B30: Smo | C30: 2009-2010 | D30: Persons | E30: Cardiff & Vale UHB | F30: HB | H30: 22.33364394 | I30: 20.70471 | J30: 23.96257 | K30: 1.628926065 | L30: 1.628933935
A31: Wales_Smo_Persons_2009-2010_WALES | B31: Smo | C31: 2009-2010 | D31: Persons | E31: Wales | F31: WALES | H31: 23.51488686 | I31: 22.92115 | J31: 24.10862 | K31: 0.5937331397 | L31: 0.5937368603
A32: Isle of Anglesey_ACT_Persons_2009-2010_LA | B32: ACT | C32: 2009-2010 | D32: Persons | E32: Isle of Anglesey | F32: LA | H32: 2.510035629 | I32: 2.378917 | J32: 2.641154 | K32: 0.1311183706 | L32: 0.1311186294
A33: Gwynedd_ACT_Persons_2009-2010_LA | B33: ACT | C33: 2009-2010 | D33: Persons | E33: Gwynedd | F33: LA | H33: 2.500658184 | I33: 2.36457 | J33: 2.636746 | K33: 0.1360878163 | L33: 0.1360881837
A34: Conwy_ACT_Persons_2009-2010_LA | B34: ACT | C34: 2009-2010 | D34: Persons | E34: Conwy | F34: LA | H34: 2.562600124 | I34: 2.43085 | J34: 2.69435 | K34: 0.1317498759 | L34: 0.1317501241
A35: Denbighshire_ACT_Persons_2009-2010_LA | B35: ACT | C35: 2009-2010 | D35: Persons | E35: Denbighshire | F35: LA | H35: 2.508173773 | I35: 2.379158 | J35: 2.63719 | K35: 0.1290162273 | L35: 0.1290157727
A36: Flintshire_ACT_Persons_2009-2010_LA | B36: ACT | C36: 2009-2010 | D36: Persons | E36: Flintshire | F36: LA | H36: 2.469643227 | I36: 2.348149 | J36: 2.591137 | K36: 0.1214937735 | L36: 0.1214942265
A37: Wrexham_ACT_Persons_2009-2010_LA | B37: ACT | C37: 2009-2010 | D37: Persons | E37: Wrexham | F37: LA | H37: 2.3664299 | I37: 2.238246 | J37: 2.494614 | K37: 0.1281841003 | L37: 0.1281838997
A38: Powys_ACT_Persons_2009-2010_LA | B38: ACT | C38: 2009-2010 | D38: Persons | E38: Powys | F38: LA | H38: 2.75890181 | I38: 2.625976 | J38: 2.891827 | K38: 0.1329251901 | L38: 0.1329258099
A39: Ceredigion_ACT_Persons_2009-2010_LA | B39: ACT | C39: 2009-2010 | D39: Persons | E39: Ceredigion | F39: LA | H39: 2.67450586 | I39: 2.543165 | J39: 2.805847 | K39: 0.1313411399 | L39: 0.1313408601
A40: Pembrokeshire_ACT_Persons_2009-2010_LA | B40: ACT | C40: 2009-2010 | D40: Persons | E40: Pembrokeshire | F40: LA | H40: 2.612246653 | I40: 2.470079 | J40: 2.754415 | K40: 0.1421683469 | L40: 0.1421676531
A41: Carmarthenshire_ACT_Persons_2009-2010_LA | B41: ACT | C41: 2009-2010 | D41: Persons | E41: Carmarthenshire | F41: LA | H41: 2.3607693 | I41: 2.237327 | J41: 2.484211 | K41: 0.1234416998 | L41: 0.1234423002
A42: Swansea_ACT_Persons_2009-2010_LA | B42: ACT | C42: 2009-2010 | D42: Persons | E42: Swansea | F42: LA | H42: 2.325240513 | I42: 2.220012 | J42: 2.430469 | K42: 0.1052284873 | L42: 0.1052285127
A43: Neath Port Talbot_ACT_Persons_2009-2010_LA | B43: ACT | C43: 2009-2010 | D43: Persons | E43: Neath Port Talbot | F43: LA | H43: 2.130423847 | I43: 2.010393 | J43: 2.250455 | K43: 0.1200311531 | L43: 0.1200308469
A44: Bridgend_ACT_Persons_2009-2010_LA | B44: ACT | C44: 2009-2010 | D44: Persons | E44: Bridgend | F44: LA | H44: 2.309741144 | I44: 2.180026 | J44: 2.439456 | K44: 0.1297148563 | L44: 0.1297151437
A45: The Vale of Glamorgan_ACT_Persons_2009-2010_LA | B45: ACT | C45: 2009-2010 | D45: Persons | E45: The Vale of Glamorgan | F45: LA | H45: 2.428486698 | I45: 2.298525 | J45: 2.558449 | K45: 0.1299623021 | L45: 0.1299616979
A46: Cardiff_ACT_Persons_2009-2010_LA | B46: ACT | C46: 2009-2010 | D46: Persons | E46: Cardiff | F46: LA | H46: 2.168316789 | I46: 2.074692 | J46: 2.261941 | K46: 0.09362421077 | L46: 0.09362478923
A47: Rhondda Cynon Taf_ACT_Persons_2009-2010_LA | B47: ACT | C47: 2009-2010 | D47: Persons | E47: Rhondda Cynon Taf | F47: LA | H47: 2.194981999 | I47: 2.080847 | J47: 2.309117 | K47: 0.1141350011 | L47: 0.1141349989
A48: Merthyr Tydfil_ACT_Persons_2009-2010_LA | B48: ACT | C48: 2009-2010 | D48: Persons | E48: Merthyr Tydfil | F48: LA | H48: 2.17607635 | I48: 2.040601 | J48: 2.311552 | K48: 0.1354756504 | L48: 0.1354753496
A49: Caerphilly_ACT_Persons_2009-2010_LA | B49: ACT | C49: 2009-2010 | D49: Persons | E49: Caerphilly | F49: LA | H49: 2.198622158 | I49: 2.075346 | J49: 2.321898 | K49: 0.1232758417 | L49: 0.1232761583
A50: Blaenau Gwent_ACT_Persons_2009-2010_LA | B50: ACT | C50: 2009-2010 | D50: Persons | E50: Blaenau Gwent | F50: LA | H50: 2.199265771 | I50: 2.069997 | J50: 2.328535 | K50: 0.129269229 | L50: 0.129268771
A51: Torfaen_ACT_Persons_2009-2010_LA | B51: ACT | C51: 2009-2010 | D51: Persons | E51: Torfaen | F51: LA | H51: 2.247839706 | I51: 2.115748 | J51: 2.379931 | K51: 0.1320912939 | L51: 0.1320917061
A52: Monmouthshire_ACT_Persons_2009-2010_LA | B52: ACT | C52: 2009-2010 | D52: Persons | E52: Monmouthshire | F52: LA | H52: 2.682019778 | I52: 2.549871 | J52: 2.814168 | K52: 0.1321482217 | L52: 0.1321487783
A53: Newport_ACT_Persons_2009-2010_LA | B53: ACT | C53: 2009-2010 | D53: Persons | E53: Newport | F53: LA | H53: 2.243658238 | I53: 2.123467 | J53: 2.36385 | K53: 0.1201917618 | L53: 0.1201912382
A54: Betsi Cadwaladr UHB_ACT_Persons_2009-2010_HB | B54: ACT | C54: 2009-2010 | D54: Persons | E54: Betsi Cadwaladr UHB | F54: HB | H54: 2.480558715 | I54: 2.426735 | J54: 2.534382 | K54: 0.05382328457 | L54: 0.05382371543
A55: Hywel Dda HB_ACT_Persons_2009-2010_HB | B55: ACT | C55: 2009-2010 | D55: Persons | E55: Hywel Dda HB | F55: HB | H55: 2.499336806 | I55: 2.421321 | J55: 2.577352 | K55: 0.07801519431 | L55: 0.07801580569
A56: Powys THB_ACT_Persons_2009-2010_HB | B56: ACT | C56: 2009-2010 | D56: Persons | E56: Powys THB | F56: HB | H56: 2.75890181 | I56: 2.625976 | J56: 2.891827 | K56: 0.1329251901 | L56: 0.1329258099
A57: ABM UHB_ACT_Persons_2009-2010_HB | B57: ACT | C57: 2009-2010 | D57: Persons | E57: ABM UHB | F57: HB | H57: 2.265711852 | I57: 2.197669 | J57: 2.333755 | K57: 0.06804314844 | L57: 0.06804285156
A58: Cwm Taf HB_ACT_Persons_2009-2010_HB | B58: ACT | C58: 2009-2010 | D58: Persons | E58: Cwm Taf HB | F58: HB | H58: 2.190597323 | I58: 2.094635 | J58: 2.28656 | K58: 0.09596267682 | L58: 0.09596232318
A59: Cardiff & Vale UHB_ACT_Persons_2009-2010_HB | B59: ACT | C59: 2009-2010 | D59: Persons | E59: Cardiff & Vale UHB | F59: HB | H59: 2.246127494 | I59: 2.170051 | J59: 2.322204 | K59: 0.07607650614 | L59: 0.07607649386
A60: Aneurin Bevan HB_ACT_Persons_2009-2010_HB | B60: ACT | C60: 2009-2010 | D60: Persons | E60: Aneurin Bevan HB | F60: HB | H60: 2.29565278 | I60: 2.236991 | J60: 2.354314 | K60: 0.05866121958 | L60: 0.05866178042
A61: Wales_ACT_Persons_2009-2010_Wales | B61: ACT | C61: 2009-2010 | D61: Persons | E61: Wales | F61: Wales | H61: 2.361671368 | I61: 2.333822 | J61: 2.388968 | K61: 0.02729663151 | L61: 0.02784936849
A62: Bridgend_Vacc_Children at age 4_2011-2012 (FY)_LA | B62: Vacc | C62: 2011-2012 (FY) | D62: Children at age 4 | E62: Bridgend | F62: LA | H62: 80.94932649 | I62: 78.92478963 | J62: 82.82171111 | K62: 1.872384616 | L62: 2.024536866
A63: Neath Port Talbot_Vacc_Children at age 4_2011-2012 (FY)_LA | B63: Vacc | C63: 2011-2012 (FY) | D63: Children at age 4 | E63: Neath Port Talbot | F63: LA | H63: 81.5055159 | I63: 79.48948167 | J63: 83.36485887 | K63: 1.859342972 | L63: 2.016034234
A64: Swansea_Vacc_Children at age 4_2011-2012 (FY)_LA | B64: Vacc | C64: 2011-2012 (FY) | D64: Children at age 4 | E64: Swansea | F64: LA | H64: 80.08115087 | I64: 78.53559756 | J64: 81.54157232 | K64: 1.460421458 | L64: 1.545553312
A65: ABM UHB_Vacc_Children at age 4_2011-2012 (FY)_HB | B65: Vacc | C65: 2011-2012 (FY) | D65: Children at age 4 | E65: ABM UHB | F65: HB | H65: 80.69179143 | I65: 79.6567637 | J65: 81.68626583 | K65: 0.9944744009 | L65: 1.035027728
A66: Blaenau Gwent_Vacc_Children at age 4_2011-2012 (FY)_LA | B66: Vacc | C66: 2011-2012 (FY) | D66: Children at age 4 | E66: Blaenau Gwent | F66: LA | H66: 83.94736842 | I66: 81.16770282 | J66: 86.38557 | K66: 2.43820158 | L66: 2.779665597
A67: =TRIM(E67)&"_"&B67&"_"&D67&"_"&C67&"_"&F67 -> Caerphilly_Vacc_Children at age 4_2011-2012 (FY)_LA | B67: Vacc | C67: 2011-2012 (FY) | D67: Children at age 4 | E67: Caerphilly | F67: LA | G67: =" " ->  | H67: 81.80487805 | I67: 80.07577682 | J67: 83.41500066 | K67: 1.610122611 | L67: 1.729101231
A68: Monmouthshire_Vacc_Children at age 4_2011-2012 (FY)_LA | B68: Vacc | C68: 2011-2012 (FY) | D68: Children at age 4 | E68: Monmouthshire | F68: LA | H68: 83.1797235 | I68: 80.54630379 | J68: 85.52074325 | K68: 2.341019745 | L68: 2.633419708
A69: Newport_Vacc_Children at age 4_2011-2012 (FY)_LA | B69: Vacc | C69: 2011-2012 (FY) | D69: Children at age 4 | E69: Newport | F69: LA | H69: 76.53543307 | I69: 74.58016358 | J69: 78.38389587 | K69: 1.848462804 | L69: 1.955269487
A70: Torfaen_Vacc_Children at age 4_2011-2012 (FY)_LA | B70: Vacc | C70: 2011-2012 (FY) | D70: Children at age 4 | E70: Torfaen | F70: LA | H70: 82.92682927 | I70: 80.55073412 | J70: 85.06645631 | K70: 2.139627042 | L70: 2.376095146
A71: Aneurin Bevan HB_Vacc_Children at age 4_2011-2012 (FY)_HB | B71: Vacc | C71: 2011-2012 (FY) | D71: Children at age 4 | E71: Aneurin Bevan HB | F71: HB | H71: 80.89938337 | I71: 79.93677058 | J71: 81.82631122 | K71: 0.9269278583 | L71: 0.9626127816
A72: Isle of Anglesey_Vacc_Children at age 4_2011-2012 (FY)_LA | B72: Vacc | C72: 2011-2012 (FY) | D72: Children at age 4 | E72: Isle of Anglesey | F72: LA | H72: 82.22222222 | I72: 79.35389605 | J72: 84.76854478 | K72: 2.546322553 | L72: 2.868326172
A73: Conwy_Vacc_Children at age 4_2011-2012 (FY)_LA | B73: Vacc | C73: 2011-2012 (FY) | D73: Children at age 4 | E73: Conwy | F73: LA | H73: 81.22743682 | I73: 78.82166231 | J73: 83.41741923 | K73: 2.18998241 | L73: 2.405774518
A74: Denbighshire_Vacc_Children at age 4_2011-2012 (FY)_LA | B74: Vacc | C74: 2011-2012 (FY) | D74: Children at age 4 | E74: Denbighshire | F74: LA | H74: 82.3246878 | I74: 79.88976703 | J74: 84.5219103 | K74: 2.197222503 | L74: 2.434920773
A75: Flintshire_Vacc_Children at age 4_2011-2012 (FY)_LA | B75: Vacc | C75: 2011-2012 (FY) | D75: Children at age 4 | E75: Flintshire | F75: LA | H75: 83.06585501 | I75: 81.266821 | J75: 84.72459426 | K75: 1.65873925 | L75: 1.799034004
A76: Gwynedd_Vacc_Children at age 4_2011-2012 (FY)_LA | B76: Vacc | C76: 2011-2012 (FY) | D76: Children at age 4 | E76: Gwynedd | F76: LA | H76: 85.06493506 | I76: 82.9656945 | J76: 86.9461777 | K76: 1.881242636 | L76: 2.099240564
A77: Wrexham_Vacc_Children at age 4_2011-2012 (FY)_LA | B77: Vacc | C77: 2011-2012 (FY) | D77: Children at age 4 | E77: Wrexham | F77: LA | H77: 84.76658477 | I77: 82.93929454 | J77: 86.43018348 | K77: 1.663598715 | L77: 1.82729023
A78: Betsi Cadwaladr UHB_Vacc_Children at age 4_2011-2012 (FY)_HB | B78: Vacc | C78: 2011-2012 (FY) | D78: Children at age 4 | E78: Betsi Cadwaladr UHB | F78: HB | H78: 83.30035615 | I78: 82.44393825 | J78: 84.12304187 | K78: 0.8226857161 | L78: 0.8564179033
A79: Cardiff_Vacc_Children at age 4_2011-2012 (FY)_LA | B79: Vacc | C79: 2011-2012 (FY) | D79: Children at age 4 | E79: Cardiff | F79: LA | H79: 76.8761302 | I79: 75.61069521 | J79: 78.09492967 | K79: 1.218799471 | L79: 1.265434989
A80: The Vale of Glamorgan_Vacc_Children at age 4_2011-2012 (FY)_LA | B80: Vacc | C80: 2011-2012 (FY) | D80: Children at age 4 | E80: The Vale of Glamorgan | F80: LA | H80: 81.37384412 | I80: 79.33422403 | J80: 83.25465217 | K80: 1.880808053 | L80: 2.039620092
A81: Cardiff & Vale UHB_Vacc_Children at age 4_2011-2012 (FY)_HB | B81: Vacc | C81: 2011-2012 (FY) | D81: Children at age 4 | E81: Cardiff & Vale UHB | F81: HB | H81: 78.02290333 | I81: 76.95171851 | J81: 79.05785266 | K81: 1.034949329 | L81: 1.071184823
A82: Merthyr Tydfil_Vacc_Children at age 4_2011-2012 (FY)_LA | B82: Vacc | C82: 2011-2012 (FY) | D82: Children at age 4 | E82: Merthyr Tydfil | F82: LA | H82: 85.09406657 | I82: 82.24479318 | J82: 87.55528787 | K82: 2.461221302 | L82: 2.849273388
A83: Rhondda Cynon Taf_Vacc_Children at age 4_2011-2012 (FY)_LA | B83: Vacc | C83: 2011-2012 (FY) | D83: Children at age 4 | E83: Rhondda Cynon Taf | F83: LA | H83: 82.60869565 | I83: 81.14322017 | J83: 83.98276157 | K83: 1.374065921 | L83: 1.465475483
A84: Cwm Taf HB_Vacc_Children at age 4_2011-2012 (FY)_HB | B84: Vacc | C84: 2011-2012 (FY) | D84: Children at age 4 | E84: Cwm Taf HB | F84: HB | H84: 83.10968495 | I84: 81.81853723 | J84: 84.32670677 | K84: 1.217021818 | L84: 1.291147714
A85: Carmarthenshire_Vacc_Children at age 4_2011-2012 (FY)_LA | B85: Vacc | C85: 2011-2012 (FY) | D85: Children at age 4 | E85: Carmarthenshire | F85: LA | H85: 78.62444334 | I85: 76.78365337 | J85: 80.35661874 | K85: 1.732175393 | L85: 1.840789974
A86: Ceredigion_Vacc_Children at age 4_2011-2012 (FY)_LA | B86: Vacc | C86: 2011-2012 (FY) | D86: Children at age 4 | E86: Ceredigion | F86: LA | H86: 83.7962963 | I86: 80.76130063 | J86: 86.43293797 | K86: 2.63664167 | L86: 3.034995663
A87: Pembrokeshire_Vacc_Children at age 4_2011-2012 (FY)_LA | B87: Vacc | C87: 2011-2012 (FY) | D87: Children at age 4 | E87: Pembrokeshire | F87: LA | H87: 75.3414264 | I87: 72.94297954 | J87: 77.59257631 | K87: 2.251149902 | L87: 2.398446861
A88: Hywel Dda HB_Vacc_Children at age 4_2011-2012 (FY)_HB | B88: Vacc | C88: 2011-2012 (FY) | D88: Children at age 4 | E88: Hywel Dda HB | F88: HB | H88: 78.37973414 | I88: 77.07493143 | J88: 79.62989995 | K88: 1.250165816 | L88: 1.304802706
A89: Powys THB_Vacc_Children at age 4_2011-2012 (FY)_HB | B89: Vacc | C89: 2011-2012 (FY) | D89: Children at age 4 | E89: Powys THB | F89: HB | H89: 81.41176471 | I89: 79.18320406 | J89: 83.45160544 | K89: 2.039840736 | L89: 2.228560645
A90: Powys_Vacc_Children at age 4_2011-2012 (FY)_LA | B90: Vacc | C90: 2011-2012 (FY) | D90: Children at age 4 | E90: Powys | F90: LA | H90: 81.41176471 | I90: 79.18320406 | J90: 83.45160544 | K90: 2.039840736 | L90: 2.228560645
A91: Wales_Vacc_Children at age 4_2011-2012 (FY)_Wales | B91: Vacc | C91: 2011-2012 (FY) | D91: Children at age 4 | E91: Wales | F91: Wales | H91: 80.8423952 | I91: 80.4258373 | J91: 81.25215478 | K91: 0.4097595758 | L91: 0.4165579052
A92: Wales_ALC_Females_2010_Wales | B92: ALC | C92: 2010 | D92: Females | E92: Wales | F92: Wales | G92: 3532 | H92: 230.16815 | I92: 222.47052 | J92: 238.05972 | K92: 7.89157 | L92: 7.69763
A93: Hywel Dda HB_ALC_Females_2010_HB | B93: ALC | C93: 2010 | D93: Females | E93: Hywel Dda HB | F93: HB | G93: 380 | H93: 199.49186 | I93: 179.12868 | J93: 221.46434 | K93: 21.97248 | L93: 20.36318
A94: Cwm Taf HB_ALC_Females_2010_HB | B94: ALC | C94: 2010 | D94: Females | E94: Cwm Taf HB | F94: HB | G94: 340 | H94: 232.26341 | I94: 207.83734 | J94: 258.73524 | K94: 26.47182 | L94: 24.42607
A95: Powys THB_ALC_Females_2010_HB | B95: ALC | C95: 2010 | D95: Females | E95: Powys THB | F95: HB | G95: 89 | H95: 133.88287 | I95: 105.40588 | J95: 167.22681 | K95: 33.34394 | L95: 28.47699
A96: ABM UHB_ALC_Females_2010_HB | B96: ALC | C96: 2010 | D96: Females | E96: ABM UHB | F96: HB | G96: 520 | H96: 202.04006 | I96: 184.64719 | J96: 220.60075 | K96: 18.56069 | L96: 17.39287
A97: Aneurin Bevan HB_ALC_Females_2010_HB | B97: ALC | C97: 2010 | D97: Females | E97: Aneurin Bevan HB | F97: HB | G97: 724 | H97: 254.49462 | I97: 235.94047 | J97: 274.09873 | K97: 19.60411 | L97: 18.55415
A98: Betsi Cadwaladr UHB_ALC_Females_2010_HB | B98: ALC | C98: 2010 | D98: Females | E98: Betsi Cadwaladr UHB | F98: HB | G98: 941 | H98: 274.71101 | I98: 256.86076 | J98: 293.44396 | K98: 18.73295 | L98: 17.85025
A99: Cardiff & Vale UHB_ALC_Females_2010_HB | B99: ALC | C99: 2010 | D99: Females | E99: Cardiff & Vale UHB | F99: HB | G99: 538 | H99: 221.98399 | I99: 203.21733 | J99: 241.98869 | K99: 20.0047 | L99: 18.76666
A100: Carmarthenshire_ALC_Females_2010_LA | B100: ALC | C100: 2010 | D100: Females | E100: Carmarthenshire | F100: LA | G100: 211 | H100: 228.65536 | I100: 197.84765 | J100: 262.77838 | K100: 34.12302 | L100: 30.80771
A101: Ceredigion_ALC_Females_2010_LA | B101: ALC | C101: 2010 | D101: Females | E101: Ceredigion | F101: LA | G101: 47 | H101: 117.33358 | I101: 83.47194 | J101: 159.42985 | K101: 42.09627 | L101: 33.86164
A102: Conwy_ALC_Females_2010_LA | B102: ALC | C102: 2010 | D102: Females | E102: Conwy | F102: LA | G102: 162 | H102: 301.37362 | I102: 253.77181 | J102: 354.86909 | K102: 53.49547 | L102: 47.60181
A103: Blaenau Gwent_ALC_Females_2010_LA | B103: ALC | C103: 2010 | D103: Females | E103: Blaenau Gwent | F103: LA | G103: 91 | H103: 260.08473 | I103: 208.58721 | J103: 320.27783 | K103: 60.1931 | L103: 51.49752
A104: Bridgend_ALC_Females_2010_LA | B104: ALC | C104: 2010 | D104: Females | E104: Bridgend | F104: LA | G104: 128 | H104: 185.72235 | I104: 154.05044 | J104: 221.84201 | K104: 36.11966 | L104: 31.6719
A105: Caerphilly_ALC_Females_2010_LA | B105: ALC | C105: 2010 | D105: Females | E105: Caerphilly | F105: LA | G105: 189 | H105: 214.43716 | I105: 184.45939 | J105: 247.83458 | K105: 33.39741 | L105: 29.97777
A106: Cardiff_ALC_Females_2010_LA | B106: ALC | C106: 2010 | D106: Females | E106: Cardiff | F106: LA | G106: 380 | H106: 219.7034 | I106: 197.50946 | J106: 243.65133 | K106: 23.94793 | L106: 22.19395
